Workbook

Sheet 波形
B2: 1 | E2: 3.3 V
H3: .5 ns
M5: Z0 | N5: 50Ω
N7: 15 cm | Q7: ξ | R7: 0.15
G8: 無し | Q8: tpd比 | R8: 0.03
B9: Max | E9: 8 mA | W9: 開放
B10: =計算!CP3 -> 0.2983353313
J11: =計算!AW3 -> ↓ | S11: =計算!CL3 -> 
F13: =計算!CO3 -> ◁ | V13: =計算!CO3 -> ◁

Sheet Read_Me
B2: プリント配線板などのクロストークの解析ツールです.
B4: 1. 何ができるか
B5: プリント配線板の特性インピーダンスや回路定数を選択することにより, 近端または遠端の波形を解析して表示します.⇒｢波形｣のシートをクリック下さい.
B7: 2. 使い方
B8: 解説が不要なくらい簡単です.
B9: 図の中のプルダウンメニューから,定数を選択下さい.
B10: 各パラメータは,
B11: 伝送方向 | D11: 順方向と逆方向をボタンで選択します. 方向に応じて図が切り換わります.
B12: 電源電圧 | D12: 1.0V,1.8V, 2.5V, 3.3V, 5V を準備しています. このほかに,%表示も選択できます.
B13: 駆動能力 | D13: ドライバのカタログ記載の駆動能力です. ここでは,実力がカタログ記載値の1.5倍あると仮定して,出力が0.4Vのときの
D14: 抵抗値に換算しています.(例 : 4mA=66.7Ω, 24mA=11.1Ω)
B15: 立ち上がり時間 | D15: ドライバの立ち上がり時間を 0.1ns ～ 2ns から選択します.
B16: ダンピング抵抗 | D16: ドライバの出力に直列に挿入するダンピング抵抗です.
B17: 線路定数 | D17: 特性インピーダンスZ0, クロストーク係数ξ, 伝搬モードの違いによる遅延の比(tdC/tdD)を選択します.
D18: tdC/tdDの最大値は14%です.(7*τC≧8*τDの範囲)
B19: パターン長 | D19: 解析したいパターンの長さです. 5cmから30cmから選択します. 伝搬遅延は6.5ns/mとしています.
B20: 中間点 | D20: 近端,遠端のほかに,その途中の波形を選択します. 近端から遠端までを4等分した中から選択します.
D21: 中間点の波形を表示しない選択もできます.
B22: 終端抵抗 | D22: 遠端に接続する終端抵抗です. 準備した抵抗値(無しも含む)から選択します.
D23: hyperbolaとは, 順方向伝送のときの遠端側のクロストークを除去できる特別な抵抗値で, ドライバの出力抵抗と遠端の
D24: 終端抵抗との積が特性インピーダンスの自乗になるような特別な値です. 遠端側のクロストークがヒゲだけ残ります.
B26: 3. 波形の意味
B27: 左がクロストークの波形(実線), 右が駆動側の波形(破線)です. 近端/遠端それぞれの最大値を画面上に表示しています.
B28: 近端を青, 遠端を赤で表しています.
B30: 4. RESET
B31: 図とグラフが画面全体に収まるように設定します.
B33: 5. その他
B34: 準備した値以外を使いたい場合は,Dataのシートの緑色のセルに値を書き込んで下さい.
B40: v.1.0 | C40: 2023-09-20 | E40: 初版
B41: v.1.1 | C41: 2023-10-15 | E41: Maxの数値のバグ修正

Sheet Data
A1: IoL | E1: Dumping R | H1: Zo | K1: ξ | M1: tpd比 | O1: tr/tf | R1: 線長 | U1: Vcc | X1: 終端抵抗
A2: =TEXT(B2," ##")&" mA" -> 2 mA | B2: 2 | C2: =400/B2/1.5 -> 133.3333333 | E2: 無し | F2: 0 | H2: =TEXT(I2," ##")&"Ω" -> 30Ω | I2: 30 | K2: 0.01 | M2: 0 | O2: =TEXT(P2," ##.0")&" ns" -> .1 ns | P2: 0.1 | R2: =TEXT(S2," ##")&" cm" -> 5 cm | S2: 5 | U2: =TEXT(V2," ##.#")&" V" -> 1. V | V2: 1 | X2: 開放 | Y2: 1000000
A3: 4 mA | B3: 4 | C3: 66.66666667 | E3: =TEXT(F3," ##")&"Ω" -> 10Ω | F3: 10 | H3: 40Ω | I3: 40 | K3: 0.02 | M3: 0.01 | O3: =TEXT(P3," ##.0")&" ns" -> .2 ns | P3: 0.2 | R3: 10 cm | S3: 10 | U3: =TEXT(V3," ##.#")&" V" -> 1.8 V | V3: 1.8 | X3: ="整合("&TEXT(Y3,"###")&"Ω)" -> 整合(50Ω) | Y3: =計算!B6 -> 50
A4: 8 mA | B4: 8 | C4: 33.33333333 | E4: 15Ω | F4: 15 | H4: 50Ω | I4: 50 | K4: 0.05 | M4: 0.02 | O4: =TEXT(P4," ##.0")&" ns" -> .5 ns | P4: 0.5 | R4: 15 cm | S4: 15 | U4: =TEXT(V4," ##.#")&" V" -> 2.5 V | V4: 2.5 | X4: =TEXT(Y4," ##")&"Ω" -> 40Ω | Y4: 40
A5: 12 mA | B5: 12 | C5: 22.22222222 | E5: 22Ω | F5: 22 | H5: 55Ω | I5: 55 | K5: 0.1 | M5: 0.03 | O5: =TEXT(P5," ##.0")&" ns" -> 1.0 ns | P5: 1 | R5: 20 cm | S5: 20 | U5: =TEXT(V5," ##.#")&" V" -> 3.3 V | V5: 3.3 | X5: 50Ω | Y5: 50
A6: 16 mA | B6: 16 | C6: 16.66666667 | E6: 33Ω | F6: 33 | H6: 60Ω | I6: 60 | K6: 0.15 | M6: 0.04 | O6: =TEXT(P6," ##.0")&" ns" -> 2.0 ns | P6: 2 | R6: 25 cm | S6: 25 | U6: =TEXT(V6," ##")&" V" -> 5 V | V6: 5 | X6: 60Ω | Y6: 60
A7: 24 mA | B7: 24 | C7: 11.11111111 | E7: 36Ω | F7: 36 | H7: 65Ω | I7: 65 | K7: 0.2 | M7: 0.05 | R7: 30 cm | S7: 30 | U7: % | V7: 100 | X7: 70Ω | Y7: 70
E8: 39Ω | F8: 39 | H8: 70Ω | I8: 70 | K8: 0.25 | M8: 0.06 | X8: 80Ω | Y8: 80
E9: 43Ω | F9: 43 | H9: 80Ω | I9: 80 | K9: 0.3 | M9: 0.07 | X9: 90Ω | Y9: 90
E10: 47Ω | F10: 47 | H10: 90Ω | I10: 90 | K10: 0.35 | M10: 0.08 | X10: 100Ω | Y10: 100
E11: 51Ω | F11: 51 | H11: =I11&"Ω" -> 100Ω | I11: 100 | K11: 0.4 | M11: 0.09 | X11: 150Ω | Y11: 150
E12: 56Ω | F12: 56 | M12: 0.1 | X12: 200Ω | Y12: 200
E13: 62Ω | F13: 62 | M13: 0.14 | X13: 300Ω | Y13: 300
X14: 500Ω | Y14: 500
X15: 1000Ω | Y15: 1000
M16: 14% max | X16: ="Hyperbola("&TEXT(Y16,"##Ω)") -> Hyperbola(75Ω) | Y16: =計算!B12*計算!B13/計算!B2+0.000001 -> 75.000001

Sheet 計算 (hidden)
A1: 順(0)/逆(1) | B1: =波形!B2 -> 1 | F1: 近端 | H1: Δv1 | I1: Δv2 | K1: v1 | M1: =$G$3 -> 0 | N1: =$G$4 -> 1.921392073 | O1: =$G$5 -> 1.950212974 | P1: =$G$6 -> 1.979033875 | Q1: =$G$7 -> 3.842784147 | R1: =$G$8 -> 3.871605048 | S1: =$G$9 -> 3.900425948 | T1: =$G$10 -> 3.929246849 | U1: =$G$11 -> 3.958067749 | V1: =$G$12 -> 5.76417622 | W1: =$G$13 -> 5.792997121 | X1: =$G$14 -> 5.821818022 | Y1: =$G$15 -> 5.850638922 | Z1: =$G$16 -> 5.879459823 | AA1: =$G$17 -> 5.908280723 | AB1: =$G$18 -> 5.937101624 | AC1: =$G$19 -> 7.685568294 | AD1: =$G$20 -> 7.714389195 | AE1: =$G$21 -> 7.743210095 | AF1: =$G$22 -> 7.772030996 | AG1: =$G$23 -> 7.800851896 | AH1: =$G$24 -> 7.829672797 | AI1: =$G$25 -> 7.858493698 | AJ1: =$G$26 -> 7.887314598 | AK1: =$G$27 -> 7.916135499 | AL1: =$G$28 -> 9.606960367 | AM1: =$G$29 -> 9.635781268 | AN1: =$G$30 -> 9.664602169 | AO1: =$G$31 -> 9.693423069 | AP1: =$G$32 -> 9.72224397 | AQ1: =$G$33 -> 9.75106487 | AR1: =$G$34 -> 9.779885771 | AS1: =$G$35 -> 9.808706672 | AT1: =$G$36 -> 9.837527572 | AU1: =$G$37 -> 9.866348473 | AV1: =$G$38 -> 9.895169373 | BA1: 遠端 | BC1: Δv1 | BD1: Δv2 | BF1: v1 | BH1: =$BB$3 -> 0.9606960367 | BI1: =$BB$4 -> 0.9895169373 | BJ1: =$BB$5 -> 2.88208811 | BK1: =$BB$6 -> 2.910909011 | BL1: =$BB$7 -> 2.939729911 | BM1: =$BB$8 -> 2.968550812 | BN1: =$BB$9 -> 4.803480184 | BO1: =$BB$10 -> 4.832301084 | BP1: =$BB$11 -> 4.861121985 | BQ1: =$BB$12 -> 4.889942886 | BR1: =$BB$13 -> 4.918763786 | BS1: =$BB$14 -> 4.947584687 | BT1: =$BB$15 -> 6.724872257 | BU1: =$BB$16 -> 6.753693158 | BV1: =$BB$17 -> 6.782514058 | BW1: =$BB$18 -> 6.811334959 | BX1: =$BB$19 -> 6.84015586 | BY1: =$BB$20 -> 6.86897676 | BZ1: =$BB$21 -> 6.897797661 | CA1: =$BB$22 -> 6.926618561 | CB1: =$BB$23 -> 8.646264431 | CC1: =$BB$24 -> 8.675085341 | CD1: =$BB$25 -> 8.703906252 | CE1: =$BB$26 -> 8.732727163 | CF1: =$BB$27 -> 8.761548073 | CG1: =$BB$28 -> 8.790368984 | CH1: =$BB$29 -> 8.819189894 | CI1: =$BB$30 -> 8.848010805 | CJ1: =$BB$31 -> 8.876831716 | CK1: =$BB$32 -> 8.905652626
A2: R1 | B2: =VLOOKUP(波形!G8,Data!E2:F14,2,0)+C2+0.000000001 -> 33.33333333 | C2: =VLOOKUP(波形!E9,Data!A2:C8,3,0) -> 33.33333333 | G2: 0 | M2: =$H$3 -> 1.989000528 | N2: =$H$4 -> 0.3275217949 | O2: =$H$5 -> 0.9310129985 | P2: =$H$6 -> 0.2787994054 | Q2: =$H$7 -> 0.07787922992 | R2: =$H$8 -> -0.01119237707 | S2: =$H$9 -> -0.2393553108 | T2: =$H$10 -> -0.1103328801 | U2: =$H$11 -> 0.02624490998 | V2: =$H$12 -> 0.01851838427 | W2: =$H$13 -> -0.05796305521 | X2: =$H$14 -> -0.05545849425 | Y2: =$H$15 -> 0.1033839999 | Z2: =$H$16 -> 0.05028929326 | AA2: =$H$17 -> -0.02902262998 | AB2: =$H$18 -> 0.002470576645 | AC2: =$H$19 -> 0.004403363467 | AD2: =$H$20 -> -0.02693247169 | AE2: =$H$21 -> 0.02642864354 | AF2: =$H$22 -> 0.05897980492 | AG2: =$H$23 -> -0.05657348573 | AH2: =$H$24 -> -0.0282227423 | AI2: =$H$25 -> 0.02482267495 | AJ2: =$H$26 -> -0.004486404064 | AK2: =$H$27 -> 0.0002325688663 | AL2: =$H$28 -> 0.001047046521 | AM2: =$H$29 -> -0.009530902155 | AN2: =$H$30 -> 0.02504188741 | AO2: =$H$31 -> -0.004831490016 | AP2: =$H$32 -> -0.05050510213 | AQ2: =$H$33 -> 0.03465058286 | AR2: =$H$34 -> 0.01849529577 | AS2: =$H$35 -> -0.02012516075 | AT2: =$H$36 -> 0.005473502902 | AU2: =$H$37 -> -0.0005874758216 | AV2: =$H$38 -> 2.189297697e-05 | BB2: =-BB3 -> -0.9606960367 | BH2: =$BC$3 -> 1.843424849 | BI2: =$BC$4 -> 2.08043597 | BJ2: =$BC$5 -> 0.4383357379 | BK2: =$BC$6 -> -0.5512010619 | BL2: =$BC$7 -> -0.8036518745 | BM2: =$BC$8 -> 0.1958427948 | BN2: =$BC$9 -> 0.1042289406 | BO2: =$BC$10 -> -0.4423266907 | BP2: =$BC$11 -> 0.1637739194 | BQ2: =$BC$12 -> 0.4775480553 | BR2: =$BC$13 -> -0.2147192343 | BS2: =$BC$14 -> 0.01843575137 | BT2: =$BC$15 -> 0.02478390678 | BU2: =$BC$16 -> -0.1791904293 | BV2: =$BC$17 -> 0.3443491614 | BW2: =$BC$18 -> -0.02111804055 | BX2: =$BC$19 -> -0.3408273685 | BY2: =$BC$20 -> 0.1935437961 | BZ2: =$BC$21 -> -0.0333038386 | CA2: =$BC$22 -> 0.001735457916 | CB2: =$BC$23 -> 0.005893200406 | CC2: =$BC$24 -> -0.06020744256 | CD2: =$BC$25 -> 0.2070570179 | CE2: =$BC$26 -> -0.2477426625 | CF2: =$BC$27 -> -0.04054365076 | CG2: =$BC$28 -> 0.2658992244 | CH2: =$BC$29 -> -0.1683756746 | CI2: =$BC$30 -> 0.04150284709 | CJ2: =$BC$31 -> -0.004367413067 | CK2: =$BC$32 -> 0.0001633681274
A3: R2 | B3: =VLOOKUP(波形!W9,Data!X2:Y17,2,0) -> 1000000 | F3: =COUNTIF(G$2:G$74,"<"&TEXT(G3,"##.################")) -> 0 | G3: =準備!J2 -> 0 | H3: =準備!O2 -> 1.989000528 | I3: =準備!P2 -> 0.2983353313 | K3: 0 | L3: =-B21 -> -0.9606960367 | AW3: =IF(B1=1,"↓","") -> ↓ | BA3: =COUNTIF(BB$2:BB$62,"<"&TEXT(BB3,"##.################")) -> 1 | BB3: =準備!T2 -> 0.9606960367 | BC3: =準備!Y2 -> 1.843424849 | BD3: =準備!Z2 -> -0.6716599979 | BF3: -1 | CL3: =IF(B1=0,"↓","") ->  | CO3: =IF(B1=1,"◁","▷") -> ◁ | CP3: =MAX(CP4:CQ64) -> 0.2983353313
A4: RN | B4: =IF($B$1=0,$B$2,$B$3) -> 1000000 | F4: =COUNTIF(G$2:G$74,"<"&TEXT(G4,"##.################")) -> 3 | G4: =準備!J3 -> 1.921392073 | H4: =準備!O3-準備!O2 -> 0.3275217949 | I4: =準備!P3-準備!P2 -> -0.8989098905 | K4: 1 | L4: 0 | M4: =IF($L4<M$1,0,IF($L4-M$1>計算!$B$26,M$2,($L4-M$1)/計算!$B$26*M$2)) -> 0 | N4: =IF($L4<N$1,0,IF($L4-N$1>計算!$B$26,N$2,($L4-N$1)/計算!$B$26*N$2)) -> 0 | O4: =IF($L4<O$1,0,IF($L4-O$1>計算!$B$26,O$2,($L4-O$1)/計算!$B$26*O$2)) -> 0 | P4: =IF($L4<P$1,0,IF($L4-P$1>計算!$B$26,P$2,($L4-P$1)/計算!$B$26*P$2)) -> 0 | Q4: =IF($L4<Q$1,0,IF($L4-Q$1>計算!$B$26,Q$2,($L4-Q$1)/計算!$B$26*Q$2)) -> 0 | R4: =IF($L4<R$1,0,IF($L4-R$1>計算!$B$26,R$2,($L4-R$1)/計算!$B$26*R$2)) -> 0 | S4: =IF($L4<S$1,0,IF($L4-S$1>計算!$B$26,S$2,($L4-S$1)/計算!$B$26*S$2)) -> 0 | T4: =IF($L4<T$1,0,IF($L4-T$1>計算!$B$26,T$2,($L4-T$1)/計算!$B$26*T$2)) -> 0 | U4: =IF($L4<U$1,0,IF($L4-U$1>計算!$B$26,U$2,($L4-U$1)/計算!$B$26*U$2)) -> 0 | V4: =IF($L4<V$1,0,IF($L4-V$1>計算!$B$26,V$2,($L4-V$1)/計算!$B$26*V$2)) -> 0 | W4: =IF($L4<W$1,0,IF($L4-W$1>計算!$B$26,W$2,($L4-W$1)/計算!$B$26*W$2)) -> 0 | X4: =IF($L4<X$1,0,IF($L4-X$1>計算!$B$26,X$2,($L4-X$1)/計算!$B$26*X$2)) -> 0 | Y4: =IF($L4<Y$1,0,IF($L4-Y$1>計算!$B$26,Y$2,($L4-Y$1)/計算!$B$26*Y$2)) -> 0 | Z4: =IF($L4<Z$1,0,IF($L4-Z$1>計算!$B$26,Z$2,($L4-Z$1)/計算!$B$26*Z$2)) -> 0 | AA4: =IF($L4<AA$1,0,IF($L4-AA$1>計算!$B$26,AA$2,($L4-AA$1)/計算!$B$26*AA$2)) -> 0 | AB4: =IF($L4<AB$1,0,IF($L4-AB$1>計算!$B$26,AB$2,($L4-AB$1)/計算!$B$26*AB$2)) -> 0 | AC4: =IF($L4<AC$1,0,IF($L4-AC$1>計算!$B$26,AC$2,($L4-AC$1)/計算!$B$26*AC$2)) -> 0 | AD4: =IF($L4<AD$1,0,IF($L4-AD$1>計算!$B$26,AD$2,($L4-AD$1)/計算!$B$26*AD$2)) -> 0 | AE4: =IF($L4<AE$1,0,IF($L4-AE$1>計算!$B$26,AE$2,($L4-AE$1)/計算!$B$26*AE$2)) -> 0 | AF4: =IF($L4<AF$1,0,IF($L4-AF$1>計算!$B$26,AF$2,($L4-AF$1)/計算!$B$26*AF$2)) -> 0 | AG4: =IF($L4<AG$1,0,IF($L4-AG$1>計算!$B$26,AG$2,($L4-AG$1)/計算!$B$26*AG$2)) -> 0 | AH4: =IF($L4<AH$1,0,IF($L4-AH$1>計算!$B$26,AH$2,($L4-AH$1)/計算!$B$26*AH$2)) -> 0 | AI4: =IF($L4<AI$1,0,IF($L4-AI$1>計算!$B$26,AI$2,($L4-AI$1)/計算!$B$26*AI$2)) -> 0 | AJ4: =IF($L4<AJ$1,0,IF($L4-AJ$1>計算!$B$26,AJ$2,($L4-AJ$1)/計算!$B$26*AJ$2)) -> 0 | AK4: =IF($L4<AK$1,0,IF($L4-AK$1>計算!$B$26,AK$2,($L4-AK$1)/計算!$B$26*AK$2)) -> 0 | AL4: =IF($L4<AL$1,0,IF($L4-AL$1>計算!$B$26,AL$2,($L4-AL$1)/計算!$B$26*AL$2)) -> 0 | AM4: =IF($L4<AM$1,0,IF($L4-AM$1>計算!$B$26,AM$2,($L4-AM$1)/計算!$B$26*AM$2)) -> 0 | AN4: =IF($L4<AN$1,0,IF($L4-AN$1>計算!$B$26,AN$2,($L4-AN$1)/計算!$B$26*AN$2)) -> 0 | AO4: =IF($L4<AO$1,0,IF($L4-AO$1>計算!$B$26,AO$2,($L4-AO$1)/計算!$B$26*AO$2)) -> 0 | AP4: =IF($L4<AP$1,0,IF($L4-AP$1>計算!$B$26,AP$2,($L4-AP$1)/計算!$B$26*AP$2)) -> 0 | AQ4: =IF($L4<AQ$1,0,IF($L4-AQ$1>計算!$B$26,AQ$2,($L4-AQ$1)/計算!$B$26*AQ$2)) -> 0 | AR4: =IF($L4<AR$1,0,IF($L4-AR$1>計算!$B$26,AR$2,($L4-AR$1)/計算!$B$26*AR$2)) -> 0 | AS4: =IF($L4<AS$1,0,IF($L4-AS$1>計算!$B$26,AS$2,($L4-AS$1)/計算!$B$26*AS$2)) -> 0 | AT4: =IF($L4<AT$1,0,IF($L4-AT$1>計算!$B$26,AT$2,($L4-AT$1)/計算!$B$26*AT$2)) -> 0 | AU4: =IF($L4<AU$1,0,IF($L4-AU$1>計算!$B$26,AU$2,($L4-AU$1)/計算!$B$26*AU$2)) -> 0 | AV4: =IF($L4<AV$1,0,IF($L4-AV$1>計算!$B$26,AV$2,($L4-AV$1)/計算!$B$26*AV$2)) -> 0 | AW4: =SUM(M4:AV4) -> 0 | BA4: =COUNTIF(BB$2:BB$62,"<"&TEXT(BB4,"##.################")) -> 2 | BB4: =準備!T3 -> 0.9895169373 | BC4: =準備!Y3-準備!Y2 -> 2.08043597 | BD4: =準備!Z3-準備!Z2 -> 0.908688896 | BF4: 0 | BG4: 0 | BH4: =IF($BG4<BH$1,0,IF($BG4-BH$1>計算!$B$26,BH$2,($BG4-BH$1)/計算!$B$26*BH$2)) -> 0 | BI4: =IF($BG4<BI$1,0,IF($BG4-BI$1>計算!$B$26,BI$2,($BG4-BI$1)/計算!$B$26*BI$2)) -> 0 | BJ4: =IF($BG4<BJ$1,0,IF($BG4-BJ$1>計算!$B$26,BJ$2,($BG4-BJ$1)/計算!$B$26*BJ$2)) -> 0 | BK4: =IF($BG4<BK$1,0,IF($BG4-BK$1>計算!$B$26,BK$2,($BG4-BK$1)/計算!$B$26*BK$2)) -> 0 | BL4: =IF($BG4<BL$1,0,IF($BG4-BL$1>計算!$B$26,BL$2,($BG4-BL$1)/計算!$B$26*BL$2)) -> 0 | BM4: =IF($BG4<BM$1,0,IF($BG4-BM$1>計算!$B$26,BM$2,($BG4-BM$1)/計算!$B$26*BM$2)) -> 0 | BN4: =IF($BG4<BN$1,0,IF($BG4-BN$1>計算!$B$26,BN$2,($BG4-BN$1)/計算!$B$26*BN$2)) -> 0 | BO4: =IF($BG4<BO$1,0,IF($BG4-BO$1>計算!$B$26,BO$2,($BG4-BO$1)/計算!$B$26*BO$2)) -> 0 | BP4: =IF($BG4<BP$1,0,IF($BG4-BP$1>計算!$B$26,BP$2,($BG4-BP$1)/計算!$B$26*BP$2)) -> 0 | BQ4: =IF($BG4<BQ$1,0,IF($BG4-BQ$1>計算!$B$26,BQ$2,($BG4-BQ$1)/計算!$B$26*BQ$2)) -> 0 | BR4: =IF($BG4<BR$1,0,IF($BG4-BR$1>計算!$B$26,BR$2,($BG4-BR$1)/計算!$B$26*BR$2)) -> 0 | BS4: =IF($BG4<BS$1,0,IF($BG4-BS$1>計算!$B$26,BS$2,($BG4-BS$1)/計算!$B$26*BS$2)) -> 0 | BT4: =IF($BG4<BT$1,0,IF($BG4-BT$1>計算!$B$26,BT$2,($BG4-BT$1)/計算!$B$26*BT$2)) -> 0 | BU4: =IF($BG4<BU$1,0,IF($BG4-BU$1>計算!$B$26,BU$2,($BG4-BU$1)/計算!$B$26*BU$2)) -> 0 | BV4: =IF($BG4<BV$1,0,IF($BG4-BV$1>計算!$B$26,BV$2,($BG4-BV$1)/計算!$B$26*BV$2)) -> 0 | BW4: =IF($BG4<BW$1,0,IF($BG4-BW$1>計算!$B$26,BW$2,($BG4-BW$1)/計算!$B$26*BW$2)) -> 0 | BX4: =IF($BG4<BX$1,0,IF($BG4-BX$1>計算!$B$26,BX$2,($BG4-BX$1)/計算!$B$26*BX$2)) -> 0 | BY4: =IF($BG4<BY$1,0,IF($BG4-BY$1>計算!$B$26,BY$2,($BG4-BY$1)/計算!$B$26*BY$2)) -> 0 | BZ4: =IF($BG4<BZ$1,0,IF($BG4-BZ$1>計算!$B$26,BZ$2,($BG4-BZ$1)/計算!$B$26*BZ$2)) -> 0 | CA4: =IF($BG4<CA$1,0,IF($BG4-CA$1>計算!$B$26,CA$2,($BG4-CA$1)/計算!$B$26*CA$2)) -> 0 | CB4: =IF($BG4<CB$1,0,IF($BG4-CB$1>計算!$B$26,CB$2,($BG4-CB$1)/計算!$B$26*CB$2)) -> 0 | CC4: =IF($BG4<CC$1,0,IF($BG4-CC$1>計算!$B$26,CC$2,($BG4-CC$1)/計算!$B$26*CC$2)) -> 0 | CD4: =IF($BG4<CD$1,0,IF($BG4-CD$1>計算!$B$26,CD$2,($BG4-CD$1)/計算!$B$26*CD$2)) -> 0 | CE4: =IF($BG4<CE$1,0,IF($BG4-CE$1>計算!$B$26,CE$2,($BG4-CE$1)/計算!$B$26*CE$2)) -> 0 | CF4: =IF($BG4<CF$1,0,IF($BG4-CF$1>計算!$B$26,CF$2,($BG4-CF$1)/計算!$B$26*CF$2)) -> 0 | CG4: =IF($BG4<CG$1,0,IF($BG4-CG$1>計算!$B$26,CG$2,($BG4-CG$1)/計算!$B$26*CG$2)) -> 0 | CH4: =IF($BG4<CH$1,0,IF($BG4-CH$1>計算!$B$26,CH$2,($BG4-CH$1)/計算!$B$26*CH$2)) -> 0 | CI4: =IF($BG4<CI$1,0,IF($BG4-CI$1>計算!$B$26,CI$2,($BG4-CI$1)/計算!$B$26*CI$2)) -> 0 | CJ4: =IF($BG4<CJ$1,0,IF($BG4-CJ$1>計算!$B$26,CJ$2,($BG4-CJ$1)/計算!$B$26*CJ$2)) -> 0 | CK4: =IF($BG4<CK$1,0,IF($BG4-CK$1>計算!$B$26,CK$2,($BG4-CK$1)/計算!$B$26*CK$2)) -> 0 | CL4: =SUM(BH4:CK4) -> 0 | CO4: =IF($B$1=1,L4,BG4) -> 0 | CP4: =IF($B$1=1,AW68,CL68) -> 0 | CQ4: =IF($B$1=1,AX68,CM68) -> 0
A5: RF | B5: =IF($B$1=1,$B$2,$B$3) -> 33.33333333 | F5: 4 | G5: =準備!J4 -> 1.950212974 | H5: =準備!O4-準備!O3 -> 0.9310129985 | I5: =準備!P4-準備!P3 -> -0.2118465899 | K5: 2 | L5: =OFFSET(G$2,MATCH(K5,F$3:F$74,0),0,1,1) -> 0.5000000001 | M5: =IF($L5<M$1,0,IF($L5-M$1>計算!$B$26,M$2,($L5-M$1)/計算!$B$26*M$2)) -> 1.989000528 | N5: =IF($L5<N$1,0,IF($L5-N$1>計算!$B$26,N$2,($L5-N$1)/計算!$B$26*N$2)) -> 0 | O5: =IF($L5<O$1,0,IF($L5-O$1>計算!$B$26,O$2,($L5-O$1)/計算!$B$26*O$2)) -> 0 | P5: =IF($L5<P$1,0,IF($L5-P$1>計算!$B$26,P$2,($L5-P$1)/計算!$B$26*P$2)) -> 0 | Q5: =IF($L5<Q$1,0,IF($L5-Q$1>計算!$B$26,Q$2,($L5-Q$1)/計算!$B$26*Q$2)) -> 0 | R5: =IF($L5<R$1,0,IF($L5-R$1>計算!$B$26,R$2,($L5-R$1)/計算!$B$26*R$2)) -> 0 | S5: =IF($L5<S$1,0,IF($L5-S$1>計算!$B$26,S$2,($L5-S$1)/計算!$B$26*S$2)) -> 0 | T5: =IF($L5<T$1,0,IF($L5-T$1>計算!$B$26,T$2,($L5-T$1)/計算!$B$26*T$2)) -> 0 | U5: =IF($L5<U$1,0,IF($L5-U$1>計算!$B$26,U$2,($L5-U$1)/計算!$B$26*U$2)) -> 0 | V5: =IF($L5<V$1,0,IF($L5-V$1>計算!$B$26,V$2,($L5-V$1)/計算!$B$26*V$2)) -> 0 | W5: =IF($L5<W$1,0,IF($L5-W$1>計算!$B$26,W$2,($L5-W$1)/計算!$B$26*W$2)) -> 0 | X5: =IF($L5<X$1,0,IF($L5-X$1>計算!$B$26,X$2,($L5-X$1)/計算!$B$26*X$2)) -> 0 | Y5: =IF($L5<Y$1,0,IF($L5-Y$1>計算!$B$26,Y$2,($L5-Y$1)/計算!$B$26*Y$2)) -> 0 | Z5: =IF($L5<Z$1,0,IF($L5-Z$1>計算!$B$26,Z$2,($L5-Z$1)/計算!$B$26*Z$2)) -> 0 | AA5: =IF($L5<AA$1,0,IF($L5-AA$1>計算!$B$26,AA$2,($L5-AA$1)/計算!$B$26*AA$2)) -> 0 | AB5: =IF($L5<AB$1,0,IF($L5-AB$1>計算!$B$26,AB$2,($L5-AB$1)/計算!$B$26*AB$2)) -> 0 | AC5: =IF($L5<AC$1,0,IF($L5-AC$1>計算!$B$26,AC$2,($L5-AC$1)/計算!$B$26*AC$2)) -> 0 | AD5: =IF($L5<AD$1,0,IF($L5-AD$1>計算!$B$26,AD$2,($L5-AD$1)/計算!$B$26*AD$2)) -> 0 | AE5: =IF($L5<AE$1,0,IF($L5-AE$1>計算!$B$26,AE$2,($L5-AE$1)/計算!$B$26*AE$2)) -> 0 | AF5: =IF($L5<AF$1,0,IF($L5-AF$1>計算!$B$26,AF$2,($L5-AF$1)/計算!$B$26*AF$2)) -> 0 | AG5: =IF($L5<AG$1,0,IF($L5-AG$1>計算!$B$26,AG$2,($L5-AG$1)/計算!$B$26*AG$2)) -> 0 | AH5: =IF($L5<AH$1,0,IF($L5-AH$1>計算!$B$26,AH$2,($L5-AH$1)/計算!$B$26*AH$2)) -> 0 | AI5: =IF($L5<AI$1,0,IF($L5-AI$1>計算!$B$26,AI$2,($L5-AI$1)/計算!$B$26*AI$2)) -> 0 | AJ5: =IF($L5<AJ$1,0,IF($L5-AJ$1>計算!$B$26,AJ$2,($L5-AJ$1)/計算!$B$26*AJ$2)) -> 0 | AK5: =IF($L5<AK$1,0,IF($L5-AK$1>計算!$B$26,AK$2,($L5-AK$1)/計算!$B$26*AK$2)) -> 0 | AL5: =IF($L5<AL$1,0,IF($L5-AL$1>計算!$B$26,AL$2,($L5-AL$1)/計算!$B$26*AL$2)) -> 0 | AM5: =IF($L5<AM$1,0,IF($L5-AM$1>計算!$B$26,AM$2,($L5-AM$1)/計算!$B$26*AM$2)) -> 0 | AN5: =IF($L5<AN$1,0,IF($L5-AN$1>計算!$B$26,AN$2,($L5-AN$1)/計算!$B$26*AN$2)) -> 0 | AO5: =IF($L5<AO$1,0,IF($L5-AO$1>計算!$B$26,AO$2,($L5-AO$1)/計算!$B$26*AO$2)) -> 0 | AP5: =IF($L5<AP$1,0,IF($L5-AP$1>計算!$B$26,AP$2,($L5-AP$1)/計算!$B$26*AP$2)) -> 0 | AQ5: =IF($L5<AQ$1,0,IF($L5-AQ$1>計算!$B$26,AQ$2,($L5-AQ$1)/計算!$B$26*AQ$2)) -> 0 | AR5: =IF($L5<AR$1,0,IF($L5-AR$1>計算!$B$26,AR$2,($L5-AR$1)/計算!$B$26*AR$2)) -> 0 | AS5: =IF($L5<AS$1,0,IF($L5-AS$1>計算!$B$26,AS$2,($L5-AS$1)/計算!$B$26*AS$2)) -> 0 | AT5: =IF($L5<AT$1,0,IF($L5-AT$1>計算!$B$26,AT$2,($L5-AT$1)/計算!$B$26*AT$2)) -> 0 | AU5: =IF($L5<AU$1,0,IF($L5-AU$1>計算!$B$26,AU$2,($L5-AU$1)/計算!$B$26*AU$2)) -> 0 | AV5: =IF($L5<AV$1,0,IF($L5-AV$1>計算!$B$26,AV$2,($L5-AV$1)/計算!$B$26*AV$2)) -> 0 | AW5: =SUM(M5:AV5) -> 1.989000528 | BA5: 5 | BB5: =準備!T4 -> 2.88208811 | BC5: =準備!Y4-準備!Y3 -> 0.4383357379 | BD5: =準備!Z4-準備!Z3 -> -0.159709565 | BF5: 1 | BG5: =OFFSET(BB$2,MATCH(BF5,BA$3:BA$62,0),0,1,1) -> 0.9606960367 | BH5: =IF($BG5<BH$1,0,IF($BG5-BH$1>計算!$B$26,BH$2,($BG5-BH$1)/計算!$B$26*BH$2)) -> 0 | BI5: =IF($BG5<BI$1,0,IF($BG5-BI$1>計算!$B$26,BI$2,($BG5-BI$1)/計算!$B$26*BI$2)) -> 0 | BJ5: =IF($BG5<BJ$1,0,IF($BG5-BJ$1>計算!$B$26,BJ$2,($BG5-BJ$1)/計算!$B$26*BJ$2)) -> 0 | BK5: =IF($BG5<BK$1,0,IF($BG5-BK$1>計算!$B$26,BK$2,($BG5-BK$1)/計算!$B$26*BK$2)) -> 0 | BL5: =IF($BG5<BL$1,0,IF($BG5-BL$1>計算!$B$26,BL$2,($BG5-BL$1)/計算!$B$26*BL$2)) -> 0 | BM5: =IF($BG5<BM$1,0,IF($BG5-BM$1>計算!$B$26,BM$2,($BG5-BM$1)/計算!$B$26*BM$2)) -> 0 | BN5: =IF($BG5<BN$1,0,IF($BG5-BN$1>計算!$B$26,BN$2,($BG5-BN$1)/計算!$B$26*BN$2)) -> 0 | BO5: =IF($BG5<BO$1,0,IF($BG5-BO$1>計算!$B$26,BO$2,($BG5-BO$1)/計算!$B$26*BO$2)) -> 0 | BP5: =IF($BG5<BP$1,0,IF($BG5-BP$1>計算!$B$26,BP$2,($BG5-BP$1)/計算!$B$26*BP$2)) -> 0 | BQ5: =IF($BG5<BQ$1,0,IF($BG5-BQ$1>計算!$B$26,BQ$2,($BG5-BQ$1)/計算!$B$26*BQ$2)) -> 0 | BR5: =IF($BG5<BR$1,0,IF($BG5-BR$1>計算!$B$26,BR$2,($BG5-BR$1)/計算!$B$26*BR$2)) -> 0 | BS5: =IF($BG5<BS$1,0,IF($BG5-BS$1>計算!$B$26,BS$2,($BG5-BS$1)/計算!$B$26*BS$2)) -> 0 | BT5: =IF($BG5<BT$1,0,IF($BG5-BT$1>計算!$B$26,BT$2,($BG5-BT$1)/計算!$B$26*BT$2)) -> 0 | BU5: =IF($BG5<BU$1,0,IF($BG5-BU$1>計算!$B$26,BU$2,($BG5-BU$1)/計算!$B$26*BU$2)) -> 0 | BV5: =IF($BG5<BV$1,0,IF($BG5-BV$1>計算!$B$26,BV$2,($BG5-BV$1)/計算!$B$26*BV$2)) -> 0 | BW5: =IF($BG5<BW$1,0,IF($BG5-BW$1>計算!$B$26,BW$2,($BG5-BW$1)/計算!$B$26*BW$2)) -> 0 | BX5: =IF($BG5<BX$1,0,IF($BG5-BX$1>計算!$B$26,BX$2,($BG5-BX$1)/計算!$B$26*BX$2)) -> 0 | BY5: =IF($BG5<BY$1,0,IF($BG5-BY$1>計算!$B$26,BY$2,($BG5-BY$1)/計算!$B$26*BY$2)) -> 0 | BZ5: =IF($BG5<BZ$1,0,IF($BG5-BZ$1>計算!$B$26,BZ$2,($BG5-BZ$1)/計算!$B$26*BZ$2)) -> 0 | CA5: =IF($BG5<CA$1,0,IF($BG5-CA$1>計算!$B$26,CA$2,($BG5-CA$1)/計算!$B$26*CA$2)) -> 0 | CB5: =IF($BG5<CB$1,0,IF($BG5-CB$1>計算!$B$26,CB$2,($BG5-CB$1)/計算!$B$26*CB$2)) -> 0 | CC5: =IF($BG5<CC$1,0,IF($BG5-CC$1>計算!$B$26,CC$2,($BG5-CC$1)/計算!$B$26*CC$2)) -> 0 | CD5: =IF($BG5<CD$1,0,IF($BG5-CD$1>計算!$B$26,CD$2,($BG5-CD$1)/計算!$B$26*CD$2)) -> 0 | CE5: =IF($BG5<CE$1,0,IF($BG5-CE$1>計算!$B$26,CE$2,($BG5-CE$1)/計算!$B$26*CE$2)) -> 0 | CF5: =IF($BG5<CF$1,0,IF($BG5-CF$1>計算!$B$26,CF$2,($BG5-CF$1)/計算!$B$26*CF$2)) -> 0 | CG5: =IF($BG5<CG$1,0,IF($BG5-CG$1>計算!$B$26,CG$2,($BG5-CG$1)/計算!$B$26*CG$2)) -> 0 | CH5: =IF($BG5<CH$1,0,IF($BG5-CH$1>計算!$B$26,CH$2,($BG5-CH$1)/計算!$B$26*CH$2)) -> 0 | CI5: =IF($BG5<CI$1,0,IF($BG5-CI$1>計算!$B$26,CI$2,($BG5-CI$1)/計算!$B$26*CI$2)) -> 0 | CJ5: =IF($BG5<CJ$1,0,IF($BG5-CJ$1>計算!$B$26,CJ$2,($BG5-CJ$1)/計算!$B$26*CJ$2)) -> 0 | CK5: =IF($BG5<CK$1,0,IF($BG5-CK$1>計算!$B$26,CK$2,($BG5-CK$1)/計算!$B$26*CK$2)) -> 0 | CL5: =SUM(BH5:CK5) -> 0 | CO5: =IF($B$1=1,L5,BG5) -> 0.5000000001 | CP5: =IF($B$1=1,AW69,CL69) -> 0.2983353313 | CQ5: -0.2983353313
A6: Z0 | B6: =VLOOKUP(波形!N5,Data!H2:I12,2,1) -> 50 | F6: 5 | G6: =準備!J5 -> 1.979033875 | H6: =準備!O5-準備!O4 -> 0.2787994054 | I6: =準備!P5-準備!P4 -> 0.6383090121 | K6: 3 | L6: =OFFSET(G$2,MATCH(K6,F$3:F$74,0),0,1,1) -> 1.921392073 | M6: =IF($L6<M$1,0,IF($L6-M$1>計算!$B$26,M$2,($L6-M$1)/計算!$B$26*M$2)) -> 1.989000528 | N6: =IF($L6<N$1,0,IF($L6-N$1>計算!$B$26,N$2,($L6-N$1)/計算!$B$26*N$2)) -> 0 | O6: =IF($L6<O$1,0,IF($L6-O$1>計算!$B$26,O$2,($L6-O$1)/計算!$B$26*O$2)) -> 0 | P6: =IF($L6<P$1,0,IF($L6-P$1>計算!$B$26,P$2,($L6-P$1)/計算!$B$26*P$2)) -> 0 | Q6: =IF($L6<Q$1,0,IF($L6-Q$1>計算!$B$26,Q$2,($L6-Q$1)/計算!$B$26*Q$2)) -> 0 | R6: =IF($L6<R$1,0,IF($L6-R$1>計算!$B$26,R$2,($L6-R$1)/計算!$B$26*R$2)) -> 0 | S6: =IF($L6<S$1,0,IF($L6-S$1>計算!$B$26,S$2,($L6-S$1)/計算!$B$26*S$2)) -> 0 | T6: =IF($L6<T$1,0,IF($L6-T$1>計算!$B$26,T$2,($L6-T$1)/計算!$B$26*T$2)) -> 0 | U6: =IF($L6<U$1,0,IF($L6-U$1>計算!$B$26,U$2,($L6-U$1)/計算!$B$26*U$2)) -> 0 | V6: =IF($L6<V$1,0,IF($L6-V$1>計算!$B$26,V$2,($L6-V$1)/計算!$B$26*V$2)) -> 0 | W6: =IF($L6<W$1,0,IF($L6-W$1>計算!$B$26,W$2,($L6-W$1)/計算!$B$26*W$2)) -> 0 | X6: =IF($L6<X$1,0,IF($L6-X$1>計算!$B$26,X$2,($L6-X$1)/計算!$B$26*X$2)) -> 0 | Y6: =IF($L6<Y$1,0,IF($L6-Y$1>計算!$B$26,Y$2,($L6-Y$1)/計算!$B$26*Y$2)) -> 0 | Z6: =IF($L6<Z$1,0,IF($L6-Z$1>計算!$B$26,Z$2,($L6-Z$1)/計算!$B$26*Z$2)) -> 0 | AA6: =IF($L6<AA$1,0,IF($L6-AA$1>計算!$B$26,AA$2,($L6-AA$1)/計算!$B$26*AA$2)) -> 0 | AB6: =IF($L6<AB$1,0,IF($L6-AB$1>計算!$B$26,AB$2,($L6-AB$1)/計算!$B$26*AB$2)) -> 0 | AC6: =IF($L6<AC$1,0,IF($L6-AC$1>計算!$B$26,AC$2,($L6-AC$1)/計算!$B$26*AC$2)) -> 0 | AD6: =IF($L6<AD$1,0,IF($L6-AD$1>計算!$B$26,AD$2,($L6-AD$1)/計算!$B$26*AD$2)) -> 0 | AE6: =IF($L6<AE$1,0,IF($L6-AE$1>計算!$B$26,AE$2,($L6-AE$1)/計算!$B$26*AE$2)) -> 0 | AF6: =IF($L6<AF$1,0,IF($L6-AF$1>計算!$B$26,AF$2,($L6-AF$1)/計算!$B$26*AF$2)) -> 0 | AG6: =IF($L6<AG$1,0,IF($L6-AG$1>計算!$B$26,AG$2,($L6-AG$1)/計算!$B$26*AG$2)) -> 0 | AH6: =IF($L6<AH$1,0,IF($L6-AH$1>計算!$B$26,AH$2,($L6-AH$1)/計算!$B$26*AH$2)) -> 0 | AI6: =IF($L6<AI$1,0,IF($L6-AI$1>計算!$B$26,AI$2,($L6-AI$1)/計算!$B$26*AI$2)) -> 0 | AJ6: =IF($L6<AJ$1,0,IF($L6-AJ$1>計算!$B$26,AJ$2,($L6-AJ$1)/計算!$B$26*AJ$2)) -> 0 | AK6: =IF($L6<AK$1,0,IF($L6-AK$1>計算!$B$26,AK$2,($L6-AK$1)/計算!$B$26*AK$2)) -> 0 | AL6: =IF($L6<AL$1,0,IF($L6-AL$1>計算!$B$26,AL$2,($L6-AL$1)/計算!$B$26*AL$2)) -> 0 | AM6: =IF($L6<AM$1,0,IF($L6-AM$1>計算!$B$26,AM$2,($L6-AM$1)/計算!$B$26*AM$2)) -> 0 | AN6: =IF($L6<AN$1,0,IF($L6-AN$1>計算!$B$26,AN$2,($L6-AN$1)/計算!$B$26*AN$2)) -> 0 | AO6: =IF($L6<AO$1,0,IF($L6-AO$1>計算!$B$26,AO$2,($L6-AO$1)/計算!$B$26*AO$2)) -> 0 | AP6: =IF($L6<AP$1,0,IF($L6-AP$1>計算!$B$26,AP$2,($L6-AP$1)/計算!$B$26*AP$2)) -> 0 | AQ6: =IF($L6<AQ$1,0,IF($L6-AQ$1>計算!$B$26,AQ$2,($L6-AQ$1)/計算!$B$26*AQ$2)) -> 0 | AR6: =IF($L6<AR$1,0,IF($L6-AR$1>計算!$B$26,AR$2,($L6-AR$1)/計算!$B$26*AR$2)) -> 0 | AS6: =IF($L6<AS$1,0,IF($L6-AS$1>計算!$B$26,AS$2,($L6-AS$1)/計算!$B$26*AS$2)) -> 0 | AT6: =IF($L6<AT$1,0,IF($L6-AT$1>計算!$B$26,AT$2,($L6-AT$1)/計算!$B$26*AT$2)) -> 0 | AU6: =IF($L6<AU$1,0,IF($L6-AU$1>計算!$B$26,AU$2,($L6-AU$1)/計算!$B$26*AU$2)) -> 0 | AV6: =IF($L6<AV$1,0,IF($L6-AV$1>計算!$B$26,AV$2,($L6-AV$1)/計算!$B$26*AV$2)) -> 0 | AW6: 1.989000528 | BA6: 6 | BB6: =準備!T5 -> 2.910909011 | BC6: =準備!Y5-準備!Y4 -> -0.5512010619 | BD6: =準備!Z5-準備!Z4 -> -0.215518801 | BF6: 2 | BG6: 0.9895169373 | BH6: =IF($BG6<BH$1,0,IF($BG6-BH$1>計算!$B$26,BH$2,($BG6-BH$1)/計算!$B$26*BH$2)) -> 0.1062583287 | BI6: =IF($BG6<BI$1,0,IF($BG6-BI$1>計算!$B$26,BI$2,($BG6-BI$1)/計算!$B$26*BI$2)) -> 0 | BJ6: =IF($BG6<BJ$1,0,IF($BG6-BJ$1>計算!$B$26,BJ$2,($BG6-BJ$1)/計算!$B$26*BJ$2)) -> 0 | BK6: =IF($BG6<BK$1,0,IF($BG6-BK$1>計算!$B$26,BK$2,($BG6-BK$1)/計算!$B$26*BK$2)) -> 0 | BL6: =IF($BG6<BL$1,0,IF($BG6-BL$1>計算!$B$26,BL$2,($BG6-BL$1)/計算!$B$26*BL$2)) -> 0 | BM6: =IF($BG6<BM$1,0,IF($BG6-BM$1>計算!$B$26,BM$2,($BG6-BM$1)/計算!$B$26*BM$2)) -> 0 | BN6: =IF($BG6<BN$1,0,IF($BG6-BN$1>計算!$B$26,BN$2,($BG6-BN$1)/計算!$B$26*BN$2)) -> 0 | BO6: =IF($BG6<BO$1,0,IF($BG6-BO$1>計算!$B$26,BO$2,($BG6-BO$1)/計算!$B$26*BO$2)) -> 0 | BP6: =IF($BG6<BP$1,0,IF($BG6-BP$1>計算!$B$26,BP$2,($BG6-BP$1)/計算!$B$26*BP$2)) -> 0 | BQ6: =IF($BG6<BQ$1,0,IF($BG6-BQ$1>計算!$B$26,BQ$2,($BG6-BQ$1)/計算!$B$26*BQ$2)) -> 0 | BR6: =IF($BG6<BR$1,0,IF($BG6-BR$1>計算!$B$26,BR$2,($BG6-BR$1)/計算!$B$26*BR$2)) -> 0 | BS6: =IF($BG6<BS$1,0,IF($BG6-BS$1>計算!$B$26,BS$2,($BG6-BS$1)/計算!$B$26*BS$2)) -> 0 | BT6: =IF($BG6<BT$1,0,IF($BG6-BT$1>計算!$B$26,BT$2,($BG6-BT$1)/計算!$B$26*BT$2)) -> 0 | BU6: =IF($BG6<BU$1,0,IF($BG6-BU$1>計算!$B$26,BU$2,($BG6-BU$1)/計算!$B$26*BU$2)) -> 0 | BV6: =IF($BG6<BV$1,0,IF($BG6-BV$1>計算!$B$26,BV$2,($BG6-BV$1)/計算!$B$26*BV$2)) -> 0 | BW6: =IF($BG6<BW$1,0,IF($BG6-BW$1>計算!$B$26,BW$2,($BG6-BW$1)/計算!$B$26*BW$2)) -> 0 | BX6: =IF($BG6<BX$1,0,IF($BG6-BX$1>計算!$B$26,BX$2,($BG6-BX$1)/計算!$B$26*BX$2)) -> 0 | BY6: =IF($BG6<BY$1,0,IF($BG6-BY$1>計算!$B$26,BY$2,($BG6-BY$1)/計算!$B$26*BY$2)) -> 0 | BZ6: =IF($BG6<BZ$1,0,IF($BG6-BZ$1>計算!$B$26,BZ$2,($BG6-BZ$1)/計算!$B$26*BZ$2)) -> 0 | CA6: =IF($BG6<CA$1,0,IF($BG6-CA$1>計算!$B$26,CA$2,($BG6-CA$1)/計算!$B$26*CA$2)) -> 0 | CB6: =IF($BG6<CB$1,0,IF($BG6-CB$1>計算!$B$26,CB$2,($BG6-CB$1)/計算!$B$26*CB$2)) -> 0 | CC6: =IF($BG6<CC$1,0,IF($BG6-CC$1>計算!$B$26,CC$2,($BG6-CC$1)/計算!$B$26*CC$2)) -> 0 | CD6: =IF($BG6<CD$1,0,IF($BG6-CD$1>計算!$B$26,CD$2,($BG6-CD$1)/計算!$B$26*CD$2)) -> 0 | CE6: =IF($BG6<CE$1,0,IF($BG6-CE$1>計算!$B$26,CE$2,($BG6-CE$1)/計算!$B$26*CE$2)) -> 0 | CF6: =IF($BG6<CF$1,0,IF($BG6-CF$1>計算!$B$26,CF$2,($BG6-CF$1)/計算!$B$26*CF$2)) -> 0 | CG6: =IF($BG6<CG$1,0,IF($BG6-CG$1>計算!$B$26,CG$2,($BG6-CG$1)/計算!$B$26*CG$2)) -> 0 | CH6: =IF($BG6<CH$1,0,IF($BG6-CH$1>計算!$B$26,CH$2,($BG6-CH$1)/計算!$B$26*CH$2)) -> 0 | CI6: =IF($BG6<CI$1,0,IF($BG6-CI$1>計算!$B$26,CI$2,($BG6-CI$1)/計算!$B$26*CI$2)) -> 0 | CJ6: =IF($BG6<CJ$1,0,IF($BG6-CJ$1>計算!$B$26,CJ$2,($BG6-CJ$1)/計算!$B$26*CJ$2)) -> 0 | CK6: =IF($BG6<CK$1,0,IF($BG6-CK$1>計算!$B$26,CK$2,($BG6-CK$1)/計算!$B$26*CK$2)) -> 0 | CL6: 0.1062583287 | CO6: 1.921392073 | CP6: 0.2983353313 | CQ6: -0.2983353313
A7: ξ | B7: =VLOOKUP(波形!R7,Data!K2:K12,1,0) -> 0.15 | F7: 9 | G7: =準備!J6 -> 3.842784147 | H7: =準備!O6-準備!O5 -> 0.07787922992 | I7: =準備!P6-準備!P5 -> -0.2137458061 | K7: 4 | L7: 1.950212974 | M7: =IF($L7<M$1,0,IF($L7-M$1>計算!$B$26,M$2,($L7-M$1)/計算!$B$26*M$2)) -> 1.989000528 | N7: =IF($L7<N$1,0,IF($L7-N$1>計算!$B$26,N$2,($L7-N$1)/計算!$B$26*N$2)) -> 0.01887894619 | O7: =IF($L7<O$1,0,IF($L7-O$1>計算!$B$26,O$2,($L7-O$1)/計算!$B$26*O$2)) -> 0 | P7: =IF($L7<P$1,0,IF($L7-P$1>計算!$B$26,P$2,($L7-P$1)/計算!$B$26*P$2)) -> 0 | Q7: =IF($L7<Q$1,0,IF($L7-Q$1>計算!$B$26,Q$2,($L7-Q$1)/計算!$B$26*Q$2)) -> 0 | R7: =IF($L7<R$1,0,IF($L7-R$1>計算!$B$26,R$2,($L7-R$1)/計算!$B$26*R$2)) -> 0 | S7: =IF($L7<S$1,0,IF($L7-S$1>計算!$B$26,S$2,($L7-S$1)/計算!$B$26*S$2)) -> 0 | T7: =IF($L7<T$1,0,IF($L7-T$1>計算!$B$26,T$2,($L7-T$1)/計算!$B$26*T$2)) -> 0 | U7: =IF($L7<U$1,0,IF($L7-U$1>計算!$B$26,U$2,($L7-U$1)/計算!$B$26*U$2)) -> 0 | V7: =IF($L7<V$1,0,IF($L7-V$1>計算!$B$26,V$2,($L7-V$1)/計算!$B$26*V$2)) -> 0 | W7: =IF($L7<W$1,0,IF($L7-W$1>計算!$B$26,W$2,($L7-W$1)/計算!$B$26*W$2)) -> 0 | X7: =IF($L7<X$1,0,IF($L7-X$1>計算!$B$26,X$2,($L7-X$1)/計算!$B$26*X$2)) -> 0 | Y7: =IF($L7<Y$1,0,IF($L7-Y$1>計算!$B$26,Y$2,($L7-Y$1)/計算!$B$26*Y$2)) -> 0 | Z7: =IF($L7<Z$1,0,IF($L7-Z$1>計算!$B$26,Z$2,($L7-Z$1)/計算!$B$26*Z$2)) -> 0 | AA7: =IF($L7<AA$1,0,IF($L7-AA$1>計算!$B$26,AA$2,($L7-AA$1)/計算!$B$26*AA$2)) -> 0 | AB7: =IF($L7<AB$1,0,IF($L7-AB$1>計算!$B$26,AB$2,($L7-AB$1)/計算!$B$26*AB$2)) -> 0 | AC7: =IF($L7<AC$1,0,IF($L7-AC$1>計算!$B$26,AC$2,($L7-AC$1)/計算!$B$26*AC$2)) -> 0 | AD7: =IF($L7<AD$1,0,IF($L7-AD$1>計算!$B$26,AD$2,($L7-AD$1)/計算!$B$26*AD$2)) -> 0 | AE7: =IF($L7<AE$1,0,IF($L7-AE$1>計算!$B$26,AE$2,($L7-AE$1)/計算!$B$26*AE$2)) -> 0 | AF7: =IF($L7<AF$1,0,IF($L7-AF$1>計算!$B$26,AF$2,($L7-AF$1)/計算!$B$26*AF$2)) -> 0 | AG7: =IF($L7<AG$1,0,IF($L7-AG$1>計算!$B$26,AG$2,($L7-AG$1)/計算!$B$26*AG$2)) -> 0 | AH7: =IF($L7<AH$1,0,IF($L7-AH$1>計算!$B$26,AH$2,($L7-AH$1)/計算!$B$26*AH$2)) -> 0 | AI7: =IF($L7<AI$1,0,IF($L7-AI$1>計算!$B$26,AI$2,($L7-AI$1)/計算!$B$26*AI$2)) -> 0 | AJ7: =IF($L7<AJ$1,0,IF($L7-AJ$1>計算!$B$26,AJ$2,($L7-AJ$1)/計算!$B$26*AJ$2)) -> 0 | AK7: =IF($L7<AK$1,0,IF($L7-AK$1>計算!$B$26,AK$2,($L7-AK$1)/計算!$B$26*AK$2)) -> 0 | AL7: =IF($L7<AL$1,0,IF($L7-AL$1>計算!$B$26,AL$2,($L7-AL$1)/計算!$B$26*AL$2)) -> 0 | AM7: =IF($L7<AM$1,0,IF($L7-AM$1>計算!$B$26,AM$2,($L7-AM$1)/計算!$B$26*AM$2)) -> 0 | AN7: =IF($L7<AN$1,0,IF($L7-AN$1>計算!$B$26,AN$2,($L7-AN$1)/計算!$B$26*AN$2)) -> 0 | AO7: =IF($L7<AO$1,0,IF($L7-AO$1>計算!$B$26,AO$2,($L7-AO$1)/計算!$B$26*AO$2)) -> 0 | AP7: =IF($L7<AP$1,0,IF($L7-AP$1>計算!$B$26,AP$2,($L7-AP$1)/計算!$B$26*AP$2)) -> 0 | AQ7: =IF($L7<AQ$1,0,IF($L7-AQ$1>計算!$B$26,AQ$2,($L7-AQ$1)/計算!$B$26*AQ$2)) -> 0 | AR7: =IF($L7<AR$1,0,IF($L7-AR$1>計算!$B$26,AR$2,($L7-AR$1)/計算!$B$26*AR$2)) -> 0 | AS7: =IF($L7<AS$1,0,IF($L7-AS$1>計算!$B$26,AS$2,($L7-AS$1)/計算!$B$26*AS$2)) -> 0 | AT7: =IF($L7<AT$1,0,IF($L7-AT$1>計算!$B$26,AT$2,($L7-AT$1)/計算!$B$26*AT$2)) -> 0 | AU7: =IF($L7<AU$1,0,IF($L7-AU$1>計算!$B$26,AU$2,($L7-AU$1)/計算!$B$26*AU$2)) -> 0 | AV7: =IF($L7<AV$1,0,IF($L7-AV$1>計算!$B$26,AV$2,($L7-AV$1)/計算!$B$26*AV$2)) -> 0 | AW7: 2.007879475 | BA7: 7 | BB7: =準備!T6 -> 2.939729911 | BC7: =準備!Y6-準備!Y5 -> -0.8036518745 | BD7: =準備!Z6-準備!Z5 -> -0.03697919338 | BF7: 3 | BG7: 1.460696047 | BH7: =IF($BG7<BH$1,0,IF($BG7-BH$1>計算!$B$26,BH$2,($BG7-BH$1)/計算!$B$26*BH$2)) -> 1.843424849 | BI7: =IF($BG7<BI$1,0,IF($BG7-BI$1>計算!$B$26,BI$2,($BG7-BI$1)/計算!$B$26*BI$2)) -> 1.960515935 | BJ7: =IF($BG7<BJ$1,0,IF($BG7-BJ$1>計算!$B$26,BJ$2,($BG7-BJ$1)/計算!$B$26*BJ$2)) -> 0 | BK7: =IF($BG7<BK$1,0,IF($BG7-BK$1>計算!$B$26,BK$2,($BG7-BK$1)/計算!$B$26*BK$2)) -> 0 | BL7: =IF($BG7<BL$1,0,IF($BG7-BL$1>計算!$B$26,BL$2,($BG7-BL$1)/計算!$B$26*BL$2)) -> 0 | BM7: =IF($BG7<BM$1,0,IF($BG7-BM$1>計算!$B$26,BM$2,($BG7-BM$1)/計算!$B$26*BM$2)) -> 0 | BN7: =IF($BG7<BN$1,0,IF($BG7-BN$1>計算!$B$26,BN$2,($BG7-BN$1)/計算!$B$26*BN$2)) -> 0 | BO7: =IF($BG7<BO$1,0,IF($BG7-BO$1>計算!$B$26,BO$2,($BG7-BO$1)/計算!$B$26*BO$2)) -> 0 | BP7: =IF($BG7<BP$1,0,IF($BG7-BP$1>計算!$B$26,BP$2,($BG7-BP$1)/計算!$B$26*BP$2)) -> 0 | BQ7: =IF($BG7<BQ$1,0,IF($BG7-BQ$1>計算!$B$26,BQ$2,($BG7-BQ$1)/計算!$B$26*BQ$2)) -> 0 | BR7: =IF($BG7<BR$1,0,IF($BG7-BR$1>計算!$B$26,BR$2,($BG7-BR$1)/計算!$B$26*BR$2)) -> 0 | BS7: =IF($BG7<BS$1,0,IF($BG7-BS$1>計算!$B$26,BS$2,($BG7-BS$1)/計算!$B$26*BS$2)) -> 0 | BT7: =IF($BG7<BT$1,0,IF($BG7-BT$1>計算!$B$26,BT$2,($BG7-BT$1)/計算!$B$26*BT$2)) -> 0 | BU7: =IF($BG7<BU$1,0,IF($BG7-BU$1>計算!$B$26,BU$2,($BG7-BU$1)/計算!$B$26*BU$2)) -> 0 | BV7: =IF($BG7<BV$1,0,IF($BG7-BV$1>計算!$B$26,BV$2,($BG7-BV$1)/計算!$B$26*BV$2)) -> 0 | BW7: =IF($BG7<BW$1,0,IF($BG7-BW$1>計算!$B$26,BW$2,($BG7-BW$1)/計算!$B$26*BW$2)) -> 0 | BX7: =IF($BG7<BX$1,0,IF($BG7-BX$1>計算!$B$26,BX$2,($BG7-BX$1)/計算!$B$26*BX$2)) -> 0 | BY7: =IF($BG7<BY$1,0,IF($BG7-BY$1>計算!$B$26,BY$2,($BG7-BY$1)/計算!$B$26*BY$2)) -> 0 | BZ7: =IF($BG7<BZ$1,0,IF($BG7-BZ$1>計算!$B$26,BZ$2,($BG7-BZ$1)/計算!$B$26*BZ$2)) -> 0 | CA7: =IF($BG7<CA$1,0,IF($BG7-CA$1>計算!$B$26,CA$2,($BG7-CA$1)/計算!$B$26*CA$2)) -> 0 | CB7: =IF($BG7<CB$1,0,IF($BG7-CB$1>計算!$B$26,CB$2,($BG7-CB$1)/計算!$B$26*CB$2)) -> 0 | CC7: =IF($BG7<CC$1,0,IF($BG7-CC$1>計算!$B$26,CC$2,($BG7-CC$1)/計算!$B$26*CC$2)) -> 0 | CD7: =IF($BG7<CD$1,0,IF($BG7-CD$1>計算!$B$26,CD$2,($BG7-CD$1)/計算!$B$26*CD$2)) -> 0 | CE7: =IF($BG7<CE$1,0,IF($BG7-CE$1>計算!$B$26,CE$2,($BG7-CE$1)/計算!$B$26*CE$2)) -> 0 | CF7: =IF($BG7<CF$1,0,IF($BG7-CF$1>計算!$B$26,CF$2,($BG7-CF$1)/計算!$B$26*CF$2)) -> 0 | CG7: =IF($BG7<CG$1,0,IF($BG7-CG$1>計算!$B$26,CG$2,($BG7-CG$1)/計算!$B$26*CG$2)) -> 0 | CH7: =IF($BG7<CH$1,0,IF($BG7-CH$1>計算!$B$26,CH$2,($BG7-CH$1)/計算!$B$26*CH$2)) -> 0 | CI7: =IF($BG7<CI$1,0,IF($BG7-CI$1>計算!$B$26,CI$2,($BG7-CI$1)/計算!$B$26*CI$2)) -> 0 | CJ7: =IF($BG7<CJ$1,0,IF($BG7-CJ$1>計算!$B$26,CJ$2,($BG7-CJ$1)/計算!$B$26*CJ$2)) -> 0 | CK7: =IF($BG7<CK$1,0,IF($BG7-CK$1>計算!$B$26,CK$2,($BG7-CK$1)/計算!$B$26*CK$2)) -> 0 | CL7: 3.803940784 | CO7: 1.950212974 | CP7: 0.2465205461 | CQ7: -0.2465205461
A8: ξ1N | B8: =B7*B4/(B4+B14) -> 0.1499925852 | F8: 10 | G8: =準備!J7 -> 3.871605048 | H8: =準備!O7-準備!O6 -> -0.01119237707 | I8: =準備!P7-準備!P6 -> 0.5879383173 | K8: 5 | L8: 1.979033875 | M8: =IF($L8<M$1,0,IF($L8-M$1>計算!$B$26,M$2,($L8-M$1)/計算!$B$26*M$2)) -> 1.989000528 | N8: =IF($L8<N$1,0,IF($L8-N$1>計算!$B$26,N$2,($L8-N$1)/計算!$B$26*N$2)) -> 0.03775789238 | O8: =IF($L8<O$1,0,IF($L8-O$1>計算!$B$26,O$2,($L8-O$1)/計算!$B$26*O$2)) -> 0.05366526618 | P8: =IF($L8<P$1,0,IF($L8-P$1>計算!$B$26,P$2,($L8-P$1)/計算!$B$26*P$2)) -> 0 | Q8: =IF($L8<Q$1,0,IF($L8-Q$1>計算!$B$26,Q$2,($L8-Q$1)/計算!$B$26*Q$2)) -> 0 | R8: =IF($L8<R$1,0,IF($L8-R$1>計算!$B$26,R$2,($L8-R$1)/計算!$B$26*R$2)) -> 0 | S8: =IF($L8<S$1,0,IF($L8-S$1>計算!$B$26,S$2,($L8-S$1)/計算!$B$26*S$2)) -> 0 | T8: =IF($L8<T$1,0,IF($L8-T$1>計算!$B$26,T$2,($L8-T$1)/計算!$B$26*T$2)) -> 0 | U8: =IF($L8<U$1,0,IF($L8-U$1>計算!$B$26,U$2,($L8-U$1)/計算!$B$26*U$2)) -> 0 | V8: =IF($L8<V$1,0,IF($L8-V$1>計算!$B$26,V$2,($L8-V$1)/計算!$B$26*V$2)) -> 0 | W8: =IF($L8<W$1,0,IF($L8-W$1>計算!$B$26,W$2,($L8-W$1)/計算!$B$26*W$2)) -> 0 | X8: =IF($L8<X$1,0,IF($L8-X$1>計算!$B$26,X$2,($L8-X$1)/計算!$B$26*X$2)) -> 0 | Y8: =IF($L8<Y$1,0,IF($L8-Y$1>計算!$B$26,Y$2,($L8-Y$1)/計算!$B$26*Y$2)) -> 0 | Z8: =IF($L8<Z$1,0,IF($L8-Z$1>計算!$B$26,Z$2,($L8-Z$1)/計算!$B$26*Z$2)) -> 0 | AA8: =IF($L8<AA$1,0,IF($L8-AA$1>計算!$B$26,AA$2,($L8-AA$1)/計算!$B$26*AA$2)) -> 0 | AB8: =IF($L8<AB$1,0,IF($L8-AB$1>計算!$B$26,AB$2,($L8-AB$1)/計算!$B$26*AB$2)) -> 0 | AC8: =IF($L8<AC$1,0,IF($L8-AC$1>計算!$B$26,AC$2,($L8-AC$1)/計算!$B$26*AC$2)) -> 0 | AD8: =IF($L8<AD$1,0,IF($L8-AD$1>計算!$B$26,AD$2,($L8-AD$1)/計算!$B$26*AD$2)) -> 0 | AE8: =IF($L8<AE$1,0,IF($L8-AE$1>計算!$B$26,AE$2,($L8-AE$1)/計算!$B$26*AE$2)) -> 0 | AF8: =IF($L8<AF$1,0,IF($L8-AF$1>計算!$B$26,AF$2,($L8-AF$1)/計算!$B$26*AF$2)) -> 0 | AG8: =IF($L8<AG$1,0,IF($L8-AG$1>計算!$B$26,AG$2,($L8-AG$1)/計算!$B$26*AG$2)) -> 0 | AH8: =IF($L8<AH$1,0,IF($L8-AH$1>計算!$B$26,AH$2,($L8-AH$1)/計算!$B$26*AH$2)) -> 0 | AI8: =IF($L8<AI$1,0,IF($L8-AI$1>計算!$B$26,AI$2,($L8-AI$1)/計算!$B$26*AI$2)) -> 0 | AJ8: =IF($L8<AJ$1,0,IF($L8-AJ$1>計算!$B$26,AJ$2,($L8-AJ$1)/計算!$B$26*AJ$2)) -> 0 | AK8: =IF($L8<AK$1,0,IF($L8-AK$1>計算!$B$26,AK$2,($L8-AK$1)/計算!$B$26*AK$2)) -> 0 | AL8: =IF($L8<AL$1,0,IF($L8-AL$1>計算!$B$26,AL$2,($L8-AL$1)/計算!$B$26*AL$2)) -> 0 | AM8: =IF($L8<AM$1,0,IF($L8-AM$1>計算!$B$26,AM$2,($L8-AM$1)/計算!$B$26*AM$2)) -> 0 | AN8: =IF($L8<AN$1,0,IF($L8-AN$1>計算!$B$26,AN$2,($L8-AN$1)/計算!$B$26*AN$2)) -> 0 | AO8: =IF($L8<AO$1,0,IF($L8-AO$1>計算!$B$26,AO$2,($L8-AO$1)/計算!$B$26*AO$2)) -> 0 | AP8: =IF($L8<AP$1,0,IF($L8-AP$1>計算!$B$26,AP$2,($L8-AP$1)/計算!$B$26*AP$2)) -> 0 | AQ8: =IF($L8<AQ$1,0,IF($L8-AQ$1>計算!$B$26,AQ$2,($L8-AQ$1)/計算!$B$26*AQ$2)) -> 0 | AR8: =IF($L8<AR$1,0,IF($L8-AR$1>計算!$B$26,AR$2,($L8-AR$1)/計算!$B$26*AR$2)) -> 0 | AS8: =IF($L8<AS$1,0,IF($L8-AS$1>計算!$B$26,AS$2,($L8-AS$1)/計算!$B$26*AS$2)) -> 0 | AT8: =IF($L8<AT$1,0,IF($L8-AT$1>計算!$B$26,AT$2,($L8-AT$1)/計算!$B$26*AT$2)) -> 0 | AU8: =IF($L8<AU$1,0,IF($L8-AU$1>計算!$B$26,AU$2,($L8-AU$1)/計算!$B$26*AU$2)) -> 0 | AV8: =IF($L8<AV$1,0,IF($L8-AV$1>計算!$B$26,AV$2,($L8-AV$1)/計算!$B$26*AV$2)) -> 0 | AW8: 2.080423687 | BA8: 8 | BB8: =準備!T7 -> 2.968550812 | BC8: =準備!Y7-準備!Y6 -> 0.1958427948 | BD8: =準備!Z7-準備!Z6 -> 0.08553984625 | BF8: 4 | BG8: 1.489516957 | BH8: =IF($BG8<BH$1,0,IF($BG8-BH$1>計算!$B$26,BH$2,($BG8-BH$1)/計算!$B$26*BH$2)) -> 1.843424849 | BI8: =IF($BG8<BI$1,0,IF($BG8-BI$1>計算!$B$26,BI$2,($BG8-BI$1)/計算!$B$26*BI$2)) -> 2.08043597 | BJ8: =IF($BG8<BJ$1,0,IF($BG8-BJ$1>計算!$B$26,BJ$2,($BG8-BJ$1)/計算!$B$26*BJ$2)) -> 0 | BK8: =IF($BG8<BK$1,0,IF($BG8-BK$1>計算!$B$26,BK$2,($BG8-BK$1)/計算!$B$26*BK$2)) -> 0 | BL8: =IF($BG8<BL$1,0,IF($BG8-BL$1>計算!$B$26,BL$2,($BG8-BL$1)/計算!$B$26*BL$2)) -> 0 | BM8: =IF($BG8<BM$1,0,IF($BG8-BM$1>計算!$B$26,BM$2,($BG8-BM$1)/計算!$B$26*BM$2)) -> 0 | BN8: =IF($BG8<BN$1,0,IF($BG8-BN$1>計算!$B$26,BN$2,($BG8-BN$1)/計算!$B$26*BN$2)) -> 0 | BO8: =IF($BG8<BO$1,0,IF($BG8-BO$1>計算!$B$26,BO$2,($BG8-BO$1)/計算!$B$26*BO$2)) -> 0 | BP8: =IF($BG8<BP$1,0,IF($BG8-BP$1>計算!$B$26,BP$2,($BG8-BP$1)/計算!$B$26*BP$2)) -> 0 | BQ8: =IF($BG8<BQ$1,0,IF($BG8-BQ$1>計算!$B$26,BQ$2,($BG8-BQ$1)/計算!$B$26*BQ$2)) -> 0 | BR8: =IF($BG8<BR$1,0,IF($BG8-BR$1>計算!$B$26,BR$2,($BG8-BR$1)/計算!$B$26*BR$2)) -> 0 | BS8: =IF($BG8<BS$1,0,IF($BG8-BS$1>計算!$B$26,BS$2,($BG8-BS$1)/計算!$B$26*BS$2)) -> 0 | BT8: =IF($BG8<BT$1,0,IF($BG8-BT$1>計算!$B$26,BT$2,($BG8-BT$1)/計算!$B$26*BT$2)) -> 0 | BU8: =IF($BG8<BU$1,0,IF($BG8-BU$1>計算!$B$26,BU$2,($BG8-BU$1)/計算!$B$26*BU$2)) -> 0 | BV8: =IF($BG8<BV$1,0,IF($BG8-BV$1>計算!$B$26,BV$2,($BG8-BV$1)/計算!$B$26*BV$2)) -> 0 | BW8: =IF($BG8<BW$1,0,IF($BG8-BW$1>計算!$B$26,BW$2,($BG8-BW$1)/計算!$B$26*BW$2)) -> 0 | BX8: =IF($BG8<BX$1,0,IF($BG8-BX$1>計算!$B$26,BX$2,($BG8-BX$1)/計算!$B$26*BX$2)) -> 0 | BY8: =IF($BG8<BY$1,0,IF($BG8-BY$1>計算!$B$26,BY$2,($BG8-BY$1)/計算!$B$26*BY$2)) -> 0 | BZ8: =IF($BG8<BZ$1,0,IF($BG8-BZ$1>計算!$B$26,BZ$2,($BG8-BZ$1)/計算!$B$26*BZ$2)) -> 0 | CA8: =IF($BG8<CA$1,0,IF($BG8-CA$1>計算!$B$26,CA$2,($BG8-CA$1)/計算!$B$26*CA$2)) -> 0 | CB8: =IF($BG8<CB$1,0,IF($BG8-CB$1>計算!$B$26,CB$2,($BG8-CB$1)/計算!$B$26*CB$2)) -> 0 | CC8: =IF($BG8<CC$1,0,IF($BG8-CC$1>計算!$B$26,CC$2,($BG8-CC$1)/計算!$B$26*CC$2)) -> 0 | CD8: =IF($BG8<CD$1,0,IF($BG8-CD$1>計算!$B$26,CD$2,($BG8-CD$1)/計算!$B$26*CD$2)) -> 0 | CE8: =IF($BG8<CE$1,0,IF($BG8-CE$1>計算!$B$26,CE$2,($BG8-CE$1)/計算!$B$26*CE$2)) -> 0 | CF8: =IF($BG8<CF$1,0,IF($BG8-CF$1>計算!$B$26,CF$2,($BG8-CF$1)/計算!$B$26*CF$2)) -> 0 | CG8: =IF($BG8<CG$1,0,IF($BG8-CG$1>計算!$B$26,CG$2,($BG8-CG$1)/計算!$B$26*CG$2)) -> 0 | CH8: =IF($BG8<CH$1,0,IF($BG8-CH$1>計算!$B$26,CH$2,($BG8-CH$1)/計算!$B$26*CH$2)) -> 0 | CI8: =IF($BG8<CI$1,0,IF($BG8-CI$1>計算!$B$26,CI$2,($BG8-CI$1)/計算!$B$26*CI$2)) -> 0 | CJ8: =IF($BG8<CJ$1,0,IF($BG8-CJ$1>計算!$B$26,CJ$2,($BG8-CJ$1)/計算!$B$26*CJ$2)) -> 0 | CK8: =IF($BG8<CK$1,0,IF($BG8-CK$1>計算!$B$26,CK$2,($BG8-CK$1)/計算!$B$26*CK$2)) -> 0 | CL8: 3.923860819 | CO8: 1.979033875 | CP8: 0.1824945418 | CQ8: -0.1824945418
A9: ξN1 | B9: =B7*B2/(B2+B14) -> 0.06041008796 | F9: 11 | G9: =準備!J8 -> 3.900425948 | H9: =準備!O8-準備!O7 -> -0.2393553108 | I9: =準備!P8-準備!P7 -> 0.2662890731 | K9: 6 | L9: 2.421392074 | M9: =IF($L9<M$1,0,IF($L9-M$1>計算!$B$26,M$2,($L9-M$1)/計算!$B$26*M$2)) -> 1.989000528 | N9: =IF($L9<N$1,0,IF($L9-N$1>計算!$B$26,N$2,($L9-N$1)/計算!$B$26*N$2)) -> 0.3275217949 | O9: =IF($L9<O$1,0,IF($L9-O$1>計算!$B$26,O$2,($L9-O$1)/計算!$B$26*O$2)) -> 0.8773477327 | P9: =IF($L9<P$1,0,IF($L9-P$1>計算!$B$26,P$2,($L9-P$1)/計算!$B$26*P$2)) -> 0.2466584057 | Q9: =IF($L9<Q$1,0,IF($L9-Q$1>計算!$B$26,Q$2,($L9-Q$1)/計算!$B$26*Q$2)) -> 0 | R9: =IF($L9<R$1,0,IF($L9-R$1>計算!$B$26,R$2,($L9-R$1)/計算!$B$26*R$2)) -> 0 | S9: =IF($L9<S$1,0,IF($L9-S$1>計算!$B$26,S$2,($L9-S$1)/計算!$B$26*S$2)) -> 0 | T9: =IF($L9<T$1,0,IF($L9-T$1>計算!$B$26,T$2,($L9-T$1)/計算!$B$26*T$2)) -> 0 | U9: =IF($L9<U$1,0,IF($L9-U$1>計算!$B$26,U$2,($L9-U$1)/計算!$B$26*U$2)) -> 0 | V9: =IF($L9<V$1,0,IF($L9-V$1>計算!$B$26,V$2,($L9-V$1)/計算!$B$26*V$2)) -> 0 | W9: =IF($L9<W$1,0,IF($L9-W$1>計算!$B$26,W$2,($L9-W$1)/計算!$B$26*W$2)) -> 0 | X9: =IF($L9<X$1,0,IF($L9-X$1>計算!$B$26,X$2,($L9-X$1)/計算!$B$26*X$2)) -> 0 | Y9: =IF($L9<Y$1,0,IF($L9-Y$1>計算!$B$26,Y$2,($L9-Y$1)/計算!$B$26*Y$2)) -> 0 | Z9: =IF($L9<Z$1,0,IF($L9-Z$1>計算!$B$26,Z$2,($L9-Z$1)/計算!$B$26*Z$2)) -> 0 | AA9: =IF($L9<AA$1,0,IF($L9-AA$1>計算!$B$26,AA$2,($L9-AA$1)/計算!$B$26*AA$2)) -> 0 | AB9: =IF($L9<AB$1,0,IF($L9-AB$1>計算!$B$26,AB$2,($L9-AB$1)/計算!$B$26*AB$2)) -> 0 | AC9: =IF($L9<AC$1,0,IF($L9-AC$1>計算!$B$26,AC$2,($L9-AC$1)/計算!$B$26*AC$2)) -> 0 | AD9: =IF($L9<AD$1,0,IF($L9-AD$1>計算!$B$26,AD$2,($L9-AD$1)/計算!$B$26*AD$2)) -> 0 | AE9: =IF($L9<AE$1,0,IF($L9-AE$1>計算!$B$26,AE$2,($L9-AE$1)/計算!$B$26*AE$2)) -> 0 | AF9: =IF($L9<AF$1,0,IF($L9-AF$1>計算!$B$26,AF$2,($L9-AF$1)/計算!$B$26*AF$2)) -> 0 | AG9: =IF($L9<AG$1,0,IF($L9-AG$1>計算!$B$26,AG$2,($L9-AG$1)/計算!$B$26*AG$2)) -> 0 | AH9: =IF($L9<AH$1,0,IF($L9-AH$1>計算!$B$26,AH$2,($L9-AH$1)/計算!$B$26*AH$2)) -> 0 | AI9: =IF($L9<AI$1,0,IF($L9-AI$1>計算!$B$26,AI$2,($L9-AI$1)/計算!$B$26*AI$2)) -> 0 | AJ9: =IF($L9<AJ$1,0,IF($L9-AJ$1>計算!$B$26,AJ$2,($L9-AJ$1)/計算!$B$26*AJ$2)) -> 0 | AK9: =IF($L9<AK$1,0,IF($L9-AK$1>計算!$B$26,AK$2,($L9-AK$1)/計算!$B$26*AK$2)) -> 0 | AL9: =IF($L9<AL$1,0,IF($L9-AL$1>計算!$B$26,AL$2,($L9-AL$1)/計算!$B$26*AL$2)) -> 0 | AM9: =IF($L9<AM$1,0,IF($L9-AM$1>計算!$B$26,AM$2,($L9-AM$1)/計算!$B$26*AM$2)) -> 0 | AN9: =IF($L9<AN$1,0,IF($L9-AN$1>計算!$B$26,AN$2,($L9-AN$1)/計算!$B$26*AN$2)) -> 0 | AO9: =IF($L9<AO$1,0,IF($L9-AO$1>計算!$B$26,AO$2,($L9-AO$1)/計算!$B$26*AO$2)) -> 0 | AP9: =IF($L9<AP$1,0,IF($L9-AP$1>計算!$B$26,AP$2,($L9-AP$1)/計算!$B$26*AP$2)) -> 0 | AQ9: =IF($L9<AQ$1,0,IF($L9-AQ$1>計算!$B$26,AQ$2,($L9-AQ$1)/計算!$B$26*AQ$2)) -> 0 | AR9: =IF($L9<AR$1,0,IF($L9-AR$1>計算!$B$26,AR$2,($L9-AR$1)/計算!$B$26*AR$2)) -> 0 | AS9: =IF($L9<AS$1,0,IF($L9-AS$1>計算!$B$26,AS$2,($L9-AS$1)/計算!$B$26*AS$2)) -> 0 | AT9: =IF($L9<AT$1,0,IF($L9-AT$1>計算!$B$26,AT$2,($L9-AT$1)/計算!$B$26*AT$2)) -> 0 | AU9: =IF($L9<AU$1,0,IF($L9-AU$1>計算!$B$26,AU$2,($L9-AU$1)/計算!$B$26*AU$2)) -> 0 | AV9: =IF($L9<AV$1,0,IF($L9-AV$1>計算!$B$26,AV$2,($L9-AV$1)/計算!$B$26*AV$2)) -> 0 | AW9: 3.440528462 | BA9: 13 | BB9: =準備!T8 -> 4.803480184 | BC9: =準備!Y8-準備!Y7 -> 0.1042289406 | BD9: =準備!Z8-準備!Z7 -> -0.03797627557 | BF9: 5 | BG9: 2.88208811 | BH9: =IF($BG9<BH$1,0,IF($BG9-BH$1>計算!$B$26,BH$2,($BG9-BH$1)/計算!$B$26*BH$2)) -> 1.843424849 | BI9: =IF($BG9<BI$1,0,IF($BG9-BI$1>計算!$B$26,BI$2,($BG9-BI$1)/計算!$B$26*BI$2)) -> 2.08043597 | BJ9: =IF($BG9<BJ$1,0,IF($BG9-BJ$1>計算!$B$26,BJ$2,($BG9-BJ$1)/計算!$B$26*BJ$2)) -> 0 | BK9: =IF($BG9<BK$1,0,IF($BG9-BK$1>計算!$B$26,BK$2,($BG9-BK$1)/計算!$B$26*BK$2)) -> 0 | BL9: =IF($BG9<BL$1,0,IF($BG9-BL$1>計算!$B$26,BL$2,($BG9-BL$1)/計算!$B$26*BL$2)) -> 0 | BM9: =IF($BG9<BM$1,0,IF($BG9-BM$1>計算!$B$26,BM$2,($BG9-BM$1)/計算!$B$26*BM$2)) -> 0 | BN9: =IF($BG9<BN$1,0,IF($BG9-BN$1>計算!$B$26,BN$2,($BG9-BN$1)/計算!$B$26*BN$2)) -> 0 | BO9: =IF($BG9<BO$1,0,IF($BG9-BO$1>計算!$B$26,BO$2,($BG9-BO$1)/計算!$B$26*BO$2)) -> 0 | BP9: =IF($BG9<BP$1,0,IF($BG9-BP$1>計算!$B$26,BP$2,($BG9-BP$1)/計算!$B$26*BP$2)) -> 0 | BQ9: =IF($BG9<BQ$1,0,IF($BG9-BQ$1>計算!$B$26,BQ$2,($BG9-BQ$1)/計算!$B$26*BQ$2)) -> 0 | BR9: =IF($BG9<BR$1,0,IF($BG9-BR$1>計算!$B$26,BR$2,($BG9-BR$1)/計算!$B$26*BR$2)) -> 0 | BS9: =IF($BG9<BS$1,0,IF($BG9-BS$1>計算!$B$26,BS$2,($BG9-BS$1)/計算!$B$26*BS$2)) -> 0 | BT9: =IF($BG9<BT$1,0,IF($BG9-BT$1>計算!$B$26,BT$2,($BG9-BT$1)/計算!$B$26*BT$2)) -> 0 | BU9: =IF($BG9<BU$1,0,IF($BG9-BU$1>計算!$B$26,BU$2,($BG9-BU$1)/計算!$B$26*BU$2)) -> 0 | BV9: =IF($BG9<BV$1,0,IF($BG9-BV$1>計算!$B$26,BV$2,($BG9-BV$1)/計算!$B$26*BV$2)) -> 0 | BW9: =IF($BG9<BW$1,0,IF($BG9-BW$1>計算!$B$26,BW$2,($BG9-BW$1)/計算!$B$26*BW$2)) -> 0 | BX9: =IF($BG9<BX$1,0,IF($BG9-BX$1>計算!$B$26,BX$2,($BG9-BX$1)/計算!$B$26*BX$2)) -> 0 | BY9: =IF($BG9<BY$1,0,IF($BG9-BY$1>計算!$B$26,BY$2,($BG9-BY$1)/計算!$B$26*BY$2)) -> 0 | BZ9: =IF($BG9<BZ$1,0,IF($BG9-BZ$1>計算!$B$26,BZ$2,($BG9-BZ$1)/計算!$B$26*BZ$2)) -> 0 | CA9: =IF($BG9<CA$1,0,IF($BG9-CA$1>計算!$B$26,CA$2,($BG9-CA$1)/計算!$B$26*CA$2)) -> 0 | CB9: =IF($BG9<CB$1,0,IF($BG9-CB$1>計算!$B$26,CB$2,($BG9-CB$1)/計算!$B$26*CB$2)) -> 0 | CC9: =IF($BG9<CC$1,0,IF($BG9-CC$1>計算!$B$26,CC$2,($BG9-CC$1)/計算!$B$26*CC$2)) -> 0 | CD9: =IF($BG9<CD$1,0,IF($BG9-CD$1>計算!$B$26,CD$2,($BG9-CD$1)/計算!$B$26*CD$2)) -> 0 | CE9: =IF($BG9<CE$1,0,IF($BG9-CE$1>計算!$B$26,CE$2,($BG9-CE$1)/計算!$B$26*CE$2)) -> 0 | CF9: =IF($BG9<CF$1,0,IF($BG9-CF$1>計算!$B$26,CF$2,($BG9-CF$1)/計算!$B$26*CF$2)) -> 0 | CG9: =IF($BG9<CG$1,0,IF($BG9-CG$1>計算!$B$26,CG$2,($BG9-CG$1)/計算!$B$26*CG$2)) -> 0 | CH9: =IF($BG9<CH$1,0,IF($BG9-CH$1>計算!$B$26,CH$2,($BG9-CH$1)/計算!$B$26*CH$2)) -> 0 | CI9: =IF($BG9<CI$1,0,IF($BG9-CI$1>計算!$B$26,CI$2,($BG9-CI$1)/計算!$B$26*CI$2)) -> 0 | CJ9: =IF($BG9<CJ$1,0,IF($BG9-CJ$1>計算!$B$26,CJ$2,($BG9-CJ$1)/計算!$B$26*CJ$2)) -> 0 | CK9: =IF($BG9<CK$1,0,IF($BG9-CK$1>計算!$B$26,CK$2,($BG9-CK$1)/計算!$B$26*CK$2)) -> 0 | CL9: 3.923860819 | CO9: 2.421392074 | CP9: -0.2354874803 | CQ9: 0.2354874803
A10: ξ2F | B10: =B7*B5/(B5+B14) -> 0.06041008796 | F10: 12 | G10: =準備!J9 -> 3.929246849 | H10: =準備!O9-準備!O8 -> -0.1103328801 | I10: =準備!P9-準備!P8 -> -0.4732026623 | K10: 7 | L10: 2.450212974 | M10: =IF($L10<M$1,0,IF($L10-M$1>計算!$B$26,M$2,($L10-M$1)/計算!$B$26*M$2)) -> 1.989000528 | N10: =IF($L10<N$1,0,IF($L10-N$1>計算!$B$26,N$2,($L10-N$1)/計算!$B$26*N$2)) -> 0.3275217949 | O10: =IF($L10<O$1,0,IF($L10-O$1>計算!$B$26,O$2,($L10-O$1)/計算!$B$26*O$2)) -> 0.9310129985 | P10: =IF($L10<P$1,0,IF($L10-P$1>計算!$B$26,P$2,($L10-P$1)/計算!$B$26*P$2)) -> 0.2627289057 | Q10: =IF($L10<Q$1,0,IF($L10-Q$1>計算!$B$26,Q$2,($L10-Q$1)/計算!$B$26*Q$2)) -> 0 | R10: =IF($L10<R$1,0,IF($L10-R$1>計算!$B$26,R$2,($L10-R$1)/計算!$B$26*R$2)) -> 0 | S10: =IF($L10<S$1,0,IF($L10-S$1>計算!$B$26,S$2,($L10-S$1)/計算!$B$26*S$2)) -> 0 | T10: =IF($L10<T$1,0,IF($L10-T$1>計算!$B$26,T$2,($L10-T$1)/計算!$B$26*T$2)) -> 0 | U10: =IF($L10<U$1,0,IF($L10-U$1>計算!$B$26,U$2,($L10-U$1)/計算!$B$26*U$2)) -> 0 | V10: =IF($L10<V$1,0,IF($L10-V$1>計算!$B$26,V$2,($L10-V$1)/計算!$B$26*V$2)) -> 0 | W10: =IF($L10<W$1,0,IF($L10-W$1>計算!$B$26,W$2,($L10-W$1)/計算!$B$26*W$2)) -> 0 | X10: =IF($L10<X$1,0,IF($L10-X$1>計算!$B$26,X$2,($L10-X$1)/計算!$B$26*X$2)) -> 0 | Y10: =IF($L10<Y$1,0,IF($L10-Y$1>計算!$B$26,Y$2,($L10-Y$1)/計算!$B$26*Y$2)) -> 0 | Z10: =IF($L10<Z$1,0,IF($L10-Z$1>計算!$B$26,Z$2,($L10-Z$1)/計算!$B$26*Z$2)) -> 0 | AA10: =IF($L10<AA$1,0,IF($L10-AA$1>計算!$B$26,AA$2,($L10-AA$1)/計算!$B$26*AA$2)) -> 0 | AB10: =IF($L10<AB$1,0,IF($L10-AB$1>計算!$B$26,AB$2,($L10-AB$1)/計算!$B$26*AB$2)) -> 0 | AC10: =IF($L10<AC$1,0,IF($L10-AC$1>計算!$B$26,AC$2,($L10-AC$1)/計算!$B$26*AC$2)) -> 0 | AD10: =IF($L10<AD$1,0,IF($L10-AD$1>計算!$B$26,AD$2,($L10-AD$1)/計算!$B$26*AD$2)) -> 0 | AE10: =IF($L10<AE$1,0,IF($L10-AE$1>計算!$B$26,AE$2,($L10-AE$1)/計算!$B$26*AE$2)) -> 0 | AF10: =IF($L10<AF$1,0,IF($L10-AF$1>計算!$B$26,AF$2,($L10-AF$1)/計算!$B$26*AF$2)) -> 0 | AG10: =IF($L10<AG$1,0,IF($L10-AG$1>計算!$B$26,AG$2,($L10-AG$1)/計算!$B$26*AG$2)) -> 0 | AH10: =IF($L10<AH$1,0,IF($L10-AH$1>計算!$B$26,AH$2,($L10-AH$1)/計算!$B$26*AH$2)) -> 0 | AI10: =IF($L10<AI$1,0,IF($L10-AI$1>計算!$B$26,AI$2,($L10-AI$1)/計算!$B$26*AI$2)) -> 0 | AJ10: =IF($L10<AJ$1,0,IF($L10-AJ$1>計算!$B$26,AJ$2,($L10-AJ$1)/計算!$B$26*AJ$2)) -> 0 | AK10: =IF($L10<AK$1,0,IF($L10-AK$1>計算!$B$26,AK$2,($L10-AK$1)/計算!$B$26*AK$2)) -> 0 | AL10: =IF($L10<AL$1,0,IF($L10-AL$1>計算!$B$26,AL$2,($L10-AL$1)/計算!$B$26*AL$2)) -> 0 | AM10: =IF($L10<AM$1,0,IF($L10-AM$1>計算!$B$26,AM$2,($L10-AM$1)/計算!$B$26*AM$2)) -> 0 | AN10: =IF($L10<AN$1,0,IF($L10-AN$1>計算!$B$26,AN$2,($L10-AN$1)/計算!$B$26*AN$2)) -> 0 | AO10: =IF($L10<AO$1,0,IF($L10-AO$1>計算!$B$26,AO$2,($L10-AO$1)/計算!$B$26*AO$2)) -> 0 | AP10: =IF($L10<AP$1,0,IF($L10-AP$1>計算!$B$26,AP$2,($L10-AP$1)/計算!$B$26*AP$2)) -> 0 | AQ10: =IF($L10<AQ$1,0,IF($L10-AQ$1>計算!$B$26,AQ$2,($L10-AQ$1)/計算!$B$26*AQ$2)) -> 0 | AR10: =IF($L10<AR$1,0,IF($L10-AR$1>計算!$B$26,AR$2,($L10-AR$1)/計算!$B$26*AR$2)) -> 0 | AS10: =IF($L10<AS$1,0,IF($L10-AS$1>計算!$B$26,AS$2,($L10-AS$1)/計算!$B$26*AS$2)) -> 0 | AT10: =IF($L10<AT$1,0,IF($L10-AT$1>計算!$B$26,AT$2,($L10-AT$1)/計算!$B$26*AT$2)) -> 0 | AU10: =IF($L10<AU$1,0,IF($L10-AU$1>計算!$B$26,AU$2,($L10-AU$1)/計算!$B$26*AU$2)) -> 0 | AV10: =IF($L10<AV$1,0,IF($L10-AV$1>計算!$B$26,AV$2,($L10-AV$1)/計算!$B$26*AV$2)) -> 0 | AW10: 3.510264227 | BA10: 14 | BB10: =準備!T9 -> 4.832301084 | BC10: =準備!Y9-準備!Y8 -> -0.4423266907 | BD10: =準備!Z9-準備!Z8 -> 0.06216226805 | BF10: 6 | BG10: 2.910909011 | BH10: =IF($BG10<BH$1,0,IF($BG10-BH$1>計算!$B$26,BH$2,($BG10-BH$1)/計算!$B$26*BH$2)) -> 1.843424849 | BI10: =IF($BG10<BI$1,0,IF($BG10-BI$1>計算!$B$26,BI$2,($BG10-BI$1)/計算!$B$26*BI$2)) -> 2.08043597 | BJ10: =IF($BG10<BJ$1,0,IF($BG10-BJ$1>計算!$B$26,BJ$2,($BG10-BJ$1)/計算!$B$26*BJ$2)) -> 0.02526646146 | BK10: =IF($BG10<BK$1,0,IF($BG10-BK$1>計算!$B$26,BK$2,($BG10-BK$1)/計算!$B$26*BK$2)) -> 0 | BL10: =IF($BG10<BL$1,0,IF($BG10-BL$1>計算!$B$26,BL$2,($BG10-BL$1)/計算!$B$26*BL$2)) -> 0 | BM10: =IF($BG10<BM$1,0,IF($BG10-BM$1>計算!$B$26,BM$2,($BG10-BM$1)/計算!$B$26*BM$2)) -> 0 | BN10: =IF($BG10<BN$1,0,IF($BG10-BN$1>計算!$B$26,BN$2,($BG10-BN$1)/計算!$B$26*BN$2)) -> 0 | BO10: =IF($BG10<BO$1,0,IF($BG10-BO$1>計算!$B$26,BO$2,($BG10-BO$1)/計算!$B$26*BO$2)) -> 0 | BP10: =IF($BG10<BP$1,0,IF($BG10-BP$1>計算!$B$26,BP$2,($BG10-BP$1)/計算!$B$26*BP$2)) -> 0 | BQ10: =IF($BG10<BQ$1,0,IF($BG10-BQ$1>計算!$B$26,BQ$2,($BG10-BQ$1)/計算!$B$26*BQ$2)) -> 0 | BR10: =IF($BG10<BR$1,0,IF($BG10-BR$1>計算!$B$26,BR$2,($BG10-BR$1)/計算!$B$26*BR$2)) -> 0 | BS10: =IF($BG10<BS$1,0,IF($BG10-BS$1>計算!$B$26,BS$2,($BG10-BS$1)/計算!$B$26*BS$2)) -> 0 | BT10: =IF($BG10<BT$1,0,IF($BG10-BT$1>計算!$B$26,BT$2,($BG10-BT$1)/計算!$B$26*BT$2)) -> 0 | BU10: =IF($BG10<BU$1,0,IF($BG10-BU$1>計算!$B$26,BU$2,($BG10-BU$1)/計算!$B$26*BU$2)) -> 0 | BV10: =IF($BG10<BV$1,0,IF($BG10-BV$1>計算!$B$26,BV$2,($BG10-BV$1)/計算!$B$26*BV$2)) -> 0 | BW10: =IF($BG10<BW$1,0,IF($BG10-BW$1>計算!$B$26,BW$2,($BG10-BW$1)/計算!$B$26*BW$2)) -> 0 | BX10: =IF($BG10<BX$1,0,IF($BG10-BX$1>計算!$B$26,BX$2,($BG10-BX$1)/計算!$B$26*BX$2)) -> 0 | BY10: =IF($BG10<BY$1,0,IF($BG10-BY$1>計算!$B$26,BY$2,($BG10-BY$1)/計算!$B$26*BY$2)) -> 0 | BZ10: =IF($BG10<BZ$1,0,IF($BG10-BZ$1>計算!$B$26,BZ$2,($BG10-BZ$1)/計算!$B$26*BZ$2)) -> 0 | CA10: =IF($BG10<CA$1,0,IF($BG10-CA$1>計算!$B$26,CA$2,($BG10-CA$1)/計算!$B$26*CA$2)) -> 0 | CB10: =IF($BG10<CB$1,0,IF($BG10-CB$1>計算!$B$26,CB$2,($BG10-CB$1)/計算!$B$26*CB$2)) -> 0 | CC10: =IF($BG10<CC$1,0,IF($BG10-CC$1>計算!$B$26,CC$2,($BG10-CC$1)/計算!$B$26*CC$2)) -> 0 | CD10: =IF($BG10<CD$1,0,IF($BG10-CD$1>計算!$B$26,CD$2,($BG10-CD$1)/計算!$B$26*CD$2)) -> 0 | CE10: =IF($BG10<CE$1,0,IF($BG10-CE$1>計算!$B$26,CE$2,($BG10-CE$1)/計算!$B$26*CE$2)) -> 0 | CF10: =IF($BG10<CF$1,0,IF($BG10-CF$1>計算!$B$26,CF$2,($BG10-CF$1)/計算!$B$26*CF$2)) -> 0 | CG10: =IF($BG10<CG$1,0,IF($BG10-CG$1>計算!$B$26,CG$2,($BG10-CG$1)/計算!$B$26*CG$2)) -> 0 | CH10: =IF($BG10<CH$1,0,IF($BG10-CH$1>計算!$B$26,CH$2,($BG10-CH$1)/計算!$B$26*CH$2)) -> 0 | CI10: =IF($BG10<CI$1,0,IF($BG10-CI$1>計算!$B$26,CI$2,($BG10-CI$1)/計算!$B$26*CI$2)) -> 0 | CJ10: =IF($BG10<CJ$1,0,IF($BG10-CJ$1>計算!$B$26,CJ$2,($BG10-CJ$1)/計算!$B$26*CJ$2)) -> 0 | CK10: =IF($BG10<CK$1,0,IF($BG10-CK$1>計算!$B$26,CK$2,($BG10-CK$1)/計算!$B$26*CK$2)) -> 0 | CL10: 3.94912728 | CO10: 2.450212974 | CP10: -0.2109054179 | CQ10: 0.2109054179
A11: ξF2 | B11: =B7*B3/(B3+B14) -> 0.1499925852 | F11: 13 | G11: =準備!J10 -> 3.958067749 | H11: =準備!O10-準備!O9 -> 0.02624490998 | I11: =準備!P10-準備!P9 -> 0.06008751179 | K11: 8 | L11: 2.479033875 | M11: =IF($L11<M$1,0,IF($L11-M$1>計算!$B$26,M$2,($L11-M$1)/計算!$B$26*M$2)) -> 1.989000528 | N11: =IF($L11<N$1,0,IF($L11-N$1>計算!$B$26,N$2,($L11-N$1)/計算!$B$26*N$2)) -> 0.3275217949 | O11: =IF($L11<O$1,0,IF($L11-O$1>計算!$B$26,O$2,($L11-O$1)/計算!$B$26*O$2)) -> 0.9310129985 | P11: =IF($L11<P$1,0,IF($L11-P$1>計算!$B$26,P$2,($L11-P$1)/計算!$B$26*P$2)) -> 0.2787994054 | Q11: =IF($L11<Q$1,0,IF($L11-Q$1>計算!$B$26,Q$2,($L11-Q$1)/計算!$B$26*Q$2)) -> 0 | R11: =IF($L11<R$1,0,IF($L11-R$1>計算!$B$26,R$2,($L11-R$1)/計算!$B$26*R$2)) -> 0 | S11: =IF($L11<S$1,0,IF($L11-S$1>計算!$B$26,S$2,($L11-S$1)/計算!$B$26*S$2)) -> 0 | T11: =IF($L11<T$1,0,IF($L11-T$1>計算!$B$26,T$2,($L11-T$1)/計算!$B$26*T$2)) -> 0 | U11: =IF($L11<U$1,0,IF($L11-U$1>計算!$B$26,U$2,($L11-U$1)/計算!$B$26*U$2)) -> 0 | V11: =IF($L11<V$1,0,IF($L11-V$1>計算!$B$26,V$2,($L11-V$1)/計算!$B$26*V$2)) -> 0 | W11: =IF($L11<W$1,0,IF($L11-W$1>計算!$B$26,W$2,($L11-W$1)/計算!$B$26*W$2)) -> 0 | X11: =IF($L11<X$1,0,IF($L11-X$1>計算!$B$26,X$2,($L11-X$1)/計算!$B$26*X$2)) -> 0 | Y11: =IF($L11<Y$1,0,IF($L11-Y$1>計算!$B$26,Y$2,($L11-Y$1)/計算!$B$26*Y$2)) -> 0 | Z11: =IF($L11<Z$1,0,IF($L11-Z$1>計算!$B$26,Z$2,($L11-Z$1)/計算!$B$26*Z$2)) -> 0 | AA11: =IF($L11<AA$1,0,IF($L11-AA$1>計算!$B$26,AA$2,($L11-AA$1)/計算!$B$26*AA$2)) -> 0 | AB11: =IF($L11<AB$1,0,IF($L11-AB$1>計算!$B$26,AB$2,($L11-AB$1)/計算!$B$26*AB$2)) -> 0 | AC11: =IF($L11<AC$1,0,IF($L11-AC$1>計算!$B$26,AC$2,($L11-AC$1)/計算!$B$26*AC$2)) -> 0 | AD11: =IF($L11<AD$1,0,IF($L11-AD$1>計算!$B$26,AD$2,($L11-AD$1)/計算!$B$26*AD$2)) -> 0 | AE11: =IF($L11<AE$1,0,IF($L11-AE$1>計算!$B$26,AE$2,($L11-AE$1)/計算!$B$26*AE$2)) -> 0 | AF11: =IF($L11<AF$1,0,IF($L11-AF$1>計算!$B$26,AF$2,($L11-AF$1)/計算!$B$26*AF$2)) -> 0 | AG11: =IF($L11<AG$1,0,IF($L11-AG$1>計算!$B$26,AG$2,($L11-AG$1)/計算!$B$26*AG$2)) -> 0 | AH11: =IF($L11<AH$1,0,IF($L11-AH$1>計算!$B$26,AH$2,($L11-AH$1)/計算!$B$26*AH$2)) -> 0 | AI11: =IF($L11<AI$1,0,IF($L11-AI$1>計算!$B$26,AI$2,($L11-AI$1)/計算!$B$26*AI$2)) -> 0 | AJ11: =IF($L11<AJ$1,0,IF($L11-AJ$1>計算!$B$26,AJ$2,($L11-AJ$1)/計算!$B$26*AJ$2)) -> 0 | AK11: =IF($L11<AK$1,0,IF($L11-AK$1>計算!$B$26,AK$2,($L11-AK$1)/計算!$B$26*AK$2)) -> 0 | AL11: =IF($L11<AL$1,0,IF($L11-AL$1>計算!$B$26,AL$2,($L11-AL$1)/計算!$B$26*AL$2)) -> 0 | AM11: =IF($L11<AM$1,0,IF($L11-AM$1>計算!$B$26,AM$2,($L11-AM$1)/計算!$B$26*AM$2)) -> 0 | AN11: =IF($L11<AN$1,0,IF($L11-AN$1>計算!$B$26,AN$2,($L11-AN$1)/計算!$B$26*AN$2)) -> 0 | AO11: =IF($L11<AO$1,0,IF($L11-AO$1>計算!$B$26,AO$2,($L11-AO$1)/計算!$B$26*AO$2)) -> 0 | AP11: =IF($L11<AP$1,0,IF($L11-AP$1>計算!$B$26,AP$2,($L11-AP$1)/計算!$B$26*AP$2)) -> 0 | AQ11: =IF($L11<AQ$1,0,IF($L11-AQ$1>計算!$B$26,AQ$2,($L11-AQ$1)/計算!$B$26*AQ$2)) -> 0 | AR11: =IF($L11<AR$1,0,IF($L11-AR$1>計算!$B$26,AR$2,($L11-AR$1)/計算!$B$26*AR$2)) -> 0 | AS11: =IF($L11<AS$1,0,IF($L11-AS$1>計算!$B$26,AS$2,($L11-AS$1)/計算!$B$26*AS$2)) -> 0 | AT11: =IF($L11<AT$1,0,IF($L11-AT$1>計算!$B$26,AT$2,($L11-AT$1)/計算!$B$26*AT$2)) -> 0 | AU11: =IF($L11<AU$1,0,IF($L11-AU$1>計算!$B$26,AU$2,($L11-AU$1)/計算!$B$26*AU$2)) -> 0 | AV11: =IF($L11<AV$1,0,IF($L11-AV$1>計算!$B$26,AV$2,($L11-AV$1)/計算!$B$26*AV$2)) -> 0 | AW11: 3.526334727 | BA11: 15 | BB11: =準備!T10 -> 4.861121985 | BC11: =準備!Y10-準備!Y9 -> 0.1637739194 | BD11: =準備!Z10-準備!Z9 -> 0.1575581263 | BF11: 7 | BG11: 2.939729911 | BH11: =IF($BG11<BH$1,0,IF($BG11-BH$1>計算!$B$26,BH$2,($BG11-BH$1)/計算!$B$26*BH$2)) -> 1.843424849 | BI11: =IF($BG11<BI$1,0,IF($BG11-BI$1>計算!$B$26,BI$2,($BG11-BI$1)/計算!$B$26*BI$2)) -> 2.08043597 | BJ11: =IF($BG11<BJ$1,0,IF($BG11-BJ$1>計算!$B$26,BJ$2,($BG11-BJ$1)/計算!$B$26*BJ$2)) -> 0.05053292293 | BK11: =IF($BG11<BK$1,0,IF($BG11-BK$1>計算!$B$26,BK$2,($BG11-BK$1)/計算!$B$26*BK$2)) -> -0.03177222203 | BL11: =IF($BG11<BL$1,0,IF($BG11-BL$1>計算!$B$26,BL$2,($BG11-BL$1)/計算!$B$26*BL$2)) -> 0 | BM11: =IF($BG11<BM$1,0,IF($BG11-BM$1>計算!$B$26,BM$2,($BG11-BM$1)/計算!$B$26*BM$2)) -> 0 | BN11: =IF($BG11<BN$1,0,IF($BG11-BN$1>計算!$B$26,BN$2,($BG11-BN$1)/計算!$B$26*BN$2)) -> 0 | BO11: =IF($BG11<BO$1,0,IF($BG11-BO$1>計算!$B$26,BO$2,($BG11-BO$1)/計算!$B$26*BO$2)) -> 0 | BP11: =IF($BG11<BP$1,0,IF($BG11-BP$1>計算!$B$26,BP$2,($BG11-BP$1)/計算!$B$26*BP$2)) -> 0 | BQ11: =IF($BG11<BQ$1,0,IF($BG11-BQ$1>計算!$B$26,BQ$2,($BG11-BQ$1)/計算!$B$26*BQ$2)) -> 0 | BR11: =IF($BG11<BR$1,0,IF($BG11-BR$1>計算!$B$26,BR$2,($BG11-BR$1)/計算!$B$26*BR$2)) -> 0 | BS11: =IF($BG11<BS$1,0,IF($BG11-BS$1>計算!$B$26,BS$2,($BG11-BS$1)/計算!$B$26*BS$2)) -> 0 | BT11: =IF($BG11<BT$1,0,IF($BG11-BT$1>計算!$B$26,BT$2,($BG11-BT$1)/計算!$B$26*BT$2)) -> 0 | BU11: =IF($BG11<BU$1,0,IF($BG11-BU$1>計算!$B$26,BU$2,($BG11-BU$1)/計算!$B$26*BU$2)) -> 0 | BV11: =IF($BG11<BV$1,0,IF($BG11-BV$1>計算!$B$26,BV$2,($BG11-BV$1)/計算!$B$26*BV$2)) -> 0 | BW11: =IF($BG11<BW$1,0,IF($BG11-BW$1>計算!$B$26,BW$2,($BG11-BW$1)/計算!$B$26*BW$2)) -> 0 | BX11: =IF($BG11<BX$1,0,IF($BG11-BX$1>計算!$B$26,BX$2,($BG11-BX$1)/計算!$B$26*BX$2)) -> 0 | BY11: =IF($BG11<BY$1,0,IF($BG11-BY$1>計算!$B$26,BY$2,($BG11-BY$1)/計算!$B$26*BY$2)) -> 0 | BZ11: =IF($BG11<BZ$1,0,IF($BG11-BZ$1>計算!$B$26,BZ$2,($BG11-BZ$1)/計算!$B$26*BZ$2)) -> 0 | CA11: =IF($BG11<CA$1,0,IF($BG11-CA$1>計算!$B$26,CA$2,($BG11-CA$1)/計算!$B$26*CA$2)) -> 0 | CB11: =IF($BG11<CB$1,0,IF($BG11-CB$1>計算!$B$26,CB$2,($BG11-CB$1)/計算!$B$26*CB$2)) -> 0 | CC11: =IF($BG11<CC$1,0,IF($BG11-CC$1>計算!$B$26,CC$2,($BG11-CC$1)/計算!$B$26*CC$2)) -> 0 | CD11: =IF($BG11<CD$1,0,IF($BG11-CD$1>計算!$B$26,CD$2,($BG11-CD$1)/計算!$B$26*CD$2)) -> 0 | CE11: =IF($BG11<CE$1,0,IF($BG11-CE$1>計算!$B$26,CE$2,($BG11-CE$1)/計算!$B$26*CE$2)) -> 0 | CF11: =IF($BG11<CF$1,0,IF($BG11-CF$1>計算!$B$26,CF$2,($BG11-CF$1)/計算!$B$26*CF$2)) -> 0 | CG11: =IF($BG11<CG$1,0,IF($BG11-CG$1>計算!$B$26,CG$2,($BG11-CG$1)/計算!$B$26*CG$2)) -> 0 | CH11: =IF($BG11<CH$1,0,IF($BG11-CH$1>計算!$B$26,CH$2,($BG11-CH$1)/計算!$B$26*CH$2)) -> 0 | CI11: =IF($BG11<CI$1,0,IF($BG11-CI$1>計算!$B$26,CI$2,($BG11-CI$1)/計算!$B$26*CI$2)) -> 0 | CJ11: =IF($BG11<CJ$1,0,IF($BG11-CJ$1>計算!$B$26,CJ$2,($BG11-CJ$1)/計算!$B$26*CJ$2)) -> 0 | CK11: =IF($BG11<CK$1,0,IF($BG11-CK$1>計算!$B$26,CK$2,($BG11-CK$1)/計算!$B$26*CK$2)) -> 0 | CL11: 3.94262152 | CO11: 2.479033875 | CP11: -0.1741121371 | CQ11: 0.1741121371
A12: ZC | B12: =SQRT((1+B7)/(1-B7))*B6 -> 58.1579998 | F12: 19 | G12: =準備!J11 -> 5.76417622 | H12: =準備!O11-準備!O10 -> 0.01851838427 | I12: =準備!P11-準備!P10 -> -0.05082519403 | K12: 9 | L12: 3.842784147 | M12: =IF($L12<M$1,0,IF($L12-M$1>計算!$B$26,M$2,($L12-M$1)/計算!$B$26*M$2)) -> 1.989000528 | N12: =IF($L12<N$1,0,IF($L12-N$1>計算!$B$26,N$2,($L12-N$1)/計算!$B$26*N$2)) -> 0.3275217949 | O12: =IF($L12<O$1,0,IF($L12-O$1>計算!$B$26,O$2,($L12-O$1)/計算!$B$26*O$2)) -> 0.9310129985 | P12: =IF($L12<P$1,0,IF($L12-P$1>計算!$B$26,P$2,($L12-P$1)/計算!$B$26*P$2)) -> 0.2787994054 | Q12: =IF($L12<Q$1,0,IF($L12-Q$1>計算!$B$26,Q$2,($L12-Q$1)/計算!$B$26*Q$2)) -> 0 | R12: =IF($L12<R$1,0,IF($L12-R$1>計算!$B$26,R$2,($L12-R$1)/計算!$B$26*R$2)) -> 0 | S12: =IF($L12<S$1,0,IF($L12-S$1>計算!$B$26,S$2,($L12-S$1)/計算!$B$26*S$2)) -> 0 | T12: =IF($L12<T$1,0,IF($L12-T$1>計算!$B$26,T$2,($L12-T$1)/計算!$B$26*T$2)) -> 0 | U12: =IF($L12<U$1,0,IF($L12-U$1>計算!$B$26,U$2,($L12-U$1)/計算!$B$26*U$2)) -> 0 | V12: =IF($L12<V$1,0,IF($L12-V$1>計算!$B$26,V$2,($L12-V$1)/計算!$B$26*V$2)) -> 0 | W12: =IF($L12<W$1,0,IF($L12-W$1>計算!$B$26,W$2,($L12-W$1)/計算!$B$26*W$2)) -> 0 | X12: =IF($L12<X$1,0,IF($L12-X$1>計算!$B$26,X$2,($L12-X$1)/計算!$B$26*X$2)) -> 0 | Y12: =IF($L12<Y$1,0,IF($L12-Y$1>計算!$B$26,Y$2,($L12-Y$1)/計算!$B$26*Y$2)) -> 0 | Z12: =IF($L12<Z$1,0,IF($L12-Z$1>計算!$B$26,Z$2,($L12-Z$1)/計算!$B$26*Z$2)) -> 0 | AA12: =IF($L12<AA$1,0,IF($L12-AA$1>計算!$B$26,AA$2,($L12-AA$1)/計算!$B$26*AA$2)) -> 0 | AB12: =IF($L12<AB$1,0,IF($L12-AB$1>計算!$B$26,AB$2,($L12-AB$1)/計算!$B$26*AB$2)) -> 0 | AC12: =IF($L12<AC$1,0,IF($L12-AC$1>計算!$B$26,AC$2,($L12-AC$1)/計算!$B$26*AC$2)) -> 0 | AD12: =IF($L12<AD$1,0,IF($L12-AD$1>計算!$B$26,AD$2,($L12-AD$1)/計算!$B$26*AD$2)) -> 0 | AE12: =IF($L12<AE$1,0,IF($L12-AE$1>計算!$B$26,AE$2,($L12-AE$1)/計算!$B$26*AE$2)) -> 0 | AF12: =IF($L12<AF$1,0,IF($L12-AF$1>計算!$B$26,AF$2,($L12-AF$1)/計算!$B$26*AF$2)) -> 0 | AG12: =IF($L12<AG$1,0,IF($L12-AG$1>計算!$B$26,AG$2,($L12-AG$1)/計算!$B$26*AG$2)) -> 0 | AH12: =IF($L12<AH$1,0,IF($L12-AH$1>計算!$B$26,AH$2,($L12-AH$1)/計算!$B$26*AH$2)) -> 0 | AI12: =IF($L12<AI$1,0,IF($L12-AI$1>計算!$B$26,AI$2,($L12-AI$1)/計算!$B$26*AI$2)) -> 0 | AJ12: =IF($L12<AJ$1,0,IF($L12-AJ$1>計算!$B$26,AJ$2,($L12-AJ$1)/計算!$B$26*AJ$2)) -> 0 | AK12: =IF($L12<AK$1,0,IF($L12-AK$1>計算!$B$26,AK$2,($L12-AK$1)/計算!$B$26*AK$2)) -> 0 | AL12: =IF($L12<AL$1,0,IF($L12-AL$1>計算!$B$26,AL$2,($L12-AL$1)/計算!$B$26*AL$2)) -> 0 | AM12: =IF($L12<AM$1,0,IF($L12-AM$1>計算!$B$26,AM$2,($L12-AM$1)/計算!$B$26*AM$2)) -> 0 | AN12: =IF($L12<AN$1,0,IF($L12-AN$1>計算!$B$26,AN$2,($L12-AN$1)/計算!$B$26*AN$2)) -> 0 | AO12: =IF($L12<AO$1,0,IF($L12-AO$1>計算!$B$26,AO$2,($L12-AO$1)/計算!$B$26*AO$2)) -> 0 | AP12: =IF($L12<AP$1,0,IF($L12-AP$1>計算!$B$26,AP$2,($L12-AP$1)/計算!$B$26*AP$2)) -> 0 | AQ12: =IF($L12<AQ$1,0,IF($L12-AQ$1>計算!$B$26,AQ$2,($L12-AQ$1)/計算!$B$26*AQ$2)) -> 0 | AR12: =IF($L12<AR$1,0,IF($L12-AR$1>計算!$B$26,AR$2,($L12-AR$1)/計算!$B$26*AR$2)) -> 0 | AS12: =IF($L12<AS$1,0,IF($L12-AS$1>計算!$B$26,AS$2,($L12-AS$1)/計算!$B$26*AS$2)) -> 0 | AT12: =IF($L12<AT$1,0,IF($L12-AT$1>計算!$B$26,AT$2,($L12-AT$1)/計算!$B$26*AT$2)) -> 0 | AU12: =IF($L12<AU$1,0,IF($L12-AU$1>計算!$B$26,AU$2,($L12-AU$1)/計算!$B$26*AU$2)) -> 0 | AV12: =IF($L12<AV$1,0,IF($L12-AV$1>計算!$B$26,AV$2,($L12-AV$1)/計算!$B$26*AV$2)) -> 0 | AW12: 3.526334727 | BA12: 16 | BB12: =準備!T11 -> 4.889942886 | BC12: =準備!Y11-準備!Y10 -> 0.4775480553 | BD12: =準備!Z11-準備!Z10 -> -0.01203930779 | BF12: 8 | BG12: 2.968550812 | BH12: =IF($BG12<BH$1,0,IF($BG12-BH$1>計算!$B$26,BH$2,($BG12-BH$1)/計算!$B$26*BH$2)) -> 1.843424849 | BI12: =IF($BG12<BI$1,0,IF($BG12-BI$1>計算!$B$26,BI$2,($BG12-BI$1)/計算!$B$26*BI$2)) -> 2.08043597 | BJ12: =IF($BG12<BJ$1,0,IF($BG12-BJ$1>計算!$B$26,BJ$2,($BG12-BJ$1)/計算!$B$26*BJ$2)) -> 0.07579938439 | BK12: =IF($BG12<BK$1,0,IF($BG12-BK$1>計算!$B$26,BK$2,($BG12-BK$1)/計算!$B$26*BK$2)) -> -0.06354444406 | BL12: =IF($BG12<BL$1,0,IF($BG12-BL$1>計算!$B$26,BL$2,($BG12-BL$1)/計算!$B$26*BL$2)) -> -0.04632394159 | BM12: =IF($BG12<BM$1,0,IF($BG12-BM$1>計算!$B$26,BM$2,($BG12-BM$1)/計算!$B$26*BM$2)) -> 0 | BN12: =IF($BG12<BN$1,0,IF($BG12-BN$1>計算!$B$26,BN$2,($BG12-BN$1)/計算!$B$26*BN$2)) -> 0 | BO12: =IF($BG12<BO$1,0,IF($BG12-BO$1>計算!$B$26,BO$2,($BG12-BO$1)/計算!$B$26*BO$2)) -> 0 | BP12: =IF($BG12<BP$1,0,IF($BG12-BP$1>計算!$B$26,BP$2,($BG12-BP$1)/計算!$B$26*BP$2)) -> 0 | BQ12: =IF($BG12<BQ$1,0,IF($BG12-BQ$1>計算!$B$26,BQ$2,($BG12-BQ$1)/計算!$B$26*BQ$2)) -> 0 | BR12: =IF($BG12<BR$1,0,IF($BG12-BR$1>計算!$B$26,BR$2,($BG12-BR$1)/計算!$B$26*BR$2)) -> 0 | BS12: =IF($BG12<BS$1,0,IF($BG12-BS$1>計算!$B$26,BS$2,($BG12-BS$1)/計算!$B$26*BS$2)) -> 0 | BT12: =IF($BG12<BT$1,0,IF($BG12-BT$1>計算!$B$26,BT$2,($BG12-BT$1)/計算!$B$26*BT$2)) -> 0 | BU12: =IF($BG12<BU$1,0,IF($BG12-BU$1>計算!$B$26,BU$2,($BG12-BU$1)/計算!$B$26*BU$2)) -> 0 | BV12: =IF($BG12<BV$1,0,IF($BG12-BV$1>計算!$B$26,BV$2,($BG12-BV$1)/計算!$B$26*BV$2)) -> 0 | BW12: =IF($BG12<BW$1,0,IF($BG12-BW$1>計算!$B$26,BW$2,($BG12-BW$1)/計算!$B$26*BW$2)) -> 0 | BX12: =IF($BG12<BX$1,0,IF($BG12-BX$1>計算!$B$26,BX$2,($BG12-BX$1)/計算!$B$26*BX$2)) -> 0 | BY12: =IF($BG12<BY$1,0,IF($BG12-BY$1>計算!$B$26,BY$2,($BG12-BY$1)/計算!$B$26*BY$2)) -> 0 | BZ12: =IF($BG12<BZ$1,0,IF($BG12-BZ$1>計算!$B$26,BZ$2,($BG12-BZ$1)/計算!$B$26*BZ$2)) -> 0 | CA12: =IF($BG12<CA$1,0,IF($BG12-CA$1>計算!$B$26,CA$2,($BG12-CA$1)/計算!$B$26*CA$2)) -> 0 | CB12: =IF($BG12<CB$1,0,IF($BG12-CB$1>計算!$B$26,CB$2,($BG12-CB$1)/計算!$B$26*CB$2)) -> 0 | CC12: =IF($BG12<CC$1,0,IF($BG12-CC$1>計算!$B$26,CC$2,($BG12-CC$1)/計算!$B$26*CC$2)) -> 0 | CD12: =IF($BG12<CD$1,0,IF($BG12-CD$1>計算!$B$26,CD$2,($BG12-CD$1)/計算!$B$26*CD$2)) -> 0 | CE12: =IF($BG12<CE$1,0,IF($BG12-CE$1>計算!$B$26,CE$2,($BG12-CE$1)/計算!$B$26*CE$2)) -> 0 | CF12: =IF($BG12<CF$1,0,IF($BG12-CF$1>計算!$B$26,CF$2,($BG12-CF$1)/計算!$B$26*CF$2)) -> 0 | CG12: =IF($BG12<CG$1,0,IF($BG12-CG$1>計算!$B$26,CG$2,($BG12-CG$1)/計算!$B$26*CG$2)) -> 0 | CH12: =IF($BG12<CH$1,0,IF($BG12-CH$1>計算!$B$26,CH$2,($BG12-CH$1)/計算!$B$26*CH$2)) -> 0 | CI12: =IF($BG12<CI$1,0,IF($BG12-CI$1>計算!$B$26,CI$2,($BG12-CI$1)/計算!$B$26*CI$2)) -> 0 | CJ12: =IF($BG12<CJ$1,0,IF($BG12-CJ$1>計算!$B$26,CJ$2,($BG12-CJ$1)/計算!$B$26*CJ$2)) -> 0 | CK12: =IF($BG12<CK$1,0,IF($BG12-CK$1>計算!$B$26,CK$2,($BG12-CK$1)/計算!$B$26*CK$2)) -> 0 | CL12: 3.889791818 | CO12: 3.842784147 | CP12: -0.1741121371 | CQ12: 0.1741121371
A13: ZD | B13: =SQRT((1-B7)/(1+B7))*B6 -> 42.98634768 | F13: 20 | G13: =準備!J12 -> 5.792997121 | H13: =準備!O12-準備!O11 -> -0.05796305521 | I13: =準備!P12-準備!P11 -> 0.2915818881 | K13: 10 | L13: 3.871605048 | M13: =IF($L13<M$1,0,IF($L13-M$1>計算!$B$26,M$2,($L13-M$1)/計算!$B$26*M$2)) -> 1.989000528 | N13: =IF($L13<N$1,0,IF($L13-N$1>計算!$B$26,N$2,($L13-N$1)/計算!$B$26*N$2)) -> 0.3275217949 | O13: =IF($L13<O$1,0,IF($L13-O$1>計算!$B$26,O$2,($L13-O$1)/計算!$B$26*O$2)) -> 0.9310129985 | P13: =IF($L13<P$1,0,IF($L13-P$1>計算!$B$26,P$2,($L13-P$1)/計算!$B$26*P$2)) -> 0.2787994054 | Q13: =IF($L13<Q$1,0,IF($L13-Q$1>計算!$B$26,Q$2,($L13-Q$1)/計算!$B$26*Q$2)) -> 0.004489099089 | R13: =IF($L13<R$1,0,IF($L13-R$1>計算!$B$26,R$2,($L13-R$1)/計算!$B$26*R$2)) -> 0 | S13: =IF($L13<S$1,0,IF($L13-S$1>計算!$B$26,S$2,($L13-S$1)/計算!$B$26*S$2)) -> 0 | T13: =IF($L13<T$1,0,IF($L13-T$1>計算!$B$26,T$2,($L13-T$1)/計算!$B$26*T$2)) -> 0 | U13: =IF($L13<U$1,0,IF($L13-U$1>計算!$B$26,U$2,($L13-U$1)/計算!$B$26*U$2)) -> 0 | V13: =IF($L13<V$1,0,IF($L13-V$1>計算!$B$26,V$2,($L13-V$1)/計算!$B$26*V$2)) -> 0 | W13: =IF($L13<W$1,0,IF($L13-W$1>計算!$B$26,W$2,($L13-W$1)/計算!$B$26*W$2)) -> 0 | X13: =IF($L13<X$1,0,IF($L13-X$1>計算!$B$26,X$2,($L13-X$1)/計算!$B$26*X$2)) -> 0 | Y13: =IF($L13<Y$1,0,IF($L13-Y$1>計算!$B$26,Y$2,($L13-Y$1)/計算!$B$26*Y$2)) -> 0 | Z13: =IF($L13<Z$1,0,IF($L13-Z$1>計算!$B$26,Z$2,($L13-Z$1)/計算!$B$26*Z$2)) -> 0 | AA13: =IF($L13<AA$1,0,IF($L13-AA$1>計算!$B$26,AA$2,($L13-AA$1)/計算!$B$26*AA$2)) -> 0 | AB13: =IF($L13<AB$1,0,IF($L13-AB$1>計算!$B$26,AB$2,($L13-AB$1)/計算!$B$26*AB$2)) -> 0 | AC13: =IF($L13<AC$1,0,IF($L13-AC$1>計算!$B$26,AC$2,($L13-AC$1)/計算!$B$26*AC$2)) -> 0 | AD13: =IF($L13<AD$1,0,IF($L13-AD$1>計算!$B$26,AD$2,($L13-AD$1)/計算!$B$26*AD$2)) -> 0 | AE13: =IF($L13<AE$1,0,IF($L13-AE$1>計算!$B$26,AE$2,($L13-AE$1)/計算!$B$26*AE$2)) -> 0 | AF13: =IF($L13<AF$1,0,IF($L13-AF$1>計算!$B$26,AF$2,($L13-AF$1)/計算!$B$26*AF$2)) -> 0 | AG13: =IF($L13<AG$1,0,IF($L13-AG$1>計算!$B$26,AG$2,($L13-AG$1)/計算!$B$26*AG$2)) -> 0 | AH13: =IF($L13<AH$1,0,IF($L13-AH$1>計算!$B$26,AH$2,($L13-AH$1)/計算!$B$26*AH$2)) -> 0 | AI13: =IF($L13<AI$1,0,IF($L13-AI$1>計算!$B$26,AI$2,($L13-AI$1)/計算!$B$26*AI$2)) -> 0 | AJ13: =IF($L13<AJ$1,0,IF($L13-AJ$1>計算!$B$26,AJ$2,($L13-AJ$1)/計算!$B$26*AJ$2)) -> 0 | AK13: =IF($L13<AK$1,0,IF($L13-AK$1>計算!$B$26,AK$2,($L13-AK$1)/計算!$B$26*AK$2)) -> 0 | AL13: =IF($L13<AL$1,0,IF($L13-AL$1>計算!$B$26,AL$2,($L13-AL$1)/計算!$B$26*AL$2)) -> 0 | AM13: =IF($L13<AM$1,0,IF($L13-AM$1>計算!$B$26,AM$2,($L13-AM$1)/計算!$B$26*AM$2)) -> 0 | AN13: =IF($L13<AN$1,0,IF($L13-AN$1>計算!$B$26,AN$2,($L13-AN$1)/計算!$B$26*AN$2)) -> 0 | AO13: =IF($L13<AO$1,0,IF($L13-AO$1>計算!$B$26,AO$2,($L13-AO$1)/計算!$B$26*AO$2)) -> 0 | AP13: =IF($L13<AP$1,0,IF($L13-AP$1>計算!$B$26,AP$2,($L13-AP$1)/計算!$B$26*AP$2)) -> 0 | AQ13: =IF($L13<AQ$1,0,IF($L13-AQ$1>計算!$B$26,AQ$2,($L13-AQ$1)/計算!$B$26*AQ$2)) -> 0 | AR13: =IF($L13<AR$1,0,IF($L13-AR$1>計算!$B$26,AR$2,($L13-AR$1)/計算!$B$26*AR$2)) -> 0 | AS13: =IF($L13<AS$1,0,IF($L13-AS$1>計算!$B$26,AS$2,($L13-AS$1)/計算!$B$26*AS$2)) -> 0 | AT13: =IF($L13<AT$1,0,IF($L13-AT$1>計算!$B$26,AT$2,($L13-AT$1)/計算!$B$26*AT$2)) -> 0 | AU13: =IF($L13<AU$1,0,IF($L13-AU$1>計算!$B$26,AU$2,($L13-AU$1)/計算!$B$26*AU$2)) -> 0 | AV13: =IF($L13<AV$1,0,IF($L13-AV$1>計算!$B$26,AV$2,($L13-AV$1)/計算!$B$26*AV$2)) -> 0 | AW13: 3.530823826 | BA13: 17 | BB13: =準備!T12 -> 4.918763786 | BC13: =準備!Y12-準備!Y11 -> -0.2147192343 | BD13: =準備!Z12-準備!Z11 -> -0.06422251716 | BF13: 9 | BG13: 3.38208814 | BH13: =IF($BG13<BH$1,0,IF($BG13-BH$1>計算!$B$26,BH$2,($BG13-BH$1)/計算!$B$26*BH$2)) -> 1.843424849 | BI13: =IF($BG13<BI$1,0,IF($BG13-BI$1>計算!$B$26,BI$2,($BG13-BI$1)/計算!$B$26*BI$2)) -> 2.08043597 | BJ13: =IF($BG13<BJ$1,0,IF($BG13-BJ$1>計算!$B$26,BJ$2,($BG13-BJ$1)/計算!$B$26*BJ$2)) -> 0.4383357379 | BK13: =IF($BG13<BK$1,0,IF($BG13-BK$1>計算!$B$26,BK$2,($BG13-BK$1)/計算!$B$26*BK$2)) -> -0.5194288729 | BL13: =IF($BG13<BL$1,0,IF($BG13-BL$1>計算!$B$26,BL$2,($BG13-BL$1)/計算!$B$26*BL$2)) -> -0.7110040396 | BM13: =IF($BG13<BM$1,0,IF($BG13-BM$1>計算!$B$26,BM$2,($BG13-BM$1)/計算!$B$26*BM$2)) -> 0.1619766122 | BN13: =IF($BG13<BN$1,0,IF($BG13-BN$1>計算!$B$26,BN$2,($BG13-BN$1)/計算!$B$26*BN$2)) -> 0 | BO13: =IF($BG13<BO$1,0,IF($BG13-BO$1>計算!$B$26,BO$2,($BG13-BO$1)/計算!$B$26*BO$2)) -> 0 | BP13: =IF($BG13<BP$1,0,IF($BG13-BP$1>計算!$B$26,BP$2,($BG13-BP$1)/計算!$B$26*BP$2)) -> 0 | BQ13: =IF($BG13<BQ$1,0,IF($BG13-BQ$1>計算!$B$26,BQ$2,($BG13-BQ$1)/計算!$B$26*BQ$2)) -> 0 | BR13: =IF($BG13<BR$1,0,IF($BG13-BR$1>計算!$B$26,BR$2,($BG13-BR$1)/計算!$B$26*BR$2)) -> 0 | BS13: =IF($BG13<BS$1,0,IF($BG13-BS$1>計算!$B$26,BS$2,($BG13-BS$1)/計算!$B$26*BS$2)) -> 0 | BT13: =IF($BG13<BT$1,0,IF($BG13-BT$1>計算!$B$26,BT$2,($BG13-BT$1)/計算!$B$26*BT$2)) -> 0 | BU13: =IF($BG13<BU$1,0,IF($BG13-BU$1>計算!$B$26,BU$2,($BG13-BU$1)/計算!$B$26*BU$2)) -> 0 | BV13: =IF($BG13<BV$1,0,IF($BG13-BV$1>計算!$B$26,BV$2,($BG13-BV$1)/計算!$B$26*BV$2)) -> 0 | BW13: =IF($BG13<BW$1,0,IF($BG13-BW$1>計算!$B$26,BW$2,($BG13-BW$1)/計算!$B$26*BW$2)) -> 0 | BX13: =IF($BG13<BX$1,0,IF($BG13-BX$1>計算!$B$26,BX$2,($BG13-BX$1)/計算!$B$26*BX$2)) -> 0 | BY13: =IF($BG13<BY$1,0,IF($BG13-BY$1>計算!$B$26,BY$2,($BG13-BY$1)/計算!$B$26*BY$2)) -> 0 | BZ13: =IF($BG13<BZ$1,0,IF($BG13-BZ$1>計算!$B$26,BZ$2,($BG13-BZ$1)/計算!$B$26*BZ$2)) -> 0 | CA13: =IF($BG13<CA$1,0,IF($BG13-CA$1>計算!$B$26,CA$2,($BG13-CA$1)/計算!$B$26*CA$2)) -> 0 | CB13: =IF($BG13<CB$1,0,IF($BG13-CB$1>計算!$B$26,CB$2,($BG13-CB$1)/計算!$B$26*CB$2)) -> 0 | CC13: =IF($BG13<CC$1,0,IF($BG13-CC$1>計算!$B$26,CC$2,($BG13-CC$1)/計算!$B$26*CC$2)) -> 0 | CD13: =IF($BG13<CD$1,0,IF($BG13-CD$1>計算!$B$26,CD$2,($BG13-CD$1)/計算!$B$26*CD$2)) -> 0 | CE13: =IF($BG13<CE$1,0,IF($BG13-CE$1>計算!$B$26,CE$2,($BG13-CE$1)/計算!$B$26*CE$2)) -> 0 | CF13: =IF($BG13<CF$1,0,IF($BG13-CF$1>計算!$B$26,CF$2,($BG13-CF$1)/計算!$B$26*CF$2)) -> 0 | CG13: =IF($BG13<CG$1,0,IF($BG13-CG$1>計算!$B$26,CG$2,($BG13-CG$1)/計算!$B$26*CG$2)) -> 0 | CH13: =IF($BG13<CH$1,0,IF($BG13-CH$1>計算!$B$26,CH$2,($BG13-CH$1)/計算!$B$26*CH$2)) -> 0 | CI13: =IF($BG13<CI$1,0,IF($BG13-CI$1>計算!$B$26,CI$2,($BG13-CI$1)/計算!$B$26*CI$2)) -> 0 | CJ13: =IF($BG13<CJ$1,0,IF($BG13-CJ$1>計算!$B$26,CJ$2,($BG13-CJ$1)/計算!$B$26*CJ$2)) -> 0 | CK13: =IF($BG13<CK$1,0,IF($BG13-CK$1>計算!$B$26,CK$2,($BG13-CK$1)/計算!$B$26*CK$2)) -> 0 | CL13: 3.293740257 | CO13: 3.871605048 | CP13: -0.1864328304 | CQ13: 0.1864328304
A14: ZG | B14: =SQRT(1-B7^2)*B6 -> 49.43429983 | F14: 21 | G14: =準備!J13 -> 5.821818022 | H14: =準備!O13-準備!O12 -> -0.05545849425 | I14: =準備!P13-準備!P12 -> -0.3363569839 | K14: 11 | L14: 3.900425948 | M14: =IF($L14<M$1,0,IF($L14-M$1>計算!$B$26,M$2,($L14-M$1)/計算!$B$26*M$2)) -> 1.989000528 | N14: =IF($L14<N$1,0,IF($L14-N$1>計算!$B$26,N$2,($L14-N$1)/計算!$B$26*N$2)) -> 0.3275217949 | O14: =IF($L14<O$1,0,IF($L14-O$1>計算!$B$26,O$2,($L14-O$1)/計算!$B$26*O$2)) -> 0.9310129985 | P14: =IF($L14<P$1,0,IF($L14-P$1>計算!$B$26,P$2,($L14-P$1)/計算!$B$26*P$2)) -> 0.2787994054 | Q14: =IF($L14<Q$1,0,IF($L14-Q$1>計算!$B$26,Q$2,($L14-Q$1)/計算!$B$26*Q$2)) -> 0.008978198179 | R14: =IF($L14<R$1,0,IF($L14-R$1>計算!$B$26,R$2,($L14-R$1)/計算!$B$26*R$2)) -> -0.0006451487739 | S14: =IF($L14<S$1,0,IF($L14-S$1>計算!$B$26,S$2,($L14-S$1)/計算!$B$26*S$2)) -> 0 | T14: =IF($L14<T$1,0,IF($L14-T$1>計算!$B$26,T$2,($L14-T$1)/計算!$B$26*T$2)) -> 0 | U14: =IF($L14<U$1,0,IF($L14-U$1>計算!$B$26,U$2,($L14-U$1)/計算!$B$26*U$2)) -> 0 | V14: =IF($L14<V$1,0,IF($L14-V$1>計算!$B$26,V$2,($L14-V$1)/計算!$B$26*V$2)) -> 0 | W14: =IF($L14<W$1,0,IF($L14-W$1>計算!$B$26,W$2,($L14-W$1)/計算!$B$26*W$2)) -> 0 | X14: =IF($L14<X$1,0,IF($L14-X$1>計算!$B$26,X$2,($L14-X$1)/計算!$B$26*X$2)) -> 0 | Y14: =IF($L14<Y$1,0,IF($L14-Y$1>計算!$B$26,Y$2,($L14-Y$1)/計算!$B$26*Y$2)) -> 0 | Z14: =IF($L14<Z$1,0,IF($L14-Z$1>計算!$B$26,Z$2,($L14-Z$1)/計算!$B$26*Z$2)) -> 0 | AA14: =IF($L14<AA$1,0,IF($L14-AA$1>計算!$B$26,AA$2,($L14-AA$1)/計算!$B$26*AA$2)) -> 0 | AB14: =IF($L14<AB$1,0,IF($L14-AB$1>計算!$B$26,AB$2,($L14-AB$1)/計算!$B$26*AB$2)) -> 0 | AC14: =IF($L14<AC$1,0,IF($L14-AC$1>計算!$B$26,AC$2,($L14-AC$1)/計算!$B$26*AC$2)) -> 0 | AD14: =IF($L14<AD$1,0,IF($L14-AD$1>計算!$B$26,AD$2,($L14-AD$1)/計算!$B$26*AD$2)) -> 0 | AE14: =IF($L14<AE$1,0,IF($L14-AE$1>計算!$B$26,AE$2,($L14-AE$1)/計算!$B$26*AE$2)) -> 0 | AF14: =IF($L14<AF$1,0,IF($L14-AF$1>計算!$B$26,AF$2,($L14-AF$1)/計算!$B$26*AF$2)) -> 0 | AG14: =IF($L14<AG$1,0,IF($L14-AG$1>計算!$B$26,AG$2,($L14-AG$1)/計算!$B$26*AG$2)) -> 0 | AH14: =IF($L14<AH$1,0,IF($L14-AH$1>計算!$B$26,AH$2,($L14-AH$1)/計算!$B$26*AH$2)) -> 0 | AI14: =IF($L14<AI$1,0,IF($L14-AI$1>計算!$B$26,AI$2,($L14-AI$1)/計算!$B$26*AI$2)) -> 0 | AJ14: =IF($L14<AJ$1,0,IF($L14-AJ$1>計算!$B$26,AJ$2,($L14-AJ$1)/計算!$B$26*AJ$2)) -> 0 | AK14: =IF($L14<AK$1,0,IF($L14-AK$1>計算!$B$26,AK$2,($L14-AK$1)/計算!$B$26*AK$2)) -> 0 | AL14: =IF($L14<AL$1,0,IF($L14-AL$1>計算!$B$26,AL$2,($L14-AL$1)/計算!$B$26*AL$2)) -> 0 | AM14: =IF($L14<AM$1,0,IF($L14-AM$1>計算!$B$26,AM$2,($L14-AM$1)/計算!$B$26*AM$2)) -> 0 | AN14: =IF($L14<AN$1,0,IF($L14-AN$1>計算!$B$26,AN$2,($L14-AN$1)/計算!$B$26*AN$2)) -> 0 | AO14: =IF($L14<AO$1,0,IF($L14-AO$1>計算!$B$26,AO$2,($L14-AO$1)/計算!$B$26*AO$2)) -> 0 | AP14: =IF($L14<AP$1,0,IF($L14-AP$1>計算!$B$26,AP$2,($L14-AP$1)/計算!$B$26*AP$2)) -> 0 | AQ14: =IF($L14<AQ$1,0,IF($L14-AQ$1>計算!$B$26,AQ$2,($L14-AQ$1)/計算!$B$26*AQ$2)) -> 0 | AR14: =IF($L14<AR$1,0,IF($L14-AR$1>計算!$B$26,AR$2,($L14-AR$1)/計算!$B$26*AR$2)) -> 0 | AS14: =IF($L14<AS$1,0,IF($L14-AS$1>計算!$B$26,AS$2,($L14-AS$1)/計算!$B$26*AS$2)) -> 0 | AT14: =IF($L14<AT$1,0,IF($L14-AT$1>計算!$B$26,AT$2,($L14-AT$1)/計算!$B$26*AT$2)) -> 0 | AU14: =IF($L14<AU$1,0,IF($L14-AU$1>計算!$B$26,AU$2,($L14-AU$1)/計算!$B$26*AU$2)) -> 0 | AV14: =IF($L14<AV$1,0,IF($L14-AV$1>計算!$B$26,AV$2,($L14-AV$1)/計算!$B$26*AV$2)) -> 0 | AW14: 3.534667777 | BA14: 18 | BB14: =準備!T13 -> 4.947584687 | BC14: =準備!Y13-準備!Y12 -> 0.01843575137 | BD14: =準備!Z13-準備!Z12 -> 0.008052332684 | BF14: 10 | BG14: 3.410909051 | BH14: =IF($BG14<BH$1,0,IF($BG14-BH$1>計算!$B$26,BH$2,($BG14-BH$1)/計算!$B$26*BH$2)) -> 1.843424849 | BI14: =IF($BG14<BI$1,0,IF($BG14-BI$1>計算!$B$26,BI$2,($BG14-BI$1)/計算!$B$26*BI$2)) -> 2.08043597 | BJ14: =IF($BG14<BJ$1,0,IF($BG14-BJ$1>計算!$B$26,BJ$2,($BG14-BJ$1)/計算!$B$26*BJ$2)) -> 0.4383357379 | BK14: =IF($BG14<BK$1,0,IF($BG14-BK$1>計算!$B$26,BK$2,($BG14-BK$1)/計算!$B$26*BK$2)) -> -0.5512010619 | BL14: =IF($BG14<BL$1,0,IF($BG14-BL$1>計算!$B$26,BL$2,($BG14-BL$1)/計算!$B$26*BL$2)) -> -0.7573279972 | BM14: =IF($BG14<BM$1,0,IF($BG14-BM$1>計算!$B$26,BM$2,($BG14-BM$1)/計算!$B$26*BM$2)) -> 0.1732653476 | BN14: =IF($BG14<BN$1,0,IF($BG14-BN$1>計算!$B$26,BN$2,($BG14-BN$1)/計算!$B$26*BN$2)) -> 0 | BO14: =IF($BG14<BO$1,0,IF($BG14-BO$1>計算!$B$26,BO$2,($BG14-BO$1)/計算!$B$26*BO$2)) -> 0 | BP14: =IF($BG14<BP$1,0,IF($BG14-BP$1>計算!$B$26,BP$2,($BG14-BP$1)/計算!$B$26*BP$2)) -> 0 | BQ14: =IF($BG14<BQ$1,0,IF($BG14-BQ$1>計算!$B$26,BQ$2,($BG14-BQ$1)/計算!$B$26*BQ$2)) -> 0 | BR14: =IF($BG14<BR$1,0,IF($BG14-BR$1>計算!$B$26,BR$2,($BG14-BR$1)/計算!$B$26*BR$2)) -> 0 | BS14: =IF($BG14<BS$1,0,IF($BG14-BS$1>計算!$B$26,BS$2,($BG14-BS$1)/計算!$B$26*BS$2)) -> 0 | BT14: =IF($BG14<BT$1,0,IF($BG14-BT$1>計算!$B$26,BT$2,($BG14-BT$1)/計算!$B$26*BT$2)) -> 0 | BU14: =IF($BG14<BU$1,0,IF($BG14-BU$1>計算!$B$26,BU$2,($BG14-BU$1)/計算!$B$26*BU$2)) -> 0 | BV14: =IF($BG14<BV$1,0,IF($BG14-BV$1>計算!$B$26,BV$2,($BG14-BV$1)/計算!$B$26*BV$2)) -> 0 | BW14: =IF($BG14<BW$1,0,IF($BG14-BW$1>計算!$B$26,BW$2,($BG14-BW$1)/計算!$B$26*BW$2)) -> 0 | BX14: =IF($BG14<BX$1,0,IF($BG14-BX$1>計算!$B$26,BX$2,($BG14-BX$1)/計算!$B$26*BX$2)) -> 0 | BY14: =IF($BG14<BY$1,0,IF($BG14-BY$1>計算!$B$26,BY$2,($BG14-BY$1)/計算!$B$26*BY$2)) -> 0 | BZ14: =IF($BG14<BZ$1,0,IF($BG14-BZ$1>計算!$B$26,BZ$2,($BG14-BZ$1)/計算!$B$26*BZ$2)) -> 0 | CA14: =IF($BG14<CA$1,0,IF($BG14-CA$1>計算!$B$26,CA$2,($BG14-CA$1)/計算!$B$26*CA$2)) -> 0 | CB14: =IF($BG14<CB$1,0,IF($BG14-CB$1>計算!$B$26,CB$2,($BG14-CB$1)/計算!$B$26*CB$2)) -> 0 | CC14: =IF($BG14<CC$1,0,IF($BG14-CC$1>計算!$B$26,CC$2,($BG14-CC$1)/計算!$B$26*CC$2)) -> 0 | CD14: =IF($BG14<CD$1,0,IF($BG14-CD$1>計算!$B$26,CD$2,($BG14-CD$1)/計算!$B$26*CD$2)) -> 0 | CE14: =IF($BG14<CE$1,0,IF($BG14-CE$1>計算!$B$26,CE$2,($BG14-CE$1)/計算!$B$26*CE$2)) -> 0 | CF14: =IF($BG14<CF$1,0,IF($BG14-CF$1>計算!$B$26,CF$2,($BG14-CF$1)/計算!$B$26*CF$2)) -> 0 | CG14: =IF($BG14<CG$1,0,IF($BG14-CG$1>計算!$B$26,CG$2,($BG14-CG$1)/計算!$B$26*CG$2)) -> 0 | CH14: =IF($BG14<CH$1,0,IF($BG14-CH$1>計算!$B$26,CH$2,($BG14-CH$1)/計算!$B$26*CH$2)) -> 0 | CI14: =IF($BG14<CI$1,0,IF($BG14-CI$1>計算!$B$26,CI$2,($BG14-CI$1)/計算!$B$26*CI$2)) -> 0 | CJ14: =IF($BG14<CJ$1,0,IF($BG14-CJ$1>計算!$B$26,CJ$2,($BG14-CJ$1)/計算!$B$26*CJ$2)) -> 0 | CK14: =IF($BG14<CK$1,0,IF($BG14-CK$1>計算!$B$26,CK$2,($BG14-CK$1)/計算!$B$26*CK$2)) -> 0 | CL14: 3.226932845 | CO14: 3.900425948 | CP14: -0.1648637 | CQ14: 0.1648637
A15: ZP | B15: =B6/SQRT(1-B7^2) -> 50.57217374 | F15: 22 | G15: =準備!J14 -> 5.850638922 | H15: =準備!O14-準備!O13 -> 0.1033839999 | I15: =準備!P14-準備!P13 -> -0.2373238404 | K15: 12 | L15: 3.929246849 | M15: =IF($L15<M$1,0,IF($L15-M$1>計算!$B$26,M$2,($L15-M$1)/計算!$B$26*M$2)) -> 1.989000528 | N15: =IF($L15<N$1,0,IF($L15-N$1>計算!$B$26,N$2,($L15-N$1)/計算!$B$26*N$2)) -> 0.3275217949 | O15: =IF($L15<O$1,0,IF($L15-O$1>計算!$B$26,O$2,($L15-O$1)/計算!$B$26*O$2)) -> 0.9310129985 | P15: =IF($L15<P$1,0,IF($L15-P$1>計算!$B$26,P$2,($L15-P$1)/計算!$B$26*P$2)) -> 0.2787994054 | Q15: =IF($L15<Q$1,0,IF($L15-Q$1>計算!$B$26,Q$2,($L15-Q$1)/計算!$B$26*Q$2)) -> 0.01346729727 | R15: =IF($L15<R$1,0,IF($L15-R$1>計算!$B$26,R$2,($L15-R$1)/計算!$B$26*R$2)) -> -0.001290297548 | S15: =IF($L15<S$1,0,IF($L15-S$1>計算!$B$26,S$2,($L15-S$1)/計算!$B$26*S$2)) -> -0.01379687124 | T15: =IF($L15<T$1,0,IF($L15-T$1>計算!$B$26,T$2,($L15-T$1)/計算!$B$26*T$2)) -> 0 | U15: =IF($L15<U$1,0,IF($L15-U$1>計算!$B$26,U$2,($L15-U$1)/計算!$B$26*U$2)) -> 0 | V15: =IF($L15<V$1,0,IF($L15-V$1>計算!$B$26,V$2,($L15-V$1)/計算!$B$26*V$2)) -> 0 | W15: =IF($L15<W$1,0,IF($L15-W$1>計算!$B$26,W$2,($L15-W$1)/計算!$B$26*W$2)) -> 0 | X15: =IF($L15<X$1,0,IF($L15-X$1>計算!$B$26,X$2,($L15-X$1)/計算!$B$26*X$2)) -> 0 | Y15: =IF($L15<Y$1,0,IF($L15-Y$1>計算!$B$26,Y$2,($L15-Y$1)/計算!$B$26*Y$2)) -> 0 | Z15: =IF($L15<Z$1,0,IF($L15-Z$1>計算!$B$26,Z$2,($L15-Z$1)/計算!$B$26*Z$2)) -> 0 | AA15: =IF($L15<AA$1,0,IF($L15-AA$1>計算!$B$26,AA$2,($L15-AA$1)/計算!$B$26*AA$2)) -> 0 | AB15: =IF($L15<AB$1,0,IF($L15-AB$1>計算!$B$26,AB$2,($L15-AB$1)/計算!$B$26*AB$2)) -> 0 | AC15: =IF($L15<AC$1,0,IF($L15-AC$1>計算!$B$26,AC$2,($L15-AC$1)/計算!$B$26*AC$2)) -> 0 | AD15: =IF($L15<AD$1,0,IF($L15-AD$1>計算!$B$26,AD$2,($L15-AD$1)/計算!$B$26*AD$2)) -> 0 | AE15: =IF($L15<AE$1,0,IF($L15-AE$1>計算!$B$26,AE$2,($L15-AE$1)/計算!$B$26*AE$2)) -> 0 | AF15: =IF($L15<AF$1,0,IF($L15-AF$1>計算!$B$26,AF$2,($L15-AF$1)/計算!$B$26*AF$2)) -> 0 | AG15: =IF($L15<AG$1,0,IF($L15-AG$1>計算!$B$26,AG$2,($L15-AG$1)/計算!$B$26*AG$2)) -> 0 | AH15: =IF($L15<AH$1,0,IF($L15-AH$1>計算!$B$26,AH$2,($L15-AH$1)/計算!$B$26*AH$2)) -> 0 | AI15: =IF($L15<AI$1,0,IF($L15-AI$1>計算!$B$26,AI$2,($L15-AI$1)/計算!$B$26*AI$2)) -> 0 | AJ15: =IF($L15<AJ$1,0,IF($L15-AJ$1>計算!$B$26,AJ$2,($L15-AJ$1)/計算!$B$26*AJ$2)) -> 0 | AK15: =IF($L15<AK$1,0,IF($L15-AK$1>計算!$B$26,AK$2,($L15-AK$1)/計算!$B$26*AK$2)) -> 0 | AL15: =IF($L15<AL$1,0,IF($L15-AL$1>計算!$B$26,AL$2,($L15-AL$1)/計算!$B$26*AL$2)) -> 0 | AM15: =IF($L15<AM$1,0,IF($L15-AM$1>計算!$B$26,AM$2,($L15-AM$1)/計算!$B$26*AM$2)) -> 0 | AN15: =IF($L15<AN$1,0,IF($L15-AN$1>計算!$B$26,AN$2,($L15-AN$1)/計算!$B$26*AN$2)) -> 0 | AO15: =IF($L15<AO$1,0,IF($L15-AO$1>計算!$B$26,AO$2,($L15-AO$1)/計算!$B$26*AO$2)) -> 0 | AP15: =IF($L15<AP$1,0,IF($L15-AP$1>計算!$B$26,AP$2,($L15-AP$1)/計算!$B$26*AP$2)) -> 0 | AQ15: =IF($L15<AQ$1,0,IF($L15-AQ$1>計算!$B$26,AQ$2,($L15-AQ$1)/計算!$B$26*AQ$2)) -> 0 | AR15: =IF($L15<AR$1,0,IF($L15-AR$1>計算!$B$26,AR$2,($L15-AR$1)/計算!$B$26*AR$2)) -> 0 | AS15: =IF($L15<AS$1,0,IF($L15-AS$1>計算!$B$26,AS$2,($L15-AS$1)/計算!$B$26*AS$2)) -> 0 | AT15: =IF($L15<AT$1,0,IF($L15-AT$1>計算!$B$26,AT$2,($L15-AT$1)/計算!$B$26*AT$2)) -> 0 | AU15: =IF($L15<AU$1,0,IF($L15-AU$1>計算!$B$26,AU$2,($L15-AU$1)/計算!$B$26*AU$2)) -> 0 | AV15: =IF($L15<AV$1,0,IF($L15-AV$1>計算!$B$26,AV$2,($L15-AV$1)/計算!$B$26*AV$2)) -> 0 | AW15: 3.524714856 | BA15: 25 | BB15: =準備!T14 -> 6.724872257 | BC15: =準備!Y14-準備!Y13 -> 0.02478390678 | BD15: =準備!Z14-準備!Z13 -> -0.009030126065 | BF15: 11 | BG15: 3.439729961 | BH15: =IF($BG15<BH$1,0,IF($BG15-BH$1>計算!$B$26,BH$2,($BG15-BH$1)/計算!$B$26*BH$2)) -> 1.843424849 | BI15: =IF($BG15<BI$1,0,IF($BG15-BI$1>計算!$B$26,BI$2,($BG15-BI$1)/計算!$B$26*BI$2)) -> 2.08043597 | BJ15: =IF($BG15<BJ$1,0,IF($BG15-BJ$1>計算!$B$26,BJ$2,($BG15-BJ$1)/計算!$B$26*BJ$2)) -> 0.4383357379 | BK15: =IF($BG15<BK$1,0,IF($BG15-BK$1>計算!$B$26,BK$2,($BG15-BK$1)/計算!$B$26*BK$2)) -> -0.5512010619 | BL15: =IF($BG15<BL$1,0,IF($BG15-BL$1>計算!$B$26,BL$2,($BG15-BL$1)/計算!$B$26*BL$2)) -> -0.8036518745 | BM15: =IF($BG15<BM$1,0,IF($BG15-BM$1>計算!$B$26,BM$2,($BG15-BM$1)/計算!$B$26*BM$2)) -> 0.184554083 | BN15: =IF($BG15<BN$1,0,IF($BG15-BN$1>計算!$B$26,BN$2,($BG15-BN$1)/計算!$B$26*BN$2)) -> 0 | BO15: =IF($BG15<BO$1,0,IF($BG15-BO$1>計算!$B$26,BO$2,($BG15-BO$1)/計算!$B$26*BO$2)) -> 0 | BP15: =IF($BG15<BP$1,0,IF($BG15-BP$1>計算!$B$26,BP$2,($BG15-BP$1)/計算!$B$26*BP$2)) -> 0 | BQ15: =IF($BG15<BQ$1,0,IF($BG15-BQ$1>計算!$B$26,BQ$2,($BG15-BQ$1)/計算!$B$26*BQ$2)) -> 0 | BR15: =IF($BG15<BR$1,0,IF($BG15-BR$1>計算!$B$26,BR$2,($BG15-BR$1)/計算!$B$26*BR$2)) -> 0 | BS15: =IF($BG15<BS$1,0,IF($BG15-BS$1>計算!$B$26,BS$2,($BG15-BS$1)/計算!$B$26*BS$2)) -> 0 | BT15: =IF($BG15<BT$1,0,IF($BG15-BT$1>計算!$B$26,BT$2,($BG15-BT$1)/計算!$B$26*BT$2)) -> 0 | BU15: =IF($BG15<BU$1,0,IF($BG15-BU$1>計算!$B$26,BU$2,($BG15-BU$1)/計算!$B$26*BU$2)) -> 0 | BV15: =IF($BG15<BV$1,0,IF($BG15-BV$1>計算!$B$26,BV$2,($BG15-BV$1)/計算!$B$26*BV$2)) -> 0 | BW15: =IF($BG15<BW$1,0,IF($BG15-BW$1>計算!$B$26,BW$2,($BG15-BW$1)/計算!$B$26*BW$2)) -> 0 | BX15: =IF($BG15<BX$1,0,IF($BG15-BX$1>計算!$B$26,BX$2,($BG15-BX$1)/計算!$B$26*BX$2)) -> 0 | BY15: =IF($BG15<BY$1,0,IF($BG15-BY$1>計算!$B$26,BY$2,($BG15-BY$1)/計算!$B$26*BY$2)) -> 0 | BZ15: =IF($BG15<BZ$1,0,IF($BG15-BZ$1>計算!$B$26,BZ$2,($BG15-BZ$1)/計算!$B$26*BZ$2)) -> 0 | CA15: =IF($BG15<CA$1,0,IF($BG15-CA$1>計算!$B$26,CA$2,($BG15-CA$1)/計算!$B$26*CA$2)) -> 0 | CB15: =IF($BG15<CB$1,0,IF($BG15-CB$1>計算!$B$26,CB$2,($BG15-CB$1)/計算!$B$26*CB$2)) -> 0 | CC15: =IF($BG15<CC$1,0,IF($BG15-CC$1>計算!$B$26,CC$2,($BG15-CC$1)/計算!$B$26*CC$2)) -> 0 | CD15: =IF($BG15<CD$1,0,IF($BG15-CD$1>計算!$B$26,CD$2,($BG15-CD$1)/計算!$B$26*CD$2)) -> 0 | CE15: =IF($BG15<CE$1,0,IF($BG15-CE$1>計算!$B$26,CE$2,($BG15-CE$1)/計算!$B$26*CE$2)) -> 0 | CF15: =IF($BG15<CF$1,0,IF($BG15-CF$1>計算!$B$26,CF$2,($BG15-CF$1)/計算!$B$26*CF$2)) -> 0 | CG15: =IF($BG15<CG$1,0,IF($BG15-CG$1>計算!$B$26,CG$2,($BG15-CG$1)/計算!$B$26*CG$2)) -> 0 | CH15: =IF($BG15<CH$1,0,IF($BG15-CH$1>計算!$B$26,CH$2,($BG15-CH$1)/計算!$B$26*CH$2)) -> 0 | CI15: =IF($BG15<CI$1,0,IF($BG15-CI$1>計算!$B$26,CI$2,($BG15-CI$1)/計算!$B$26*CI$2)) -> 0 | CJ15: =IF($BG15<CJ$1,0,IF($BG15-CJ$1>計算!$B$26,CJ$2,($BG15-CJ$1)/計算!$B$26*CJ$2)) -> 0 | CK15: =IF($BG15<CK$1,0,IF($BG15-CK$1>計算!$B$26,CK$2,($BG15-CK$1)/計算!$B$26*CK$2)) -> 0 | CL15: 3.191897703 | CO15: 3.929246849 | CP15: -0.1279451879 | CQ15: 0.1279451879
A16: Z1 | B16: =B15*(B4+B14)/(B4+B15) -> 50.5721162 | F16: 23 | G16: =準備!J15 -> 5.879459823 | H16: =準備!O15-準備!O14 -> 0.05028929326 | I16: =準備!P15-準備!P14 -> 0.3484351374 | K16: 13 | L16: 3.958067749 | M16: =IF($L16<M$1,0,IF($L16-M$1>計算!$B$26,M$2,($L16-M$1)/計算!$B$26*M$2)) -> 1.989000528 | N16: =IF($L16<N$1,0,IF($L16-N$1>計算!$B$26,N$2,($L16-N$1)/計算!$B$26*N$2)) -> 0.3275217949 | O16: =IF($L16<O$1,0,IF($L16-O$1>計算!$B$26,O$2,($L16-O$1)/計算!$B$26*O$2)) -> 0.9310129985 | P16: =IF($L16<P$1,0,IF($L16-P$1>計算!$B$26,P$2,($L16-P$1)/計算!$B$26*P$2)) -> 0.2787994054 | Q16: =IF($L16<Q$1,0,IF($L16-Q$1>計算!$B$26,Q$2,($L16-Q$1)/計算!$B$26*Q$2)) -> 0.01795639636 | R16: =IF($L16<R$1,0,IF($L16-R$1>計算!$B$26,R$2,($L16-R$1)/計算!$B$26*R$2)) -> -0.001935446322 | S16: =IF($L16<S$1,0,IF($L16-S$1>計算!$B$26,S$2,($L16-S$1)/計算!$B$26*S$2)) -> -0.02759374249 | T16: =IF($L16<T$1,0,IF($L16-T$1>計算!$B$26,T$2,($L16-T$1)/計算!$B$26*T$2)) -> -0.00635978594 | U16: =IF($L16<U$1,0,IF($L16-U$1>計算!$B$26,U$2,($L16-U$1)/計算!$B$26*U$2)) -> 0 | V16: =IF($L16<V$1,0,IF($L16-V$1>計算!$B$26,V$2,($L16-V$1)/計算!$B$26*V$2)) -> 0 | W16: =IF($L16<W$1,0,IF($L16-W$1>計算!$B$26,W$2,($L16-W$1)/計算!$B$26*W$2)) -> 0 | X16: =IF($L16<X$1,0,IF($L16-X$1>計算!$B$26,X$2,($L16-X$1)/計算!$B$26*X$2)) -> 0 | Y16: =IF($L16<Y$1,0,IF($L16-Y$1>計算!$B$26,Y$2,($L16-Y$1)/計算!$B$26*Y$2)) -> 0 | Z16: =IF($L16<Z$1,0,IF($L16-Z$1>計算!$B$26,Z$2,($L16-Z$1)/計算!$B$26*Z$2)) -> 0 | AA16: =IF($L16<AA$1,0,IF($L16-AA$1>計算!$B$26,AA$2,($L16-AA$1)/計算!$B$26*AA$2)) -> 0 | AB16: =IF($L16<AB$1,0,IF($L16-AB$1>計算!$B$26,AB$2,($L16-AB$1)/計算!$B$26*AB$2)) -> 0 | AC16: =IF($L16<AC$1,0,IF($L16-AC$1>計算!$B$26,AC$2,($L16-AC$1)/計算!$B$26*AC$2)) -> 0 | AD16: =IF($L16<AD$1,0,IF($L16-AD$1>計算!$B$26,AD$2,($L16-AD$1)/計算!$B$26*AD$2)) -> 0 | AE16: =IF($L16<AE$1,0,IF($L16-AE$1>計算!$B$26,AE$2,($L16-AE$1)/計算!$B$26*AE$2)) -> 0 | AF16: =IF($L16<AF$1,0,IF($L16-AF$1>計算!$B$26,AF$2,($L16-AF$1)/計算!$B$26*AF$2)) -> 0 | AG16: =IF($L16<AG$1,0,IF($L16-AG$1>計算!$B$26,AG$2,($L16-AG$1)/計算!$B$26*AG$2)) -> 0 | AH16: =IF($L16<AH$1,0,IF($L16-AH$1>計算!$B$26,AH$2,($L16-AH$1)/計算!$B$26*AH$2)) -> 0 | AI16: =IF($L16<AI$1,0,IF($L16-AI$1>計算!$B$26,AI$2,($L16-AI$1)/計算!$B$26*AI$2)) -> 0 | AJ16: =IF($L16<AJ$1,0,IF($L16-AJ$1>計算!$B$26,AJ$2,($L16-AJ$1)/計算!$B$26*AJ$2)) -> 0 | AK16: =IF($L16<AK$1,0,IF($L16-AK$1>計算!$B$26,AK$2,($L16-AK$1)/計算!$B$26*AK$2)) -> 0 | AL16: =IF($L16<AL$1,0,IF($L16-AL$1>計算!$B$26,AL$2,($L16-AL$1)/計算!$B$26*AL$2)) -> 0 | AM16: =IF($L16<AM$1,0,IF($L16-AM$1>計算!$B$26,AM$2,($L16-AM$1)/計算!$B$26*AM$2)) -> 0 | AN16: =IF($L16<AN$1,0,IF($L16-AN$1>計算!$B$26,AN$2,($L16-AN$1)/計算!$B$26*AN$2)) -> 0 | AO16: =IF($L16<AO$1,0,IF($L16-AO$1>計算!$B$26,AO$2,($L16-AO$1)/計算!$B$26*AO$2)) -> 0 | AP16: =IF($L16<AP$1,0,IF($L16-AP$1>計算!$B$26,AP$2,($L16-AP$1)/計算!$B$26*AP$2)) -> 0 | AQ16: =IF($L16<AQ$1,0,IF($L16-AQ$1>計算!$B$26,AQ$2,($L16-AQ$1)/計算!$B$26*AQ$2)) -> 0 | AR16: =IF($L16<AR$1,0,IF($L16-AR$1>計算!$B$26,AR$2,($L16-AR$1)/計算!$B$26*AR$2)) -> 0 | AS16: =IF($L16<AS$1,0,IF($L16-AS$1>計算!$B$26,AS$2,($L16-AS$1)/計算!$B$26*AS$2)) -> 0 | AT16: =IF($L16<AT$1,0,IF($L16-AT$1>計算!$B$26,AT$2,($L16-AT$1)/計算!$B$26*AT$2)) -> 0 | AU16: =IF($L16<AU$1,0,IF($L16-AU$1>計算!$B$26,AU$2,($L16-AU$1)/計算!$B$26*AU$2)) -> 0 | AV16: =IF($L16<AV$1,0,IF($L16-AV$1>計算!$B$26,AV$2,($L16-AV$1)/計算!$B$26*AV$2)) -> 0 | AW16: 3.508402149 | BA16: 26 | BB16: =準備!T15 -> 6.753693158 | BC16: =準備!Y15-準備!Y14 -> -0.1791904293 | BD16: =準備!Z15-準備!Z14 -> 0.04174793654 | BF16: 12 | BG16: 3.468550872 | BH16: =IF($BG16<BH$1,0,IF($BG16-BH$1>計算!$B$26,BH$2,($BG16-BH$1)/計算!$B$26*BH$2)) -> 1.843424849 | BI16: =IF($BG16<BI$1,0,IF($BG16-BI$1>計算!$B$26,BI$2,($BG16-BI$1)/計算!$B$26*BI$2)) -> 2.08043597 | BJ16: =IF($BG16<BJ$1,0,IF($BG16-BJ$1>計算!$B$26,BJ$2,($BG16-BJ$1)/計算!$B$26*BJ$2)) -> 0.4383357379 | BK16: =IF($BG16<BK$1,0,IF($BG16-BK$1>計算!$B$26,BK$2,($BG16-BK$1)/計算!$B$26*BK$2)) -> -0.5512010619 | BL16: =IF($BG16<BL$1,0,IF($BG16-BL$1>計算!$B$26,BL$2,($BG16-BL$1)/計算!$B$26*BL$2)) -> -0.8036518745 | BM16: =IF($BG16<BM$1,0,IF($BG16-BM$1>計算!$B$26,BM$2,($BG16-BM$1)/計算!$B$26*BM$2)) -> 0.1958427948 | BN16: =IF($BG16<BN$1,0,IF($BG16-BN$1>計算!$B$26,BN$2,($BG16-BN$1)/計算!$B$26*BN$2)) -> 0 | BO16: =IF($BG16<BO$1,0,IF($BG16-BO$1>計算!$B$26,BO$2,($BG16-BO$1)/計算!$B$26*BO$2)) -> 0 | BP16: =IF($BG16<BP$1,0,IF($BG16-BP$1>計算!$B$26,BP$2,($BG16-BP$1)/計算!$B$26*BP$2)) -> 0 | BQ16: =IF($BG16<BQ$1,0,IF($BG16-BQ$1>計算!$B$26,BQ$2,($BG16-BQ$1)/計算!$B$26*BQ$2)) -> 0 | BR16: =IF($BG16<BR$1,0,IF($BG16-BR$1>計算!$B$26,BR$2,($BG16-BR$1)/計算!$B$26*BR$2)) -> 0 | BS16: =IF($BG16<BS$1,0,IF($BG16-BS$1>計算!$B$26,BS$2,($BG16-BS$1)/計算!$B$26*BS$2)) -> 0 | BT16: =IF($BG16<BT$1,0,IF($BG16-BT$1>計算!$B$26,BT$2,($BG16-BT$1)/計算!$B$26*BT$2)) -> 0 | BU16: =IF($BG16<BU$1,0,IF($BG16-BU$1>計算!$B$26,BU$2,($BG16-BU$1)/計算!$B$26*BU$2)) -> 0 | BV16: =IF($BG16<BV$1,0,IF($BG16-BV$1>計算!$B$26,BV$2,($BG16-BV$1)/計算!$B$26*BV$2)) -> 0 | BW16: =IF($BG16<BW$1,0,IF($BG16-BW$1>計算!$B$26,BW$2,($BG16-BW$1)/計算!$B$26*BW$2)) -> 0 | BX16: =IF($BG16<BX$1,0,IF($BG16-BX$1>計算!$B$26,BX$2,($BG16-BX$1)/計算!$B$26*BX$2)) -> 0 | BY16: =IF($BG16<BY$1,0,IF($BG16-BY$1>計算!$B$26,BY$2,($BG16-BY$1)/計算!$B$26*BY$2)) -> 0 | BZ16: =IF($BG16<BZ$1,0,IF($BG16-BZ$1>計算!$B$26,BZ$2,($BG16-BZ$1)/計算!$B$26*BZ$2)) -> 0 | CA16: =IF($BG16<CA$1,0,IF($BG16-CA$1>計算!$B$26,CA$2,($BG16-CA$1)/計算!$B$26*CA$2)) -> 0 | CB16: =IF($BG16<CB$1,0,IF($BG16-CB$1>計算!$B$26,CB$2,($BG16-CB$1)/計算!$B$26*CB$2)) -> 0 | CC16: =IF($BG16<CC$1,0,IF($BG16-CC$1>計算!$B$26,CC$2,($BG16-CC$1)/計算!$B$26*CC$2)) -> 0 | CD16: =IF($BG16<CD$1,0,IF($BG16-CD$1>計算!$B$26,CD$2,($BG16-CD$1)/計算!$B$26*CD$2)) -> 0 | CE16: =IF($BG16<CE$1,0,IF($BG16-CE$1>計算!$B$26,CE$2,($BG16-CE$1)/計算!$B$26*CE$2)) -> 0 | CF16: =IF($BG16<CF$1,0,IF($BG16-CF$1>計算!$B$26,CF$2,($BG16-CF$1)/計算!$B$26*CF$2)) -> 0 | CG16: =IF($BG16<CG$1,0,IF($BG16-CG$1>計算!$B$26,CG$2,($BG16-CG$1)/計算!$B$26*CG$2)) -> 0 | CH16: =IF($BG16<CH$1,0,IF($BG16-CH$1>計算!$B$26,CH$2,($BG16-CH$1)/計算!$B$26*CH$2)) -> 0 | CI16: =IF($BG16<CI$1,0,IF($BG16-CI$1>計算!$B$26,CI$2,($BG16-CI$1)/計算!$B$26*CI$2)) -> 0 | CJ16: =IF($BG16<CJ$1,0,IF($BG16-CJ$1>計算!$B$26,CJ$2,($BG16-CJ$1)/計算!$B$26*CJ$2)) -> 0 | CK16: =IF($BG16<CK$1,0,IF($BG16-CK$1>計算!$B$26,CK$2,($BG16-CK$1)/計算!$B$26*CK$2)) -> 0 | CL16: 3.203186415 | CO16: 3.958067749 | CP16: -0.1183029295 | CQ16: 0.1183029295
A17: Z2 | B17: =B15*(B5+B14)/(B5+B15) -> 49.88634561 | F17: 24 | G17: =準備!J16 -> 5.908280723 | H17: =準備!O16-準備!O15 -> -0.02902262998 | I17: =準備!P16-準備!P15 -> -0.08721302427 | K17: 14 | L17: 4.342784147 | M17: =IF($L17<M$1,0,IF($L17-M$1>計算!$B$26,M$2,($L17-M$1)/計算!$B$26*M$2)) -> 1.989000528 | N17: =IF($L17<N$1,0,IF($L17-N$1>計算!$B$26,N$2,($L17-N$1)/計算!$B$26*N$2)) -> 0.3275217949 | O17: =IF($L17<O$1,0,IF($L17-O$1>計算!$B$26,O$2,($L17-O$1)/計算!$B$26*O$2)) -> 0.9310129985 | P17: =IF($L17<P$1,0,IF($L17-P$1>計算!$B$26,P$2,($L17-P$1)/計算!$B$26*P$2)) -> 0.2787994054 | Q17: =IF($L17<Q$1,0,IF($L17-Q$1>計算!$B$26,Q$2,($L17-Q$1)/計算!$B$26*Q$2)) -> 0.07787922992 | R17: =IF($L17<R$1,0,IF($L17-R$1>計算!$B$26,R$2,($L17-R$1)/計算!$B$26*R$2)) -> -0.0105472283 | S17: =IF($L17<S$1,0,IF($L17-S$1>計算!$B$26,S$2,($L17-S$1)/計算!$B$26*S$2)) -> -0.2117615686 | T17: =IF($L17<T$1,0,IF($L17-T$1>計算!$B$26,T$2,($L17-T$1)/計算!$B$26*T$2)) -> -0.09125352238 | U17: =IF($L17<U$1,0,IF($L17-U$1>計算!$B$26,U$2,($L17-U$1)/計算!$B$26*U$2)) -> 0.02019369447 | V17: =IF($L17<V$1,0,IF($L17-V$1>計算!$B$26,V$2,($L17-V$1)/計算!$B$26*V$2)) -> 0 | W17: =IF($L17<W$1,0,IF($L17-W$1>計算!$B$26,W$2,($L17-W$1)/計算!$B$26*W$2)) -> 0 | X17: =IF($L17<X$1,0,IF($L17-X$1>計算!$B$26,X$2,($L17-X$1)/計算!$B$26*X$2)) -> 0 | Y17: =IF($L17<Y$1,0,IF($L17-Y$1>計算!$B$26,Y$2,($L17-Y$1)/計算!$B$26*Y$2)) -> 0 | Z17: =IF($L17<Z$1,0,IF($L17-Z$1>計算!$B$26,Z$2,($L17-Z$1)/計算!$B$26*Z$2)) -> 0 | AA17: =IF($L17<AA$1,0,IF($L17-AA$1>計算!$B$26,AA$2,($L17-AA$1)/計算!$B$26*AA$2)) -> 0 | AB17: =IF($L17<AB$1,0,IF($L17-AB$1>計算!$B$26,AB$2,($L17-AB$1)/計算!$B$26*AB$2)) -> 0 | AC17: =IF($L17<AC$1,0,IF($L17-AC$1>計算!$B$26,AC$2,($L17-AC$1)/計算!$B$26*AC$2)) -> 0 | AD17: =IF($L17<AD$1,0,IF($L17-AD$1>計算!$B$26,AD$2,($L17-AD$1)/計算!$B$26*AD$2)) -> 0 | AE17: =IF($L17<AE$1,0,IF($L17-AE$1>計算!$B$26,AE$2,($L17-AE$1)/計算!$B$26*AE$2)) -> 0 | AF17: =IF($L17<AF$1,0,IF($L17-AF$1>計算!$B$26,AF$2,($L17-AF$1)/計算!$B$26*AF$2)) -> 0 | AG17: =IF($L17<AG$1,0,IF($L17-AG$1>計算!$B$26,AG$2,($L17-AG$1)/計算!$B$26*AG$2)) -> 0 | AH17: =IF($L17<AH$1,0,IF($L17-AH$1>計算!$B$26,AH$2,($L17-AH$1)/計算!$B$26*AH$2)) -> 0 | AI17: =IF($L17<AI$1,0,IF($L17-AI$1>計算!$B$26,AI$2,($L17-AI$1)/計算!$B$26*AI$2)) -> 0 | AJ17: =IF($L17<AJ$1,0,IF($L17-AJ$1>計算!$B$26,AJ$2,($L17-AJ$1)/計算!$B$26*AJ$2)) -> 0 | AK17: =IF($L17<AK$1,0,IF($L17-AK$1>計算!$B$26,AK$2,($L17-AK$1)/計算!$B$26*AK$2)) -> 0 | AL17: =IF($L17<AL$1,0,IF($L17-AL$1>計算!$B$26,AL$2,($L17-AL$1)/計算!$B$26*AL$2)) -> 0 | AM17: =IF($L17<AM$1,0,IF($L17-AM$1>計算!$B$26,AM$2,($L17-AM$1)/計算!$B$26*AM$2)) -> 0 | AN17: =IF($L17<AN$1,0,IF($L17-AN$1>計算!$B$26,AN$2,($L17-AN$1)/計算!$B$26*AN$2)) -> 0 | AO17: =IF($L17<AO$1,0,IF($L17-AO$1>計算!$B$26,AO$2,($L17-AO$1)/計算!$B$26*AO$2)) -> 0 | AP17: =IF($L17<AP$1,0,IF($L17-AP$1>計算!$B$26,AP$2,($L17-AP$1)/計算!$B$26*AP$2)) -> 0 | AQ17: =IF($L17<AQ$1,0,IF($L17-AQ$1>計算!$B$26,AQ$2,($L17-AQ$1)/計算!$B$26*AQ$2)) -> 0 | AR17: =IF($L17<AR$1,0,IF($L17-AR$1>計算!$B$26,AR$2,($L17-AR$1)/計算!$B$26*AR$2)) -> 0 | AS17: =IF($L17<AS$1,0,IF($L17-AS$1>計算!$B$26,AS$2,($L17-AS$1)/計算!$B$26*AS$2)) -> 0 | AT17: =IF($L17<AT$1,0,IF($L17-AT$1>計算!$B$26,AT$2,($L17-AT$1)/計算!$B$26*AT$2)) -> 0 | AU17: =IF($L17<AU$1,0,IF($L17-AU$1>計算!$B$26,AU$2,($L17-AU$1)/計算!$B$26*AU$2)) -> 0 | AV17: =IF($L17<AV$1,0,IF($L17-AV$1>計算!$B$26,AV$2,($L17-AV$1)/計算!$B$26*AV$2)) -> 0 | AW17: 3.310845332 | BA17: 27 | BB17: =準備!T16 -> 6.782514058 | BC17: =準備!Y16-準備!Y15 -> 0.3443491614 | BD17: =準備!Z16-準備!Z15 -> -0.003511025608 | BF17: 13 | BG17: 4.803480184 | BH17: =IF($BG17<BH$1,0,IF($BG17-BH$1>計算!$B$26,BH$2,($BG17-BH$1)/計算!$B$26*BH$2)) -> 1.843424849 | BI17: =IF($BG17<BI$1,0,IF($BG17-BI$1>計算!$B$26,BI$2,($BG17-BI$1)/計算!$B$26*BI$2)) -> 2.08043597 | BJ17: =IF($BG17<BJ$1,0,IF($BG17-BJ$1>計算!$B$26,BJ$2,($BG17-BJ$1)/計算!$B$26*BJ$2)) -> 0.4383357379 | BK17: =IF($BG17<BK$1,0,IF($BG17-BK$1>計算!$B$26,BK$2,($BG17-BK$1)/計算!$B$26*BK$2)) -> -0.5512010619 | BL17: =IF($BG17<BL$1,0,IF($BG17-BL$1>計算!$B$26,BL$2,($BG17-BL$1)/計算!$B$26*BL$2)) -> -0.8036518745 | BM17: =IF($BG17<BM$1,0,IF($BG17-BM$1>計算!$B$26,BM$2,($BG17-BM$1)/計算!$B$26*BM$2)) -> 0.1958427948 | BN17: =IF($BG17<BN$1,0,IF($BG17-BN$1>計算!$B$26,BN$2,($BG17-BN$1)/計算!$B$26*BN$2)) -> 0 | BO17: =IF($BG17<BO$1,0,IF($BG17-BO$1>計算!$B$26,BO$2,($BG17-BO$1)/計算!$B$26*BO$2)) -> 0 | BP17: =IF($BG17<BP$1,0,IF($BG17-BP$1>計算!$B$26,BP$2,($BG17-BP$1)/計算!$B$26*BP$2)) -> 0 | BQ17: =IF($BG17<BQ$1,0,IF($BG17-BQ$1>計算!$B$26,BQ$2,($BG17-BQ$1)/計算!$B$26*BQ$2)) -> 0 | BR17: =IF($BG17<BR$1,0,IF($BG17-BR$1>計算!$B$26,BR$2,($BG17-BR$1)/計算!$B$26*BR$2)) -> 0 | BS17: =IF($BG17<BS$1,0,IF($BG17-BS$1>計算!$B$26,BS$2,($BG17-BS$1)/計算!$B$26*BS$2)) -> 0 | BT17: =IF($BG17<BT$1,0,IF($BG17-BT$1>計算!$B$26,BT$2,($BG17-BT$1)/計算!$B$26*BT$2)) -> 0 | BU17: =IF($BG17<BU$1,0,IF($BG17-BU$1>計算!$B$26,BU$2,($BG17-BU$1)/計算!$B$26*BU$2)) -> 0 | BV17: =IF($BG17<BV$1,0,IF($BG17-BV$1>計算!$B$26,BV$2,($BG17-BV$1)/計算!$B$26*BV$2)) -> 0 | BW17: =IF($BG17<BW$1,0,IF($BG17-BW$1>計算!$B$26,BW$2,($BG17-BW$1)/計算!$B$26*BW$2)) -> 0 | BX17: =IF($BG17<BX$1,0,IF($BG17-BX$1>計算!$B$26,BX$2,($BG17-BX$1)/計算!$B$26*BX$2)) -> 0 | BY17: =IF($BG17<BY$1,0,IF($BG17-BY$1>計算!$B$26,BY$2,($BG17-BY$1)/計算!$B$26*BY$2)) -> 0 | BZ17: =IF($BG17<BZ$1,0,IF($BG17-BZ$1>計算!$B$26,BZ$2,($BG17-BZ$1)/計算!$B$26*BZ$2)) -> 0 | CA17: =IF($BG17<CA$1,0,IF($BG17-CA$1>計算!$B$26,CA$2,($BG17-CA$1)/計算!$B$26*CA$2)) -> 0 | CB17: =IF($BG17<CB$1,0,IF($BG17-CB$1>計算!$B$26,CB$2,($BG17-CB$1)/計算!$B$26*CB$2)) -> 0 | CC17: =IF($BG17<CC$1,0,IF($BG17-CC$1>計算!$B$26,CC$2,($BG17-CC$1)/計算!$B$26*CC$2)) -> 0 | CD17: =IF($BG17<CD$1,0,IF($BG17-CD$1>計算!$B$26,CD$2,($BG17-CD$1)/計算!$B$26*CD$2)) -> 0 | CE17: =IF($BG17<CE$1,0,IF($BG17-CE$1>計算!$B$26,CE$2,($BG17-CE$1)/計算!$B$26*CE$2)) -> 0 | CF17: =IF($BG17<CF$1,0,IF($BG17-CF$1>計算!$B$26,CF$2,($BG17-CF$1)/計算!$B$26*CF$2)) -> 0 | CG17: =IF($BG17<CG$1,0,IF($BG17-CG$1>計算!$B$26,CG$2,($BG17-CG$1)/計算!$B$26*CG$2)) -> 0 | CH17: =IF($BG17<CH$1,0,IF($BG17-CH$1>計算!$B$26,CH$2,($BG17-CH$1)/計算!$B$26*CH$2)) -> 0 | CI17: =IF($BG17<CI$1,0,IF($BG17-CI$1>計算!$B$26,CI$2,($BG17-CI$1)/計算!$B$26*CI$2)) -> 0 | CJ17: =IF($BG17<CJ$1,0,IF($BG17-CJ$1>計算!$B$26,CJ$2,($BG17-CJ$1)/計算!$B$26*CJ$2)) -> 0 | CK17: =IF($BG17<CK$1,0,IF($BG17-CK$1>計算!$B$26,CK$2,($BG17-CK$1)/計算!$B$26*CK$2)) -> 0 | CL17: 3.203186415 | CO17: 4.342784147 | CP17: 0.05664026167 | CQ17: -0.05664026167
A18: ZN | B18: =B15*(B2+B14)/(B2+B15) -> 49.88634561 | F18: 25 | G18: =準備!J17 -> 5.937101624 | H18: =準備!O17-準備!O16 -> 0.002470576645 | I18: =準備!P17-準備!P16 -> 0.005656365498 | K18: 15 | L18: 4.371605048 | M18: =IF($L18<M$1,0,IF($L18-M$1>計算!$B$26,M$2,($L18-M$1)/計算!$B$26*M$2)) -> 1.989000528 | N18: =IF($L18<N$1,0,IF($L18-N$1>計算!$B$26,N$2,($L18-N$1)/計算!$B$26*N$2)) -> 0.3275217949 | O18: =IF($L18<O$1,0,IF($L18-O$1>計算!$B$26,O$2,($L18-O$1)/計算!$B$26*O$2)) -> 0.9310129985 | P18: =IF($L18<P$1,0,IF($L18-P$1>計算!$B$26,P$2,($L18-P$1)/計算!$B$26*P$2)) -> 0.2787994054 | Q18: =IF($L18<Q$1,0,IF($L18-Q$1>計算!$B$26,Q$2,($L18-Q$1)/計算!$B$26*Q$2)) -> 0.07787922992 | R18: =IF($L18<R$1,0,IF($L18-R$1>計算!$B$26,R$2,($L18-R$1)/計算!$B$26*R$2)) -> -0.01119237707 | S18: =IF($L18<S$1,0,IF($L18-S$1>計算!$B$26,S$2,($L18-S$1)/計算!$B$26*S$2)) -> -0.2255584399 | T18: =IF($L18<T$1,0,IF($L18-T$1>計算!$B$26,T$2,($L18-T$1)/計算!$B$26*T$2)) -> -0.09761330834 | U18: =IF($L18<U$1,0,IF($L18-U$1>計算!$B$26,U$2,($L18-U$1)/計算!$B$26*U$2)) -> 0.02170649836 | V18: =IF($L18<V$1,0,IF($L18-V$1>計算!$B$26,V$2,($L18-V$1)/計算!$B$26*V$2)) -> 0 | W18: =IF($L18<W$1,0,IF($L18-W$1>計算!$B$26,W$2,($L18-W$1)/計算!$B$26*W$2)) -> 0 | X18: =IF($L18<X$1,0,IF($L18-X$1>計算!$B$26,X$2,($L18-X$1)/計算!$B$26*X$2)) -> 0 | Y18: =IF($L18<Y$1,0,IF($L18-Y$1>計算!$B$26,Y$2,($L18-Y$1)/計算!$B$26*Y$2)) -> 0 | Z18: =IF($L18<Z$1,0,IF($L18-Z$1>計算!$B$26,Z$2,($L18-Z$1)/計算!$B$26*Z$2)) -> 0 | AA18: =IF($L18<AA$1,0,IF($L18-AA$1>計算!$B$26,AA$2,($L18-AA$1)/計算!$B$26*AA$2)) -> 0 | AB18: =IF($L18<AB$1,0,IF($L18-AB$1>計算!$B$26,AB$2,($L18-AB$1)/計算!$B$26*AB$2)) -> 0 | AC18: =IF($L18<AC$1,0,IF($L18-AC$1>計算!$B$26,AC$2,($L18-AC$1)/計算!$B$26*AC$2)) -> 0 | AD18: =IF($L18<AD$1,0,IF($L18-AD$1>計算!$B$26,AD$2,($L18-AD$1)/計算!$B$26*AD$2)) -> 0 | AE18: =IF($L18<AE$1,0,IF($L18-AE$1>計算!$B$26,AE$2,($L18-AE$1)/計算!$B$26*AE$2)) -> 0 | AF18: =IF($L18<AF$1,0,IF($L18-AF$1>計算!$B$26,AF$2,($L18-AF$1)/計算!$B$26*AF$2)) -> 0 | AG18: =IF($L18<AG$1,0,IF($L18-AG$1>計算!$B$26,AG$2,($L18-AG$1)/計算!$B$26*AG$2)) -> 0 | AH18: =IF($L18<AH$1,0,IF($L18-AH$1>計算!$B$26,AH$2,($L18-AH$1)/計算!$B$26*AH$2)) -> 0 | AI18: =IF($L18<AI$1,0,IF($L18-AI$1>計算!$B$26,AI$2,($L18-AI$1)/計算!$B$26*AI$2)) -> 0 | AJ18: =IF($L18<AJ$1,0,IF($L18-AJ$1>計算!$B$26,AJ$2,($L18-AJ$1)/計算!$B$26*AJ$2)) -> 0 | AK18: =IF($L18<AK$1,0,IF($L18-AK$1>計算!$B$26,AK$2,($L18-AK$1)/計算!$B$26*AK$2)) -> 0 | AL18: =IF($L18<AL$1,0,IF($L18-AL$1>計算!$B$26,AL$2,($L18-AL$1)/計算!$B$26*AL$2)) -> 0 | AM18: =IF($L18<AM$1,0,IF($L18-AM$1>計算!$B$26,AM$2,($L18-AM$1)/計算!$B$26*AM$2)) -> 0 | AN18: =IF($L18<AN$1,0,IF($L18-AN$1>計算!$B$26,AN$2,($L18-AN$1)/計算!$B$26*AN$2)) -> 0 | AO18: =IF($L18<AO$1,0,IF($L18-AO$1>計算!$B$26,AO$2,($L18-AO$1)/計算!$B$26*AO$2)) -> 0 | AP18: =IF($L18<AP$1,0,IF($L18-AP$1>計算!$B$26,AP$2,($L18-AP$1)/計算!$B$26*AP$2)) -> 0 | AQ18: =IF($L18<AQ$1,0,IF($L18-AQ$1>計算!$B$26,AQ$2,($L18-AQ$1)/計算!$B$26*AQ$2)) -> 0 | AR18: =IF($L18<AR$1,0,IF($L18-AR$1>計算!$B$26,AR$2,($L18-AR$1)/計算!$B$26*AR$2)) -> 0 | AS18: =IF($L18<AS$1,0,IF($L18-AS$1>計算!$B$26,AS$2,($L18-AS$1)/計算!$B$26*AS$2)) -> 0 | AT18: =IF($L18<AT$1,0,IF($L18-AT$1>計算!$B$26,AT$2,($L18-AT$1)/計算!$B$26*AT$2)) -> 0 | AU18: =IF($L18<AU$1,0,IF($L18-AU$1>計算!$B$26,AU$2,($L18-AU$1)/計算!$B$26*AU$2)) -> 0 | AV18: =IF($L18<AV$1,0,IF($L18-AV$1>計算!$B$26,AV$2,($L18-AV$1)/計算!$B$26*AV$2)) -> 0 | AW18: 3.29155633 | BA18: 28 | BB18: =準備!T17 -> 6.811334959 | BC18: =準備!Y17-準備!Y16 -> -0.02111804055 | BD18: =準備!Z17-準備!Z16 -> -0.09979670033 | BF18: 14 | BG18: 4.832301084 | BH18: =IF($BG18<BH$1,0,IF($BG18-BH$1>計算!$B$26,BH$2,($BG18-BH$1)/計算!$B$26*BH$2)) -> 1.843424849 | BI18: =IF($BG18<BI$1,0,IF($BG18-BI$1>計算!$B$26,BI$2,($BG18-BI$1)/計算!$B$26*BI$2)) -> 2.08043597 | BJ18: =IF($BG18<BJ$1,0,IF($BG18-BJ$1>計算!$B$26,BJ$2,($BG18-BJ$1)/計算!$B$26*BJ$2)) -> 0.4383357379 | BK18: =IF($BG18<BK$1,0,IF($BG18-BK$1>計算!$B$26,BK$2,($BG18-BK$1)/計算!$B$26*BK$2)) -> -0.5512010619 | BL18: =IF($BG18<BL$1,0,IF($BG18-BL$1>計算!$B$26,BL$2,($BG18-BL$1)/計算!$B$26*BL$2)) -> -0.8036518745 | BM18: =IF($BG18<BM$1,0,IF($BG18-BM$1>計算!$B$26,BM$2,($BG18-BM$1)/計算!$B$26*BM$2)) -> 0.1958427948 | BN18: =IF($BG18<BN$1,0,IF($BG18-BN$1>計算!$B$26,BN$2,($BG18-BN$1)/計算!$B$26*BN$2)) -> 0.006007943876 | BO18: =IF($BG18<BO$1,0,IF($BG18-BO$1>計算!$B$26,BO$2,($BG18-BO$1)/計算!$B$26*BO$2)) -> 0 | BP18: =IF($BG18<BP$1,0,IF($BG18-BP$1>計算!$B$26,BP$2,($BG18-BP$1)/計算!$B$26*BP$2)) -> 0 | BQ18: =IF($BG18<BQ$1,0,IF($BG18-BQ$1>計算!$B$26,BQ$2,($BG18-BQ$1)/計算!$B$26*BQ$2)) -> 0 | BR18: =IF($BG18<BR$1,0,IF($BG18-BR$1>計算!$B$26,BR$2,($BG18-BR$1)/計算!$B$26*BR$2)) -> 0 | BS18: =IF($BG18<BS$1,0,IF($BG18-BS$1>計算!$B$26,BS$2,($BG18-BS$1)/計算!$B$26*BS$2)) -> 0 | BT18: =IF($BG18<BT$1,0,IF($BG18-BT$1>計算!$B$26,BT$2,($BG18-BT$1)/計算!$B$26*BT$2)) -> 0 | BU18: =IF($BG18<BU$1,0,IF($BG18-BU$1>計算!$B$26,BU$2,($BG18-BU$1)/計算!$B$26*BU$2)) -> 0 | BV18: =IF($BG18<BV$1,0,IF($BG18-BV$1>計算!$B$26,BV$2,($BG18-BV$1)/計算!$B$26*BV$2)) -> 0 | BW18: =IF($BG18<BW$1,0,IF($BG18-BW$1>計算!$B$26,BW$2,($BG18-BW$1)/計算!$B$26*BW$2)) -> 0 | BX18: =IF($BG18<BX$1,0,IF($BG18-BX$1>計算!$B$26,BX$2,($BG18-BX$1)/計算!$B$26*BX$2)) -> 0 | BY18: =IF($BG18<BY$1,0,IF($BG18-BY$1>計算!$B$26,BY$2,($BG18-BY$1)/計算!$B$26*BY$2)) -> 0 | BZ18: =IF($BG18<BZ$1,0,IF($BG18-BZ$1>計算!$B$26,BZ$2,($BG18-BZ$1)/計算!$B$26*BZ$2)) -> 0 | CA18: =IF($BG18<CA$1,0,IF($BG18-CA$1>計算!$B$26,CA$2,($BG18-CA$1)/計算!$B$26*CA$2)) -> 0 | CB18: =IF($BG18<CB$1,0,IF($BG18-CB$1>計算!$B$26,CB$2,($BG18-CB$1)/計算!$B$26*CB$2)) -> 0 | CC18: =IF($BG18<CC$1,0,IF($BG18-CC$1>計算!$B$26,CC$2,($BG18-CC$1)/計算!$B$26*CC$2)) -> 0 | CD18: =IF($BG18<CD$1,0,IF($BG18-CD$1>計算!$B$26,CD$2,($BG18-CD$1)/計算!$B$26*CD$2)) -> 0 | CE18: =IF($BG18<CE$1,0,IF($BG18-CE$1>計算!$B$26,CE$2,($BG18-CE$1)/計算!$B$26*CE$2)) -> 0 | CF18: =IF($BG18<CF$1,0,IF($BG18-CF$1>計算!$B$26,CF$2,($BG18-CF$1)/計算!$B$26*CF$2)) -> 0 | CG18: =IF($BG18<CG$1,0,IF($BG18-CG$1>計算!$B$26,CG$2,($BG18-CG$1)/計算!$B$26*CG$2)) -> 0 | CH18: =IF($BG18<CH$1,0,IF($BG18-CH$1>計算!$B$26,CH$2,($BG18-CH$1)/計算!$B$26*CH$2)) -> 0 | CI18: =IF($BG18<CI$1,0,IF($BG18-CI$1>計算!$B$26,CI$2,($BG18-CI$1)/計算!$B$26*CI$2)) -> 0 | CJ18: =IF($BG18<CJ$1,0,IF($BG18-CJ$1>計算!$B$26,CJ$2,($BG18-CJ$1)/計算!$B$26*CJ$2)) -> 0 | CK18: =IF($BG18<CK$1,0,IF($BG18-CK$1>計算!$B$26,CK$2,($BG18-CK$1)/計算!$B$26*CK$2)) -> 0 | CL18: 3.209194359 | CO18: 4.371605048 | CP18: 0.0820667651 | CQ18: -0.0820667651
A19: ZF | B19: =B15*(B3+B14)/(B3+B15) -> 50.5721162 | F19: 33 | G19: =準備!J18 -> 7.685568294 | H19: =準備!O18-準備!O17 -> 0.004403363467 | I19: =準備!P18-準備!P17 -> -0.01208538495 | K19: 16 | L19: 4.400425949 | M19: =IF($L19<M$1,0,IF($L19-M$1>計算!$B$26,M$2,($L19-M$1)/計算!$B$26*M$2)) -> 1.989000528 | N19: =IF($L19<N$1,0,IF($L19-N$1>計算!$B$26,N$2,($L19-N$1)/計算!$B$26*N$2)) -> 0.3275217949 | O19: =IF($L19<O$1,0,IF($L19-O$1>計算!$B$26,O$2,($L19-O$1)/計算!$B$26*O$2)) -> 0.9310129985 | P19: =IF($L19<P$1,0,IF($L19-P$1>計算!$B$26,P$2,($L19-P$1)/計算!$B$26*P$2)) -> 0.2787994054 | Q19: =IF($L19<Q$1,0,IF($L19-Q$1>計算!$B$26,Q$2,($L19-Q$1)/計算!$B$26*Q$2)) -> 0.07787922992 | R19: =IF($L19<R$1,0,IF($L19-R$1>計算!$B$26,R$2,($L19-R$1)/計算!$B$26*R$2)) -> -0.01119237707 | S19: =IF($L19<S$1,0,IF($L19-S$1>計算!$B$26,S$2,($L19-S$1)/計算!$B$26*S$2)) -> -0.2393553108 | T19: =IF($L19<T$1,0,IF($L19-T$1>計算!$B$26,T$2,($L19-T$1)/計算!$B$26*T$2)) -> -0.1039730943 | U19: =IF($L19<U$1,0,IF($L19-U$1>計算!$B$26,U$2,($L19-U$1)/計算!$B$26*U$2)) -> 0.02321930225 | V19: =IF($L19<V$1,0,IF($L19-V$1>計算!$B$26,V$2,($L19-V$1)/計算!$B$26*V$2)) -> 0 | W19: =IF($L19<W$1,0,IF($L19-W$1>計算!$B$26,W$2,($L19-W$1)/計算!$B$26*W$2)) -> 0 | X19: =IF($L19<X$1,0,IF($L19-X$1>計算!$B$26,X$2,($L19-X$1)/計算!$B$26*X$2)) -> 0 | Y19: =IF($L19<Y$1,0,IF($L19-Y$1>計算!$B$26,Y$2,($L19-Y$1)/計算!$B$26*Y$2)) -> 0 | Z19: =IF($L19<Z$1,0,IF($L19-Z$1>計算!$B$26,Z$2,($L19-Z$1)/計算!$B$26*Z$2)) -> 0 | AA19: =IF($L19<AA$1,0,IF($L19-AA$1>計算!$B$26,AA$2,($L19-AA$1)/計算!$B$26*AA$2)) -> 0 | AB19: =IF($L19<AB$1,0,IF($L19-AB$1>計算!$B$26,AB$2,($L19-AB$1)/計算!$B$26*AB$2)) -> 0 | AC19: =IF($L19<AC$1,0,IF($L19-AC$1>計算!$B$26,AC$2,($L19-AC$1)/計算!$B$26*AC$2)) -> 0 | AD19: =IF($L19<AD$1,0,IF($L19-AD$1>計算!$B$26,AD$2,($L19-AD$1)/計算!$B$26*AD$2)) -> 0 | AE19: =IF($L19<AE$1,0,IF($L19-AE$1>計算!$B$26,AE$2,($L19-AE$1)/計算!$B$26*AE$2)) -> 0 | AF19: =IF($L19<AF$1,0,IF($L19-AF$1>計算!$B$26,AF$2,($L19-AF$1)/計算!$B$26*AF$2)) -> 0 | AG19: =IF($L19<AG$1,0,IF($L19-AG$1>計算!$B$26,AG$2,($L19-AG$1)/計算!$B$26*AG$2)) -> 0 | AH19: =IF($L19<AH$1,0,IF($L19-AH$1>計算!$B$26,AH$2,($L19-AH$1)/計算!$B$26*AH$2)) -> 0 | AI19: =IF($L19<AI$1,0,IF($L19-AI$1>計算!$B$26,AI$2,($L19-AI$1)/計算!$B$26*AI$2)) -> 0 | AJ19: =IF($L19<AJ$1,0,IF($L19-AJ$1>計算!$B$26,AJ$2,($L19-AJ$1)/計算!$B$26*AJ$2)) -> 0 | AK19: =IF($L19<AK$1,0,IF($L19-AK$1>計算!$B$26,AK$2,($L19-AK$1)/計算!$B$26*AK$2)) -> 0 | AL19: =IF($L19<AL$1,0,IF($L19-AL$1>計算!$B$26,AL$2,($L19-AL$1)/計算!$B$26*AL$2)) -> 0 | AM19: =IF($L19<AM$1,0,IF($L19-AM$1>計算!$B$26,AM$2,($L19-AM$1)/計算!$B$26*AM$2)) -> 0 | AN19: =IF($L19<AN$1,0,IF($L19-AN$1>計算!$B$26,AN$2,($L19-AN$1)/計算!$B$26*AN$2)) -> 0 | AO19: =IF($L19<AO$1,0,IF($L19-AO$1>計算!$B$26,AO$2,($L19-AO$1)/計算!$B$26*AO$2)) -> 0 | AP19: =IF($L19<AP$1,0,IF($L19-AP$1>計算!$B$26,AP$2,($L19-AP$1)/計算!$B$26*AP$2)) -> 0 | AQ19: =IF($L19<AQ$1,0,IF($L19-AQ$1>計算!$B$26,AQ$2,($L19-AQ$1)/計算!$B$26*AQ$2)) -> 0 | AR19: =IF($L19<AR$1,0,IF($L19-AR$1>計算!$B$26,AR$2,($L19-AR$1)/計算!$B$26*AR$2)) -> 0 | AS19: =IF($L19<AS$1,0,IF($L19-AS$1>計算!$B$26,AS$2,($L19-AS$1)/計算!$B$26*AS$2)) -> 0 | AT19: =IF($L19<AT$1,0,IF($L19-AT$1>計算!$B$26,AT$2,($L19-AT$1)/計算!$B$26*AT$2)) -> 0 | AU19: =IF($L19<AU$1,0,IF($L19-AU$1>計算!$B$26,AU$2,($L19-AU$1)/計算!$B$26*AU$2)) -> 0 | AV19: =IF($L19<AV$1,0,IF($L19-AV$1>計算!$B$26,AV$2,($L19-AV$1)/計算!$B$26*AV$2)) -> 0 | AW19: 3.272912477 | BA19: 29 | BB19: =準備!T18 -> 6.84015586 | BC19: =準備!Y18-準備!Y17 -> -0.3408273685 | BD19: =準備!Z18-準備!Z17 -> 0.009670479816 | BF19: 15 | BG19: 4.861121985 | BH19: =IF($BG19<BH$1,0,IF($BG19-BH$1>計算!$B$26,BH$2,($BG19-BH$1)/計算!$B$26*BH$2)) -> 1.843424849 | BI19: =IF($BG19<BI$1,0,IF($BG19-BI$1>計算!$B$26,BI$2,($BG19-BI$1)/計算!$B$26*BI$2)) -> 2.08043597 | BJ19: =IF($BG19<BJ$1,0,IF($BG19-BJ$1>計算!$B$26,BJ$2,($BG19-BJ$1)/計算!$B$26*BJ$2)) -> 0.4383357379 | BK19: =IF($BG19<BK$1,0,IF($BG19-BK$1>計算!$B$26,BK$2,($BG19-BK$1)/計算!$B$26*BK$2)) -> -0.5512010619 | BL19: =IF($BG19<BL$1,0,IF($BG19-BL$1>計算!$B$26,BL$2,($BG19-BL$1)/計算!$B$26*BL$2)) -> -0.8036518745 | BM19: =IF($BG19<BM$1,0,IF($BG19-BM$1>計算!$B$26,BM$2,($BG19-BM$1)/計算!$B$26*BM$2)) -> 0.1958427948 | BN19: =IF($BG19<BN$1,0,IF($BG19-BN$1>計算!$B$26,BN$2,($BG19-BN$1)/計算!$B$26*BN$2)) -> 0.01201588775 | BO19: =IF($BG19<BO$1,0,IF($BG19-BO$1>計算!$B$26,BO$2,($BG19-BO$1)/計算!$B$26*BO$2)) -> -0.02549650717 | BP19: =IF($BG19<BP$1,0,IF($BG19-BP$1>計算!$B$26,BP$2,($BG19-BP$1)/計算!$B$26*BP$2)) -> 0 | BQ19: =IF($BG19<BQ$1,0,IF($BG19-BQ$1>計算!$B$26,BQ$2,($BG19-BQ$1)/計算!$B$26*BQ$2)) -> 0 | BR19: =IF($BG19<BR$1,0,IF($BG19-BR$1>計算!$B$26,BR$2,($BG19-BR$1)/計算!$B$26*BR$2)) -> 0 | BS19: =IF($BG19<BS$1,0,IF($BG19-BS$1>計算!$B$26,BS$2,($BG19-BS$1)/計算!$B$26*BS$2)) -> 0 | BT19: =IF($BG19<BT$1,0,IF($BG19-BT$1>計算!$B$26,BT$2,($BG19-BT$1)/計算!$B$26*BT$2)) -> 0 | BU19: =IF($BG19<BU$1,0,IF($BG19-BU$1>計算!$B$26,BU$2,($BG19-BU$1)/計算!$B$26*BU$2)) -> 0 | BV19: =IF($BG19<BV$1,0,IF($BG19-BV$1>計算!$B$26,BV$2,($BG19-BV$1)/計算!$B$26*BV$2)) -> 0 | BW19: =IF($BG19<BW$1,0,IF($BG19-BW$1>計算!$B$26,BW$2,($BG19-BW$1)/計算!$B$26*BW$2)) -> 0 | BX19: =IF($BG19<BX$1,0,IF($BG19-BX$1>計算!$B$26,BX$2,($BG19-BX$1)/計算!$B$26*BX$2)) -> 0 | BY19: =IF($BG19<BY$1,0,IF($BG19-BY$1>計算!$B$26,BY$2,($BG19-BY$1)/計算!$B$26*BY$2)) -> 0 | BZ19: =IF($BG19<BZ$1,0,IF($BG19-BZ$1>計算!$B$26,BZ$2,($BG19-BZ$1)/計算!$B$26*BZ$2)) -> 0 | CA19: =IF($BG19<CA$1,0,IF($BG19-CA$1>計算!$B$26,CA$2,($BG19-CA$1)/計算!$B$26*CA$2)) -> 0 | CB19: =IF($BG19<CB$1,0,IF($BG19-CB$1>計算!$B$26,CB$2,($BG19-CB$1)/計算!$B$26*CB$2)) -> 0 | CC19: =IF($BG19<CC$1,0,IF($BG19-CC$1>計算!$B$26,CC$2,($BG19-CC$1)/計算!$B$26*CC$2)) -> 0 | CD19: =IF($BG19<CD$1,0,IF($BG19-CD$1>計算!$B$26,CD$2,($BG19-CD$1)/計算!$B$26*CD$2)) -> 0 | CE19: =IF($BG19<CE$1,0,IF($BG19-CE$1>計算!$B$26,CE$2,($BG19-CE$1)/計算!$B$26*CE$2)) -> 0 | CF19: =IF($BG19<CF$1,0,IF($BG19-CF$1>計算!$B$26,CF$2,($BG19-CF$1)/計算!$B$26*CF$2)) -> 0 | CG19: =IF($BG19<CG$1,0,IF($BG19-CG$1>計算!$B$26,CG$2,($BG19-CG$1)/計算!$B$26*CG$2)) -> 0 | CH19: =IF($BG19<CH$1,0,IF($BG19-CH$1>計算!$B$26,CH$2,($BG19-CH$1)/計算!$B$26*CH$2)) -> 0 | CI19: =IF($BG19<CI$1,0,IF($BG19-CI$1>計算!$B$26,CI$2,($BG19-CI$1)/計算!$B$26*CI$2)) -> 0 | CJ19: =IF($BG19<CJ$1,0,IF($BG19-CJ$1>計算!$B$26,CJ$2,($BG19-CJ$1)/計算!$B$26*CJ$2)) -> 0 | CK19: =IF($BG19<CK$1,0,IF($BG19-CK$1>計算!$B$26,CK$2,($BG19-CK$1)/計算!$B$26*CK$2)) -> 0 | CL19: 3.189705796 | CO19: 4.400425949 | CP19: 0.07360344513 | CQ19: -0.07360344513
A20: τC(ns) | B20: =B23*$B$25 -> 0.9895169373 | F20: 34 | G20: =準備!J19 -> 7.714389195 | H20: =準備!O19-準備!O18 -> -0.02693247169 | I20: =準備!P19-準備!P18 -> 0.1054240624 | K20: 17 | L20: 4.42924685 | M20: =IF($L20<M$1,0,IF($L20-M$1>計算!$B$26,M$2,($L20-M$1)/計算!$B$26*M$2)) -> 1.989000528 | N20: =IF($L20<N$1,0,IF($L20-N$1>計算!$B$26,N$2,($L20-N$1)/計算!$B$26*N$2)) -> 0.3275217949 | O20: =IF($L20<O$1,0,IF($L20-O$1>計算!$B$26,O$2,($L20-O$1)/計算!$B$26*O$2)) -> 0.9310129985 | P20: =IF($L20<P$1,0,IF($L20-P$1>計算!$B$26,P$2,($L20-P$1)/計算!$B$26*P$2)) -> 0.2787994054 | Q20: =IF($L20<Q$1,0,IF($L20-Q$1>計算!$B$26,Q$2,($L20-Q$1)/計算!$B$26*Q$2)) -> 0.07787922992 | R20: =IF($L20<R$1,0,IF($L20-R$1>計算!$B$26,R$2,($L20-R$1)/計算!$B$26*R$2)) -> -0.01119237707 | S20: =IF($L20<S$1,0,IF($L20-S$1>計算!$B$26,S$2,($L20-S$1)/計算!$B$26*S$2)) -> -0.2393553108 | T20: =IF($L20<T$1,0,IF($L20-T$1>計算!$B$26,T$2,($L20-T$1)/計算!$B$26*T$2)) -> -0.1103328801 | U20: =IF($L20<U$1,0,IF($L20-U$1>計算!$B$26,U$2,($L20-U$1)/計算!$B$26*U$2)) -> 0.02473210614 | V20: =IF($L20<V$1,0,IF($L20-V$1>計算!$B$26,V$2,($L20-V$1)/計算!$B$26*V$2)) -> 0 | W20: =IF($L20<W$1,0,IF($L20-W$1>計算!$B$26,W$2,($L20-W$1)/計算!$B$26*W$2)) -> 0 | X20: =IF($L20<X$1,0,IF($L20-X$1>計算!$B$26,X$2,($L20-X$1)/計算!$B$26*X$2)) -> 0 | Y20: =IF($L20<Y$1,0,IF($L20-Y$1>計算!$B$26,Y$2,($L20-Y$1)/計算!$B$26*Y$2)) -> 0 | Z20: =IF($L20<Z$1,0,IF($L20-Z$1>計算!$B$26,Z$2,($L20-Z$1)/計算!$B$26*Z$2)) -> 0 | AA20: =IF($L20<AA$1,0,IF($L20-AA$1>計算!$B$26,AA$2,($L20-AA$1)/計算!$B$26*AA$2)) -> 0 | AB20: =IF($L20<AB$1,0,IF($L20-AB$1>計算!$B$26,AB$2,($L20-AB$1)/計算!$B$26*AB$2)) -> 0 | AC20: =IF($L20<AC$1,0,IF($L20-AC$1>計算!$B$26,AC$2,($L20-AC$1)/計算!$B$26*AC$2)) -> 0 | AD20: =IF($L20<AD$1,0,IF($L20-AD$1>計算!$B$26,AD$2,($L20-AD$1)/計算!$B$26*AD$2)) -> 0 | AE20: =IF($L20<AE$1,0,IF($L20-AE$1>計算!$B$26,AE$2,($L20-AE$1)/計算!$B$26*AE$2)) -> 0 | AF20: =IF($L20<AF$1,0,IF($L20-AF$1>計算!$B$26,AF$2,($L20-AF$1)/計算!$B$26*AF$2)) -> 0 | AG20: =IF($L20<AG$1,0,IF($L20-AG$1>計算!$B$26,AG$2,($L20-AG$1)/計算!$B$26*AG$2)) -> 0 | AH20: =IF($L20<AH$1,0,IF($L20-AH$1>計算!$B$26,AH$2,($L20-AH$1)/計算!$B$26*AH$2)) -> 0 | AI20: =IF($L20<AI$1,0,IF($L20-AI$1>計算!$B$26,AI$2,($L20-AI$1)/計算!$B$26*AI$2)) -> 0 | AJ20: =IF($L20<AJ$1,0,IF($L20-AJ$1>計算!$B$26,AJ$2,($L20-AJ$1)/計算!$B$26*AJ$2)) -> 0 | AK20: =IF($L20<AK$1,0,IF($L20-AK$1>計算!$B$26,AK$2,($L20-AK$1)/計算!$B$26*AK$2)) -> 0 | AL20: =IF($L20<AL$1,0,IF($L20-AL$1>計算!$B$26,AL$2,($L20-AL$1)/計算!$B$26*AL$2)) -> 0 | AM20: =IF($L20<AM$1,0,IF($L20-AM$1>計算!$B$26,AM$2,($L20-AM$1)/計算!$B$26*AM$2)) -> 0 | AN20: =IF($L20<AN$1,0,IF($L20-AN$1>計算!$B$26,AN$2,($L20-AN$1)/計算!$B$26*AN$2)) -> 0 | AO20: =IF($L20<AO$1,0,IF($L20-AO$1>計算!$B$26,AO$2,($L20-AO$1)/計算!$B$26*AO$2)) -> 0 | AP20: =IF($L20<AP$1,0,IF($L20-AP$1>計算!$B$26,AP$2,($L20-AP$1)/計算!$B$26*AP$2)) -> 0 | AQ20: =IF($L20<AQ$1,0,IF($L20-AQ$1>計算!$B$26,AQ$2,($L20-AQ$1)/計算!$B$26*AQ$2)) -> 0 | AR20: =IF($L20<AR$1,0,IF($L20-AR$1>計算!$B$26,AR$2,($L20-AR$1)/計算!$B$26*AR$2)) -> 0 | AS20: =IF($L20<AS$1,0,IF($L20-AS$1>計算!$B$26,AS$2,($L20-AS$1)/計算!$B$26*AS$2)) -> 0 | AT20: =IF($L20<AT$1,0,IF($L20-AT$1>計算!$B$26,AT$2,($L20-AT$1)/計算!$B$26*AT$2)) -> 0 | AU20: =IF($L20<AU$1,0,IF($L20-AU$1>計算!$B$26,AU$2,($L20-AU$1)/計算!$B$26*AU$2)) -> 0 | AV20: =IF($L20<AV$1,0,IF($L20-AV$1>計算!$B$26,AV$2,($L20-AV$1)/計算!$B$26*AV$2)) -> 0 | AW20: 3.268065495 | BA20: 30 | BB20: =準備!T19 -> 6.86897676 | BC20: =準備!Y19-準備!Y18 -> 0.1935437961 | BD20: =準備!Z19-準備!Z18 -> 0.04277540792 | BF20: 16 | BG20: 4.889942886 | BH20: =IF($BG20<BH$1,0,IF($BG20-BH$1>計算!$B$26,BH$2,($BG20-BH$1)/計算!$B$26*BH$2)) -> 1.843424849 | BI20: =IF($BG20<BI$1,0,IF($BG20-BI$1>計算!$B$26,BI$2,($BG20-BI$1)/計算!$B$26*BI$2)) -> 2.08043597 | BJ20: =IF($BG20<BJ$1,0,IF($BG20-BJ$1>計算!$B$26,BJ$2,($BG20-BJ$1)/計算!$B$26*BJ$2)) -> 0.4383357379 | BK20: =IF($BG20<BK$1,0,IF($BG20-BK$1>計算!$B$26,BK$2,($BG20-BK$1)/計算!$B$26*BK$2)) -> -0.5512010619 | BL20: =IF($BG20<BL$1,0,IF($BG20-BL$1>計算!$B$26,BL$2,($BG20-BL$1)/計算!$B$26*BL$2)) -> -0.8036518745 | BM20: =IF($BG20<BM$1,0,IF($BG20-BM$1>計算!$B$26,BM$2,($BG20-BM$1)/計算!$B$26*BM$2)) -> 0.1958427948 | BN20: =IF($BG20<BN$1,0,IF($BG20-BN$1>計算!$B$26,BN$2,($BG20-BN$1)/計算!$B$26*BN$2)) -> 0.01802383163 | BO20: =IF($BG20<BO$1,0,IF($BG20-BO$1>計算!$B$26,BO$2,($BG20-BO$1)/計算!$B$26*BO$2)) -> -0.05099301434 | BP20: =IF($BG20<BP$1,0,IF($BG20-BP$1>計算!$B$26,BP$2,($BG20-BP$1)/計算!$B$26*BP$2)) -> 0.009440223705 | BQ20: =IF($BG20<BQ$1,0,IF($BG20-BQ$1>計算!$B$26,BQ$2,($BG20-BQ$1)/計算!$B$26*BQ$2)) -> 0 | BR20: =IF($BG20<BR$1,0,IF($BG20-BR$1>計算!$B$26,BR$2,($BG20-BR$1)/計算!$B$26*BR$2)) -> 0 | BS20: =IF($BG20<BS$1,0,IF($BG20-BS$1>計算!$B$26,BS$2,($BG20-BS$1)/計算!$B$26*BS$2)) -> 0 | BT20: =IF($BG20<BT$1,0,IF($BG20-BT$1>計算!$B$26,BT$2,($BG20-BT$1)/計算!$B$26*BT$2)) -> 0 | BU20: =IF($BG20<BU$1,0,IF($BG20-BU$1>計算!$B$26,BU$2,($BG20-BU$1)/計算!$B$26*BU$2)) -> 0 | BV20: =IF($BG20<BV$1,0,IF($BG20-BV$1>計算!$B$26,BV$2,($BG20-BV$1)/計算!$B$26*BV$2)) -> 0 | BW20: =IF($BG20<BW$1,0,IF($BG20-BW$1>計算!$B$26,BW$2,($BG20-BW$1)/計算!$B$26*BW$2)) -> 0 | BX20: =IF($BG20<BX$1,0,IF($BG20-BX$1>計算!$B$26,BX$2,($BG20-BX$1)/計算!$B$26*BX$2)) -> 0 | BY20: =IF($BG20<BY$1,0,IF($BG20-BY$1>計算!$B$26,BY$2,($BG20-BY$1)/計算!$B$26*BY$2)) -> 0 | BZ20: =IF($BG20<BZ$1,0,IF($BG20-BZ$1>計算!$B$26,BZ$2,($BG20-BZ$1)/計算!$B$26*BZ$2)) -> 0 | CA20: =IF($BG20<CA$1,0,IF($BG20-CA$1>計算!$B$26,CA$2,($BG20-CA$1)/計算!$B$26*CA$2)) -> 0 | CB20: =IF($BG20<CB$1,0,IF($BG20-CB$1>計算!$B$26,CB$2,($BG20-CB$1)/計算!$B$26*CB$2)) -> 0 | CC20: =IF($BG20<CC$1,0,IF($BG20-CC$1>計算!$B$26,CC$2,($BG20-CC$1)/計算!$B$26*CC$2)) -> 0 | CD20: =IF($BG20<CD$1,0,IF($BG20-CD$1>計算!$B$26,CD$2,($BG20-CD$1)/計算!$B$26*CD$2)) -> 0 | CE20: =IF($BG20<CE$1,0,IF($BG20-CE$1>計算!$B$26,CE$2,($BG20-CE$1)/計算!$B$26*CE$2)) -> 0 | CF20: =IF($BG20<CF$1,0,IF($BG20-CF$1>計算!$B$26,CF$2,($BG20-CF$1)/計算!$B$26*CF$2)) -> 0 | CG20: =IF($BG20<CG$1,0,IF($BG20-CG$1>計算!$B$26,CG$2,($BG20-CG$1)/計算!$B$26*CG$2)) -> 0 | CH20: =IF($BG20<CH$1,0,IF($BG20-CH$1>計算!$B$26,CH$2,($BG20-CH$1)/計算!$B$26*CH$2)) -> 0 | CI20: =IF($BG20<CI$1,0,IF($BG20-CI$1>計算!$B$26,CI$2,($BG20-CI$1)/計算!$B$26*CI$2)) -> 0 | CJ20: =IF($BG20<CJ$1,0,IF($BG20-CJ$1>計算!$B$26,CJ$2,($BG20-CJ$1)/計算!$B$26*CJ$2)) -> 0 | CK20: =IF($BG20<CK$1,0,IF($BG20-CK$1>計算!$B$26,CK$2,($BG20-CK$1)/計算!$B$26*CK$2)) -> 0 | CL20: 3.179657456 | CO20: 4.42924685 | CP20: 0.04979074442 | CQ20: -0.04979074442
A21: τD(ns) | B21: =B24*$B$25 -> 0.9606960367 | F21: 35 | G21: =準備!J20 -> 7.743210095 | H21: =準備!O20-準備!O19 -> 0.02642864354 | I21: =準備!P20-準備!P19 -> -0.2827946741 | K21: 18 | L21: 4.45806775 | M21: =IF($L21<M$1,0,IF($L21-M$1>計算!$B$26,M$2,($L21-M$1)/計算!$B$26*M$2)) -> 1.989000528 | N21: =IF($L21<N$1,0,IF($L21-N$1>計算!$B$26,N$2,($L21-N$1)/計算!$B$26*N$2)) -> 0.3275217949 | O21: =IF($L21<O$1,0,IF($L21-O$1>計算!$B$26,O$2,($L21-O$1)/計算!$B$26*O$2)) -> 0.9310129985 | P21: =IF($L21<P$1,0,IF($L21-P$1>計算!$B$26,P$2,($L21-P$1)/計算!$B$26*P$2)) -> 0.2787994054 | Q21: =IF($L21<Q$1,0,IF($L21-Q$1>計算!$B$26,Q$2,($L21-Q$1)/計算!$B$26*Q$2)) -> 0.07787922992 | R21: =IF($L21<R$1,0,IF($L21-R$1>計算!$B$26,R$2,($L21-R$1)/計算!$B$26*R$2)) -> -0.01119237707 | S21: =IF($L21<S$1,0,IF($L21-S$1>計算!$B$26,S$2,($L21-S$1)/計算!$B$26*S$2)) -> -0.2393553108 | T21: =IF($L21<T$1,0,IF($L21-T$1>計算!$B$26,T$2,($L21-T$1)/計算!$B$26*T$2)) -> -0.1103328801 | U21: =IF($L21<U$1,0,IF($L21-U$1>計算!$B$26,U$2,($L21-U$1)/計算!$B$26*U$2)) -> 0.02624490998 | V21: =IF($L21<V$1,0,IF($L21-V$1>計算!$B$26,V$2,($L21-V$1)/計算!$B$26*V$2)) -> 0 | W21: =IF($L21<W$1,0,IF($L21-W$1>計算!$B$26,W$2,($L21-W$1)/計算!$B$26*W$2)) -> 0 | X21: =IF($L21<X$1,0,IF($L21-X$1>計算!$B$26,X$2,($L21-X$1)/計算!$B$26*X$2)) -> 0 | Y21: =IF($L21<Y$1,0,IF($L21-Y$1>計算!$B$26,Y$2,($L21-Y$1)/計算!$B$26*Y$2)) -> 0 | Z21: =IF($L21<Z$1,0,IF($L21-Z$1>計算!$B$26,Z$2,($L21-Z$1)/計算!$B$26*Z$2)) -> 0 | AA21: =IF($L21<AA$1,0,IF($L21-AA$1>計算!$B$26,AA$2,($L21-AA$1)/計算!$B$26*AA$2)) -> 0 | AB21: =IF($L21<AB$1,0,IF($L21-AB$1>計算!$B$26,AB$2,($L21-AB$1)/計算!$B$26*AB$2)) -> 0 | AC21: =IF($L21<AC$1,0,IF($L21-AC$1>計算!$B$26,AC$2,($L21-AC$1)/計算!$B$26*AC$2)) -> 0 | AD21: =IF($L21<AD$1,0,IF($L21-AD$1>計算!$B$26,AD$2,($L21-AD$1)/計算!$B$26*AD$2)) -> 0 | AE21: =IF($L21<AE$1,0,IF($L21-AE$1>計算!$B$26,AE$2,($L21-AE$1)/計算!$B$26*AE$2)) -> 0 | AF21: =IF($L21<AF$1,0,IF($L21-AF$1>計算!$B$26,AF$2,($L21-AF$1)/計算!$B$26*AF$2)) -> 0 | AG21: =IF($L21<AG$1,0,IF($L21-AG$1>計算!$B$26,AG$2,($L21-AG$1)/計算!$B$26*AG$2)) -> 0 | AH21: =IF($L21<AH$1,0,IF($L21-AH$1>計算!$B$26,AH$2,($L21-AH$1)/計算!$B$26*AH$2)) -> 0 | AI21: =IF($L21<AI$1,0,IF($L21-AI$1>計算!$B$26,AI$2,($L21-AI$1)/計算!$B$26*AI$2)) -> 0 | AJ21: =IF($L21<AJ$1,0,IF($L21-AJ$1>計算!$B$26,AJ$2,($L21-AJ$1)/計算!$B$26*AJ$2)) -> 0 | AK21: =IF($L21<AK$1,0,IF($L21-AK$1>計算!$B$26,AK$2,($L21-AK$1)/計算!$B$26*AK$2)) -> 0 | AL21: =IF($L21<AL$1,0,IF($L21-AL$1>計算!$B$26,AL$2,($L21-AL$1)/計算!$B$26*AL$2)) -> 0 | AM21: =IF($L21<AM$1,0,IF($L21-AM$1>計算!$B$26,AM$2,($L21-AM$1)/計算!$B$26*AM$2)) -> 0 | AN21: =IF($L21<AN$1,0,IF($L21-AN$1>計算!$B$26,AN$2,($L21-AN$1)/計算!$B$26*AN$2)) -> 0 | AO21: =IF($L21<AO$1,0,IF($L21-AO$1>計算!$B$26,AO$2,($L21-AO$1)/計算!$B$26*AO$2)) -> 0 | AP21: =IF($L21<AP$1,0,IF($L21-AP$1>計算!$B$26,AP$2,($L21-AP$1)/計算!$B$26*AP$2)) -> 0 | AQ21: =IF($L21<AQ$1,0,IF($L21-AQ$1>計算!$B$26,AQ$2,($L21-AQ$1)/計算!$B$26*AQ$2)) -> 0 | AR21: =IF($L21<AR$1,0,IF($L21-AR$1>計算!$B$26,AR$2,($L21-AR$1)/計算!$B$26*AR$2)) -> 0 | AS21: =IF($L21<AS$1,0,IF($L21-AS$1>計算!$B$26,AS$2,($L21-AS$1)/計算!$B$26*AS$2)) -> 0 | AT21: =IF($L21<AT$1,0,IF($L21-AT$1>計算!$B$26,AT$2,($L21-AT$1)/計算!$B$26*AT$2)) -> 0 | AU21: =IF($L21<AU$1,0,IF($L21-AU$1>計算!$B$26,AU$2,($L21-AU$1)/計算!$B$26*AU$2)) -> 0 | AV21: =IF($L21<AV$1,0,IF($L21-AV$1>計算!$B$26,AV$2,($L21-AV$1)/計算!$B$26*AV$2)) -> 0 | AW21: 3.269578299 | BA21: 31 | BB21: =準備!T20 -> 6.897797661 | BC21: =準備!Y20-準備!Y19 -> -0.0333038386 | BD21: =準備!Z20-準備!Z19 -> -0.0117635417 | BF21: 17 | BG21: 4.918763786 | BH21: =IF($BG21<BH$1,0,IF($BG21-BH$1>計算!$B$26,BH$2,($BG21-BH$1)/計算!$B$26*BH$2)) -> 1.843424849 | BI21: =IF($BG21<BI$1,0,IF($BG21-BI$1>計算!$B$26,BI$2,($BG21-BI$1)/計算!$B$26*BI$2)) -> 2.08043597 | BJ21: =IF($BG21<BJ$1,0,IF($BG21-BJ$1>計算!$B$26,BJ$2,($BG21-BJ$1)/計算!$B$26*BJ$2)) -> 0.4383357379 | BK21: =IF($BG21<BK$1,0,IF($BG21-BK$1>計算!$B$26,BK$2,($BG21-BK$1)/計算!$B$26*BK$2)) -> -0.5512010619 | BL21: =IF($BG21<BL$1,0,IF($BG21-BL$1>計算!$B$26,BL$2,($BG21-BL$1)/計算!$B$26*BL$2)) -> -0.8036518745 | BM21: =IF($BG21<BM$1,0,IF($BG21-BM$1>計算!$B$26,BM$2,($BG21-BM$1)/計算!$B$26*BM$2)) -> 0.1958427948 | BN21: =IF($BG21<BN$1,0,IF($BG21-BN$1>計算!$B$26,BN$2,($BG21-BN$1)/計算!$B$26*BN$2)) -> 0.0240317755 | BO21: =IF($BG21<BO$1,0,IF($BG21-BO$1>計算!$B$26,BO$2,($BG21-BO$1)/計算!$B$26*BO$2)) -> -0.07648952151 | BP21: =IF($BG21<BP$1,0,IF($BG21-BP$1>計算!$B$26,BP$2,($BG21-BP$1)/計算!$B$26*BP$2)) -> 0.01888044741 | BQ21: =IF($BG21<BQ$1,0,IF($BG21-BQ$1>計算!$B$26,BQ$2,($BG21-BQ$1)/計算!$B$26*BQ$2)) -> 0.02752673007 | BR21: =IF($BG21<BR$1,0,IF($BG21-BR$1>計算!$B$26,BR$2,($BG21-BR$1)/計算!$B$26*BR$2)) -> 0 | BS21: =IF($BG21<BS$1,0,IF($BG21-BS$1>計算!$B$26,BS$2,($BG21-BS$1)/計算!$B$26*BS$2)) -> 0 | BT21: =IF($BG21<BT$1,0,IF($BG21-BT$1>計算!$B$26,BT$2,($BG21-BT$1)/計算!$B$26*BT$2)) -> 0 | BU21: =IF($BG21<BU$1,0,IF($BG21-BU$1>計算!$B$26,BU$2,($BG21-BU$1)/計算!$B$26*BU$2)) -> 0 | BV21: =IF($BG21<BV$1,0,IF($BG21-BV$1>計算!$B$26,BV$2,($BG21-BV$1)/計算!$B$26*BV$2)) -> 0 | BW21: =IF($BG21<BW$1,0,IF($BG21-BW$1>計算!$B$26,BW$2,($BG21-BW$1)/計算!$B$26*BW$2)) -> 0 | BX21: =IF($BG21<BX$1,0,IF($BG21-BX$1>計算!$B$26,BX$2,($BG21-BX$1)/計算!$B$26*BX$2)) -> 0 | BY21: =IF($BG21<BY$1,0,IF($BG21-BY$1>計算!$B$26,BY$2,($BG21-BY$1)/計算!$B$26*BY$2)) -> 0 | BZ21: =IF($BG21<BZ$1,0,IF($BG21-BZ$1>計算!$B$26,BZ$2,($BG21-BZ$1)/計算!$B$26*BZ$2)) -> 0 | CA21: =IF($BG21<CA$1,0,IF($BG21-CA$1>計算!$B$26,CA$2,($BG21-CA$1)/計算!$B$26*CA$2)) -> 0 | CB21: =IF($BG21<CB$1,0,IF($BG21-CB$1>計算!$B$26,CB$2,($BG21-CB$1)/計算!$B$26*CB$2)) -> 0 | CC21: =IF($BG21<CC$1,0,IF($BG21-CC$1>計算!$B$26,CC$2,($BG21-CC$1)/計算!$B$26*CC$2)) -> 0 | CD21: =IF($BG21<CD$1,0,IF($BG21-CD$1>計算!$B$26,CD$2,($BG21-CD$1)/計算!$B$26*CD$2)) -> 0 | CE21: =IF($BG21<CE$1,0,IF($BG21-CE$1>計算!$B$26,CE$2,($BG21-CE$1)/計算!$B$26*CE$2)) -> 0 | CF21: =IF($BG21<CF$1,0,IF($BG21-CF$1>計算!$B$26,CF$2,($BG21-CF$1)/計算!$B$26*CF$2)) -> 0 | CG21: =IF($BG21<CG$1,0,IF($BG21-CG$1>計算!$B$26,CG$2,($BG21-CG$1)/計算!$B$26*CG$2)) -> 0 | CH21: =IF($BG21<CH$1,0,IF($BG21-CH$1>計算!$B$26,CH$2,($BG21-CH$1)/計算!$B$26*CH$2)) -> 0 | CI21: =IF($BG21<CI$1,0,IF($BG21-CI$1>計算!$B$26,CI$2,($BG21-CI$1)/計算!$B$26*CI$2)) -> 0 | CJ21: =IF($BG21<CJ$1,0,IF($BG21-CJ$1>計算!$B$26,CJ$2,($BG21-CJ$1)/計算!$B$26*CJ$2)) -> 0 | CK21: =IF($BG21<CK$1,0,IF($BG21-CK$1>計算!$B$26,CK$2,($BG21-CK$1)/計算!$B$26*CK$2)) -> 0 | CL21: 3.197135847 | CO21: 4.45806775 | CP21: 0.05325429673 | CQ21: -0.05325429673
A22: td(ns/m) | B22: 6.5 | C22: =SQRT(1+VLOOKUP(波形!R8,Data!M2:M14,1,0))+0.00000001 -> 1.014889167 | F22: 36 | G22: =準備!J21 -> 7.772030996 | H22: =準備!O21-準備!O20 -> 0.05897980492 | I22: =準備!P21-準備!P20 -> 0.1850489445 | K22: 19 | L22: 5.76417622 | M22: =IF($L22<M$1,0,IF($L22-M$1>計算!$B$26,M$2,($L22-M$1)/計算!$B$26*M$2)) -> 1.989000528 | N22: =IF($L22<N$1,0,IF($L22-N$1>計算!$B$26,N$2,($L22-N$1)/計算!$B$26*N$2)) -> 0.3275217949 | O22: =IF($L22<O$1,0,IF($L22-O$1>計算!$B$26,O$2,($L22-O$1)/計算!$B$26*O$2)) -> 0.9310129985 | P22: =IF($L22<P$1,0,IF($L22-P$1>計算!$B$26,P$2,($L22-P$1)/計算!$B$26*P$2)) -> 0.2787994054 | Q22: =IF($L22<Q$1,0,IF($L22-Q$1>計算!$B$26,Q$2,($L22-Q$1)/計算!$B$26*Q$2)) -> 0.07787922992 | R22: =IF($L22<R$1,0,IF($L22-R$1>計算!$B$26,R$2,($L22-R$1)/計算!$B$26*R$2)) -> -0.01119237707 | S22: =IF($L22<S$1,0,IF($L22-S$1>計算!$B$26,S$2,($L22-S$1)/計算!$B$26*S$2)) -> -0.2393553108 | T22: =IF($L22<T$1,0,IF($L22-T$1>計算!$B$26,T$2,($L22-T$1)/計算!$B$26*T$2)) -> -0.1103328801 | U22: =IF($L22<U$1,0,IF($L22-U$1>計算!$B$26,U$2,($L22-U$1)/計算!$B$26*U$2)) -> 0.02624490998 | V22: =IF($L22<V$1,0,IF($L22-V$1>計算!$B$26,V$2,($L22-V$1)/計算!$B$26*V$2)) -> 0 | W22: =IF($L22<W$1,0,IF($L22-W$1>計算!$B$26,W$2,($L22-W$1)/計算!$B$26*W$2)) -> 0 | X22: =IF($L22<X$1,0,IF($L22-X$1>計算!$B$26,X$2,($L22-X$1)/計算!$B$26*X$2)) -> 0 | Y22: =IF($L22<Y$1,0,IF($L22-Y$1>計算!$B$26,Y$2,($L22-Y$1)/計算!$B$26*Y$2)) -> 0 | Z22: =IF($L22<Z$1,0,IF($L22-Z$1>計算!$B$26,Z$2,($L22-Z$1)/計算!$B$26*Z$2)) -> 0 | AA22: =IF($L22<AA$1,0,IF($L22-AA$1>計算!$B$26,AA$2,($L22-AA$1)/計算!$B$26*AA$2)) -> 0 | AB22: =IF($L22<AB$1,0,IF($L22-AB$1>計算!$B$26,AB$2,($L22-AB$1)/計算!$B$26*AB$2)) -> 0 | AC22: =IF($L22<AC$1,0,IF($L22-AC$1>計算!$B$26,AC$2,($L22-AC$1)/計算!$B$26*AC$2)) -> 0 | AD22: =IF($L22<AD$1,0,IF($L22-AD$1>計算!$B$26,AD$2,($L22-AD$1)/計算!$B$26*AD$2)) -> 0 | AE22: =IF($L22<AE$1,0,IF($L22-AE$1>計算!$B$26,AE$2,($L22-AE$1)/計算!$B$26*AE$2)) -> 0 | AF22: =IF($L22<AF$1,0,IF($L22-AF$1>計算!$B$26,AF$2,($L22-AF$1)/計算!$B$26*AF$2)) -> 0 | AG22: =IF($L22<AG$1,0,IF($L22-AG$1>計算!$B$26,AG$2,($L22-AG$1)/計算!$B$26*AG$2)) -> 0 | AH22: =IF($L22<AH$1,0,IF($L22-AH$1>計算!$B$26,AH$2,($L22-AH$1)/計算!$B$26*AH$2)) -> 0 | AI22: =IF($L22<AI$1,0,IF($L22-AI$1>計算!$B$26,AI$2,($L22-AI$1)/計算!$B$26*AI$2)) -> 0 | AJ22: =IF($L22<AJ$1,0,IF($L22-AJ$1>計算!$B$26,AJ$2,($L22-AJ$1)/計算!$B$26*AJ$2)) -> 0 | AK22: =IF($L22<AK$1,0,IF($L22-AK$1>計算!$B$26,AK$2,($L22-AK$1)/計算!$B$26*AK$2)) -> 0 | AL22: =IF($L22<AL$1,0,IF($L22-AL$1>計算!$B$26,AL$2,($L22-AL$1)/計算!$B$26*AL$2)) -> 0 | AM22: =IF($L22<AM$1,0,IF($L22-AM$1>計算!$B$26,AM$2,($L22-AM$1)/計算!$B$26*AM$2)) -> 0 | AN22: =IF($L22<AN$1,0,IF($L22-AN$1>計算!$B$26,AN$2,($L22-AN$1)/計算!$B$26*AN$2)) -> 0 | AO22: =IF($L22<AO$1,0,IF($L22-AO$1>計算!$B$26,AO$2,($L22-AO$1)/計算!$B$26*AO$2)) -> 0 | AP22: =IF($L22<AP$1,0,IF($L22-AP$1>計算!$B$26,AP$2,($L22-AP$1)/計算!$B$26*AP$2)) -> 0 | AQ22: =IF($L22<AQ$1,0,IF($L22-AQ$1>計算!$B$26,AQ$2,($L22-AQ$1)/計算!$B$26*AQ$2)) -> 0 | AR22: =IF($L22<AR$1,0,IF($L22-AR$1>計算!$B$26,AR$2,($L22-AR$1)/計算!$B$26*AR$2)) -> 0 | AS22: =IF($L22<AS$1,0,IF($L22-AS$1>計算!$B$26,AS$2,($L22-AS$1)/計算!$B$26*AS$2)) -> 0 | AT22: =IF($L22<AT$1,0,IF($L22-AT$1>計算!$B$26,AT$2,($L22-AT$1)/計算!$B$26*AT$2)) -> 0 | AU22: =IF($L22<AU$1,0,IF($L22-AU$1>計算!$B$26,AU$2,($L22-AU$1)/計算!$B$26*AU$2)) -> 0 | AV22: =IF($L22<AV$1,0,IF($L22-AV$1>計算!$B$26,AV$2,($L22-AV$1)/計算!$B$26*AV$2)) -> 0 | AW22: 3.269578299 | BA22: 32 | BB22: =準備!T21 -> 6.926618561 | BC22: =準備!Y21-準備!Y20 -> 0.001735457916 | BD22: =準備!Z21-準備!Z20 -> 0.0007580100327 | BF22: 18 | BG22: 4.947584687 | BH22: =IF($BG22<BH$1,0,IF($BG22-BH$1>計算!$B$26,BH$2,($BG22-BH$1)/計算!$B$26*BH$2)) -> 1.843424849 | BI22: =IF($BG22<BI$1,0,IF($BG22-BI$1>計算!$B$26,BI$2,($BG22-BI$1)/計算!$B$26*BI$2)) -> 2.08043597 | BJ22: =IF($BG22<BJ$1,0,IF($BG22-BJ$1>計算!$B$26,BJ$2,($BG22-BJ$1)/計算!$B$26*BJ$2)) -> 0.4383357379 | BK22: =IF($BG22<BK$1,0,IF($BG22-BK$1>計算!$B$26,BK$2,($BG22-BK$1)/計算!$B$26*BK$2)) -> -0.5512010619 | BL22: =IF($BG22<BL$1,0,IF($BG22-BL$1>計算!$B$26,BL$2,($BG22-BL$1)/計算!$B$26*BL$2)) -> -0.8036518745 | BM22: =IF($BG22<BM$1,0,IF($BG22-BM$1>計算!$B$26,BM$2,($BG22-BM$1)/計算!$B$26*BM$2)) -> 0.1958427948 | BN22: =IF($BG22<BN$1,0,IF($BG22-BN$1>計算!$B$26,BN$2,($BG22-BN$1)/計算!$B$26*BN$2)) -> 0.03003971938 | BO22: =IF($BG22<BO$1,0,IF($BG22-BO$1>計算!$B$26,BO$2,($BG22-BO$1)/計算!$B$26*BO$2)) -> -0.1019860287 | BP22: =IF($BG22<BP$1,0,IF($BG22-BP$1>計算!$B$26,BP$2,($BG22-BP$1)/計算!$B$26*BP$2)) -> 0.02832067111 | BQ22: =IF($BG22<BQ$1,0,IF($BG22-BQ$1>計算!$B$26,BQ$2,($BG22-BQ$1)/計算!$B$26*BQ$2)) -> 0.05505346014 | BR22: =IF($BG22<BR$1,0,IF($BG22-BR$1>計算!$B$26,BR$2,($BG22-BR$1)/計算!$B$26*BR$2)) -> -0.01237680342 | BS22: =IF($BG22<BS$1,0,IF($BG22-BS$1>計算!$B$26,BS$2,($BG22-BS$1)/計算!$B$26*BS$2)) -> 0 | BT22: =IF($BG22<BT$1,0,IF($BG22-BT$1>計算!$B$26,BT$2,($BG22-BT$1)/計算!$B$26*BT$2)) -> 0 | BU22: =IF($BG22<BU$1,0,IF($BG22-BU$1>計算!$B$26,BU$2,($BG22-BU$1)/計算!$B$26*BU$2)) -> 0 | BV22: =IF($BG22<BV$1,0,IF($BG22-BV$1>計算!$B$26,BV$2,($BG22-BV$1)/計算!$B$26*BV$2)) -> 0 | BW22: =IF($BG22<BW$1,0,IF($BG22-BW$1>計算!$B$26,BW$2,($BG22-BW$1)/計算!$B$26*BW$2)) -> 0 | BX22: =IF($BG22<BX$1,0,IF($BG22-BX$1>計算!$B$26,BX$2,($BG22-BX$1)/計算!$B$26*BX$2)) -> 0 | BY22: =IF($BG22<BY$1,0,IF($BG22-BY$1>計算!$B$26,BY$2,($BG22-BY$1)/計算!$B$26*BY$2)) -> 0 | BZ22: =IF($BG22<BZ$1,0,IF($BG22-BZ$1>計算!$B$26,BZ$2,($BG22-BZ$1)/計算!$B$26*BZ$2)) -> 0 | CA22: =IF($BG22<CA$1,0,IF($BG22-CA$1>計算!$B$26,CA$2,($BG22-CA$1)/計算!$B$26*CA$2)) -> 0 | CB22: =IF($BG22<CB$1,0,IF($BG22-CB$1>計算!$B$26,CB$2,($BG22-CB$1)/計算!$B$26*CB$2)) -> 0 | CC22: =IF($BG22<CC$1,0,IF($BG22-CC$1>計算!$B$26,CC$2,($BG22-CC$1)/計算!$B$26*CC$2)) -> 0 | CD22: =IF($BG22<CD$1,0,IF($BG22-CD$1>計算!$B$26,CD$2,($BG22-CD$1)/計算!$B$26*CD$2)) -> 0 | CE22: =IF($BG22<CE$1,0,IF($BG22-CE$1>計算!$B$26,CE$2,($BG22-CE$1)/計算!$B$26*CE$2)) -> 0 | CF22: =IF($BG22<CF$1,0,IF($BG22-CF$1>計算!$B$26,CF$2,($BG22-CF$1)/計算!$B$26*CF$2)) -> 0 | CG22: =IF($BG22<CG$1,0,IF($BG22-CG$1>計算!$B$26,CG$2,($BG22-CG$1)/計算!$B$26*CG$2)) -> 0 | CH22: =IF($BG22<CH$1,0,IF($BG22-CH$1>計算!$B$26,CH$2,($BG22-CH$1)/計算!$B$26*CH$2)) -> 0 | CI22: =IF($BG22<CI$1,0,IF($BG22-CI$1>計算!$B$26,CI$2,($BG22-CI$1)/計算!$B$26*CI$2)) -> 0 | CJ22: =IF($BG22<CJ$1,0,IF($BG22-CJ$1>計算!$B$26,CJ$2,($BG22-CJ$1)/計算!$B$26*CJ$2)) -> 0 | CK22: =IF($BG22<CK$1,0,IF($BG22-CK$1>計算!$B$26,CK$2,($BG22-CK$1)/計算!$B$26*CK$2)) -> 0 | CL22: 3.202237434 | CO22: 5.76417622 | CP22: 0.05325429673 | CQ22: -0.05325429673
A23: tdC(ns/m) | B23: =B22*C22 -> 6.596779582 | F23: 37 | G23: =準備!J22 -> 7.800851896 | H23: =準備!O22-準備!O21 -> -0.05657348573 | I23: =準備!P22-準備!P21 -> 0.2084731661 | K23: 20 | L23: 5.792997121 | M23: =IF($L23<M$1,0,IF($L23-M$1>計算!$B$26,M$2,($L23-M$1)/計算!$B$26*M$2)) -> 1.989000528 | N23: =IF($L23<N$1,0,IF($L23-N$1>計算!$B$26,N$2,($L23-N$1)/計算!$B$26*N$2)) -> 0.3275217949 | O23: =IF($L23<O$1,0,IF($L23-O$1>計算!$B$26,O$2,($L23-O$1)/計算!$B$26*O$2)) -> 0.9310129985 | P23: =IF($L23<P$1,0,IF($L23-P$1>計算!$B$26,P$2,($L23-P$1)/計算!$B$26*P$2)) -> 0.2787994054 | Q23: =IF($L23<Q$1,0,IF($L23-Q$1>計算!$B$26,Q$2,($L23-Q$1)/計算!$B$26*Q$2)) -> 0.07787922992 | R23: =IF($L23<R$1,0,IF($L23-R$1>計算!$B$26,R$2,($L23-R$1)/計算!$B$26*R$2)) -> -0.01119237707 | S23: =IF($L23<S$1,0,IF($L23-S$1>計算!$B$26,S$2,($L23-S$1)/計算!$B$26*S$2)) -> -0.2393553108 | T23: =IF($L23<T$1,0,IF($L23-T$1>計算!$B$26,T$2,($L23-T$1)/計算!$B$26*T$2)) -> -0.1103328801 | U23: =IF($L23<U$1,0,IF($L23-U$1>計算!$B$26,U$2,($L23-U$1)/計算!$B$26*U$2)) -> 0.02624490998 | V23: =IF($L23<V$1,0,IF($L23-V$1>計算!$B$26,V$2,($L23-V$1)/計算!$B$26*V$2)) -> 0.001067433025 | W23: =IF($L23<W$1,0,IF($L23-W$1>計算!$B$26,W$2,($L23-W$1)/計算!$B$26*W$2)) -> 0 | X23: =IF($L23<X$1,0,IF($L23-X$1>計算!$B$26,X$2,($L23-X$1)/計算!$B$26*X$2)) -> 0 | Y23: =IF($L23<Y$1,0,IF($L23-Y$1>計算!$B$26,Y$2,($L23-Y$1)/計算!$B$26*Y$2)) -> 0 | Z23: =IF($L23<Z$1,0,IF($L23-Z$1>計算!$B$26,Z$2,($L23-Z$1)/計算!$B$26*Z$2)) -> 0 | AA23: =IF($L23<AA$1,0,IF($L23-AA$1>計算!$B$26,AA$2,($L23-AA$1)/計算!$B$26*AA$2)) -> 0 | AB23: =IF($L23<AB$1,0,IF($L23-AB$1>計算!$B$26,AB$2,($L23-AB$1)/計算!$B$26*AB$2)) -> 0 | AC23: =IF($L23<AC$1,0,IF($L23-AC$1>計算!$B$26,AC$2,($L23-AC$1)/計算!$B$26*AC$2)) -> 0 | AD23: =IF($L23<AD$1,0,IF($L23-AD$1>計算!$B$26,AD$2,($L23-AD$1)/計算!$B$26*AD$2)) -> 0 | AE23: =IF($L23<AE$1,0,IF($L23-AE$1>計算!$B$26,AE$2,($L23-AE$1)/計算!$B$26*AE$2)) -> 0 | AF23: =IF($L23<AF$1,0,IF($L23-AF$1>計算!$B$26,AF$2,($L23-AF$1)/計算!$B$26*AF$2)) -> 0 | AG23: =IF($L23<AG$1,0,IF($L23-AG$1>計算!$B$26,AG$2,($L23-AG$1)/計算!$B$26*AG$2)) -> 0 | AH23: =IF($L23<AH$1,0,IF($L23-AH$1>計算!$B$26,AH$2,($L23-AH$1)/計算!$B$26*AH$2)) -> 0 | AI23: =IF($L23<AI$1,0,IF($L23-AI$1>計算!$B$26,AI$2,($L23-AI$1)/計算!$B$26*AI$2)) -> 0 | AJ23: =IF($L23<AJ$1,0,IF($L23-AJ$1>計算!$B$26,AJ$2,($L23-AJ$1)/計算!$B$26*AJ$2)) -> 0 | AK23: =IF($L23<AK$1,0,IF($L23-AK$1>計算!$B$26,AK$2,($L23-AK$1)/計算!$B$26*AK$2)) -> 0 | AL23: =IF($L23<AL$1,0,IF($L23-AL$1>計算!$B$26,AL$2,($L23-AL$1)/計算!$B$26*AL$2)) -> 0 | AM23: =IF($L23<AM$1,0,IF($L23-AM$1>計算!$B$26,AM$2,($L23-AM$1)/計算!$B$26*AM$2)) -> 0 | AN23: =IF($L23<AN$1,0,IF($L23-AN$1>計算!$B$26,AN$2,($L23-AN$1)/計算!$B$26*AN$2)) -> 0 | AO23: =IF($L23<AO$1,0,IF($L23-AO$1>計算!$B$26,AO$2,($L23-AO$1)/計算!$B$26*AO$2)) -> 0 | AP23: =IF($L23<AP$1,0,IF($L23-AP$1>計算!$B$26,AP$2,($L23-AP$1)/計算!$B$26*AP$2)) -> 0 | AQ23: =IF($L23<AQ$1,0,IF($L23-AQ$1>計算!$B$26,AQ$2,($L23-AQ$1)/計算!$B$26*AQ$2)) -> 0 | AR23: =IF($L23<AR$1,0,IF($L23-AR$1>計算!$B$26,AR$2,($L23-AR$1)/計算!$B$26*AR$2)) -> 0 | AS23: =IF($L23<AS$1,0,IF($L23-AS$1>計算!$B$26,AS$2,($L23-AS$1)/計算!$B$26*AS$2)) -> 0 | AT23: =IF($L23<AT$1,0,IF($L23-AT$1>計算!$B$26,AT$2,($L23-AT$1)/計算!$B$26*AT$2)) -> 0 | AU23: =IF($L23<AU$1,0,IF($L23-AU$1>計算!$B$26,AU$2,($L23-AU$1)/計算!$B$26*AU$2)) -> 0 | AV23: =IF($L23<AV$1,0,IF($L23-AV$1>計算!$B$26,AV$2,($L23-AV$1)/計算!$B$26*AV$2)) -> 0 | AW23: 3.270645732 | AZ23: 1e-07 | BA23: 41 | BB23: =IF(準備!T22>=準備!$T$33,準備!$T$33,準備!T22)+AZ23 -> 8.646264431 | BC23: =準備!Y22-準備!Y21 -> 0.005893200406 | BD23: =準備!Z22-準備!Z21 -> -0.002147213636 | BF23: 19 | BG23: 5.303480254 | BH23: =IF($BG23<BH$1,0,IF($BG23-BH$1>計算!$B$26,BH$2,($BG23-BH$1)/計算!$B$26*BH$2)) -> 1.843424849 | BI23: =IF($BG23<BI$1,0,IF($BG23-BI$1>計算!$B$26,BI$2,($BG23-BI$1)/計算!$B$26*BI$2)) -> 2.08043597 | BJ23: =IF($BG23<BJ$1,0,IF($BG23-BJ$1>計算!$B$26,BJ$2,($BG23-BJ$1)/計算!$B$26*BJ$2)) -> 0.4383357379 | BK23: =IF($BG23<BK$1,0,IF($BG23-BK$1>計算!$B$26,BK$2,($BG23-BK$1)/計算!$B$26*BK$2)) -> -0.5512010619 | BL23: =IF($BG23<BL$1,0,IF($BG23-BL$1>計算!$B$26,BL$2,($BG23-BL$1)/計算!$B$26*BL$2)) -> -0.8036518745 | BM23: =IF($BG23<BM$1,0,IF($BG23-BM$1>計算!$B$26,BM$2,($BG23-BM$1)/計算!$B$26*BM$2)) -> 0.1958427948 | BN23: =IF($BG23<BN$1,0,IF($BG23-BN$1>計算!$B$26,BN$2,($BG23-BN$1)/計算!$B$26*BN$2)) -> 0.1042289406 | BO23: =IF($BG23<BO$1,0,IF($BG23-BO$1>計算!$B$26,BO$2,($BG23-BO$1)/計算!$B$26*BO$2)) -> -0.4168302454 | BP23: =IF($BG23<BP$1,0,IF($BG23-BP$1>計算!$B$26,BP$2,($BG23-BP$1)/計算!$B$26*BP$2)) -> 0.1448934949 | BQ23: =IF($BG23<BQ$1,0,IF($BG23-BQ$1>計算!$B$26,BQ$2,($BG23-BQ$1)/計算!$B$26*BQ$2)) -> 0.394967932 | BR23: =IF($BG23<BR$1,0,IF($BG23-BR$1>計算!$B$26,BR$2,($BG23-BR$1)/計算!$B$26*BR$2)) -> -0.1652120507 | BS23: =IF($BG23<BS$1,0,IF($BG23-BS$1>計算!$B$26,BS$2,($BG23-BS$1)/計算!$B$26*BS$2)) -> 0.01312240437 | BT23: =IF($BG23<BT$1,0,IF($BG23-BT$1>計算!$B$26,BT$2,($BG23-BT$1)/計算!$B$26*BT$2)) -> 0 | BU23: =IF($BG23<BU$1,0,IF($BG23-BU$1>計算!$B$26,BU$2,($BG23-BU$1)/計算!$B$26*BU$2)) -> 0 | BV23: =IF($BG23<BV$1,0,IF($BG23-BV$1>計算!$B$26,BV$2,($BG23-BV$1)/計算!$B$26*BV$2)) -> 0 | BW23: =IF($BG23<BW$1,0,IF($BG23-BW$1>計算!$B$26,BW$2,($BG23-BW$1)/計算!$B$26*BW$2)) -> 0 | BX23: =IF($BG23<BX$1,0,IF($BG23-BX$1>計算!$B$26,BX$2,($BG23-BX$1)/計算!$B$26*BX$2)) -> 0 | BY23: =IF($BG23<BY$1,0,IF($BG23-BY$1>計算!$B$26,BY$2,($BG23-BY$1)/計算!$B$26*BY$2)) -> 0 | BZ23: =IF($BG23<BZ$1,0,IF($BG23-BZ$1>計算!$B$26,BZ$2,($BG23-BZ$1)/計算!$B$26*BZ$2)) -> 0 | CA23: =IF($BG23<CA$1,0,IF($BG23-CA$1>計算!$B$26,CA$2,($BG23-CA$1)/計算!$B$26*CA$2)) -> 0 | CB23: =IF($BG23<CB$1,0,IF($BG23-CB$1>計算!$B$26,CB$2,($BG23-CB$1)/計算!$B$26*CB$2)) -> 0 | CC23: =IF($BG23<CC$1,0,IF($BG23-CC$1>計算!$B$26,CC$2,($BG23-CC$1)/計算!$B$26*CC$2)) -> 0 | CD23: =IF($BG23<CD$1,0,IF($BG23-CD$1>計算!$B$26,CD$2,($BG23-CD$1)/計算!$B$26*CD$2)) -> 0 | CE23: =IF($BG23<CE$1,0,IF($BG23-CE$1>計算!$B$26,CE$2,($BG23-CE$1)/計算!$B$26*CE$2)) -> 0 | CF23: =IF($BG23<CF$1,0,IF($BG23-CF$1>計算!$B$26,CF$2,($BG23-CF$1)/計算!$B$26*CF$2)) -> 0 | CG23: =IF($BG23<CG$1,0,IF($BG23-CG$1>計算!$B$26,CG$2,($BG23-CG$1)/計算!$B$26*CG$2)) -> 0 | CH23: =IF($BG23<CH$1,0,IF($BG23-CH$1>計算!$B$26,CH$2,($BG23-CH$1)/計算!$B$26*CH$2)) -> 0 | CI23: =IF($BG23<CI$1,0,IF($BG23-CI$1>計算!$B$26,CI$2,($BG23-CI$1)/計算!$B$26*CI$2)) -> 0 | CJ23: =IF($BG23<CJ$1,0,IF($BG23-CJ$1>計算!$B$26,CJ$2,($BG23-CJ$1)/計算!$B$26*CJ$2)) -> 0 | CK23: =IF($BG23<CK$1,0,IF($BG23-CK$1>計算!$B$26,CK$2,($BG23-CK$1)/計算!$B$26*CK$2)) -> 0 | CL23: 3.278356891 | CO23: 5.792997121 | CP23: 0.050324641 | CQ23: -0.050324641
A24: tdD(ns/m) | B24: =B22/C22 -> 6.404640245 | F24: 38 | G24: =準備!J23 -> 7.829672797 | H24: =準備!O23-準備!O22 -> -0.0282227423 | I24: =準備!P23-準備!P22 -> -0.2705297168 | K24: 21 | L24: 5.821818022 | M24: =IF($L24<M$1,0,IF($L24-M$1>計算!$B$26,M$2,($L24-M$1)/計算!$B$26*M$2)) -> 1.989000528 | N24: =IF($L24<N$1,0,IF($L24-N$1>計算!$B$26,N$2,($L24-N$1)/計算!$B$26*N$2)) -> 0.3275217949 | O24: =IF($L24<O$1,0,IF($L24-O$1>計算!$B$26,O$2,($L24-O$1)/計算!$B$26*O$2)) -> 0.9310129985 | P24: =IF($L24<P$1,0,IF($L24-P$1>計算!$B$26,P$2,($L24-P$1)/計算!$B$26*P$2)) -> 0.2787994054 | Q24: =IF($L24<Q$1,0,IF($L24-Q$1>計算!$B$26,Q$2,($L24-Q$1)/計算!$B$26*Q$2)) -> 0.07787922992 | R24: =IF($L24<R$1,0,IF($L24-R$1>計算!$B$26,R$2,($L24-R$1)/計算!$B$26*R$2)) -> -0.01119237707 | S24: =IF($L24<S$1,0,IF($L24-S$1>計算!$B$26,S$2,($L24-S$1)/計算!$B$26*S$2)) -> -0.2393553108 | T24: =IF($L24<T$1,0,IF($L24-T$1>計算!$B$26,T$2,($L24-T$1)/計算!$B$26*T$2)) -> -0.1103328801 | U24: =IF($L24<U$1,0,IF($L24-U$1>計算!$B$26,U$2,($L24-U$1)/計算!$B$26*U$2)) -> 0.02624490998 | V24: =IF($L24<V$1,0,IF($L24-V$1>計算!$B$26,V$2,($L24-V$1)/計算!$B$26*V$2)) -> 0.002134866049 | W24: =IF($L24<W$1,0,IF($L24-W$1>計算!$B$26,W$2,($L24-W$1)/計算!$B$26*W$2)) -> -0.003341094906 | X24: =IF($L24<X$1,0,IF($L24-X$1>計算!$B$26,X$2,($L24-X$1)/計算!$B$26*X$2)) -> 0 | Y24: =IF($L24<Y$1,0,IF($L24-Y$1>計算!$B$26,Y$2,($L24-Y$1)/計算!$B$26*Y$2)) -> 0 | Z24: =IF($L24<Z$1,0,IF($L24-Z$1>計算!$B$26,Z$2,($L24-Z$1)/計算!$B$26*Z$2)) -> 0 | AA24: =IF($L24<AA$1,0,IF($L24-AA$1>計算!$B$26,AA$2,($L24-AA$1)/計算!$B$26*AA$2)) -> 0 | AB24: =IF($L24<AB$1,0,IF($L24-AB$1>計算!$B$26,AB$2,($L24-AB$1)/計算!$B$26*AB$2)) -> 0 | AC24: =IF($L24<AC$1,0,IF($L24-AC$1>計算!$B$26,AC$2,($L24-AC$1)/計算!$B$26*AC$2)) -> 0 | AD24: =IF($L24<AD$1,0,IF($L24-AD$1>計算!$B$26,AD$2,($L24-AD$1)/計算!$B$26*AD$2)) -> 0 | AE24: =IF($L24<AE$1,0,IF($L24-AE$1>計算!$B$26,AE$2,($L24-AE$1)/計算!$B$26*AE$2)) -> 0 | AF24: =IF($L24<AF$1,0,IF($L24-AF$1>計算!$B$26,AF$2,($L24-AF$1)/計算!$B$26*AF$2)) -> 0 | AG24: =IF($L24<AG$1,0,IF($L24-AG$1>計算!$B$26,AG$2,($L24-AG$1)/計算!$B$26*AG$2)) -> 0 | AH24: =IF($L24<AH$1,0,IF($L24-AH$1>計算!$B$26,AH$2,($L24-AH$1)/計算!$B$26*AH$2)) -> 0 | AI24: =IF($L24<AI$1,0,IF($L24-AI$1>計算!$B$26,AI$2,($L24-AI$1)/計算!$B$26*AI$2)) -> 0 | AJ24: =IF($L24<AJ$1,0,IF($L24-AJ$1>計算!$B$26,AJ$2,($L24-AJ$1)/計算!$B$26*AJ$2)) -> 0 | AK24: =IF($L24<AK$1,0,IF($L24-AK$1>計算!$B$26,AK$2,($L24-AK$1)/計算!$B$26*AK$2)) -> 0 | AL24: =IF($L24<AL$1,0,IF($L24-AL$1>計算!$B$26,AL$2,($L24-AL$1)/計算!$B$26*AL$2)) -> 0 | AM24: =IF($L24<AM$1,0,IF($L24-AM$1>計算!$B$26,AM$2,($L24-AM$1)/計算!$B$26*AM$2)) -> 0 | AN24: =IF($L24<AN$1,0,IF($L24-AN$1>計算!$B$26,AN$2,($L24-AN$1)/計算!$B$26*AN$2)) -> 0 | AO24: =IF($L24<AO$1,0,IF($L24-AO$1>計算!$B$26,AO$2,($L24-AO$1)/計算!$B$26*AO$2)) -> 0 | AP24: =IF($L24<AP$1,0,IF($L24-AP$1>計算!$B$26,AP$2,($L24-AP$1)/計算!$B$26*AP$2)) -> 0 | AQ24: =IF($L24<AQ$1,0,IF($L24-AQ$1>計算!$B$26,AQ$2,($L24-AQ$1)/計算!$B$26*AQ$2)) -> 0 | AR24: =IF($L24<AR$1,0,IF($L24-AR$1>計算!$B$26,AR$2,($L24-AR$1)/計算!$B$26*AR$2)) -> 0 | AS24: =IF($L24<AS$1,0,IF($L24-AS$1>計算!$B$26,AS$2,($L24-AS$1)/計算!$B$26*AS$2)) -> 0 | AT24: =IF($L24<AT$1,0,IF($L24-AT$1>計算!$B$26,AT$2,($L24-AT$1)/計算!$B$26*AT$2)) -> 0 | AU24: =IF($L24<AU$1,0,IF($L24-AU$1>計算!$B$26,AU$2,($L24-AU$1)/計算!$B$26*AU$2)) -> 0 | AV24: =IF($L24<AV$1,0,IF($L24-AV$1>計算!$B$26,AV$2,($L24-AV$1)/計算!$B$26*AV$2)) -> 0 | AW24: 3.26837207 | AZ24: 1.1e-07 | BA24: 42 | BB24: =IF(準備!T23>=準備!$T$33,準備!$T$33,準備!T23)+AZ24 -> 8.675085341 | BC24: =準備!Y23-準備!Y22 -> -0.06020744256 | BD24: =準備!Z23-準備!Z22 -> 0.01633921655 | BF24: 20 | BG24: 5.332301164 | BH24: =IF($BG24<BH$1,0,IF($BG24-BH$1>計算!$B$26,BH$2,($BG24-BH$1)/計算!$B$26*BH$2)) -> 1.843424849 | BI24: =IF($BG24<BI$1,0,IF($BG24-BI$1>計算!$B$26,BI$2,($BG24-BI$1)/計算!$B$26*BI$2)) -> 2.08043597 | BJ24: =IF($BG24<BJ$1,0,IF($BG24-BJ$1>計算!$B$26,BJ$2,($BG24-BJ$1)/計算!$B$26*BJ$2)) -> 0.4383357379 | BK24: =IF($BG24<BK$1,0,IF($BG24-BK$1>計算!$B$26,BK$2,($BG24-BK$1)/計算!$B$26*BK$2)) -> -0.5512010619 | BL24: =IF($BG24<BL$1,0,IF($BG24-BL$1>計算!$B$26,BL$2,($BG24-BL$1)/計算!$B$26*BL$2)) -> -0.8036518745 | BM24: =IF($BG24<BM$1,0,IF($BG24-BM$1>計算!$B$26,BM$2,($BG24-BM$1)/計算!$B$26*BM$2)) -> 0.1958427948 | BN24: =IF($BG24<BN$1,0,IF($BG24-BN$1>計算!$B$26,BN$2,($BG24-BN$1)/計算!$B$26*BN$2)) -> 0.1042289406 | BO24: =IF($BG24<BO$1,0,IF($BG24-BO$1>計算!$B$26,BO$2,($BG24-BO$1)/計算!$B$26*BO$2)) -> -0.4423266907 | BP24: =IF($BG24<BP$1,0,IF($BG24-BP$1>計算!$B$26,BP$2,($BG24-BP$1)/計算!$B$26*BP$2)) -> 0.1543337219 | BQ24: =IF($BG24<BQ$1,0,IF($BG24-BQ$1>計算!$B$26,BQ$2,($BG24-BQ$1)/計算!$B$26*BQ$2)) -> 0.4224946716 | BR24: =IF($BG24<BR$1,0,IF($BG24-BR$1>計算!$B$26,BR$2,($BG24-BR$1)/計算!$B$26*BR$2)) -> -0.1775888584 | BS24: =IF($BG24<BS$1,0,IF($BG24-BS$1>計算!$B$26,BS$2,($BG24-BS$1)/計算!$B$26*BS$2)) -> 0.01418507466 | BT24: =IF($BG24<BT$1,0,IF($BG24-BT$1>計算!$B$26,BT$2,($BG24-BT$1)/計算!$B$26*BT$2)) -> 0 | BU24: =IF($BG24<BU$1,0,IF($BG24-BU$1>計算!$B$26,BU$2,($BG24-BU$1)/計算!$B$26*BU$2)) -> 0 | BV24: =IF($BG24<BV$1,0,IF($BG24-BV$1>計算!$B$26,BV$2,($BG24-BV$1)/計算!$B$26*BV$2)) -> 0 | BW24: =IF($BG24<BW$1,0,IF($BG24-BW$1>計算!$B$26,BW$2,($BG24-BW$1)/計算!$B$26*BW$2)) -> 0 | BX24: =IF($BG24<BX$1,0,IF($BG24-BX$1>計算!$B$26,BX$2,($BG24-BX$1)/計算!$B$26*BX$2)) -> 0 | BY24: =IF($BG24<BY$1,0,IF($BG24-BY$1>計算!$B$26,BY$2,($BG24-BY$1)/計算!$B$26*BY$2)) -> 0 | BZ24: =IF($BG24<BZ$1,0,IF($BG24-BZ$1>計算!$B$26,BZ$2,($BG24-BZ$1)/計算!$B$26*BZ$2)) -> 0 | CA24: =IF($BG24<CA$1,0,IF($BG24-CA$1>計算!$B$26,CA$2,($BG24-CA$1)/計算!$B$26*CA$2)) -> 0 | CB24: =IF($BG24<CB$1,0,IF($BG24-CB$1>計算!$B$26,CB$2,($BG24-CB$1)/計算!$B$26*CB$2)) -> 0 | CC24: =IF($BG24<CC$1,0,IF($BG24-CC$1>計算!$B$26,CC$2,($BG24-CC$1)/計算!$B$26*CC$2)) -> 0 | CD24: =IF($BG24<CD$1,0,IF($BG24-CD$1>計算!$B$26,CD$2,($BG24-CD$1)/計算!$B$26*CD$2)) -> 0 | CE24: =IF($BG24<CE$1,0,IF($BG24-CE$1>計算!$B$26,CE$2,($BG24-CE$1)/計算!$B$26*CE$2)) -> 0 | CF24: =IF($BG24<CF$1,0,IF($BG24-CF$1>計算!$B$26,CF$2,($BG24-CF$1)/計算!$B$26*CF$2)) -> 0 | CG24: =IF($BG24<CG$1,0,IF($BG24-CG$1>計算!$B$26,CG$2,($BG24-CG$1)/計算!$B$26*CG$2)) -> 0 | CH24: =IF($BG24<CH$1,0,IF($BG24-CH$1>計算!$B$26,CH$2,($BG24-CH$1)/計算!$B$26*CH$2)) -> 0 | CI24: =IF($BG24<CI$1,0,IF($BG24-CI$1>計算!$B$26,CI$2,($BG24-CI$1)/計算!$B$26*CI$2)) -> 0 | CJ24: =IF($BG24<CJ$1,0,IF($BG24-CJ$1>計算!$B$26,CJ$2,($BG24-CJ$1)/計算!$B$26*CJ$2)) -> 0 | CK24: =IF($BG24<CK$1,0,IF($BG24-CK$1>計算!$B$26,CK$2,($BG24-CK$1)/計算!$B$26*CK$2)) -> 0 | CL24: 3.278513275 | CO24: 5.821818022 | CP24: 0.0642022905 | CQ24: -0.0642022905
A25: l(m) | B25: =VLOOKUP(波形!N7,Data!R2:S8,2,0)*0.01 -> 0.15 | F25: 39 | G25: =準備!J24 -> 7.858493698 | H25: =準備!O24-準備!O23 -> 0.02482267495 | I25: =準備!P24-準備!P23 -> 0.09353875422 | K25: 22 | L25: 5.850638922 | M25: =IF($L25<M$1,0,IF($L25-M$1>計算!$B$26,M$2,($L25-M$1)/計算!$B$26*M$2)) -> 1.989000528 | N25: =IF($L25<N$1,0,IF($L25-N$1>計算!$B$26,N$2,($L25-N$1)/計算!$B$26*N$2)) -> 0.3275217949 | O25: =IF($L25<O$1,0,IF($L25-O$1>計算!$B$26,O$2,($L25-O$1)/計算!$B$26*O$2)) -> 0.9310129985 | P25: =IF($L25<P$1,0,IF($L25-P$1>計算!$B$26,P$2,($L25-P$1)/計算!$B$26*P$2)) -> 0.2787994054 | Q25: =IF($L25<Q$1,0,IF($L25-Q$1>計算!$B$26,Q$2,($L25-Q$1)/計算!$B$26*Q$2)) -> 0.07787922992 | R25: =IF($L25<R$1,0,IF($L25-R$1>計算!$B$26,R$2,($L25-R$1)/計算!$B$26*R$2)) -> -0.01119237707 | S25: =IF($L25<S$1,0,IF($L25-S$1>計算!$B$26,S$2,($L25-S$1)/計算!$B$26*S$2)) -> -0.2393553108 | T25: =IF($L25<T$1,0,IF($L25-T$1>計算!$B$26,T$2,($L25-T$1)/計算!$B$26*T$2)) -> -0.1103328801 | U25: =IF($L25<U$1,0,IF($L25-U$1>計算!$B$26,U$2,($L25-U$1)/計算!$B$26*U$2)) -> 0.02624490998 | V25: =IF($L25<V$1,0,IF($L25-V$1>計算!$B$26,V$2,($L25-V$1)/計算!$B$26*V$2)) -> 0.003202299074 | W25: =IF($L25<W$1,0,IF($L25-W$1>計算!$B$26,W$2,($L25-W$1)/計算!$B$26*W$2)) -> -0.006682189811 | X25: =IF($L25<X$1,0,IF($L25-X$1>計算!$B$26,X$2,($L25-X$1)/計算!$B$26*X$2)) -> -0.003196727501 | Y25: =IF($L25<Y$1,0,IF($L25-Y$1>計算!$B$26,Y$2,($L25-Y$1)/計算!$B$26*Y$2)) -> 0 | Z25: =IF($L25<Z$1,0,IF($L25-Z$1>計算!$B$26,Z$2,($L25-Z$1)/計算!$B$26*Z$2)) -> 0 | AA25: =IF($L25<AA$1,0,IF($L25-AA$1>計算!$B$26,AA$2,($L25-AA$1)/計算!$B$26*AA$2)) -> 0 | AB25: =IF($L25<AB$1,0,IF($L25-AB$1>計算!$B$26,AB$2,($L25-AB$1)/計算!$B$26*AB$2)) -> 0 | AC25: =IF($L25<AC$1,0,IF($L25-AC$1>計算!$B$26,AC$2,($L25-AC$1)/計算!$B$26*AC$2)) -> 0 | AD25: =IF($L25<AD$1,0,IF($L25-AD$1>計算!$B$26,AD$2,($L25-AD$1)/計算!$B$26*AD$2)) -> 0 | AE25: =IF($L25<AE$1,0,IF($L25-AE$1>計算!$B$26,AE$2,($L25-AE$1)/計算!$B$26*AE$2)) -> 0 | AF25: =IF($L25<AF$1,0,IF($L25-AF$1>計算!$B$26,AF$2,($L25-AF$1)/計算!$B$26*AF$2)) -> 0 | AG25: =IF($L25<AG$1,0,IF($L25-AG$1>計算!$B$26,AG$2,($L25-AG$1)/計算!$B$26*AG$2)) -> 0 | AH25: =IF($L25<AH$1,0,IF($L25-AH$1>計算!$B$26,AH$2,($L25-AH$1)/計算!$B$26*AH$2)) -> 0 | AI25: =IF($L25<AI$1,0,IF($L25-AI$1>計算!$B$26,AI$2,($L25-AI$1)/計算!$B$26*AI$2)) -> 0 | AJ25: =IF($L25<AJ$1,0,IF($L25-AJ$1>計算!$B$26,AJ$2,($L25-AJ$1)/計算!$B$26*AJ$2)) -> 0 | AK25: =IF($L25<AK$1,0,IF($L25-AK$1>計算!$B$26,AK$2,($L25-AK$1)/計算!$B$26*AK$2)) -> 0 | AL25: =IF($L25<AL$1,0,IF($L25-AL$1>計算!$B$26,AL$2,($L25-AL$1)/計算!$B$26*AL$2)) -> 0 | AM25: =IF($L25<AM$1,0,IF($L25-AM$1>計算!$B$26,AM$2,($L25-AM$1)/計算!$B$26*AM$2)) -> 0 | AN25: =IF($L25<AN$1,0,IF($L25-AN$1>計算!$B$26,AN$2,($L25-AN$1)/計算!$B$26*AN$2)) -> 0 | AO25: =IF($L25<AO$1,0,IF($L25-AO$1>計算!$B$26,AO$2,($L25-AO$1)/計算!$B$26*AO$2)) -> 0 | AP25: =IF($L25<AP$1,0,IF($L25-AP$1>計算!$B$26,AP$2,($L25-AP$1)/計算!$B$26*AP$2)) -> 0 | AQ25: =IF($L25<AQ$1,0,IF($L25-AQ$1>計算!$B$26,AQ$2,($L25-AQ$1)/計算!$B$26*AQ$2)) -> 0 | AR25: =IF($L25<AR$1,0,IF($L25-AR$1>計算!$B$26,AR$2,($L25-AR$1)/計算!$B$26*AR$2)) -> 0 | AS25: =IF($L25<AS$1,0,IF($L25-AS$1>計算!$B$26,AS$2,($L25-AS$1)/計算!$B$26*AS$2)) -> 0 | AT25: =IF($L25<AT$1,0,IF($L25-AT$1>計算!$B$26,AT$2,($L25-AT$1)/計算!$B$26*AT$2)) -> 0 | AU25: =IF($L25<AU$1,0,IF($L25-AU$1>計算!$B$26,AU$2,($L25-AU$1)/計算!$B$26*AU$2)) -> 0 | AV25: =IF($L25<AV$1,0,IF($L25-AV$1>計算!$B$26,AV$2,($L25-AV$1)/計算!$B$26*AV$2)) -> 0 | AW25: 3.262901681 | AZ25: 1.2e-07 | BA25: 43 | BB25: =IF(準備!T24>=準備!$T$33,準備!$T$33,準備!T24)+AZ25 -> 8.703906252 | BC25: =準備!Y24-準備!Y23 -> 0.2070570179 | BD25: =準備!Z24-準備!Z23 -> -0.0297272019 | BF25: 21 | BG25: 5.361122075 | BH25: =IF($BG25<BH$1,0,IF($BG25-BH$1>計算!$B$26,BH$2,($BG25-BH$1)/計算!$B$26*BH$2)) -> 1.843424849 | BI25: =IF($BG25<BI$1,0,IF($BG25-BI$1>計算!$B$26,BI$2,($BG25-BI$1)/計算!$B$26*BI$2)) -> 2.08043597 | BJ25: =IF($BG25<BJ$1,0,IF($BG25-BJ$1>計算!$B$26,BJ$2,($BG25-BJ$1)/計算!$B$26*BJ$2)) -> 0.4383357379 | BK25: =IF($BG25<BK$1,0,IF($BG25-BK$1>計算!$B$26,BK$2,($BG25-BK$1)/計算!$B$26*BK$2)) -> -0.5512010619 | BL25: =IF($BG25<BL$1,0,IF($BG25-BL$1>計算!$B$26,BL$2,($BG25-BL$1)/計算!$B$26*BL$2)) -> -0.8036518745 | BM25: =IF($BG25<BM$1,0,IF($BG25-BM$1>計算!$B$26,BM$2,($BG25-BM$1)/計算!$B$26*BM$2)) -> 0.1958427948 | BN25: =IF($BG25<BN$1,0,IF($BG25-BN$1>計算!$B$26,BN$2,($BG25-BN$1)/計算!$B$26*BN$2)) -> 0.1042289406 | BO25: =IF($BG25<BO$1,0,IF($BG25-BO$1>計算!$B$26,BO$2,($BG25-BO$1)/計算!$B$26*BO$2)) -> -0.4423266907 | BP25: =IF($BG25<BP$1,0,IF($BG25-BP$1>計算!$B$26,BP$2,($BG25-BP$1)/計算!$B$26*BP$2)) -> 0.1637739194 | BQ25: =IF($BG25<BQ$1,0,IF($BG25-BQ$1>計算!$B$26,BQ$2,($BG25-BQ$1)/計算!$B$26*BQ$2)) -> 0.4500214112 | BR25: =IF($BG25<BR$1,0,IF($BG25-BR$1>計算!$B$26,BR$2,($BG25-BR$1)/計算!$B$26*BR$2)) -> -0.1899656661 | BS25: =IF($BG25<BS$1,0,IF($BG25-BS$1>計算!$B$26,BS$2,($BG25-BS$1)/計算!$B$26*BS$2)) -> 0.01524774494 | BT25: =IF($BG25<BT$1,0,IF($BG25-BT$1>計算!$B$26,BT$2,($BG25-BT$1)/計算!$B$26*BT$2)) -> 0 | BU25: =IF($BG25<BU$1,0,IF($BG25-BU$1>計算!$B$26,BU$2,($BG25-BU$1)/計算!$B$26*BU$2)) -> 0 | BV25: =IF($BG25<BV$1,0,IF($BG25-BV$1>計算!$B$26,BV$2,($BG25-BV$1)/計算!$B$26*BV$2)) -> 0 | BW25: =IF($BG25<BW$1,0,IF($BG25-BW$1>計算!$B$26,BW$2,($BG25-BW$1)/計算!$B$26*BW$2)) -> 0 | BX25: =IF($BG25<BX$1,0,IF($BG25-BX$1>計算!$B$26,BX$2,($BG25-BX$1)/計算!$B$26*BX$2)) -> 0 | BY25: =IF($BG25<BY$1,0,IF($BG25-BY$1>計算!$B$26,BY$2,($BG25-BY$1)/計算!$B$26*BY$2)) -> 0 | BZ25: =IF($BG25<BZ$1,0,IF($BG25-BZ$1>計算!$B$26,BZ$2,($BG25-BZ$1)/計算!$B$26*BZ$2)) -> 0 | CA25: =IF($BG25<CA$1,0,IF($BG25-CA$1>計算!$B$26,CA$2,($BG25-CA$1)/計算!$B$26*CA$2)) -> 0 | CB25: =IF($BG25<CB$1,0,IF($BG25-CB$1>計算!$B$26,CB$2,($BG25-CB$1)/計算!$B$26*CB$2)) -> 0 | CC25: =IF($BG25<CC$1,0,IF($BG25-CC$1>計算!$B$26,CC$2,($BG25-CC$1)/計算!$B$26*CC$2)) -> 0 | CD25: =IF($BG25<CD$1,0,IF($BG25-CD$1>計算!$B$26,CD$2,($BG25-CD$1)/計算!$B$26*CD$2)) -> 0 | CE25: =IF($BG25<CE$1,0,IF($BG25-CE$1>計算!$B$26,CE$2,($BG25-CE$1)/計算!$B$26*CE$2)) -> 0 | CF25: =IF($BG25<CF$1,0,IF($BG25-CF$1>計算!$B$26,CF$2,($BG25-CF$1)/計算!$B$26*CF$2)) -> 0 | CG25: =IF($BG25<CG$1,0,IF($BG25-CG$1>計算!$B$26,CG$2,($BG25-CG$1)/計算!$B$26*CG$2)) -> 0 | CH25: =IF($BG25<CH$1,0,IF($BG25-CH$1>計算!$B$26,CH$2,($BG25-CH$1)/計算!$B$26*CH$2)) -> 0 | CI25: =IF($BG25<CI$1,0,IF($BG25-CI$1>計算!$B$26,CI$2,($BG25-CI$1)/計算!$B$26*CI$2)) -> 0 | CJ25: =IF($BG25<CJ$1,0,IF($BG25-CJ$1>計算!$B$26,CJ$2,($BG25-CJ$1)/計算!$B$26*CJ$2)) -> 0 | CK25: =IF($BG25<CK$1,0,IF($BG25-CK$1>計算!$B$26,CK$2,($BG25-CK$1)/計算!$B$26*CK$2)) -> 0 | CL25: 3.304166075 | CO25: 5.850638922 | CP25: 0.0586917176 | CQ25: -0.0586917176
A26: tr(ns) | B26: =VLOOKUP(波形!H3,Data!O2:P7,2,1) -> 0.5 | F26: 40 | G26: =準備!J25 -> 7.887314598 | H26: =準備!O25-準備!O24 -> -0.004486404064 | I26: =準備!P25-準備!P24 -> -0.01222639801 | K26: 23 | L26: 5.879459823 | M26: =IF($L26<M$1,0,IF($L26-M$1>計算!$B$26,M$2,($L26-M$1)/計算!$B$26*M$2)) -> 1.989000528 | N26: =IF($L26<N$1,0,IF($L26-N$1>計算!$B$26,N$2,($L26-N$1)/計算!$B$26*N$2)) -> 0.3275217949 | O26: =IF($L26<O$1,0,IF($L26-O$1>計算!$B$26,O$2,($L26-O$1)/計算!$B$26*O$2)) -> 0.9310129985 | P26: =IF($L26<P$1,0,IF($L26-P$1>計算!$B$26,P$2,($L26-P$1)/計算!$B$26*P$2)) -> 0.2787994054 | Q26: =IF($L26<Q$1,0,IF($L26-Q$1>計算!$B$26,Q$2,($L26-Q$1)/計算!$B$26*Q$2)) -> 0.07787922992 | R26: =IF($L26<R$1,0,IF($L26-R$1>計算!$B$26,R$2,($L26-R$1)/計算!$B$26*R$2)) -> -0.01119237707 | S26: =IF($L26<S$1,0,IF($L26-S$1>計算!$B$26,S$2,($L26-S$1)/計算!$B$26*S$2)) -> -0.2393553108 | T26: =IF($L26<T$1,0,IF($L26-T$1>計算!$B$26,T$2,($L26-T$1)/計算!$B$26*T$2)) -> -0.1103328801 | U26: =IF($L26<U$1,0,IF($L26-U$1>計算!$B$26,U$2,($L26-U$1)/計算!$B$26*U$2)) -> 0.02624490998 | V26: =IF($L26<V$1,0,IF($L26-V$1>計算!$B$26,V$2,($L26-V$1)/計算!$B$26*V$2)) -> 0.004269732098 | W26: =IF($L26<W$1,0,IF($L26-W$1>計算!$B$26,W$2,($L26-W$1)/計算!$B$26*W$2)) -> -0.01002328472 | X26: =IF($L26<X$1,0,IF($L26-X$1>計算!$B$26,X$2,($L26-X$1)/計算!$B$26*X$2)) -> -0.006393455001 | Y26: =IF($L26<Y$1,0,IF($L26-Y$1>計算!$B$26,Y$2,($L26-Y$1)/計算!$B$26*Y$2)) -> 0.005959239971 | Z26: =IF($L26<Z$1,0,IF($L26-Z$1>計算!$B$26,Z$2,($L26-Z$1)/計算!$B$26*Z$2)) -> 0 | AA26: =IF($L26<AA$1,0,IF($L26-AA$1>計算!$B$26,AA$2,($L26-AA$1)/計算!$B$26*AA$2)) -> 0 | AB26: =IF($L26<AB$1,0,IF($L26-AB$1>計算!$B$26,AB$2,($L26-AB$1)/計算!$B$26*AB$2)) -> 0 | AC26: =IF($L26<AC$1,0,IF($L26-AC$1>計算!$B$26,AC$2,($L26-AC$1)/計算!$B$26*AC$2)) -> 0 | AD26: =IF($L26<AD$1,0,IF($L26-AD$1>計算!$B$26,AD$2,($L26-AD$1)/計算!$B$26*AD$2)) -> 0 | AE26: =IF($L26<AE$1,0,IF($L26-AE$1>計算!$B$26,AE$2,($L26-AE$1)/計算!$B$26*AE$2)) -> 0 | AF26: =IF($L26<AF$1,0,IF($L26-AF$1>計算!$B$26,AF$2,($L26-AF$1)/計算!$B$26*AF$2)) -> 0 | AG26: =IF($L26<AG$1,0,IF($L26-AG$1>計算!$B$26,AG$2,($L26-AG$1)/計算!$B$26*AG$2)) -> 0 | AH26: =IF($L26<AH$1,0,IF($L26-AH$1>計算!$B$26,AH$2,($L26-AH$1)/計算!$B$26*AH$2)) -> 0 | AI26: =IF($L26<AI$1,0,IF($L26-AI$1>計算!$B$26,AI$2,($L26-AI$1)/計算!$B$26*AI$2)) -> 0 | AJ26: =IF($L26<AJ$1,0,IF($L26-AJ$1>計算!$B$26,AJ$2,($L26-AJ$1)/計算!$B$26*AJ$2)) -> 0 | AK26: =IF($L26<AK$1,0,IF($L26-AK$1>計算!$B$26,AK$2,($L26-AK$1)/計算!$B$26*AK$2)) -> 0 | AL26: =IF($L26<AL$1,0,IF($L26-AL$1>計算!$B$26,AL$2,($L26-AL$1)/計算!$B$26*AL$2)) -> 0 | AM26: =IF($L26<AM$1,0,IF($L26-AM$1>計算!$B$26,AM$2,($L26-AM$1)/計算!$B$26*AM$2)) -> 0 | AN26: =IF($L26<AN$1,0,IF($L26-AN$1>計算!$B$26,AN$2,($L26-AN$1)/計算!$B$26*AN$2)) -> 0 | AO26: =IF($L26<AO$1,0,IF($L26-AO$1>計算!$B$26,AO$2,($L26-AO$1)/計算!$B$26*AO$2)) -> 0 | AP26: =IF($L26<AP$1,0,IF($L26-AP$1>計算!$B$26,AP$2,($L26-AP$1)/計算!$B$26*AP$2)) -> 0 | AQ26: =IF($L26<AQ$1,0,IF($L26-AQ$1>計算!$B$26,AQ$2,($L26-AQ$1)/計算!$B$26*AQ$2)) -> 0 | AR26: =IF($L26<AR$1,0,IF($L26-AR$1>計算!$B$26,AR$2,($L26-AR$1)/計算!$B$26*AR$2)) -> 0 | AS26: =IF($L26<AS$1,0,IF($L26-AS$1>計算!$B$26,AS$2,($L26-AS$1)/計算!$B$26*AS$2)) -> 0 | AT26: =IF($L26<AT$1,0,IF($L26-AT$1>計算!$B$26,AT$2,($L26-AT$1)/計算!$B$26*AT$2)) -> 0 | AU26: =IF($L26<AU$1,0,IF($L26-AU$1>計算!$B$26,AU$2,($L26-AU$1)/計算!$B$26*AU$2)) -> 0 | AV26: =IF($L26<AV$1,0,IF($L26-AV$1>計算!$B$26,AV$2,($L26-AV$1)/計算!$B$26*AV$2)) -> 0 | AW26: 3.263390531 | AZ26: 1.3e-07 | BA26: 44 | BB26: =IF(準備!T25>=準備!$T$33,準備!$T$33,準備!T25)+AZ26 -> 8.732727163 | BC26: =準備!Y25-準備!Y24 -> -0.2477426625 | BD26: =準備!Z25-準備!Z24 -> -0.01993034842 | BF26: 22 | BG26: 5.389942986 | BH26: =IF($BG26<BH$1,0,IF($BG26-BH$1>計算!$B$26,BH$2,($BG26-BH$1)/計算!$B$26*BH$2)) -> 1.843424849 | BI26: =IF($BG26<BI$1,0,IF($BG26-BI$1>計算!$B$26,BI$2,($BG26-BI$1)/計算!$B$26*BI$2)) -> 2.08043597 | BJ26: =IF($BG26<BJ$1,0,IF($BG26-BJ$1>計算!$B$26,BJ$2,($BG26-BJ$1)/計算!$B$26*BJ$2)) -> 0.4383357379 | BK26: =IF($BG26<BK$1,0,IF($BG26-BK$1>計算!$B$26,BK$2,($BG26-BK$1)/計算!$B$26*BK$2)) -> -0.5512010619 | BL26: =IF($BG26<BL$1,0,IF($BG26-BL$1>計算!$B$26,BL$2,($BG26-BL$1)/計算!$B$26*BL$2)) -> -0.8036518745 | BM26: =IF($BG26<BM$1,0,IF($BG26-BM$1>計算!$B$26,BM$2,($BG26-BM$1)/計算!$B$26*BM$2)) -> 0.1958427948 | BN26: =IF($BG26<BN$1,0,IF($BG26-BN$1>計算!$B$26,BN$2,($BG26-BN$1)/計算!$B$26*BN$2)) -> 0.1042289406 | BO26: =IF($BG26<BO$1,0,IF($BG26-BO$1>計算!$B$26,BO$2,($BG26-BO$1)/計算!$B$26*BO$2)) -> -0.4423266907 | BP26: =IF($BG26<BP$1,0,IF($BG26-BP$1>計算!$B$26,BP$2,($BG26-BP$1)/計算!$B$26*BP$2)) -> 0.1637739194 | BQ26: =IF($BG26<BQ$1,0,IF($BG26-BQ$1>計算!$B$26,BQ$2,($BG26-BQ$1)/計算!$B$26*BQ$2)) -> 0.4775480553 | BR26: =IF($BG26<BR$1,0,IF($BG26-BR$1>計算!$B$26,BR$2,($BG26-BR$1)/計算!$B$26*BR$2)) -> -0.2023424739 | BS26: =IF($BG26<BS$1,0,IF($BG26-BS$1>計算!$B$26,BS$2,($BG26-BS$1)/計算!$B$26*BS$2)) -> 0.01631041523 | BT26: =IF($BG26<BT$1,0,IF($BG26-BT$1>計算!$B$26,BT$2,($BG26-BT$1)/計算!$B$26*BT$2)) -> 0 | BU26: =IF($BG26<BU$1,0,IF($BG26-BU$1>計算!$B$26,BU$2,($BG26-BU$1)/計算!$B$26*BU$2)) -> 0 | BV26: =IF($BG26<BV$1,0,IF($BG26-BV$1>計算!$B$26,BV$2,($BG26-BV$1)/計算!$B$26*BV$2)) -> 0 | BW26: =IF($BG26<BW$1,0,IF($BG26-BW$1>計算!$B$26,BW$2,($BG26-BW$1)/計算!$B$26*BW$2)) -> 0 | BX26: =IF($BG26<BX$1,0,IF($BG26-BX$1>計算!$B$26,BX$2,($BG26-BX$1)/計算!$B$26*BX$2)) -> 0 | BY26: =IF($BG26<BY$1,0,IF($BG26-BY$1>計算!$B$26,BY$2,($BG26-BY$1)/計算!$B$26*BY$2)) -> 0 | BZ26: =IF($BG26<BZ$1,0,IF($BG26-BZ$1>計算!$B$26,BZ$2,($BG26-BZ$1)/計算!$B$26*BZ$2)) -> 0 | CA26: =IF($BG26<CA$1,0,IF($BG26-CA$1>計算!$B$26,CA$2,($BG26-CA$1)/計算!$B$26*CA$2)) -> 0 | CB26: =IF($BG26<CB$1,0,IF($BG26-CB$1>計算!$B$26,CB$2,($BG26-CB$1)/計算!$B$26*CB$2)) -> 0 | CC26: =IF($BG26<CC$1,0,IF($BG26-CC$1>計算!$B$26,CC$2,($BG26-CC$1)/計算!$B$26*CC$2)) -> 0 | CD26: =IF($BG26<CD$1,0,IF($BG26-CD$1>計算!$B$26,CD$2,($BG26-CD$1)/計算!$B$26*CD$2)) -> 0 | CE26: =IF($BG26<CE$1,0,IF($BG26-CE$1>計算!$B$26,CE$2,($BG26-CE$1)/計算!$B$26*CE$2)) -> 0 | CF26: =IF($BG26<CF$1,0,IF($BG26-CF$1>計算!$B$26,CF$2,($BG26-CF$1)/計算!$B$26*CF$2)) -> 0 | CG26: =IF($BG26<CG$1,0,IF($BG26-CG$1>計算!$B$26,CG$2,($BG26-CG$1)/計算!$B$26*CG$2)) -> 0 | CH26: =IF($BG26<CH$1,0,IF($BG26-CH$1>計算!$B$26,CH$2,($BG26-CH$1)/計算!$B$26*CH$2)) -> 0 | CI26: =IF($BG26<CI$1,0,IF($BG26-CI$1>計算!$B$26,CI$2,($BG26-CI$1)/計算!$B$26*CI$2)) -> 0 | CJ26: =IF($BG26<CJ$1,0,IF($BG26-CJ$1>計算!$B$26,CJ$2,($BG26-CJ$1)/計算!$B$26*CJ$2)) -> 0 | CK26: =IF($BG26<CK$1,0,IF($BG26-CK$1>計算!$B$26,CK$2,($BG26-CK$1)/計算!$B$26*CK$2)) -> 0 | CL26: 3.320378581 | CO26: 5.879459823 | CP26: 0.03950137107 | CQ26: -0.03950137107
F27: 41 | G27: =準備!J26 -> 7.916135499 | H27: =準備!O26-準備!O25 -> 0.0002325688663 | I27: =準備!P26-準備!P25 -> 0.0005324645621 | K27: 24 | L27: 5.908280723 | M27: =IF($L27<M$1,0,IF($L27-M$1>計算!$B$26,M$2,($L27-M$1)/計算!$B$26*M$2)) -> 1.989000528 | N27: =IF($L27<N$1,0,IF($L27-N$1>計算!$B$26,N$2,($L27-N$1)/計算!$B$26*N$2)) -> 0.3275217949 | O27: =IF($L27<O$1,0,IF($L27-O$1>計算!$B$26,O$2,($L27-O$1)/計算!$B$26*O$2)) -> 0.9310129985 | P27: =IF($L27<P$1,0,IF($L27-P$1>計算!$B$26,P$2,($L27-P$1)/計算!$B$26*P$2)) -> 0.2787994054 | Q27: =IF($L27<Q$1,0,IF($L27-Q$1>計算!$B$26,Q$2,($L27-Q$1)/計算!$B$26*Q$2)) -> 0.07787922992 | R27: =IF($L27<R$1,0,IF($L27-R$1>計算!$B$26,R$2,($L27-R$1)/計算!$B$26*R$2)) -> -0.01119237707 | S27: =IF($L27<S$1,0,IF($L27-S$1>計算!$B$26,S$2,($L27-S$1)/計算!$B$26*S$2)) -> -0.2393553108 | T27: =IF($L27<T$1,0,IF($L27-T$1>計算!$B$26,T$2,($L27-T$1)/計算!$B$26*T$2)) -> -0.1103328801 | U27: =IF($L27<U$1,0,IF($L27-U$1>計算!$B$26,U$2,($L27-U$1)/計算!$B$26*U$2)) -> 0.02624490998 | V27: =IF($L27<V$1,0,IF($L27-V$1>計算!$B$26,V$2,($L27-V$1)/計算!$B$26*V$2)) -> 0.005337165123 | W27: =IF($L27<W$1,0,IF($L27-W$1>計算!$B$26,W$2,($L27-W$1)/計算!$B$26*W$2)) -> -0.01336437962 | X27: =IF($L27<X$1,0,IF($L27-X$1>計算!$B$26,X$2,($L27-X$1)/計算!$B$26*X$2)) -> -0.009590182502 | Y27: =IF($L27<Y$1,0,IF($L27-Y$1>計算!$B$26,Y$2,($L27-Y$1)/計算!$B$26*Y$2)) -> 0.01191847994 | Z27: =IF($L27<Z$1,0,IF($L27-Z$1>計算!$B$26,Z$2,($L27-Z$1)/計算!$B$26*Z$2)) -> 0.002898765445 | AA27: =IF($L27<AA$1,0,IF($L27-AA$1>計算!$B$26,AA$2,($L27-AA$1)/計算!$B$26*AA$2)) -> 0 | AB27: =IF($L27<AB$1,0,IF($L27-AB$1>計算!$B$26,AB$2,($L27-AB$1)/計算!$B$26*AB$2)) -> 0 | AC27: =IF($L27<AC$1,0,IF($L27-AC$1>計算!$B$26,AC$2,($L27-AC$1)/計算!$B$26*AC$2)) -> 0 | AD27: =IF($L27<AD$1,0,IF($L27-AD$1>計算!$B$26,AD$2,($L27-AD$1)/計算!$B$26*AD$2)) -> 0 | AE27: =IF($L27<AE$1,0,IF($L27-AE$1>計算!$B$26,AE$2,($L27-AE$1)/計算!$B$26*AE$2)) -> 0 | AF27: =IF($L27<AF$1,0,IF($L27-AF$1>計算!$B$26,AF$2,($L27-AF$1)/計算!$B$26*AF$2)) -> 0 | AG27: =IF($L27<AG$1,0,IF($L27-AG$1>計算!$B$26,AG$2,($L27-AG$1)/計算!$B$26*AG$2)) -> 0 | AH27: =IF($L27<AH$1,0,IF($L27-AH$1>計算!$B$26,AH$2,($L27-AH$1)/計算!$B$26*AH$2)) -> 0 | AI27: =IF($L27<AI$1,0,IF($L27-AI$1>計算!$B$26,AI$2,($L27-AI$1)/計算!$B$26*AI$2)) -> 0 | AJ27: =IF($L27<AJ$1,0,IF($L27-AJ$1>計算!$B$26,AJ$2,($L27-AJ$1)/計算!$B$26*AJ$2)) -> 0 | AK27: =IF($L27<AK$1,0,IF($L27-AK$1>計算!$B$26,AK$2,($L27-AK$1)/計算!$B$26*AK$2)) -> 0 | AL27: =IF($L27<AL$1,0,IF($L27-AL$1>計算!$B$26,AL$2,($L27-AL$1)/計算!$B$26*AL$2)) -> 0 | AM27: =IF($L27<AM$1,0,IF($L27-AM$1>計算!$B$26,AM$2,($L27-AM$1)/計算!$B$26*AM$2)) -> 0 | AN27: =IF($L27<AN$1,0,IF($L27-AN$1>計算!$B$26,AN$2,($L27-AN$1)/計算!$B$26*AN$2)) -> 0 | AO27: =IF($L27<AO$1,0,IF($L27-AO$1>計算!$B$26,AO$2,($L27-AO$1)/計算!$B$26*AO$2)) -> 0 | AP27: =IF($L27<AP$1,0,IF($L27-AP$1>計算!$B$26,AP$2,($L27-AP$1)/計算!$B$26*AP$2)) -> 0 | AQ27: =IF($L27<AQ$1,0,IF($L27-AQ$1>計算!$B$26,AQ$2,($L27-AQ$1)/計算!$B$26*AQ$2)) -> 0 | AR27: =IF($L27<AR$1,0,IF($L27-AR$1>計算!$B$26,AR$2,($L27-AR$1)/計算!$B$26*AR$2)) -> 0 | AS27: =IF($L27<AS$1,0,IF($L27-AS$1>計算!$B$26,AS$2,($L27-AS$1)/計算!$B$26*AS$2)) -> 0 | AT27: =IF($L27<AT$1,0,IF($L27-AT$1>計算!$B$26,AT$2,($L27-AT$1)/計算!$B$26*AT$2)) -> 0 | AU27: =IF($L27<AU$1,0,IF($L27-AU$1>計算!$B$26,AU$2,($L27-AU$1)/計算!$B$26*AU$2)) -> 0 | AV27: =IF($L27<AV$1,0,IF($L27-AV$1>計算!$B$26,AV$2,($L27-AV$1)/計算!$B$26*AV$2)) -> 0 | AW27: 3.266778148 | AZ27: 1.4e-07 | BA27: 45 | BB27: =IF(準備!T26>=準備!$T$33,準備!$T$33,準備!T26)+AZ27 -> 8.761548073 | BC27: =準備!Y26-準備!Y25 -> -0.04054365076 | BD27: =準備!Z26-準備!Z25 -> 0.06618461929 | BF27: 23 | BG27: 5.418763896 | BH27: =IF($BG27<BH$1,0,IF($BG27-BH$1>計算!$B$26,BH$2,($BG27-BH$1)/計算!$B$26*BH$2)) -> 1.843424849 | BI27: =IF($BG27<BI$1,0,IF($BG27-BI$1>計算!$B$26,BI$2,($BG27-BI$1)/計算!$B$26*BI$2)) -> 2.08043597 | BJ27: =IF($BG27<BJ$1,0,IF($BG27-BJ$1>計算!$B$26,BJ$2,($BG27-BJ$1)/計算!$B$26*BJ$2)) -> 0.4383357379 | BK27: =IF($BG27<BK$1,0,IF($BG27-BK$1>計算!$B$26,BK$2,($BG27-BK$1)/計算!$B$26*BK$2)) -> -0.5512010619 | BL27: =IF($BG27<BL$1,0,IF($BG27-BL$1>計算!$B$26,BL$2,($BG27-BL$1)/計算!$B$26*BL$2)) -> -0.8036518745 | BM27: =IF($BG27<BM$1,0,IF($BG27-BM$1>計算!$B$26,BM$2,($BG27-BM$1)/計算!$B$26*BM$2)) -> 0.1958427948 | BN27: =IF($BG27<BN$1,0,IF($BG27-BN$1>計算!$B$26,BN$2,($BG27-BN$1)/計算!$B$26*BN$2)) -> 0.1042289406 | BO27: =IF($BG27<BO$1,0,IF($BG27-BO$1>計算!$B$26,BO$2,($BG27-BO$1)/計算!$B$26*BO$2)) -> -0.4423266907 | BP27: =IF($BG27<BP$1,0,IF($BG27-BP$1>計算!$B$26,BP$2,($BG27-BP$1)/計算!$B$26*BP$2)) -> 0.1637739194 | BQ27: =IF($BG27<BQ$1,0,IF($BG27-BQ$1>計算!$B$26,BQ$2,($BG27-BQ$1)/計算!$B$26*BQ$2)) -> 0.4775480553 | BR27: =IF($BG27<BR$1,0,IF($BG27-BR$1>計算!$B$26,BR$2,($BG27-BR$1)/計算!$B$26*BR$2)) -> -0.2147192343 | BS27: =IF($BG27<BS$1,0,IF($BG27-BS$1>計算!$B$26,BS$2,($BG27-BS$1)/計算!$B$26*BS$2)) -> 0.01737308551 | BT27: =IF($BG27<BT$1,0,IF($BG27-BT$1>計算!$B$26,BT$2,($BG27-BT$1)/計算!$B$26*BT$2)) -> 0 | BU27: =IF($BG27<BU$1,0,IF($BG27-BU$1>計算!$B$26,BU$2,($BG27-BU$1)/計算!$B$26*BU$2)) -> 0 | BV27: =IF($BG27<BV$1,0,IF($BG27-BV$1>計算!$B$26,BV$2,($BG27-BV$1)/計算!$B$26*BV$2)) -> 0 | BW27: =IF($BG27<BW$1,0,IF($BG27-BW$1>計算!$B$26,BW$2,($BG27-BW$1)/計算!$B$26*BW$2)) -> 0 | BX27: =IF($BG27<BX$1,0,IF($BG27-BX$1>計算!$B$26,BX$2,($BG27-BX$1)/計算!$B$26*BX$2)) -> 0 | BY27: =IF($BG27<BY$1,0,IF($BG27-BY$1>計算!$B$26,BY$2,($BG27-BY$1)/計算!$B$26*BY$2)) -> 0 | BZ27: =IF($BG27<BZ$1,0,IF($BG27-BZ$1>計算!$B$26,BZ$2,($BG27-BZ$1)/計算!$B$26*BZ$2)) -> 0 | CA27: =IF($BG27<CA$1,0,IF($BG27-CA$1>計算!$B$26,CA$2,($BG27-CA$1)/計算!$B$26*CA$2)) -> 0 | CB27: =IF($BG27<CB$1,0,IF($BG27-CB$1>計算!$B$26,CB$2,($BG27-CB$1)/計算!$B$26*CB$2)) -> 0 | CC27: =IF($BG27<CC$1,0,IF($BG27-CC$1>計算!$B$26,CC$2,($BG27-CC$1)/計算!$B$26*CC$2)) -> 0 | CD27: =IF($BG27<CD$1,0,IF($BG27-CD$1>計算!$B$26,CD$2,($BG27-CD$1)/計算!$B$26*CD$2)) -> 0 | CE27: =IF($BG27<CE$1,0,IF($BG27-CE$1>計算!$B$26,CE$2,($BG27-CE$1)/計算!$B$26*CE$2)) -> 0 | CF27: =IF($BG27<CF$1,0,IF($BG27-CF$1>計算!$B$26,CF$2,($BG27-CF$1)/計算!$B$26*CF$2)) -> 0 | CG27: =IF($BG27<CG$1,0,IF($BG27-CG$1>計算!$B$26,CG$2,($BG27-CG$1)/計算!$B$26*CG$2)) -> 0 | CH27: =IF($BG27<CH$1,0,IF($BG27-CH$1>計算!$B$26,CH$2,($BG27-CH$1)/計算!$B$26*CH$2)) -> 0 | CI27: =IF($BG27<CI$1,0,IF($BG27-CI$1>計算!$B$26,CI$2,($BG27-CI$1)/計算!$B$26*CI$2)) -> 0 | CJ27: =IF($BG27<CJ$1,0,IF($BG27-CJ$1>計算!$B$26,CJ$2,($BG27-CJ$1)/計算!$B$26*CJ$2)) -> 0 | CK27: =IF($BG27<CK$1,0,IF($BG27-CK$1>計算!$B$26,CK$2,($BG27-CK$1)/計算!$B$26*CK$2)) -> 0 | CL27: 3.309064491 | CO27: 5.908280723 | CP27: 0.04039545345 | CQ27: -0.04039545345
A28: r1 | B28: =(B2-B16)/(B2+B16) -> -0.2054548657 | F28: 62 | G28: =準備!J27 -> 9.606960367 | H28: =準備!O27-準備!O26 -> 0.001047046521 | I28: =準備!P27-準備!P26 -> -0.002873703333 | K28: 25 | L28: 5.937101624 | M28: =IF($L28<M$1,0,IF($L28-M$1>計算!$B$26,M$2,($L28-M$1)/計算!$B$26*M$2)) -> 1.989000528 | N28: =IF($L28<N$1,0,IF($L28-N$1>計算!$B$26,N$2,($L28-N$1)/計算!$B$26*N$2)) -> 0.3275217949 | O28: =IF($L28<O$1,0,IF($L28-O$1>計算!$B$26,O$2,($L28-O$1)/計算!$B$26*O$2)) -> 0.9310129985 | P28: =IF($L28<P$1,0,IF($L28-P$1>計算!$B$26,P$2,($L28-P$1)/計算!$B$26*P$2)) -> 0.2787994054 | Q28: =IF($L28<Q$1,0,IF($L28-Q$1>計算!$B$26,Q$2,($L28-Q$1)/計算!$B$26*Q$2)) -> 0.07787922992 | R28: =IF($L28<R$1,0,IF($L28-R$1>計算!$B$26,R$2,($L28-R$1)/計算!$B$26*R$2)) -> -0.01119237707 | S28: =IF($L28<S$1,0,IF($L28-S$1>計算!$B$26,S$2,($L28-S$1)/計算!$B$26*S$2)) -> -0.2393553108 | T28: =IF($L28<T$1,0,IF($L28-T$1>計算!$B$26,T$2,($L28-T$1)/計算!$B$26*T$2)) -> -0.1103328801 | U28: =IF($L28<U$1,0,IF($L28-U$1>計算!$B$26,U$2,($L28-U$1)/計算!$B$26*U$2)) -> 0.02624490998 | V28: =IF($L28<V$1,0,IF($L28-V$1>計算!$B$26,V$2,($L28-V$1)/計算!$B$26*V$2)) -> 0.006404598148 | W28: =IF($L28<W$1,0,IF($L28-W$1>計算!$B$26,W$2,($L28-W$1)/計算!$B$26*W$2)) -> -0.01670547453 | X28: =IF($L28<X$1,0,IF($L28-X$1>計算!$B$26,X$2,($L28-X$1)/計算!$B$26*X$2)) -> -0.01278691 | Y28: =IF($L28<Y$1,0,IF($L28-Y$1>計算!$B$26,Y$2,($L28-Y$1)/計算!$B$26*Y$2)) -> 0.01787771991 | Z28: =IF($L28<Z$1,0,IF($L28-Z$1>計算!$B$26,Z$2,($L28-Z$1)/計算!$B$26*Z$2)) -> 0.005797530889 | AA28: =IF($L28<AA$1,0,IF($L28-AA$1>計算!$B$26,AA$2,($L28-AA$1)/計算!$B$26*AA$2)) -> -0.001672916668 | AB28: =IF($L28<AB$1,0,IF($L28-AB$1>計算!$B$26,AB$2,($L28-AB$1)/計算!$B$26*AB$2)) -> 0 | AC28: =IF($L28<AC$1,0,IF($L28-AC$1>計算!$B$26,AC$2,($L28-AC$1)/計算!$B$26*AC$2)) -> 0 | AD28: =IF($L28<AD$1,0,IF($L28-AD$1>計算!$B$26,AD$2,($L28-AD$1)/計算!$B$26*AD$2)) -> 0 | AE28: =IF($L28<AE$1,0,IF($L28-AE$1>計算!$B$26,AE$2,($L28-AE$1)/計算!$B$26*AE$2)) -> 0 | AF28: =IF($L28<AF$1,0,IF($L28-AF$1>計算!$B$26,AF$2,($L28-AF$1)/計算!$B$26*AF$2)) -> 0 | AG28: =IF($L28<AG$1,0,IF($L28-AG$1>計算!$B$26,AG$2,($L28-AG$1)/計算!$B$26*AG$2)) -> 0 | AH28: =IF($L28<AH$1,0,IF($L28-AH$1>計算!$B$26,AH$2,($L28-AH$1)/計算!$B$26*AH$2)) -> 0 | AI28: =IF($L28<AI$1,0,IF($L28-AI$1>計算!$B$26,AI$2,($L28-AI$1)/計算!$B$26*AI$2)) -> 0 | AJ28: =IF($L28<AJ$1,0,IF($L28-AJ$1>計算!$B$26,AJ$2,($L28-AJ$1)/計算!$B$26*AJ$2)) -> 0 | AK28: =IF($L28<AK$1,0,IF($L28-AK$1>計算!$B$26,AK$2,($L28-AK$1)/計算!$B$26*AK$2)) -> 0 | AL28: =IF($L28<AL$1,0,IF($L28-AL$1>計算!$B$26,AL$2,($L28-AL$1)/計算!$B$26*AL$2)) -> 0 | AM28: =IF($L28<AM$1,0,IF($L28-AM$1>計算!$B$26,AM$2,($L28-AM$1)/計算!$B$26*AM$2)) -> 0 | AN28: =IF($L28<AN$1,0,IF($L28-AN$1>計算!$B$26,AN$2,($L28-AN$1)/計算!$B$26*AN$2)) -> 0 | AO28: =IF($L28<AO$1,0,IF($L28-AO$1>計算!$B$26,AO$2,($L28-AO$1)/計算!$B$26*AO$2)) -> 0 | AP28: =IF($L28<AP$1,0,IF($L28-AP$1>計算!$B$26,AP$2,($L28-AP$1)/計算!$B$26*AP$2)) -> 0 | AQ28: =IF($L28<AQ$1,0,IF($L28-AQ$1>計算!$B$26,AQ$2,($L28-AQ$1)/計算!$B$26*AQ$2)) -> 0 | AR28: =IF($L28<AR$1,0,IF($L28-AR$1>計算!$B$26,AR$2,($L28-AR$1)/計算!$B$26*AR$2)) -> 0 | AS28: =IF($L28<AS$1,0,IF($L28-AS$1>計算!$B$26,AS$2,($L28-AS$1)/計算!$B$26*AS$2)) -> 0 | AT28: =IF($L28<AT$1,0,IF($L28-AT$1>計算!$B$26,AT$2,($L28-AT$1)/計算!$B$26*AT$2)) -> 0 | AU28: =IF($L28<AU$1,0,IF($L28-AU$1>計算!$B$26,AU$2,($L28-AU$1)/計算!$B$26*AU$2)) -> 0 | AV28: =IF($L28<AV$1,0,IF($L28-AV$1>計算!$B$26,AV$2,($L28-AV$1)/計算!$B$26*AV$2)) -> 0 | AW28: 3.268492847 | AZ28: 1.5e-07 | BA28: 46 | BB28: =IF(準備!T27>=準備!$T$33,準備!$T$33,準備!T27)+AZ28 -> 8.790368984 | BC28: =準備!Y27-準備!Y26 -> 0.2658992244 | BD28: =準備!Z27-準備!Z26 -> -0.005581989329 | BF28: 24 | BG28: 5.447584807 | BH28: =IF($BG28<BH$1,0,IF($BG28-BH$1>計算!$B$26,BH$2,($BG28-BH$1)/計算!$B$26*BH$2)) -> 1.843424849 | BI28: =IF($BG28<BI$1,0,IF($BG28-BI$1>計算!$B$26,BI$2,($BG28-BI$1)/計算!$B$26*BI$2)) -> 2.08043597 | BJ28: =IF($BG28<BJ$1,0,IF($BG28-BJ$1>計算!$B$26,BJ$2,($BG28-BJ$1)/計算!$B$26*BJ$2)) -> 0.4383357379 | BK28: =IF($BG28<BK$1,0,IF($BG28-BK$1>計算!$B$26,BK$2,($BG28-BK$1)/計算!$B$26*BK$2)) -> -0.5512010619 | BL28: =IF($BG28<BL$1,0,IF($BG28-BL$1>計算!$B$26,BL$2,($BG28-BL$1)/計算!$B$26*BL$2)) -> -0.8036518745 | BM28: =IF($BG28<BM$1,0,IF($BG28-BM$1>計算!$B$26,BM$2,($BG28-BM$1)/計算!$B$26*BM$2)) -> 0.1958427948 | BN28: =IF($BG28<BN$1,0,IF($BG28-BN$1>計算!$B$26,BN$2,($BG28-BN$1)/計算!$B$26*BN$2)) -> 0.1042289406 | BO28: =IF($BG28<BO$1,0,IF($BG28-BO$1>計算!$B$26,BO$2,($BG28-BO$1)/計算!$B$26*BO$2)) -> -0.4423266907 | BP28: =IF($BG28<BP$1,0,IF($BG28-BP$1>計算!$B$26,BP$2,($BG28-BP$1)/計算!$B$26*BP$2)) -> 0.1637739194 | BQ28: =IF($BG28<BQ$1,0,IF($BG28-BQ$1>計算!$B$26,BQ$2,($BG28-BQ$1)/計算!$B$26*BQ$2)) -> 0.4775480553 | BR28: =IF($BG28<BR$1,0,IF($BG28-BR$1>計算!$B$26,BR$2,($BG28-BR$1)/計算!$B$26*BR$2)) -> -0.2147192343 | BS28: =IF($BG28<BS$1,0,IF($BG28-BS$1>計算!$B$26,BS$2,($BG28-BS$1)/計算!$B$26*BS$2)) -> 0.01843575137 | BT28: =IF($BG28<BT$1,0,IF($BG28-BT$1>計算!$B$26,BT$2,($BG28-BT$1)/計算!$B$26*BT$2)) -> 0 | BU28: =IF($BG28<BU$1,0,IF($BG28-BU$1>計算!$B$26,BU$2,($BG28-BU$1)/計算!$B$26*BU$2)) -> 0 | BV28: =IF($BG28<BV$1,0,IF($BG28-BV$1>計算!$B$26,BV$2,($BG28-BV$1)/計算!$B$26*BV$2)) -> 0 | BW28: =IF($BG28<BW$1,0,IF($BG28-BW$1>計算!$B$26,BW$2,($BG28-BW$1)/計算!$B$26*BW$2)) -> 0 | BX28: =IF($BG28<BX$1,0,IF($BG28-BX$1>計算!$B$26,BX$2,($BG28-BX$1)/計算!$B$26*BX$2)) -> 0 | BY28: =IF($BG28<BY$1,0,IF($BG28-BY$1>計算!$B$26,BY$2,($BG28-BY$1)/計算!$B$26*BY$2)) -> 0 | BZ28: =IF($BG28<BZ$1,0,IF($BG28-BZ$1>計算!$B$26,BZ$2,($BG28-BZ$1)/計算!$B$26*BZ$2)) -> 0 | CA28: =IF($BG28<CA$1,0,IF($BG28-CA$1>計算!$B$26,CA$2,($BG28-CA$1)/計算!$B$26*CA$2)) -> 0 | CB28: =IF($BG28<CB$1,0,IF($BG28-CB$1>計算!$B$26,CB$2,($BG28-CB$1)/計算!$B$26*CB$2)) -> 0 | CC28: =IF($BG28<CC$1,0,IF($BG28-CC$1>計算!$B$26,CC$2,($BG28-CC$1)/計算!$B$26*CC$2)) -> 0 | CD28: =IF($BG28<CD$1,0,IF($BG28-CD$1>計算!$B$26,CD$2,($BG28-CD$1)/計算!$B$26*CD$2)) -> 0 | CE28: =IF($BG28<CE$1,0,IF($BG28-CE$1>計算!$B$26,CE$2,($BG28-CE$1)/計算!$B$26*CE$2)) -> 0 | CF28: =IF($BG28<CF$1,0,IF($BG28-CF$1>計算!$B$26,CF$2,($BG28-CF$1)/計算!$B$26*CF$2)) -> 0 | CG28: =IF($BG28<CG$1,0,IF($BG28-CG$1>計算!$B$26,CG$2,($BG28-CG$1)/計算!$B$26*CG$2)) -> 0 | CH28: =IF($BG28<CH$1,0,IF($BG28-CH$1>計算!$B$26,CH$2,($BG28-CH$1)/計算!$B$26*CH$2)) -> 0 | CI28: =IF($BG28<CI$1,0,IF($BG28-CI$1>計算!$B$26,CI$2,($BG28-CI$1)/計算!$B$26*CI$2)) -> 0 | CJ28: =IF($BG28<CJ$1,0,IF($BG28-CJ$1>計算!$B$26,CJ$2,($BG28-CJ$1)/計算!$B$26*CJ$2)) -> 0 | CK28: =IF($BG28<CK$1,0,IF($BG28-CK$1>計算!$B$26,CK$2,($BG28-CK$1)/計算!$B$26*CK$2)) -> 0 | CL28: 3.310127157 | CO28: 5.937101624 | CP28: 0.03626242003 | CQ28: -0.03626242003
A29: r2 | B29: =(B3-B17)/(B3+B17) -> 0.9999002323 | F29: 63 | G29: =準備!J28 -> 9.635781268 | H29: =準備!O28-準備!O27 -> -0.009530902155 | I29: =準備!P28-準備!P27 -> 0.03364986485 | K29: 26 | L29: 6.264176221 | M29: =IF($L29<M$1,0,IF($L29-M$1>計算!$B$26,M$2,($L29-M$1)/計算!$B$26*M$2)) -> 1.989000528 | N29: =IF($L29<N$1,0,IF($L29-N$1>計算!$B$26,N$2,($L29-N$1)/計算!$B$26*N$2)) -> 0.3275217949 | O29: =IF($L29<O$1,0,IF($L29-O$1>計算!$B$26,O$2,($L29-O$1)/計算!$B$26*O$2)) -> 0.9310129985 | P29: =IF($L29<P$1,0,IF($L29-P$1>計算!$B$26,P$2,($L29-P$1)/計算!$B$26*P$2)) -> 0.2787994054 | Q29: =IF($L29<Q$1,0,IF($L29-Q$1>計算!$B$26,Q$2,($L29-Q$1)/計算!$B$26*Q$2)) -> 0.07787922992 | R29: =IF($L29<R$1,0,IF($L29-R$1>計算!$B$26,R$2,($L29-R$1)/計算!$B$26*R$2)) -> -0.01119237707 | S29: =IF($L29<S$1,0,IF($L29-S$1>計算!$B$26,S$2,($L29-S$1)/計算!$B$26*S$2)) -> -0.2393553108 | T29: =IF($L29<T$1,0,IF($L29-T$1>計算!$B$26,T$2,($L29-T$1)/計算!$B$26*T$2)) -> -0.1103328801 | U29: =IF($L29<U$1,0,IF($L29-U$1>計算!$B$26,U$2,($L29-U$1)/計算!$B$26*U$2)) -> 0.02624490998 | V29: =IF($L29<V$1,0,IF($L29-V$1>計算!$B$26,V$2,($L29-V$1)/計算!$B$26*V$2)) -> 0.01851838427 | W29: =IF($L29<W$1,0,IF($L29-W$1>計算!$B$26,W$2,($L29-W$1)/計算!$B$26*W$2)) -> -0.05462196042 | X29: =IF($L29<X$1,0,IF($L29-X$1>計算!$B$26,X$2,($L29-X$1)/計算!$B$26*X$2)) -> -0.04906503936 | Y29: =IF($L29<Y$1,0,IF($L29-Y$1>計算!$B$26,Y$2,($L29-Y$1)/計算!$B$26*Y$2)) -> 0.08550628021 | Z29: =IF($L29<Z$1,0,IF($L29-Z$1>計算!$B$26,Z$2,($L29-Z$1)/計算!$B$26*Z$2)) -> 0.03869423158 | AA29: =IF($L29<AA$1,0,IF($L29-AA$1>計算!$B$26,AA$2,($L29-AA$1)/計算!$B$26*AA$2)) -> -0.0206580467 | AB29: =IF($L29<AB$1,0,IF($L29-AB$1>計算!$B$26,AB$2,($L29-AB$1)/計算!$B$26*AB$2)) -> 0.001616125723 | AC29: =IF($L29<AC$1,0,IF($L29-AC$1>計算!$B$26,AC$2,($L29-AC$1)/計算!$B$26*AC$2)) -> 0 | AD29: =IF($L29<AD$1,0,IF($L29-AD$1>計算!$B$26,AD$2,($L29-AD$1)/計算!$B$26*AD$2)) -> 0 | AE29: =IF($L29<AE$1,0,IF($L29-AE$1>計算!$B$26,AE$2,($L29-AE$1)/計算!$B$26*AE$2)) -> 0 | AF29: =IF($L29<AF$1,0,IF($L29-AF$1>計算!$B$26,AF$2,($L29-AF$1)/計算!$B$26*AF$2)) -> 0 | AG29: =IF($L29<AG$1,0,IF($L29-AG$1>計算!$B$26,AG$2,($L29-AG$1)/計算!$B$26*AG$2)) -> 0 | AH29: =IF($L29<AH$1,0,IF($L29-AH$1>計算!$B$26,AH$2,($L29-AH$1)/計算!$B$26*AH$2)) -> 0 | AI29: =IF($L29<AI$1,0,IF($L29-AI$1>計算!$B$26,AI$2,($L29-AI$1)/計算!$B$26*AI$2)) -> 0 | AJ29: =IF($L29<AJ$1,0,IF($L29-AJ$1>計算!$B$26,AJ$2,($L29-AJ$1)/計算!$B$26*AJ$2)) -> 0 | AK29: =IF($L29<AK$1,0,IF($L29-AK$1>計算!$B$26,AK$2,($L29-AK$1)/計算!$B$26*AK$2)) -> 0 | AL29: =IF($L29<AL$1,0,IF($L29-AL$1>計算!$B$26,AL$2,($L29-AL$1)/計算!$B$26*AL$2)) -> 0 | AM29: =IF($L29<AM$1,0,IF($L29-AM$1>計算!$B$26,AM$2,($L29-AM$1)/計算!$B$26*AM$2)) -> 0 | AN29: =IF($L29<AN$1,0,IF($L29-AN$1>計算!$B$26,AN$2,($L29-AN$1)/計算!$B$26*AN$2)) -> 0 | AO29: =IF($L29<AO$1,0,IF($L29-AO$1>計算!$B$26,AO$2,($L29-AO$1)/計算!$B$26*AO$2)) -> 0 | AP29: =IF($L29<AP$1,0,IF($L29-AP$1>計算!$B$26,AP$2,($L29-AP$1)/計算!$B$26*AP$2)) -> 0 | AQ29: =IF($L29<AQ$1,0,IF($L29-AQ$1>計算!$B$26,AQ$2,($L29-AQ$1)/計算!$B$26*AQ$2)) -> 0 | AR29: =IF($L29<AR$1,0,IF($L29-AR$1>計算!$B$26,AR$2,($L29-AR$1)/計算!$B$26*AR$2)) -> 0 | AS29: =IF($L29<AS$1,0,IF($L29-AS$1>計算!$B$26,AS$2,($L29-AS$1)/計算!$B$26*AS$2)) -> 0 | AT29: =IF($L29<AT$1,0,IF($L29-AT$1>計算!$B$26,AT$2,($L29-AT$1)/計算!$B$26*AT$2)) -> 0 | AU29: =IF($L29<AU$1,0,IF($L29-AU$1>計算!$B$26,AU$2,($L29-AU$1)/計算!$B$26*AU$2)) -> 0 | AV29: =IF($L29<AV$1,0,IF($L29-AV$1>計算!$B$26,AV$2,($L29-AV$1)/計算!$B$26*AV$2)) -> 0 | AW29: 3.289568274 | AZ29: 1.6e-07 | BA29: 47 | BB29: =IF(準備!T28>=準備!$T$33,準備!$T$33,準備!T28)+AZ29 -> 8.819189894 | BC29: =準備!Y28-準備!Y27 -> -0.1683756746 | BD29: =準備!Z28-準備!Z27 -> -0.02955103635 | BF29: 25 | BG29: 6.724872257 | BH29: =IF($BG29<BH$1,0,IF($BG29-BH$1>計算!$B$26,BH$2,($BG29-BH$1)/計算!$B$26*BH$2)) -> 1.843424849 | BI29: =IF($BG29<BI$1,0,IF($BG29-BI$1>計算!$B$26,BI$2,($BG29-BI$1)/計算!$B$26*BI$2)) -> 2.08043597 | BJ29: =IF($BG29<BJ$1,0,IF($BG29-BJ$1>計算!$B$26,BJ$2,($BG29-BJ$1)/計算!$B$26*BJ$2)) -> 0.4383357379 | BK29: =IF($BG29<BK$1,0,IF($BG29-BK$1>計算!$B$26,BK$2,($BG29-BK$1)/計算!$B$26*BK$2)) -> -0.5512010619 | BL29: =IF($BG29<BL$1,0,IF($BG29-BL$1>計算!$B$26,BL$2,($BG29-BL$1)/計算!$B$26*BL$2)) -> -0.8036518745 | BM29: =IF($BG29<BM$1,0,IF($BG29-BM$1>計算!$B$26,BM$2,($BG29-BM$1)/計算!$B$26*BM$2)) -> 0.1958427948 | BN29: =IF($BG29<BN$1,0,IF($BG29-BN$1>計算!$B$26,BN$2,($BG29-BN$1)/計算!$B$26*BN$2)) -> 0.1042289406 | BO29: =IF($BG29<BO$1,0,IF($BG29-BO$1>計算!$B$26,BO$2,($BG29-BO$1)/計算!$B$26*BO$2)) -> -0.4423266907 | BP29: =IF($BG29<BP$1,0,IF($BG29-BP$1>計算!$B$26,BP$2,($BG29-BP$1)/計算!$B$26*BP$2)) -> 0.1637739194 | BQ29: =IF($BG29<BQ$1,0,IF($BG29-BQ$1>計算!$B$26,BQ$2,($BG29-BQ$1)/計算!$B$26*BQ$2)) -> 0.4775480553 | BR29: =IF($BG29<BR$1,0,IF($BG29-BR$1>計算!$B$26,BR$2,($BG29-BR$1)/計算!$B$26*BR$2)) -> -0.2147192343 | BS29: =IF($BG29<BS$1,0,IF($BG29-BS$1>計算!$B$26,BS$2,($BG29-BS$1)/計算!$B$26*BS$2)) -> 0.01843575137 | BT29: =IF($BG29<BT$1,0,IF($BG29-BT$1>計算!$B$26,BT$2,($BG29-BT$1)/計算!$B$26*BT$2)) -> 0 | BU29: =IF($BG29<BU$1,0,IF($BG29-BU$1>計算!$B$26,BU$2,($BG29-BU$1)/計算!$B$26*BU$2)) -> 0 | BV29: =IF($BG29<BV$1,0,IF($BG29-BV$1>計算!$B$26,BV$2,($BG29-BV$1)/計算!$B$26*BV$2)) -> 0 | BW29: =IF($BG29<BW$1,0,IF($BG29-BW$1>計算!$B$26,BW$2,($BG29-BW$1)/計算!$B$26*BW$2)) -> 0 | BX29: =IF($BG29<BX$1,0,IF($BG29-BX$1>計算!$B$26,BX$2,($BG29-BX$1)/計算!$B$26*BX$2)) -> 0 | BY29: =IF($BG29<BY$1,0,IF($BG29-BY$1>計算!$B$26,BY$2,($BG29-BY$1)/計算!$B$26*BY$2)) -> 0 | BZ29: =IF($BG29<BZ$1,0,IF($BG29-BZ$1>計算!$B$26,BZ$2,($BG29-BZ$1)/計算!$B$26*BZ$2)) -> 0 | CA29: =IF($BG29<CA$1,0,IF($BG29-CA$1>計算!$B$26,CA$2,($BG29-CA$1)/計算!$B$26*CA$2)) -> 0 | CB29: =IF($BG29<CB$1,0,IF($BG29-CB$1>計算!$B$26,CB$2,($BG29-CB$1)/計算!$B$26*CB$2)) -> 0 | CC29: =IF($BG29<CC$1,0,IF($BG29-CC$1>計算!$B$26,CC$2,($BG29-CC$1)/計算!$B$26*CC$2)) -> 0 | CD29: =IF($BG29<CD$1,0,IF($BG29-CD$1>計算!$B$26,CD$2,($BG29-CD$1)/計算!$B$26*CD$2)) -> 0 | CE29: =IF($BG29<CE$1,0,IF($BG29-CE$1>計算!$B$26,CE$2,($BG29-CE$1)/計算!$B$26*CE$2)) -> 0 | CF29: =IF($BG29<CF$1,0,IF($BG29-CF$1>計算!$B$26,CF$2,($BG29-CF$1)/計算!$B$26*CF$2)) -> 0 | CG29: =IF($BG29<CG$1,0,IF($BG29-CG$1>計算!$B$26,CG$2,($BG29-CG$1)/計算!$B$26*CG$2)) -> 0 | CH29: =IF($BG29<CH$1,0,IF($BG29-CH$1>計算!$B$26,CH$2,($BG29-CH$1)/計算!$B$26*CH$2)) -> 0 | CI29: =IF($BG29<CI$1,0,IF($BG29-CI$1>計算!$B$26,CI$2,($BG29-CI$1)/計算!$B$26*CI$2)) -> 0 | CJ29: =IF($BG29<CJ$1,0,IF($BG29-CJ$1>計算!$B$26,CJ$2,($BG29-CJ$1)/計算!$B$26*CJ$2)) -> 0 | CK29: =IF($BG29<CK$1,0,IF($BG29-CK$1>計算!$B$26,CK$2,($BG29-CK$1)/計算!$B$26*CK$2)) -> 0 | CL29: 3.310127157 | CO29: 6.264176221 | CP29: -0.006941289742 | CQ29: 0.006941289742
A30: rN | B30: =(B4-B18)/(B4+B18) -> 0.9999002323 | F30: 64 | G30: =準備!J29 -> 9.664602169 | H30: =準備!O29-準備!O28 -> 0.02504188741 | I30: =準備!P29-準備!P28 -> -0.141097673 | K30: 27 | L30: 6.292997122 | M30: =IF($L30<M$1,0,IF($L30-M$1>計算!$B$26,M$2,($L30-M$1)/計算!$B$26*M$2)) -> 1.989000528 | N30: =IF($L30<N$1,0,IF($L30-N$1>計算!$B$26,N$2,($L30-N$1)/計算!$B$26*N$2)) -> 0.3275217949 | O30: =IF($L30<O$1,0,IF($L30-O$1>計算!$B$26,O$2,($L30-O$1)/計算!$B$26*O$2)) -> 0.9310129985 | P30: =IF($L30<P$1,0,IF($L30-P$1>計算!$B$26,P$2,($L30-P$1)/計算!$B$26*P$2)) -> 0.2787994054 | Q30: =IF($L30<Q$1,0,IF($L30-Q$1>計算!$B$26,Q$2,($L30-Q$1)/計算!$B$26*Q$2)) -> 0.07787922992 | R30: =IF($L30<R$1,0,IF($L30-R$1>計算!$B$26,R$2,($L30-R$1)/計算!$B$26*R$2)) -> -0.01119237707 | S30: =IF($L30<S$1,0,IF($L30-S$1>計算!$B$26,S$2,($L30-S$1)/計算!$B$26*S$2)) -> -0.2393553108 | T30: =IF($L30<T$1,0,IF($L30-T$1>計算!$B$26,T$2,($L30-T$1)/計算!$B$26*T$2)) -> -0.1103328801 | U30: =IF($L30<U$1,0,IF($L30-U$1>計算!$B$26,U$2,($L30-U$1)/計算!$B$26*U$2)) -> 0.02624490998 | V30: =IF($L30<V$1,0,IF($L30-V$1>計算!$B$26,V$2,($L30-V$1)/計算!$B$26*V$2)) -> 0.01851838427 | W30: =IF($L30<W$1,0,IF($L30-W$1>計算!$B$26,W$2,($L30-W$1)/計算!$B$26*W$2)) -> -0.05796305521 | X30: =IF($L30<X$1,0,IF($L30-X$1>計算!$B$26,X$2,($L30-X$1)/計算!$B$26*X$2)) -> -0.05226176687 | Y30: =IF($L30<Y$1,0,IF($L30-Y$1>計算!$B$26,Y$2,($L30-Y$1)/計算!$B$26*Y$2)) -> 0.0914655202 | Z30: =IF($L30<Z$1,0,IF($L30-Z$1>計算!$B$26,Z$2,($L30-Z$1)/計算!$B$26*Z$2)) -> 0.04159299703 | AA30: =IF($L30<AA$1,0,IF($L30-AA$1>計算!$B$26,AA$2,($L30-AA$1)/計算!$B$26*AA$2)) -> -0.02233096337 | AB30: =IF($L30<AB$1,0,IF($L30-AB$1>計算!$B$26,AB$2,($L30-AB$1)/計算!$B$26*AB$2)) -> 0.001758534212 | AC30: =IF($L30<AC$1,0,IF($L30-AC$1>計算!$B$26,AC$2,($L30-AC$1)/計算!$B$26*AC$2)) -> 0 | AD30: =IF($L30<AD$1,0,IF($L30-AD$1>計算!$B$26,AD$2,($L30-AD$1)/計算!$B$26*AD$2)) -> 0 | AE30: =IF($L30<AE$1,0,IF($L30-AE$1>計算!$B$26,AE$2,($L30-AE$1)/計算!$B$26*AE$2)) -> 0 | AF30: =IF($L30<AF$1,0,IF($L30-AF$1>計算!$B$26,AF$2,($L30-AF$1)/計算!$B$26*AF$2)) -> 0 | AG30: =IF($L30<AG$1,0,IF($L30-AG$1>計算!$B$26,AG$2,($L30-AG$1)/計算!$B$26*AG$2)) -> 0 | AH30: =IF($L30<AH$1,0,IF($L30-AH$1>計算!$B$26,AH$2,($L30-AH$1)/計算!$B$26*AH$2)) -> 0 | AI30: =IF($L30<AI$1,0,IF($L30-AI$1>計算!$B$26,AI$2,($L30-AI$1)/計算!$B$26*AI$2)) -> 0 | AJ30: =IF($L30<AJ$1,0,IF($L30-AJ$1>計算!$B$26,AJ$2,($L30-AJ$1)/計算!$B$26*AJ$2)) -> 0 | AK30: =IF($L30<AK$1,0,IF($L30-AK$1>計算!$B$26,AK$2,($L30-AK$1)/計算!$B$26*AK$2)) -> 0 | AL30: =IF($L30<AL$1,0,IF($L30-AL$1>計算!$B$26,AL$2,($L30-AL$1)/計算!$B$26*AL$2)) -> 0 | AM30: =IF($L30<AM$1,0,IF($L30-AM$1>計算!$B$26,AM$2,($L30-AM$1)/計算!$B$26*AM$2)) -> 0 | AN30: =IF($L30<AN$1,0,IF($L30-AN$1>計算!$B$26,AN$2,($L30-AN$1)/計算!$B$26*AN$2)) -> 0 | AO30: =IF($L30<AO$1,0,IF($L30-AO$1>計算!$B$26,AO$2,($L30-AO$1)/計算!$B$26*AO$2)) -> 0 | AP30: =IF($L30<AP$1,0,IF($L30-AP$1>計算!$B$26,AP$2,($L30-AP$1)/計算!$B$26*AP$2)) -> 0 | AQ30: =IF($L30<AQ$1,0,IF($L30-AQ$1>計算!$B$26,AQ$2,($L30-AQ$1)/計算!$B$26*AQ$2)) -> 0 | AR30: =IF($L30<AR$1,0,IF($L30-AR$1>計算!$B$26,AR$2,($L30-AR$1)/計算!$B$26*AR$2)) -> 0 | AS30: =IF($L30<AS$1,0,IF($L30-AS$1>計算!$B$26,AS$2,($L30-AS$1)/計算!$B$26*AS$2)) -> 0 | AT30: =IF($L30<AT$1,0,IF($L30-AT$1>計算!$B$26,AT$2,($L30-AT$1)/計算!$B$26*AT$2)) -> 0 | AU30: =IF($L30<AU$1,0,IF($L30-AU$1>計算!$B$26,AU$2,($L30-AU$1)/計算!$B$26*AU$2)) -> 0 | AV30: =IF($L30<AV$1,0,IF($L30-AV$1>計算!$B$26,AV$2,($L30-AV$1)/計算!$B$26*AV$2)) -> 0 | AW30: 3.290357949 | AZ30: 1.7e-07 | BA30: 48 | BB30: =IF(準備!T29>=準備!$T$33,準備!$T$33,準備!T29)+AZ30 -> 8.848010805 | BC30: =準備!Y29-準備!Y28 -> 0.04150284709 | BD30: =準備!Z29-準備!Z28 -> 0.01222032493 | BF30: 26 | BG30: 6.753693158 | BH30: =IF($BG30<BH$1,0,IF($BG30-BH$1>計算!$B$26,BH$2,($BG30-BH$1)/計算!$B$26*BH$2)) -> 1.843424849 | BI30: =IF($BG30<BI$1,0,IF($BG30-BI$1>計算!$B$26,BI$2,($BG30-BI$1)/計算!$B$26*BI$2)) -> 2.08043597 | BJ30: =IF($BG30<BJ$1,0,IF($BG30-BJ$1>計算!$B$26,BJ$2,($BG30-BJ$1)/計算!$B$26*BJ$2)) -> 0.4383357379 | BK30: =IF($BG30<BK$1,0,IF($BG30-BK$1>計算!$B$26,BK$2,($BG30-BK$1)/計算!$B$26*BK$2)) -> -0.5512010619 | BL30: =IF($BG30<BL$1,0,IF($BG30-BL$1>計算!$B$26,BL$2,($BG30-BL$1)/計算!$B$26*BL$2)) -> -0.8036518745 | BM30: =IF($BG30<BM$1,0,IF($BG30-BM$1>計算!$B$26,BM$2,($BG30-BM$1)/計算!$B$26*BM$2)) -> 0.1958427948 | BN30: =IF($BG30<BN$1,0,IF($BG30-BN$1>計算!$B$26,BN$2,($BG30-BN$1)/計算!$B$26*BN$2)) -> 0.1042289406 | BO30: =IF($BG30<BO$1,0,IF($BG30-BO$1>計算!$B$26,BO$2,($BG30-BO$1)/計算!$B$26*BO$2)) -> -0.4423266907 | BP30: =IF($BG30<BP$1,0,IF($BG30-BP$1>計算!$B$26,BP$2,($BG30-BP$1)/計算!$B$26*BP$2)) -> 0.1637739194 | BQ30: =IF($BG30<BQ$1,0,IF($BG30-BQ$1>計算!$B$26,BQ$2,($BG30-BQ$1)/計算!$B$26*BQ$2)) -> 0.4775480553 | BR30: =IF($BG30<BR$1,0,IF($BG30-BR$1>計算!$B$26,BR$2,($BG30-BR$1)/計算!$B$26*BR$2)) -> -0.2147192343 | BS30: =IF($BG30<BS$1,0,IF($BG30-BS$1>計算!$B$26,BS$2,($BG30-BS$1)/計算!$B$26*BS$2)) -> 0.01843575137 | BT30: =IF($BG30<BT$1,0,IF($BG30-BT$1>計算!$B$26,BT$2,($BG30-BT$1)/計算!$B$26*BT$2)) -> 0.001428589028 | BU30: =IF($BG30<BU$1,0,IF($BG30-BU$1>計算!$B$26,BU$2,($BG30-BU$1)/計算!$B$26*BU$2)) -> 0 | BV30: =IF($BG30<BV$1,0,IF($BG30-BV$1>計算!$B$26,BV$2,($BG30-BV$1)/計算!$B$26*BV$2)) -> 0 | BW30: =IF($BG30<BW$1,0,IF($BG30-BW$1>計算!$B$26,BW$2,($BG30-BW$1)/計算!$B$26*BW$2)) -> 0 | BX30: =IF($BG30<BX$1,0,IF($BG30-BX$1>計算!$B$26,BX$2,($BG30-BX$1)/計算!$B$26*BX$2)) -> 0 | BY30: =IF($BG30<BY$1,0,IF($BG30-BY$1>計算!$B$26,BY$2,($BG30-BY$1)/計算!$B$26*BY$2)) -> 0 | BZ30: =IF($BG30<BZ$1,0,IF($BG30-BZ$1>計算!$B$26,BZ$2,($BG30-BZ$1)/計算!$B$26*BZ$2)) -> 0 | CA30: =IF($BG30<CA$1,0,IF($BG30-CA$1>計算!$B$26,CA$2,($BG30-CA$1)/計算!$B$26*CA$2)) -> 0 | CB30: =IF($BG30<CB$1,0,IF($BG30-CB$1>計算!$B$26,CB$2,($BG30-CB$1)/計算!$B$26*CB$2)) -> 0 | CC30: =IF($BG30<CC$1,0,IF($BG30-CC$1>計算!$B$26,CC$2,($BG30-CC$1)/計算!$B$26*CC$2)) -> 0 | CD30: =IF($BG30<CD$1,0,IF($BG30-CD$1>計算!$B$26,CD$2,($BG30-CD$1)/計算!$B$26*CD$2)) -> 0 | CE30: =IF($BG30<CE$1,0,IF($BG30-CE$1>計算!$B$26,CE$2,($BG30-CE$1)/計算!$B$26*CE$2)) -> 0 | CF30: =IF($BG30<CF$1,0,IF($BG30-CF$1>計算!$B$26,CF$2,($BG30-CF$1)/計算!$B$26*CF$2)) -> 0 | CG30: =IF($BG30<CG$1,0,IF($BG30-CG$1>計算!$B$26,CG$2,($BG30-CG$1)/計算!$B$26*CG$2)) -> 0 | CH30: =IF($BG30<CH$1,0,IF($BG30-CH$1>計算!$B$26,CH$2,($BG30-CH$1)/計算!$B$26*CH$2)) -> 0 | CI30: =IF($BG30<CI$1,0,IF($BG30-CI$1>計算!$B$26,CI$2,($BG30-CI$1)/計算!$B$26*CI$2)) -> 0 | CJ30: =IF($BG30<CJ$1,0,IF($BG30-CJ$1>計算!$B$26,CJ$2,($BG30-CJ$1)/計算!$B$26*CJ$2)) -> 0 | CK30: =IF($BG30<CK$1,0,IF($BG30-CK$1>計算!$B$26,CK$2,($BG30-CK$1)/計算!$B$26*CK$2)) -> 0 | CL30: 3.311555746 | CO30: 6.292997122 | CP30: -0.007818624981 | CQ30: 0.007818624981
A31: rF | B31: =(B5-B19)/(B5+B19) -> -0.2054548657 | F31: 65 | G31: =準備!J30 -> 9.693423069 | H31: =準備!O30-準備!O29 -> -0.004831490016 | I31: =準備!P30-準備!P29 -> 0.2424310966 | K31: 28 | L31: 6.321818023 | M31: =IF($L31<M$1,0,IF($L31-M$1>計算!$B$26,M$2,($L31-M$1)/計算!$B$26*M$2)) -> 1.989000528 | N31: =IF($L31<N$1,0,IF($L31-N$1>計算!$B$26,N$2,($L31-N$1)/計算!$B$26*N$2)) -> 0.3275217949 | O31: =IF($L31<O$1,0,IF($L31-O$1>計算!$B$26,O$2,($L31-O$1)/計算!$B$26*O$2)) -> 0.9310129985 | P31: =IF($L31<P$1,0,IF($L31-P$1>計算!$B$26,P$2,($L31-P$1)/計算!$B$26*P$2)) -> 0.2787994054 | Q31: =IF($L31<Q$1,0,IF($L31-Q$1>計算!$B$26,Q$2,($L31-Q$1)/計算!$B$26*Q$2)) -> 0.07787922992 | R31: =IF($L31<R$1,0,IF($L31-R$1>計算!$B$26,R$2,($L31-R$1)/計算!$B$26*R$2)) -> -0.01119237707 | S31: =IF($L31<S$1,0,IF($L31-S$1>計算!$B$26,S$2,($L31-S$1)/計算!$B$26*S$2)) -> -0.2393553108 | T31: =IF($L31<T$1,0,IF($L31-T$1>計算!$B$26,T$2,($L31-T$1)/計算!$B$26*T$2)) -> -0.1103328801 | U31: =IF($L31<U$1,0,IF($L31-U$1>計算!$B$26,U$2,($L31-U$1)/計算!$B$26*U$2)) -> 0.02624490998 | V31: =IF($L31<V$1,0,IF($L31-V$1>計算!$B$26,V$2,($L31-V$1)/計算!$B$26*V$2)) -> 0.01851838427 | W31: =IF($L31<W$1,0,IF($L31-W$1>計算!$B$26,W$2,($L31-W$1)/計算!$B$26*W$2)) -> -0.05796305521 | X31: =IF($L31<X$1,0,IF($L31-X$1>計算!$B$26,X$2,($L31-X$1)/計算!$B$26*X$2)) -> -0.05545849425 | Y31: =IF($L31<Y$1,0,IF($L31-Y$1>計算!$B$26,Y$2,($L31-Y$1)/計算!$B$26*Y$2)) -> 0.09742476019 | Z31: =IF($L31<Z$1,0,IF($L31-Z$1>計算!$B$26,Z$2,($L31-Z$1)/計算!$B$26*Z$2)) -> 0.04449176249 | AA31: =IF($L31<AA$1,0,IF($L31-AA$1>計算!$B$26,AA$2,($L31-AA$1)/計算!$B$26*AA$2)) -> -0.02400388005 | AB31: =IF($L31<AB$1,0,IF($L31-AB$1>計算!$B$26,AB$2,($L31-AB$1)/計算!$B$26*AB$2)) -> 0.0019009427 | AC31: =IF($L31<AC$1,0,IF($L31-AC$1>計算!$B$26,AC$2,($L31-AC$1)/計算!$B$26*AC$2)) -> 0 | AD31: =IF($L31<AD$1,0,IF($L31-AD$1>計算!$B$26,AD$2,($L31-AD$1)/計算!$B$26*AD$2)) -> 0 | AE31: =IF($L31<AE$1,0,IF($L31-AE$1>計算!$B$26,AE$2,($L31-AE$1)/計算!$B$26*AE$2)) -> 0 | AF31: =IF($L31<AF$1,0,IF($L31-AF$1>計算!$B$26,AF$2,($L31-AF$1)/計算!$B$26*AF$2)) -> 0 | AG31: =IF($L31<AG$1,0,IF($L31-AG$1>計算!$B$26,AG$2,($L31-AG$1)/計算!$B$26*AG$2)) -> 0 | AH31: =IF($L31<AH$1,0,IF($L31-AH$1>計算!$B$26,AH$2,($L31-AH$1)/計算!$B$26*AH$2)) -> 0 | AI31: =IF($L31<AI$1,0,IF($L31-AI$1>計算!$B$26,AI$2,($L31-AI$1)/計算!$B$26*AI$2)) -> 0 | AJ31: =IF($L31<AJ$1,0,IF($L31-AJ$1>計算!$B$26,AJ$2,($L31-AJ$1)/計算!$B$26*AJ$2)) -> 0 | AK31: =IF($L31<AK$1,0,IF($L31-AK$1>計算!$B$26,AK$2,($L31-AK$1)/計算!$B$26*AK$2)) -> 0 | AL31: =IF($L31<AL$1,0,IF($L31-AL$1>計算!$B$26,AL$2,($L31-AL$1)/計算!$B$26*AL$2)) -> 0 | AM31: =IF($L31<AM$1,0,IF($L31-AM$1>計算!$B$26,AM$2,($L31-AM$1)/計算!$B$26*AM$2)) -> 0 | AN31: =IF($L31<AN$1,0,IF($L31-AN$1>計算!$B$26,AN$2,($L31-AN$1)/計算!$B$26*AN$2)) -> 0 | AO31: =IF($L31<AO$1,0,IF($L31-AO$1>計算!$B$26,AO$2,($L31-AO$1)/計算!$B$26*AO$2)) -> 0 | AP31: =IF($L31<AP$1,0,IF($L31-AP$1>計算!$B$26,AP$2,($L31-AP$1)/計算!$B$26*AP$2)) -> 0 | AQ31: =IF($L31<AQ$1,0,IF($L31-AQ$1>計算!$B$26,AQ$2,($L31-AQ$1)/計算!$B$26*AQ$2)) -> 0 | AR31: =IF($L31<AR$1,0,IF($L31-AR$1>計算!$B$26,AR$2,($L31-AR$1)/計算!$B$26*AR$2)) -> 0 | AS31: =IF($L31<AS$1,0,IF($L31-AS$1>計算!$B$26,AS$2,($L31-AS$1)/計算!$B$26*AS$2)) -> 0 | AT31: =IF($L31<AT$1,0,IF($L31-AT$1>計算!$B$26,AT$2,($L31-AT$1)/計算!$B$26*AT$2)) -> 0 | AU31: =IF($L31<AU$1,0,IF($L31-AU$1>計算!$B$26,AU$2,($L31-AU$1)/計算!$B$26*AU$2)) -> 0 | AV31: =IF($L31<AV$1,0,IF($L31-AV$1>計算!$B$26,AV$2,($L31-AV$1)/計算!$B$26*AV$2)) -> 0 | AW31: 3.294488719 | AZ31: 1.8e-07 | BA31: 49 | BB31: =IF(準備!T30>=準備!$T$33,準備!$T$33,準備!T30)+AZ31 -> 8.876831716 | BC31: =準備!Y30-準備!Y29 -> -0.004367413067 | BD31: =準備!Z30-準備!Z29 -> -0.001645625944 | BF31: 27 | BG31: 6.782514058 | BH31: =IF($BG31<BH$1,0,IF($BG31-BH$1>計算!$B$26,BH$2,($BG31-BH$1)/計算!$B$26*BH$2)) -> 1.843424849 | BI31: =IF($BG31<BI$1,0,IF($BG31-BI$1>計算!$B$26,BI$2,($BG31-BI$1)/計算!$B$26*BI$2)) -> 2.08043597 | BJ31: =IF($BG31<BJ$1,0,IF($BG31-BJ$1>計算!$B$26,BJ$2,($BG31-BJ$1)/計算!$B$26*BJ$2)) -> 0.4383357379 | BK31: =IF($BG31<BK$1,0,IF($BG31-BK$1>計算!$B$26,BK$2,($BG31-BK$1)/計算!$B$26*BK$2)) -> -0.5512010619 | BL31: =IF($BG31<BL$1,0,IF($BG31-BL$1>計算!$B$26,BL$2,($BG31-BL$1)/計算!$B$26*BL$2)) -> -0.8036518745 | BM31: =IF($BG31<BM$1,0,IF($BG31-BM$1>計算!$B$26,BM$2,($BG31-BM$1)/計算!$B$26*BM$2)) -> 0.1958427948 | BN31: =IF($BG31<BN$1,0,IF($BG31-BN$1>計算!$B$26,BN$2,($BG31-BN$1)/計算!$B$26*BN$2)) -> 0.1042289406 | BO31: =IF($BG31<BO$1,0,IF($BG31-BO$1>計算!$B$26,BO$2,($BG31-BO$1)/計算!$B$26*BO$2)) -> -0.4423266907 | BP31: =IF($BG31<BP$1,0,IF($BG31-BP$1>計算!$B$26,BP$2,($BG31-BP$1)/計算!$B$26*BP$2)) -> 0.1637739194 | BQ31: =IF($BG31<BQ$1,0,IF($BG31-BQ$1>計算!$B$26,BQ$2,($BG31-BQ$1)/計算!$B$26*BQ$2)) -> 0.4775480553 | BR31: =IF($BG31<BR$1,0,IF($BG31-BR$1>計算!$B$26,BR$2,($BG31-BR$1)/計算!$B$26*BR$2)) -> -0.2147192343 | BS31: =IF($BG31<BS$1,0,IF($BG31-BS$1>計算!$B$26,BS$2,($BG31-BS$1)/計算!$B$26*BS$2)) -> 0.01843575137 | BT31: =IF($BG31<BT$1,0,IF($BG31-BT$1>計算!$B$26,BT$2,($BG31-BT$1)/計算!$B$26*BT$2)) -> 0.002857178055 | BU31: =IF($BG31<BU$1,0,IF($BG31-BU$1>計算!$B$26,BU$2,($BG31-BU$1)/計算!$B$26*BU$2)) -> -0.0103288591 | BV31: =IF($BG31<BV$1,0,IF($BG31-BV$1>計算!$B$26,BV$2,($BG31-BV$1)/計算!$B$26*BV$2)) -> 0 | BW31: =IF($BG31<BW$1,0,IF($BG31-BW$1>計算!$B$26,BW$2,($BG31-BW$1)/計算!$B$26*BW$2)) -> 0 | BX31: =IF($BG31<BX$1,0,IF($BG31-BX$1>計算!$B$26,BX$2,($BG31-BX$1)/計算!$B$26*BX$2)) -> 0 | BY31: =IF($BG31<BY$1,0,IF($BG31-BY$1>計算!$B$26,BY$2,($BG31-BY$1)/計算!$B$26*BY$2)) -> 0 | BZ31: =IF($BG31<BZ$1,0,IF($BG31-BZ$1>計算!$B$26,BZ$2,($BG31-BZ$1)/計算!$B$26*BZ$2)) -> 0 | CA31: =IF($BG31<CA$1,0,IF($BG31-CA$1>計算!$B$26,CA$2,($BG31-CA$1)/計算!$B$26*CA$2)) -> 0 | CB31: =IF($BG31<CB$1,0,IF($BG31-CB$1>計算!$B$26,CB$2,($BG31-CB$1)/計算!$B$26*CB$2)) -> 0 | CC31: =IF($BG31<CC$1,0,IF($BG31-CC$1>計算!$B$26,CC$2,($BG31-CC$1)/計算!$B$26*CC$2)) -> 0 | CD31: =IF($BG31<CD$1,0,IF($BG31-CD$1>計算!$B$26,CD$2,($BG31-CD$1)/計算!$B$26*CD$2)) -> 0 | CE31: =IF($BG31<CE$1,0,IF($BG31-CE$1>計算!$B$26,CE$2,($BG31-CE$1)/計算!$B$26*CE$2)) -> 0 | CF31: =IF($BG31<CF$1,0,IF($BG31-CF$1>計算!$B$26,CF$2,($BG31-CF$1)/計算!$B$26*CF$2)) -> 0 | CG31: =IF($BG31<CG$1,0,IF($BG31-CG$1>計算!$B$26,CG$2,($BG31-CG$1)/計算!$B$26*CG$2)) -> 0 | CH31: =IF($BG31<CH$1,0,IF($BG31-CH$1>計算!$B$26,CH$2,($BG31-CH$1)/計算!$B$26*CH$2)) -> 0 | CI31: =IF($BG31<CI$1,0,IF($BG31-CI$1>計算!$B$26,CI$2,($BG31-CI$1)/計算!$B$26*CI$2)) -> 0 | CJ31: =IF($BG31<CJ$1,0,IF($BG31-CJ$1>計算!$B$26,CJ$2,($BG31-CJ$1)/計算!$B$26*CJ$2)) -> 0 | CK31: =IF($BG31<CK$1,0,IF($BG31-CK$1>計算!$B$26,CK$2,($BG31-CK$1)/計算!$B$26*CK$2)) -> 0 | CL31: 3.302655476 | CO31: 6.321818023 | CP31: -0.02550326406 | CQ31: 0.02550326406
F32: 66 | G32: =準備!J31 -> 9.72224397 | H32: =準備!O31-準備!O30 -> -0.05050510213 | I32: =準備!P31-準備!P30 -> -0.09425647123 | K32: 29 | L32: 6.350638924 | M32: =IF($L32<M$1,0,IF($L32-M$1>計算!$B$26,M$2,($L32-M$1)/計算!$B$26*M$2)) -> 1.989000528 | N32: =IF($L32<N$1,0,IF($L32-N$1>計算!$B$26,N$2,($L32-N$1)/計算!$B$26*N$2)) -> 0.3275217949 | O32: =IF($L32<O$1,0,IF($L32-O$1>計算!$B$26,O$2,($L32-O$1)/計算!$B$26*O$2)) -> 0.9310129985 | P32: =IF($L32<P$1,0,IF($L32-P$1>計算!$B$26,P$2,($L32-P$1)/計算!$B$26*P$2)) -> 0.2787994054 | Q32: =IF($L32<Q$1,0,IF($L32-Q$1>計算!$B$26,Q$2,($L32-Q$1)/計算!$B$26*Q$2)) -> 0.07787922992 | R32: =IF($L32<R$1,0,IF($L32-R$1>計算!$B$26,R$2,($L32-R$1)/計算!$B$26*R$2)) -> -0.01119237707 | S32: =IF($L32<S$1,0,IF($L32-S$1>計算!$B$26,S$2,($L32-S$1)/計算!$B$26*S$2)) -> -0.2393553108 | T32: =IF($L32<T$1,0,IF($L32-T$1>計算!$B$26,T$2,($L32-T$1)/計算!$B$26*T$2)) -> -0.1103328801 | U32: =IF($L32<U$1,0,IF($L32-U$1>計算!$B$26,U$2,($L32-U$1)/計算!$B$26*U$2)) -> 0.02624490998 | V32: =IF($L32<V$1,0,IF($L32-V$1>計算!$B$26,V$2,($L32-V$1)/計算!$B$26*V$2)) -> 0.01851838427 | W32: =IF($L32<W$1,0,IF($L32-W$1>計算!$B$26,W$2,($L32-W$1)/計算!$B$26*W$2)) -> -0.05796305521 | X32: =IF($L32<X$1,0,IF($L32-X$1>計算!$B$26,X$2,($L32-X$1)/計算!$B$26*X$2)) -> -0.05545849425 | Y32: =IF($L32<Y$1,0,IF($L32-Y$1>計算!$B$26,Y$2,($L32-Y$1)/計算!$B$26*Y$2)) -> 0.1033839999 | Z32: =IF($L32<Z$1,0,IF($L32-Z$1>計算!$B$26,Z$2,($L32-Z$1)/計算!$B$26*Z$2)) -> 0.04739052794 | AA32: =IF($L32<AA$1,0,IF($L32-AA$1>計算!$B$26,AA$2,($L32-AA$1)/計算!$B$26*AA$2)) -> -0.02567679672 | AB32: =IF($L32<AB$1,0,IF($L32-AB$1>計算!$B$26,AB$2,($L32-AB$1)/計算!$B$26*AB$2)) -> 0.002043351188 | AC32: =IF($L32<AC$1,0,IF($L32-AC$1>計算!$B$26,AC$2,($L32-AC$1)/計算!$B$26*AC$2)) -> 0 | AD32: =IF($L32<AD$1,0,IF($L32-AD$1>計算!$B$26,AD$2,($L32-AD$1)/計算!$B$26*AD$2)) -> 0 | AE32: =IF($L32<AE$1,0,IF($L32-AE$1>計算!$B$26,AE$2,($L32-AE$1)/計算!$B$26*AE$2)) -> 0 | AF32: =IF($L32<AF$1,0,IF($L32-AF$1>計算!$B$26,AF$2,($L32-AF$1)/計算!$B$26*AF$2)) -> 0 | AG32: =IF($L32<AG$1,0,IF($L32-AG$1>計算!$B$26,AG$2,($L32-AG$1)/計算!$B$26*AG$2)) -> 0 | AH32: =IF($L32<AH$1,0,IF($L32-AH$1>計算!$B$26,AH$2,($L32-AH$1)/計算!$B$26*AH$2)) -> 0 | AI32: =IF($L32<AI$1,0,IF($L32-AI$1>計算!$B$26,AI$2,($L32-AI$1)/計算!$B$26*AI$2)) -> 0 | AJ32: =IF($L32<AJ$1,0,IF($L32-AJ$1>計算!$B$26,AJ$2,($L32-AJ$1)/計算!$B$26*AJ$2)) -> 0 | AK32: =IF($L32<AK$1,0,IF($L32-AK$1>計算!$B$26,AK$2,($L32-AK$1)/計算!$B$26*AK$2)) -> 0 | AL32: =IF($L32<AL$1,0,IF($L32-AL$1>計算!$B$26,AL$2,($L32-AL$1)/計算!$B$26*AL$2)) -> 0 | AM32: =IF($L32<AM$1,0,IF($L32-AM$1>計算!$B$26,AM$2,($L32-AM$1)/計算!$B$26*AM$2)) -> 0 | AN32: =IF($L32<AN$1,0,IF($L32-AN$1>計算!$B$26,AN$2,($L32-AN$1)/計算!$B$26*AN$2)) -> 0 | AO32: =IF($L32<AO$1,0,IF($L32-AO$1>計算!$B$26,AO$2,($L32-AO$1)/計算!$B$26*AO$2)) -> 0 | AP32: =IF($L32<AP$1,0,IF($L32-AP$1>計算!$B$26,AP$2,($L32-AP$1)/計算!$B$26*AP$2)) -> 0 | AQ32: =IF($L32<AQ$1,0,IF($L32-AQ$1>計算!$B$26,AQ$2,($L32-AQ$1)/計算!$B$26*AQ$2)) -> 0 | AR32: =IF($L32<AR$1,0,IF($L32-AR$1>計算!$B$26,AR$2,($L32-AR$1)/計算!$B$26*AR$2)) -> 0 | AS32: =IF($L32<AS$1,0,IF($L32-AS$1>計算!$B$26,AS$2,($L32-AS$1)/計算!$B$26*AS$2)) -> 0 | AT32: =IF($L32<AT$1,0,IF($L32-AT$1>計算!$B$26,AT$2,($L32-AT$1)/計算!$B$26*AT$2)) -> 0 | AU32: =IF($L32<AU$1,0,IF($L32-AU$1>計算!$B$26,AU$2,($L32-AU$1)/計算!$B$26*AU$2)) -> 0 | AV32: =IF($L32<AV$1,0,IF($L32-AV$1>計算!$B$26,AV$2,($L32-AV$1)/計算!$B$26*AV$2)) -> 0 | AW32: 3.301816216 | AZ32: 1.9e-07 | BA32: 50 | BB32: =IF(準備!T31>=準備!$T$33,準備!$T$33,準備!T31)+AZ32 -> 8.905652626 | BC32: =準備!Y31-準備!Y30 -> 0.0001633681274 | BD32: =準備!Z31-準備!Z30 -> 7.13556223e-05 | BF32: 28 | BG32: 6.811334959 | BH32: =IF($BG32<BH$1,0,IF($BG32-BH$1>計算!$B$26,BH$2,($BG32-BH$1)/計算!$B$26*BH$2)) -> 1.843424849 | BI32: =IF($BG32<BI$1,0,IF($BG32-BI$1>計算!$B$26,BI$2,($BG32-BI$1)/計算!$B$26*BI$2)) -> 2.08043597 | BJ32: =IF($BG32<BJ$1,0,IF($BG32-BJ$1>計算!$B$26,BJ$2,($BG32-BJ$1)/計算!$B$26*BJ$2)) -> 0.4383357379 | BK32: =IF($BG32<BK$1,0,IF($BG32-BK$1>計算!$B$26,BK$2,($BG32-BK$1)/計算!$B$26*BK$2)) -> -0.5512010619 | BL32: =IF($BG32<BL$1,0,IF($BG32-BL$1>計算!$B$26,BL$2,($BG32-BL$1)/計算!$B$26*BL$2)) -> -0.8036518745 | BM32: =IF($BG32<BM$1,0,IF($BG32-BM$1>計算!$B$26,BM$2,($BG32-BM$1)/計算!$B$26*BM$2)) -> 0.1958427948 | BN32: =IF($BG32<BN$1,0,IF($BG32-BN$1>計算!$B$26,BN$2,($BG32-BN$1)/計算!$B$26*BN$2)) -> 0.1042289406 | BO32: =IF($BG32<BO$1,0,IF($BG32-BO$1>計算!$B$26,BO$2,($BG32-BO$1)/計算!$B$26*BO$2)) -> -0.4423266907 | BP32: =IF($BG32<BP$1,0,IF($BG32-BP$1>計算!$B$26,BP$2,($BG32-BP$1)/計算!$B$26*BP$2)) -> 0.1637739194 | BQ32: =IF($BG32<BQ$1,0,IF($BG32-BQ$1>計算!$B$26,BQ$2,($BG32-BQ$1)/計算!$B$26*BQ$2)) -> 0.4775480553 | BR32: =IF($BG32<BR$1,0,IF($BG32-BR$1>計算!$B$26,BR$2,($BG32-BR$1)/計算!$B$26*BR$2)) -> -0.2147192343 | BS32: =IF($BG32<BS$1,0,IF($BG32-BS$1>計算!$B$26,BS$2,($BG32-BS$1)/計算!$B$26*BS$2)) -> 0.01843575137 | BT32: =IF($BG32<BT$1,0,IF($BG32-BT$1>計算!$B$26,BT$2,($BG32-BT$1)/計算!$B$26*BT$2)) -> 0.004285767083 | BU32: =IF($BG32<BU$1,0,IF($BG32-BU$1>計算!$B$26,BU$2,($BG32-BU$1)/計算!$B$26*BU$2)) -> -0.0206577182 | BV32: =IF($BG32<BV$1,0,IF($BG32-BV$1>計算!$B$26,BV$2,($BG32-BV$1)/計算!$B$26*BV$2)) -> 0.01984890591 | BW32: =IF($BG32<BW$1,0,IF($BG32-BW$1>計算!$B$26,BW$2,($BG32-BW$1)/計算!$B$26*BW$2)) -> 0 | BX32: =IF($BG32<BX$1,0,IF($BG32-BX$1>計算!$B$26,BX$2,($BG32-BX$1)/計算!$B$26*BX$2)) -> 0 | BY32: =IF($BG32<BY$1,0,IF($BG32-BY$1>計算!$B$26,BY$2,($BG32-BY$1)/計算!$B$26*BY$2)) -> 0 | BZ32: =IF($BG32<BZ$1,0,IF($BG32-BZ$1>計算!$B$26,BZ$2,($BG32-BZ$1)/計算!$B$26*BZ$2)) -> 0 | CA32: =IF($BG32<CA$1,0,IF($BG32-CA$1>計算!$B$26,CA$2,($BG32-CA$1)/計算!$B$26*CA$2)) -> 0 | CB32: =IF($BG32<CB$1,0,IF($BG32-CB$1>計算!$B$26,CB$2,($BG32-CB$1)/計算!$B$26*CB$2)) -> 0 | CC32: =IF($BG32<CC$1,0,IF($BG32-CC$1>計算!$B$26,CC$2,($BG32-CC$1)/計算!$B$26*CC$2)) -> 0 | CD32: =IF($BG32<CD$1,0,IF($BG32-CD$1>計算!$B$26,CD$2,($BG32-CD$1)/計算!$B$26*CD$2)) -> 0 | CE32: =IF($BG32<CE$1,0,IF($BG32-CE$1>計算!$B$26,CE$2,($BG32-CE$1)/計算!$B$26*CE$2)) -> 0 | CF32: =IF($BG32<CF$1,0,IF($BG32-CF$1>計算!$B$26,CF$2,($BG32-CF$1)/計算!$B$26*CF$2)) -> 0 | CG32: =IF($BG32<CG$1,0,IF($BG32-CG$1>計算!$B$26,CG$2,($BG32-CG$1)/計算!$B$26*CG$2)) -> 0 | CH32: =IF($BG32<CH$1,0,IF($BG32-CH$1>計算!$B$26,CH$2,($BG32-CH$1)/計算!$B$26*CH$2)) -> 0 | CI32: =IF($BG32<CI$1,0,IF($BG32-CI$1>計算!$B$26,CI$2,($BG32-CI$1)/計算!$B$26*CI$2)) -> 0 | CJ32: =IF($BG32<CJ$1,0,IF($BG32-CJ$1>計算!$B$26,CJ$2,($BG32-CJ$1)/計算!$B$26*CJ$2)) -> 0 | CK32: =IF($BG32<CK$1,0,IF($BG32-CK$1>計算!$B$26,CK$2,($BG32-CK$1)/計算!$B$26*CK$2)) -> 0 | CL32: 3.313604112 | CO32: 6.350638924 | CP32: -0.02379968086 | CQ32: 0.02379968086
A33: 電圧(V) | B33: =VLOOKUP(波形!E2,Data!U2:W8,2,1) -> 3.3 | F33: 67 | G33: =準備!J32 -> 9.75106487 | H33: =準備!O32-準備!O31 -> 0.03465058286 | I33: =準備!P32-準備!P31 -> -0.1849277114 | K33: 30 | L33: 6.379459824 | M33: =IF($L33<M$1,0,IF($L33-M$1>計算!$B$26,M$2,($L33-M$1)/計算!$B$26*M$2)) -> 1.989000528 | N33: =IF($L33<N$1,0,IF($L33-N$1>計算!$B$26,N$2,($L33-N$1)/計算!$B$26*N$2)) -> 0.3275217949 | O33: =IF($L33<O$1,0,IF($L33-O$1>計算!$B$26,O$2,($L33-O$1)/計算!$B$26*O$2)) -> 0.9310129985 | P33: =IF($L33<P$1,0,IF($L33-P$1>計算!$B$26,P$2,($L33-P$1)/計算!$B$26*P$2)) -> 0.2787994054 | Q33: =IF($L33<Q$1,0,IF($L33-Q$1>計算!$B$26,Q$2,($L33-Q$1)/計算!$B$26*Q$2)) -> 0.07787922992 | R33: =IF($L33<R$1,0,IF($L33-R$1>計算!$B$26,R$2,($L33-R$1)/計算!$B$26*R$2)) -> -0.01119237707 | S33: =IF($L33<S$1,0,IF($L33-S$1>計算!$B$26,S$2,($L33-S$1)/計算!$B$26*S$2)) -> -0.2393553108 | T33: =IF($L33<T$1,0,IF($L33-T$1>計算!$B$26,T$2,($L33-T$1)/計算!$B$26*T$2)) -> -0.1103328801 | U33: =IF($L33<U$1,0,IF($L33-U$1>計算!$B$26,U$2,($L33-U$1)/計算!$B$26*U$2)) -> 0.02624490998 | V33: =IF($L33<V$1,0,IF($L33-V$1>計算!$B$26,V$2,($L33-V$1)/計算!$B$26*V$2)) -> 0.01851838427 | W33: =IF($L33<W$1,0,IF($L33-W$1>計算!$B$26,W$2,($L33-W$1)/計算!$B$26*W$2)) -> -0.05796305521 | X33: =IF($L33<X$1,0,IF($L33-X$1>計算!$B$26,X$2,($L33-X$1)/計算!$B$26*X$2)) -> -0.05545849425 | Y33: =IF($L33<Y$1,0,IF($L33-Y$1>計算!$B$26,Y$2,($L33-Y$1)/計算!$B$26*Y$2)) -> 0.1033839999 | Z33: =IF($L33<Z$1,0,IF($L33-Z$1>計算!$B$26,Z$2,($L33-Z$1)/計算!$B$26*Z$2)) -> 0.05028929326 | AA33: =IF($L33<AA$1,0,IF($L33-AA$1>計算!$B$26,AA$2,($L33-AA$1)/計算!$B$26*AA$2)) -> -0.02734971339 | AB33: =IF($L33<AB$1,0,IF($L33-AB$1>計算!$B$26,AB$2,($L33-AB$1)/計算!$B$26*AB$2)) -> 0.002185759677 | AC33: =IF($L33<AC$1,0,IF($L33-AC$1>計算!$B$26,AC$2,($L33-AC$1)/計算!$B$26*AC$2)) -> 0 | AD33: =IF($L33<AD$1,0,IF($L33-AD$1>計算!$B$26,AD$2,($L33-AD$1)/計算!$B$26*AD$2)) -> 0 | AE33: =IF($L33<AE$1,0,IF($L33-AE$1>計算!$B$26,AE$2,($L33-AE$1)/計算!$B$26*AE$2)) -> 0 | AF33: =IF($L33<AF$1,0,IF($L33-AF$1>計算!$B$26,AF$2,($L33-AF$1)/計算!$B$26*AF$2)) -> 0 | AG33: =IF($L33<AG$1,0,IF($L33-AG$1>計算!$B$26,AG$2,($L33-AG$1)/計算!$B$26*AG$2)) -> 0 | AH33: =IF($L33<AH$1,0,IF($L33-AH$1>計算!$B$26,AH$2,($L33-AH$1)/計算!$B$26*AH$2)) -> 0 | AI33: =IF($L33<AI$1,0,IF($L33-AI$1>計算!$B$26,AI$2,($L33-AI$1)/計算!$B$26*AI$2)) -> 0 | AJ33: =IF($L33<AJ$1,0,IF($L33-AJ$1>計算!$B$26,AJ$2,($L33-AJ$1)/計算!$B$26*AJ$2)) -> 0 | AK33: =IF($L33<AK$1,0,IF($L33-AK$1>計算!$B$26,AK$2,($L33-AK$1)/計算!$B$26*AK$2)) -> 0 | AL33: =IF($L33<AL$1,0,IF($L33-AL$1>計算!$B$26,AL$2,($L33-AL$1)/計算!$B$26*AL$2)) -> 0 | AM33: =IF($L33<AM$1,0,IF($L33-AM$1>計算!$B$26,AM$2,($L33-AM$1)/計算!$B$26*AM$2)) -> 0 | AN33: =IF($L33<AN$1,0,IF($L33-AN$1>計算!$B$26,AN$2,($L33-AN$1)/計算!$B$26*AN$2)) -> 0 | AO33: =IF($L33<AO$1,0,IF($L33-AO$1>計算!$B$26,AO$2,($L33-AO$1)/計算!$B$26*AO$2)) -> 0 | AP33: =IF($L33<AP$1,0,IF($L33-AP$1>計算!$B$26,AP$2,($L33-AP$1)/計算!$B$26*AP$2)) -> 0 | AQ33: =IF($L33<AQ$1,0,IF($L33-AQ$1>計算!$B$26,AQ$2,($L33-AQ$1)/計算!$B$26*AQ$2)) -> 0 | AR33: =IF($L33<AR$1,0,IF($L33-AR$1>計算!$B$26,AR$2,($L33-AR$1)/計算!$B$26*AR$2)) -> 0 | AS33: =IF($L33<AS$1,0,IF($L33-AS$1>計算!$B$26,AS$2,($L33-AS$1)/計算!$B$26*AS$2)) -> 0 | AT33: =IF($L33<AT$1,0,IF($L33-AT$1>計算!$B$26,AT$2,($L33-AT$1)/計算!$B$26*AT$2)) -> 0 | AU33: =IF($L33<AU$1,0,IF($L33-AU$1>計算!$B$26,AU$2,($L33-AU$1)/計算!$B$26*AU$2)) -> 0 | AV33: =IF($L33<AV$1,0,IF($L33-AV$1>計算!$B$26,AV$2,($L33-AV$1)/計算!$B$26*AV$2)) -> 0 | AW33: 3.303184473 | AZ33: 1e-08 | BA33: 3 | BB33: =IF(BB3+計算!$B$26>=準備!$T$33,準備!$T$33,BB3+計算!$B$26)+AZ33 -> 1.460696047 | BF33: 29 | BG33: 6.84015586 | BH33: =IF($BG33<BH$1,0,IF($BG33-BH$1>計算!$B$26,BH$2,($BG33-BH$1)/計算!$B$26*BH$2)) -> 1.843424849 | BI33: =IF($BG33<BI$1,0,IF($BG33-BI$1>計算!$B$26,BI$2,($BG33-BI$1)/計算!$B$26*BI$2)) -> 2.08043597 | BJ33: =IF($BG33<BJ$1,0,IF($BG33-BJ$1>計算!$B$26,BJ$2,($BG33-BJ$1)/計算!$B$26*BJ$2)) -> 0.4383357379 | BK33: =IF($BG33<BK$1,0,IF($BG33-BK$1>計算!$B$26,BK$2,($BG33-BK$1)/計算!$B$26*BK$2)) -> -0.5512010619 | BL33: =IF($BG33<BL$1,0,IF($BG33-BL$1>計算!$B$26,BL$2,($BG33-BL$1)/計算!$B$26*BL$2)) -> -0.8036518745 | BM33: =IF($BG33<BM$1,0,IF($BG33-BM$1>計算!$B$26,BM$2,($BG33-BM$1)/計算!$B$26*BM$2)) -> 0.1958427948 | BN33: =IF($BG33<BN$1,0,IF($BG33-BN$1>計算!$B$26,BN$2,($BG33-BN$1)/計算!$B$26*BN$2)) -> 0.1042289406 | BO33: =IF($BG33<BO$1,0,IF($BG33-BO$1>計算!$B$26,BO$2,($BG33-BO$1)/計算!$B$26*BO$2)) -> -0.4423266907 | BP33: =IF($BG33<BP$1,0,IF($BG33-BP$1>計算!$B$26,BP$2,($BG33-BP$1)/計算!$B$26*BP$2)) -> 0.1637739194 | BQ33: =IF($BG33<BQ$1,0,IF($BG33-BQ$1>計算!$B$26,BQ$2,($BG33-BQ$1)/計算!$B$26*BQ$2)) -> 0.4775480553 | BR33: =IF($BG33<BR$1,0,IF($BG33-BR$1>計算!$B$26,BR$2,($BG33-BR$1)/計算!$B$26*BR$2)) -> -0.2147192343 | BS33: =IF($BG33<BS$1,0,IF($BG33-BS$1>計算!$B$26,BS$2,($BG33-BS$1)/計算!$B$26*BS$2)) -> 0.01843575137 | BT33: =IF($BG33<BT$1,0,IF($BG33-BT$1>計算!$B$26,BT$2,($BG33-BT$1)/計算!$B$26*BT$2)) -> 0.005714356111 | BU33: =IF($BG33<BU$1,0,IF($BG33-BU$1>計算!$B$26,BU$2,($BG33-BU$1)/計算!$B$26*BU$2)) -> -0.0309865773 | BV33: =IF($BG33<BV$1,0,IF($BG33-BV$1>計算!$B$26,BV$2,($BG33-BV$1)/計算!$B$26*BV$2)) -> 0.03969781182 | BW33: =IF($BG33<BW$1,0,IF($BG33-BW$1>計算!$B$26,BW$2,($BG33-BW$1)/計算!$B$26*BW$2)) -> -0.001217281895 | BX33: =IF($BG33<BX$1,0,IF($BG33-BX$1>計算!$B$26,BX$2,($BG33-BX$1)/計算!$B$26*BX$2)) -> 0 | BY33: =IF($BG33<BY$1,0,IF($BG33-BY$1>計算!$B$26,BY$2,($BG33-BY$1)/計算!$B$26*BY$2)) -> 0 | BZ33: =IF($BG33<BZ$1,0,IF($BG33-BZ$1>計算!$B$26,BZ$2,($BG33-BZ$1)/計算!$B$26*BZ$2)) -> 0 | CA33: =IF($BG33<CA$1,0,IF($BG33-CA$1>計算!$B$26,CA$2,($BG33-CA$1)/計算!$B$26*CA$2)) -> 0 | CB33: =IF($BG33<CB$1,0,IF($BG33-CB$1>計算!$B$26,CB$2,($BG33-CB$1)/計算!$B$26*CB$2)) -> 0 | CC33: =IF($BG33<CC$1,0,IF($BG33-CC$1>計算!$B$26,CC$2,($BG33-CC$1)/計算!$B$26*CC$2)) -> 0 | CD33: =IF($BG33<CD$1,0,IF($BG33-CD$1>計算!$B$26,CD$2,($BG33-CD$1)/計算!$B$26*CD$2)) -> 0 | CE33: =IF($BG33<CE$1,0,IF($BG33-CE$1>計算!$B$26,CE$2,($BG33-CE$1)/計算!$B$26*CE$2)) -> 0 | CF33: =IF($BG33<CF$1,0,IF($BG33-CF$1>計算!$B$26,CF$2,($BG33-CF$1)/計算!$B$26*CF$2)) -> 0 | CG33: =IF($BG33<CG$1,0,IF($BG33-CG$1>計算!$B$26,CG$2,($BG33-CG$1)/計算!$B$26*CG$2)) -> 0 | CH33: =IF($BG33<CH$1,0,IF($BG33-CH$1>計算!$B$26,CH$2,($BG33-CH$1)/計算!$B$26*CH$2)) -> 0 | CI33: =IF($BG33<CI$1,0,IF($BG33-CI$1>計算!$B$26,CI$2,($BG33-CI$1)/計算!$B$26*CI$2)) -> 0 | CJ33: =IF($BG33<CJ$1,0,IF($BG33-CJ$1>計算!$B$26,CJ$2,($BG33-CJ$1)/計算!$B$26*CJ$2)) -> 0 | CK33: =IF($BG33<CK$1,0,IF($BG33-CK$1>計算!$B$26,CK$2,($BG33-CK$1)/計算!$B$26*CK$2)) -> 0 | CL33: 3.323335466 | CO33: 6.379459824 | CP33: -0.008416325574 | CQ33: 0.008416325574
F34: 68 | G34: =準備!J33 -> 9.779885771 | H34: =準備!O33-準備!O32 -> 0.01849529577 | I34: =準備!P33-準備!P32 -> 0.219263361 | K34: 31 | L34: 6.408280725 | M34: =IF($L34<M$1,0,IF($L34-M$1>計算!$B$26,M$2,($L34-M$1)/計算!$B$26*M$2)) -> 1.989000528 | N34: =IF($L34<N$1,0,IF($L34-N$1>計算!$B$26,N$2,($L34-N$1)/計算!$B$26*N$2)) -> 0.3275217949 | O34: =IF($L34<O$1,0,IF($L34-O$1>計算!$B$26,O$2,($L34-O$1)/計算!$B$26*O$2)) -> 0.9310129985 | P34: =IF($L34<P$1,0,IF($L34-P$1>計算!$B$26,P$2,($L34-P$1)/計算!$B$26*P$2)) -> 0.2787994054 | Q34: =IF($L34<Q$1,0,IF($L34-Q$1>計算!$B$26,Q$2,($L34-Q$1)/計算!$B$26*Q$2)) -> 0.07787922992 | R34: =IF($L34<R$1,0,IF($L34-R$1>計算!$B$26,R$2,($L34-R$1)/計算!$B$26*R$2)) -> -0.01119237707 | S34: =IF($L34<S$1,0,IF($L34-S$1>計算!$B$26,S$2,($L34-S$1)/計算!$B$26*S$2)) -> -0.2393553108 | T34: =IF($L34<T$1,0,IF($L34-T$1>計算!$B$26,T$2,($L34-T$1)/計算!$B$26*T$2)) -> -0.1103328801 | U34: =IF($L34<U$1,0,IF($L34-U$1>計算!$B$26,U$2,($L34-U$1)/計算!$B$26*U$2)) -> 0.02624490998 | V34: =IF($L34<V$1,0,IF($L34-V$1>計算!$B$26,V$2,($L34-V$1)/計算!$B$26*V$2)) -> 0.01851838427 | W34: =IF($L34<W$1,0,IF($L34-W$1>計算!$B$26,W$2,($L34-W$1)/計算!$B$26*W$2)) -> -0.05796305521 | X34: =IF($L34<X$1,0,IF($L34-X$1>計算!$B$26,X$2,($L34-X$1)/計算!$B$26*X$2)) -> -0.05545849425 | Y34: =IF($L34<Y$1,0,IF($L34-Y$1>計算!$B$26,Y$2,($L34-Y$1)/計算!$B$26*Y$2)) -> 0.1033839999 | Z34: =IF($L34<Z$1,0,IF($L34-Z$1>計算!$B$26,Z$2,($L34-Z$1)/計算!$B$26*Z$2)) -> 0.05028929326 | AA34: =IF($L34<AA$1,0,IF($L34-AA$1>計算!$B$26,AA$2,($L34-AA$1)/計算!$B$26*AA$2)) -> -0.02902262998 | AB34: =IF($L34<AB$1,0,IF($L34-AB$1>計算!$B$26,AB$2,($L34-AB$1)/計算!$B$26*AB$2)) -> 0.002328168165 | AC34: =IF($L34<AC$1,0,IF($L34-AC$1>計算!$B$26,AC$2,($L34-AC$1)/計算!$B$26*AC$2)) -> 0 | AD34: =IF($L34<AD$1,0,IF($L34-AD$1>計算!$B$26,AD$2,($L34-AD$1)/計算!$B$26*AD$2)) -> 0 | AE34: =IF($L34<AE$1,0,IF($L34-AE$1>計算!$B$26,AE$2,($L34-AE$1)/計算!$B$26*AE$2)) -> 0 | AF34: =IF($L34<AF$1,0,IF($L34-AF$1>計算!$B$26,AF$2,($L34-AF$1)/計算!$B$26*AF$2)) -> 0 | AG34: =IF($L34<AG$1,0,IF($L34-AG$1>計算!$B$26,AG$2,($L34-AG$1)/計算!$B$26*AG$2)) -> 0 | AH34: =IF($L34<AH$1,0,IF($L34-AH$1>計算!$B$26,AH$2,($L34-AH$1)/計算!$B$26*AH$2)) -> 0 | AI34: =IF($L34<AI$1,0,IF($L34-AI$1>計算!$B$26,AI$2,($L34-AI$1)/計算!$B$26*AI$2)) -> 0 | AJ34: =IF($L34<AJ$1,0,IF($L34-AJ$1>計算!$B$26,AJ$2,($L34-AJ$1)/計算!$B$26*AJ$2)) -> 0 | AK34: =IF($L34<AK$1,0,IF($L34-AK$1>計算!$B$26,AK$2,($L34-AK$1)/計算!$B$26*AK$2)) -> 0 | AL34: =IF($L34<AL$1,0,IF($L34-AL$1>計算!$B$26,AL$2,($L34-AL$1)/計算!$B$26*AL$2)) -> 0 | AM34: =IF($L34<AM$1,0,IF($L34-AM$1>計算!$B$26,AM$2,($L34-AM$1)/計算!$B$26*AM$2)) -> 0 | AN34: =IF($L34<AN$1,0,IF($L34-AN$1>計算!$B$26,AN$2,($L34-AN$1)/計算!$B$26*AN$2)) -> 0 | AO34: =IF($L34<AO$1,0,IF($L34-AO$1>計算!$B$26,AO$2,($L34-AO$1)/計算!$B$26*AO$2)) -> 0 | AP34: =IF($L34<AP$1,0,IF($L34-AP$1>計算!$B$26,AP$2,($L34-AP$1)/計算!$B$26*AP$2)) -> 0 | AQ34: =IF($L34<AQ$1,0,IF($L34-AQ$1>計算!$B$26,AQ$2,($L34-AQ$1)/計算!$B$26*AQ$2)) -> 0 | AR34: =IF($L34<AR$1,0,IF($L34-AR$1>計算!$B$26,AR$2,($L34-AR$1)/計算!$B$26*AR$2)) -> 0 | AS34: =IF($L34<AS$1,0,IF($L34-AS$1>計算!$B$26,AS$2,($L34-AS$1)/計算!$B$26*AS$2)) -> 0 | AT34: =IF($L34<AT$1,0,IF($L34-AT$1>計算!$B$26,AT$2,($L34-AT$1)/計算!$B$26*AT$2)) -> 0 | AU34: =IF($L34<AU$1,0,IF($L34-AU$1>計算!$B$26,AU$2,($L34-AU$1)/計算!$B$26*AU$2)) -> 0 | AV34: =IF($L34<AV$1,0,IF($L34-AV$1>計算!$B$26,AV$2,($L34-AV$1)/計算!$B$26*AV$2)) -> 0 | AW34: 3.301653965 | AZ34: 2e-08 | BA34: 4 | BB34: =IF(BB4+計算!$B$26>=準備!$T$33,準備!$T$33,BB4+計算!$B$26)+AZ34 -> 1.489516957 | BF34: 30 | BG34: 6.86897676 | BH34: =IF($BG34<BH$1,0,IF($BG34-BH$1>計算!$B$26,BH$2,($BG34-BH$1)/計算!$B$26*BH$2)) -> 1.843424849 | BI34: =IF($BG34<BI$1,0,IF($BG34-BI$1>計算!$B$26,BI$2,($BG34-BI$1)/計算!$B$26*BI$2)) -> 2.08043597 | BJ34: =IF($BG34<BJ$1,0,IF($BG34-BJ$1>計算!$B$26,BJ$2,($BG34-BJ$1)/計算!$B$26*BJ$2)) -> 0.4383357379 | BK34: =IF($BG34<BK$1,0,IF($BG34-BK$1>計算!$B$26,BK$2,($BG34-BK$1)/計算!$B$26*BK$2)) -> -0.5512010619 | BL34: =IF($BG34<BL$1,0,IF($BG34-BL$1>計算!$B$26,BL$2,($BG34-BL$1)/計算!$B$26*BL$2)) -> -0.8036518745 | BM34: =IF($BG34<BM$1,0,IF($BG34-BM$1>計算!$B$26,BM$2,($BG34-BM$1)/計算!$B$26*BM$2)) -> 0.1958427948 | BN34: =IF($BG34<BN$1,0,IF($BG34-BN$1>計算!$B$26,BN$2,($BG34-BN$1)/計算!$B$26*BN$2)) -> 0.1042289406 | BO34: =IF($BG34<BO$1,0,IF($BG34-BO$1>計算!$B$26,BO$2,($BG34-BO$1)/計算!$B$26*BO$2)) -> -0.4423266907 | BP34: =IF($BG34<BP$1,0,IF($BG34-BP$1>計算!$B$26,BP$2,($BG34-BP$1)/計算!$B$26*BP$2)) -> 0.1637739194 | BQ34: =IF($BG34<BQ$1,0,IF($BG34-BQ$1>計算!$B$26,BQ$2,($BG34-BQ$1)/計算!$B$26*BQ$2)) -> 0.4775480553 | BR34: =IF($BG34<BR$1,0,IF($BG34-BR$1>計算!$B$26,BR$2,($BG34-BR$1)/計算!$B$26*BR$2)) -> -0.2147192343 | BS34: =IF($BG34<BS$1,0,IF($BG34-BS$1>計算!$B$26,BS$2,($BG34-BS$1)/計算!$B$26*BS$2)) -> 0.01843575137 | BT34: =IF($BG34<BT$1,0,IF($BG34-BT$1>計算!$B$26,BT$2,($BG34-BT$1)/計算!$B$26*BT$2)) -> 0.007142945138 | BU34: =IF($BG34<BU$1,0,IF($BG34-BU$1>計算!$B$26,BU$2,($BG34-BU$1)/計算!$B$26*BU$2)) -> -0.0413154364 | BV34: =IF($BG34<BV$1,0,IF($BG34-BV$1>計算!$B$26,BV$2,($BG34-BV$1)/計算!$B$26*BV$2)) -> 0.05954671773 | BW34: =IF($BG34<BW$1,0,IF($BG34-BW$1>計算!$B$26,BW$2,($BG34-BW$1)/計算!$B$26*BW$2)) -> -0.002434563791 | BX34: =IF($BG34<BX$1,0,IF($BG34-BX$1>計算!$B$26,BX$2,($BG34-BX$1)/計算!$B$26*BX$2)) -> -0.01964590342 | BY34: =IF($BG34<BY$1,0,IF($BG34-BY$1>計算!$B$26,BY$2,($BG34-BY$1)/計算!$B$26*BY$2)) -> 0 | BZ34: =IF($BG34<BZ$1,0,IF($BG34-BZ$1>計算!$B$26,BZ$2,($BG34-BZ$1)/計算!$B$26*BZ$2)) -> 0 | CA34: =IF($BG34<CA$1,0,IF($BG34-CA$1>計算!$B$26,CA$2,($BG34-CA$1)/計算!$B$26*CA$2)) -> 0 | CB34: =IF($BG34<CB$1,0,IF($BG34-CB$1>計算!$B$26,CB$2,($BG34-CB$1)/計算!$B$26*CB$2)) -> 0 | CC34: =IF($BG34<CC$1,0,IF($BG34-CC$1>計算!$B$26,CC$2,($BG34-CC$1)/計算!$B$26*CC$2)) -> 0 | CD34: =IF($BG34<CD$1,0,IF($BG34-CD$1>計算!$B$26,CD$2,($BG34-CD$1)/計算!$B$26*CD$2)) -> 0 | CE34: =IF($BG34<CE$1,0,IF($BG34-CE$1>計算!$B$26,CE$2,($BG34-CE$1)/計算!$B$26*CE$2)) -> 0 | CF34: =IF($BG34<CF$1,0,IF($BG34-CF$1>計算!$B$26,CF$2,($BG34-CF$1)/計算!$B$26*CF$2)) -> 0 | CG34: =IF($BG34<CG$1,0,IF($BG34-CG$1>計算!$B$26,CG$2,($BG34-CG$1)/計算!$B$26*CG$2)) -> 0 | CH34: =IF($BG34<CH$1,0,IF($BG34-CH$1>計算!$B$26,CH$2,($BG34-CH$1)/計算!$B$26*CH$2)) -> 0 | CI34: =IF($BG34<CI$1,0,IF($BG34-CI$1>計算!$B$26,CI$2,($BG34-CI$1)/計算!$B$26*CI$2)) -> 0 | CJ34: =IF($BG34<CJ$1,0,IF($BG34-CJ$1>計算!$B$26,CJ$2,($BG34-CJ$1)/計算!$B$26*CJ$2)) -> 0 | CK34: =IF($BG34<CK$1,0,IF($BG34-CK$1>計算!$B$26,CK$2,($BG34-CK$1)/計算!$B$26*CK$2)) -> 0 | CL34: 3.313420916 | CO34: 6.408280725 | CP34: -0.01311739804 | CQ34: 0.01311739804
F35: 69 | G35: =準備!J34 -> 9.808706672 | H35: =準備!O34-準備!O33 -> -0.02012516075 | I35: =準備!P34-準備!P33 -> -0.09111441098 | K35: 32 | L35: 6.437101626 | M35: =IF($L35<M$1,0,IF($L35-M$1>計算!$B$26,M$2,($L35-M$1)/計算!$B$26*M$2)) -> 1.989000528 | N35: =IF($L35<N$1,0,IF($L35-N$1>計算!$B$26,N$2,($L35-N$1)/計算!$B$26*N$2)) -> 0.3275217949 | O35: =IF($L35<O$1,0,IF($L35-O$1>計算!$B$26,O$2,($L35-O$1)/計算!$B$26*O$2)) -> 0.9310129985 | P35: =IF($L35<P$1,0,IF($L35-P$1>計算!$B$26,P$2,($L35-P$1)/計算!$B$26*P$2)) -> 0.2787994054 | Q35: =IF($L35<Q$1,0,IF($L35-Q$1>計算!$B$26,Q$2,($L35-Q$1)/計算!$B$26*Q$2)) -> 0.07787922992 | R35: =IF($L35<R$1,0,IF($L35-R$1>計算!$B$26,R$2,($L35-R$1)/計算!$B$26*R$2)) -> -0.01119237707 | S35: =IF($L35<S$1,0,IF($L35-S$1>計算!$B$26,S$2,($L35-S$1)/計算!$B$26*S$2)) -> -0.2393553108 | T35: =IF($L35<T$1,0,IF($L35-T$1>計算!$B$26,T$2,($L35-T$1)/計算!$B$26*T$2)) -> -0.1103328801 | U35: =IF($L35<U$1,0,IF($L35-U$1>計算!$B$26,U$2,($L35-U$1)/計算!$B$26*U$2)) -> 0.02624490998 | V35: =IF($L35<V$1,0,IF($L35-V$1>計算!$B$26,V$2,($L35-V$1)/計算!$B$26*V$2)) -> 0.01851838427 | W35: =IF($L35<W$1,0,IF($L35-W$1>計算!$B$26,W$2,($L35-W$1)/計算!$B$26*W$2)) -> -0.05796305521 | X35: =IF($L35<X$1,0,IF($L35-X$1>計算!$B$26,X$2,($L35-X$1)/計算!$B$26*X$2)) -> -0.05545849425 | Y35: =IF($L35<Y$1,0,IF($L35-Y$1>計算!$B$26,Y$2,($L35-Y$1)/計算!$B$26*Y$2)) -> 0.1033839999 | Z35: =IF($L35<Z$1,0,IF($L35-Z$1>計算!$B$26,Z$2,($L35-Z$1)/計算!$B$26*Z$2)) -> 0.05028929326 | AA35: =IF($L35<AA$1,0,IF($L35-AA$1>計算!$B$26,AA$2,($L35-AA$1)/計算!$B$26*AA$2)) -> -0.02902262998 | AB35: =IF($L35<AB$1,0,IF($L35-AB$1>計算!$B$26,AB$2,($L35-AB$1)/計算!$B$26*AB$2)) -> 0.002470576645 | AC35: =IF($L35<AC$1,0,IF($L35-AC$1>計算!$B$26,AC$2,($L35-AC$1)/計算!$B$26*AC$2)) -> 0 | AD35: =IF($L35<AD$1,0,IF($L35-AD$1>計算!$B$26,AD$2,($L35-AD$1)/計算!$B$26*AD$2)) -> 0 | AE35: =IF($L35<AE$1,0,IF($L35-AE$1>計算!$B$26,AE$2,($L35-AE$1)/計算!$B$26*AE$2)) -> 0 | AF35: =IF($L35<AF$1,0,IF($L35-AF$1>計算!$B$26,AF$2,($L35-AF$1)/計算!$B$26*AF$2)) -> 0 | AG35: =IF($L35<AG$1,0,IF($L35-AG$1>計算!$B$26,AG$2,($L35-AG$1)/計算!$B$26*AG$2)) -> 0 | AH35: =IF($L35<AH$1,0,IF($L35-AH$1>計算!$B$26,AH$2,($L35-AH$1)/計算!$B$26*AH$2)) -> 0 | AI35: =IF($L35<AI$1,0,IF($L35-AI$1>計算!$B$26,AI$2,($L35-AI$1)/計算!$B$26*AI$2)) -> 0 | AJ35: =IF($L35<AJ$1,0,IF($L35-AJ$1>計算!$B$26,AJ$2,($L35-AJ$1)/計算!$B$26*AJ$2)) -> 0 | AK35: =IF($L35<AK$1,0,IF($L35-AK$1>計算!$B$26,AK$2,($L35-AK$1)/計算!$B$26*AK$2)) -> 0 | AL35: =IF($L35<AL$1,0,IF($L35-AL$1>計算!$B$26,AL$2,($L35-AL$1)/計算!$B$26*AL$2)) -> 0 | AM35: =IF($L35<AM$1,0,IF($L35-AM$1>計算!$B$26,AM$2,($L35-AM$1)/計算!$B$26*AM$2)) -> 0 | AN35: =IF($L35<AN$1,0,IF($L35-AN$1>計算!$B$26,AN$2,($L35-AN$1)/計算!$B$26*AN$2)) -> 0 | AO35: =IF($L35<AO$1,0,IF($L35-AO$1>計算!$B$26,AO$2,($L35-AO$1)/計算!$B$26*AO$2)) -> 0 | AP35: =IF($L35<AP$1,0,IF($L35-AP$1>計算!$B$26,AP$2,($L35-AP$1)/計算!$B$26*AP$2)) -> 0 | AQ35: =IF($L35<AQ$1,0,IF($L35-AQ$1>計算!$B$26,AQ$2,($L35-AQ$1)/計算!$B$26*AQ$2)) -> 0 | AR35: =IF($L35<AR$1,0,IF($L35-AR$1>計算!$B$26,AR$2,($L35-AR$1)/計算!$B$26*AR$2)) -> 0 | AS35: =IF($L35<AS$1,0,IF($L35-AS$1>計算!$B$26,AS$2,($L35-AS$1)/計算!$B$26*AS$2)) -> 0 | AT35: =IF($L35<AT$1,0,IF($L35-AT$1>計算!$B$26,AT$2,($L35-AT$1)/計算!$B$26*AT$2)) -> 0 | AU35: =IF($L35<AU$1,0,IF($L35-AU$1>計算!$B$26,AU$2,($L35-AU$1)/計算!$B$26*AU$2)) -> 0 | AV35: =IF($L35<AV$1,0,IF($L35-AV$1>計算!$B$26,AV$2,($L35-AV$1)/計算!$B$26*AV$2)) -> 0 | AW35: 3.301796374 | AZ35: 3e-08 | BA35: 9 | BB35: =IF(BB5+計算!$B$26>=準備!$T$33,準備!$T$33,BB5+計算!$B$26)+AZ35 -> 3.38208814 | BF35: 31 | BG35: 6.897797661 | BH35: =IF($BG35<BH$1,0,IF($BG35-BH$1>計算!$B$26,BH$2,($BG35-BH$1)/計算!$B$26*BH$2)) -> 1.843424849 | BI35: =IF($BG35<BI$1,0,IF($BG35-BI$1>計算!$B$26,BI$2,($BG35-BI$1)/計算!$B$26*BI$2)) -> 2.08043597 | BJ35: =IF($BG35<BJ$1,0,IF($BG35-BJ$1>計算!$B$26,BJ$2,($BG35-BJ$1)/計算!$B$26*BJ$2)) -> 0.4383357379 | BK35: =IF($BG35<BK$1,0,IF($BG35-BK$1>計算!$B$26,BK$2,($BG35-BK$1)/計算!$B$26*BK$2)) -> -0.5512010619 | BL35: =IF($BG35<BL$1,0,IF($BG35-BL$1>計算!$B$26,BL$2,($BG35-BL$1)/計算!$B$26*BL$2)) -> -0.8036518745 | BM35: =IF($BG35<BM$1,0,IF($BG35-BM$1>計算!$B$26,BM$2,($BG35-BM$1)/計算!$B$26*BM$2)) -> 0.1958427948 | BN35: =IF($BG35<BN$1,0,IF($BG35-BN$1>計算!$B$26,BN$2,($BG35-BN$1)/計算!$B$26*BN$2)) -> 0.1042289406 | BO35: =IF($BG35<BO$1,0,IF($BG35-BO$1>計算!$B$26,BO$2,($BG35-BO$1)/計算!$B$26*BO$2)) -> -0.4423266907 | BP35: =IF($BG35<BP$1,0,IF($BG35-BP$1>計算!$B$26,BP$2,($BG35-BP$1)/計算!$B$26*BP$2)) -> 0.1637739194 | BQ35: =IF($BG35<BQ$1,0,IF($BG35-BQ$1>計算!$B$26,BQ$2,($BG35-BQ$1)/計算!$B$26*BQ$2)) -> 0.4775480553 | BR35: =IF($BG35<BR$1,0,IF($BG35-BR$1>計算!$B$26,BR$2,($BG35-BR$1)/計算!$B$26*BR$2)) -> -0.2147192343 | BS35: =IF($BG35<BS$1,0,IF($BG35-BS$1>計算!$B$26,BS$2,($BG35-BS$1)/計算!$B$26*BS$2)) -> 0.01843575137 | BT35: =IF($BG35<BT$1,0,IF($BG35-BT$1>計算!$B$26,BT$2,($BG35-BT$1)/計算!$B$26*BT$2)) -> 0.008571534166 | BU35: =IF($BG35<BU$1,0,IF($BG35-BU$1>計算!$B$26,BU$2,($BG35-BU$1)/計算!$B$26*BU$2)) -> -0.0516442955 | BV35: =IF($BG35<BV$1,0,IF($BG35-BV$1>計算!$B$26,BV$2,($BG35-BV$1)/計算!$B$26*BV$2)) -> 0.07939562364 | BW35: =IF($BG35<BW$1,0,IF($BG35-BW$1>計算!$B$26,BW$2,($BG35-BW$1)/計算!$B$26*BW$2)) -> -0.003651845686 | BX35: =IF($BG35<BX$1,0,IF($BG35-BX$1>計算!$B$26,BX$2,($BG35-BX$1)/計算!$B$26*BX$2)) -> -0.03929180684 | BY35: =IF($BG35<BY$1,0,IF($BG35-BY$1>計算!$B$26,BY$2,($BG35-BY$1)/計算!$B$26*BY$2)) -> 0.01115621302 | BZ35: =IF($BG35<BZ$1,0,IF($BG35-BZ$1>計算!$B$26,BZ$2,($BG35-BZ$1)/計算!$B$26*BZ$2)) -> 0 | CA35: =IF($BG35<CA$1,0,IF($BG35-CA$1>計算!$B$26,CA$2,($BG35-CA$1)/計算!$B$26*CA$2)) -> 0 | CB35: =IF($BG35<CB$1,0,IF($BG35-CB$1>計算!$B$26,CB$2,($BG35-CB$1)/計算!$B$26*CB$2)) -> 0 | CC35: =IF($BG35<CC$1,0,IF($BG35-CC$1>計算!$B$26,CC$2,($BG35-CC$1)/計算!$B$26*CC$2)) -> 0 | CD35: =IF($BG35<CD$1,0,IF($BG35-CD$1>計算!$B$26,CD$2,($BG35-CD$1)/計算!$B$26*CD$2)) -> 0 | CE35: =IF($BG35<CE$1,0,IF($BG35-CE$1>計算!$B$26,CE$2,($BG35-CE$1)/計算!$B$26*CE$2)) -> 0 | CF35: =IF($BG35<CF$1,0,IF($BG35-CF$1>計算!$B$26,CF$2,($BG35-CF$1)/計算!$B$26*CF$2)) -> 0 | CG35: =IF($BG35<CG$1,0,IF($BG35-CG$1>計算!$B$26,CG$2,($BG35-CG$1)/計算!$B$26*CG$2)) -> 0 | CH35: =IF($BG35<CH$1,0,IF($BG35-CH$1>計算!$B$26,CH$2,($BG35-CH$1)/計算!$B$26*CH$2)) -> 0 | CI35: =IF($BG35<CI$1,0,IF($BG35-CI$1>計算!$B$26,CI$2,($BG35-CI$1)/計算!$B$26*CI$2)) -> 0 | CJ35: =IF($BG35<CJ$1,0,IF($BG35-CJ$1>計算!$B$26,CJ$2,($BG35-CJ$1)/計算!$B$26*CJ$2)) -> 0 | CK35: =IF($BG35<CK$1,0,IF($BG35-CK$1>計算!$B$26,CK$2,($BG35-CK$1)/計算!$B$26*CK$2)) -> 0 | CL35: 3.31466258 | CO35: 6.437101626 | CP35: -0.01279135496 | CQ35: 0.01279135496
F36: 70 | G36: =準備!J35 -> 9.837527572 | H36: =準備!O35-準備!O34 -> 0.005473502902 | I36: =準備!P35-準備!P34 -> 0.01737511583 | K36: 33 | L36: 7.685568294 | M36: =IF($L36<M$1,0,IF($L36-M$1>計算!$B$26,M$2,($L36-M$1)/計算!$B$26*M$2)) -> 1.989000528 | N36: =IF($L36<N$1,0,IF($L36-N$1>計算!$B$26,N$2,($L36-N$1)/計算!$B$26*N$2)) -> 0.3275217949 | O36: =IF($L36<O$1,0,IF($L36-O$1>計算!$B$26,O$2,($L36-O$1)/計算!$B$26*O$2)) -> 0.9310129985 | P36: =IF($L36<P$1,0,IF($L36-P$1>計算!$B$26,P$2,($L36-P$1)/計算!$B$26*P$2)) -> 0.2787994054 | Q36: =IF($L36<Q$1,0,IF($L36-Q$1>計算!$B$26,Q$2,($L36-Q$1)/計算!$B$26*Q$2)) -> 0.07787922992 | R36: =IF($L36<R$1,0,IF($L36-R$1>計算!$B$26,R$2,($L36-R$1)/計算!$B$26*R$2)) -> -0.01119237707 | S36: =IF($L36<S$1,0,IF($L36-S$1>計算!$B$26,S$2,($L36-S$1)/計算!$B$26*S$2)) -> -0.2393553108 | T36: =IF($L36<T$1,0,IF($L36-T$1>計算!$B$26,T$2,($L36-T$1)/計算!$B$26*T$2)) -> -0.1103328801 | U36: =IF($L36<U$1,0,IF($L36-U$1>計算!$B$26,U$2,($L36-U$1)/計算!$B$26*U$2)) -> 0.02624490998 | V36: =IF($L36<V$1,0,IF($L36-V$1>計算!$B$26,V$2,($L36-V$1)/計算!$B$26*V$2)) -> 0.01851838427 | W36: =IF($L36<W$1,0,IF($L36-W$1>計算!$B$26,W$2,($L36-W$1)/計算!$B$26*W$2)) -> -0.05796305521 | X36: =IF($L36<X$1,0,IF($L36-X$1>計算!$B$26,X$2,($L36-X$1)/計算!$B$26*X$2)) -> -0.05545849425 | Y36: =IF($L36<Y$1,0,IF($L36-Y$1>計算!$B$26,Y$2,($L36-Y$1)/計算!$B$26*Y$2)) -> 0.1033839999 | Z36: =IF($L36<Z$1,0,IF($L36-Z$1>計算!$B$26,Z$2,($L36-Z$1)/計算!$B$26*Z$2)) -> 0.05028929326 | AA36: =IF($L36<AA$1,0,IF($L36-AA$1>計算!$B$26,AA$2,($L36-AA$1)/計算!$B$26*AA$2)) -> -0.02902262998 | AB36: =IF($L36<AB$1,0,IF($L36-AB$1>計算!$B$26,AB$2,($L36-AB$1)/計算!$B$26*AB$2)) -> 0.002470576645 | AC36: =IF($L36<AC$1,0,IF($L36-AC$1>計算!$B$26,AC$2,($L36-AC$1)/計算!$B$26*AC$2)) -> 0 | AD36: =IF($L36<AD$1,0,IF($L36-AD$1>計算!$B$26,AD$2,($L36-AD$1)/計算!$B$26*AD$2)) -> 0 | AE36: =IF($L36<AE$1,0,IF($L36-AE$1>計算!$B$26,AE$2,($L36-AE$1)/計算!$B$26*AE$2)) -> 0 | AF36: =IF($L36<AF$1,0,IF($L36-AF$1>計算!$B$26,AF$2,($L36-AF$1)/計算!$B$26*AF$2)) -> 0 | AG36: =IF($L36<AG$1,0,IF($L36-AG$1>計算!$B$26,AG$2,($L36-AG$1)/計算!$B$26*AG$2)) -> 0 | AH36: =IF($L36<AH$1,0,IF($L36-AH$1>計算!$B$26,AH$2,($L36-AH$1)/計算!$B$26*AH$2)) -> 0 | AI36: =IF($L36<AI$1,0,IF($L36-AI$1>計算!$B$26,AI$2,($L36-AI$1)/計算!$B$26*AI$2)) -> 0 | AJ36: =IF($L36<AJ$1,0,IF($L36-AJ$1>計算!$B$26,AJ$2,($L36-AJ$1)/計算!$B$26*AJ$2)) -> 0 | AK36: =IF($L36<AK$1,0,IF($L36-AK$1>計算!$B$26,AK$2,($L36-AK$1)/計算!$B$26*AK$2)) -> 0 | AL36: =IF($L36<AL$1,0,IF($L36-AL$1>計算!$B$26,AL$2,($L36-AL$1)/計算!$B$26*AL$2)) -> 0 | AM36: =IF($L36<AM$1,0,IF($L36-AM$1>計算!$B$26,AM$2,($L36-AM$1)/計算!$B$26*AM$2)) -> 0 | AN36: =IF($L36<AN$1,0,IF($L36-AN$1>計算!$B$26,AN$2,($L36-AN$1)/計算!$B$26*AN$2)) -> 0 | AO36: =IF($L36<AO$1,0,IF($L36-AO$1>計算!$B$26,AO$2,($L36-AO$1)/計算!$B$26*AO$2)) -> 0 | AP36: =IF($L36<AP$1,0,IF($L36-AP$1>計算!$B$26,AP$2,($L36-AP$1)/計算!$B$26*AP$2)) -> 0 | AQ36: =IF($L36<AQ$1,0,IF($L36-AQ$1>計算!$B$26,AQ$2,($L36-AQ$1)/計算!$B$26*AQ$2)) -> 0 | AR36: =IF($L36<AR$1,0,IF($L36-AR$1>計算!$B$26,AR$2,($L36-AR$1)/計算!$B$26*AR$2)) -> 0 | AS36: =IF($L36<AS$1,0,IF($L36-AS$1>計算!$B$26,AS$2,($L36-AS$1)/計算!$B$26*AS$2)) -> 0 | AT36: =IF($L36<AT$1,0,IF($L36-AT$1>計算!$B$26,AT$2,($L36-AT$1)/計算!$B$26*AT$2)) -> 0 | AU36: =IF($L36<AU$1,0,IF($L36-AU$1>計算!$B$26,AU$2,($L36-AU$1)/計算!$B$26*AU$2)) -> 0 | AV36: =IF($L36<AV$1,0,IF($L36-AV$1>計算!$B$26,AV$2,($L36-AV$1)/計算!$B$26*AV$2)) -> 0 | AW36: 3.301796374 | AZ36: 4e-08 | BA36: 10 | BB36: =IF(BB6+計算!$B$26>=準備!$T$33,準備!$T$33,BB6+計算!$B$26)+AZ36 -> 3.410909051 | BF36: 32 | BG36: 6.926618561 | BH36: =IF($BG36<BH$1,0,IF($BG36-BH$1>計算!$B$26,BH$2,($BG36-BH$1)/計算!$B$26*BH$2)) -> 1.843424849 | BI36: =IF($BG36<BI$1,0,IF($BG36-BI$1>計算!$B$26,BI$2,($BG36-BI$1)/計算!$B$26*BI$2)) -> 2.08043597 | BJ36: =IF($BG36<BJ$1,0,IF($BG36-BJ$1>計算!$B$26,BJ$2,($BG36-BJ$1)/計算!$B$26*BJ$2)) -> 0.4383357379 | BK36: =IF($BG36<BK$1,0,IF($BG36-BK$1>計算!$B$26,BK$2,($BG36-BK$1)/計算!$B$26*BK$2)) -> -0.5512010619 | BL36: =IF($BG36<BL$1,0,IF($BG36-BL$1>計算!$B$26,BL$2,($BG36-BL$1)/計算!$B$26*BL$2)) -> -0.8036518745 | BM36: =IF($BG36<BM$1,0,IF($BG36-BM$1>計算!$B$26,BM$2,($BG36-BM$1)/計算!$B$26*BM$2)) -> 0.1958427948 | BN36: =IF($BG36<BN$1,0,IF($BG36-BN$1>計算!$B$26,BN$2,($BG36-BN$1)/計算!$B$26*BN$2)) -> 0.1042289406 | BO36: =IF($BG36<BO$1,0,IF($BG36-BO$1>計算!$B$26,BO$2,($BG36-BO$1)/計算!$B$26*BO$2)) -> -0.4423266907 | BP36: =IF($BG36<BP$1,0,IF($BG36-BP$1>計算!$B$26,BP$2,($BG36-BP$1)/計算!$B$26*BP$2)) -> 0.1637739194 | BQ36: =IF($BG36<BQ$1,0,IF($BG36-BQ$1>計算!$B$26,BQ$2,($BG36-BQ$1)/計算!$B$26*BQ$2)) -> 0.4775480553 | BR36: =IF($BG36<BR$1,0,IF($BG36-BR$1>計算!$B$26,BR$2,($BG36-BR$1)/計算!$B$26*BR$2)) -> -0.2147192343 | BS36: =IF($BG36<BS$1,0,IF($BG36-BS$1>計算!$B$26,BS$2,($BG36-BS$1)/計算!$B$26*BS$2)) -> 0.01843575137 | BT36: =IF($BG36<BT$1,0,IF($BG36-BT$1>計算!$B$26,BT$2,($BG36-BT$1)/計算!$B$26*BT$2)) -> 0.01000012319 | BU36: =IF($BG36<BU$1,0,IF($BG36-BU$1>計算!$B$26,BU$2,($BG36-BU$1)/計算!$B$26*BU$2)) -> -0.06197315461 | BV36: =IF($BG36<BV$1,0,IF($BG36-BV$1>計算!$B$26,BV$2,($BG36-BV$1)/計算!$B$26*BV$2)) -> 0.09924452955 | BW36: =IF($BG36<BW$1,0,IF($BG36-BW$1>計算!$B$26,BW$2,($BG36-BW$1)/計算!$B$26*BW$2)) -> -0.004869127581 | BX36: =IF($BG36<BX$1,0,IF($BG36-BX$1>計算!$B$26,BX$2,($BG36-BX$1)/計算!$B$26*BX$2)) -> -0.05893771026 | BY36: =IF($BG36<BY$1,0,IF($BG36-BY$1>計算!$B$26,BY$2,($BG36-BY$1)/計算!$B$26*BY$2)) -> 0.02231242604 | BZ36: =IF($BG36<BZ$1,0,IF($BG36-BZ$1>計算!$B$26,BZ$2,($BG36-BZ$1)/計算!$B$26*BZ$2)) -> -0.001919693244 | CA36: =IF($BG36<CA$1,0,IF($BG36-CA$1>計算!$B$26,CA$2,($BG36-CA$1)/計算!$B$26*CA$2)) -> 0 | CB36: =IF($BG36<CB$1,0,IF($BG36-CB$1>計算!$B$26,CB$2,($BG36-CB$1)/計算!$B$26*CB$2)) -> 0 | CC36: =IF($BG36<CC$1,0,IF($BG36-CC$1>計算!$B$26,CC$2,($BG36-CC$1)/計算!$B$26*CC$2)) -> 0 | CD36: =IF($BG36<CD$1,0,IF($BG36-CD$1>計算!$B$26,CD$2,($BG36-CD$1)/計算!$B$26*CD$2)) -> 0 | CE36: =IF($BG36<CE$1,0,IF($BG36-CE$1>計算!$B$26,CE$2,($BG36-CE$1)/計算!$B$26*CE$2)) -> 0 | CF36: =IF($BG36<CF$1,0,IF($BG36-CF$1>計算!$B$26,CF$2,($BG36-CF$1)/計算!$B$26*CF$2)) -> 0 | CG36: =IF($BG36<CG$1,0,IF($BG36-CG$1>計算!$B$26,CG$2,($BG36-CG$1)/計算!$B$26*CG$2)) -> 0 | CH36: =IF($BG36<CH$1,0,IF($BG36-CH$1>計算!$B$26,CH$2,($BG36-CH$1)/計算!$B$26*CH$2)) -> 0 | CI36: =IF($BG36<CI$1,0,IF($BG36-CI$1>計算!$B$26,CI$2,($BG36-CI$1)/計算!$B$26*CI$2)) -> 0 | CJ36: =IF($BG36<CJ$1,0,IF($BG36-CJ$1>計算!$B$26,CJ$2,($BG36-CJ$1)/計算!$B$26*CJ$2)) -> 0 | CK36: =IF($BG36<CK$1,0,IF($BG36-CK$1>計算!$B$26,CK$2,($BG36-CK$1)/計算!$B$26*CK$2)) -> 0 | CL36: 3.31398455 | CO36: 7.685568294 | CP36: -0.01279135496 | CQ36: 0.01279135496
F37: 71 | G37: =準備!J36 -> 9.866348473 | H37: =準備!O36-準備!O35 -> -0.0005874758216 | I37: =準備!P36-準備!P35 -> -0.001529038302 | K37: 34 | L37: 7.714389195 | M37: =IF($L37<M$1,0,IF($L37-M$1>計算!$B$26,M$2,($L37-M$1)/計算!$B$26*M$2)) -> 1.989000528 | N37: =IF($L37<N$1,0,IF($L37-N$1>計算!$B$26,N$2,($L37-N$1)/計算!$B$26*N$2)) -> 0.3275217949 | O37: =IF($L37<O$1,0,IF($L37-O$1>計算!$B$26,O$2,($L37-O$1)/計算!$B$26*O$2)) -> 0.9310129985 | P37: =IF($L37<P$1,0,IF($L37-P$1>計算!$B$26,P$2,($L37-P$1)/計算!$B$26*P$2)) -> 0.2787994054 | Q37: =IF($L37<Q$1,0,IF($L37-Q$1>計算!$B$26,Q$2,($L37-Q$1)/計算!$B$26*Q$2)) -> 0.07787922992 | R37: =IF($L37<R$1,0,IF($L37-R$1>計算!$B$26,R$2,($L37-R$1)/計算!$B$26*R$2)) -> -0.01119237707 | S37: =IF($L37<S$1,0,IF($L37-S$1>計算!$B$26,S$2,($L37-S$1)/計算!$B$26*S$2)) -> -0.2393553108 | T37: =IF($L37<T$1,0,IF($L37-T$1>計算!$B$26,T$2,($L37-T$1)/計算!$B$26*T$2)) -> -0.1103328801 | U37: =IF($L37<U$1,0,IF($L37-U$1>計算!$B$26,U$2,($L37-U$1)/計算!$B$26*U$2)) -> 0.02624490998 | V37: =IF($L37<V$1,0,IF($L37-V$1>計算!$B$26,V$2,($L37-V$1)/計算!$B$26*V$2)) -> 0.01851838427 | W37: =IF($L37<W$1,0,IF($L37-W$1>計算!$B$26,W$2,($L37-W$1)/計算!$B$26*W$2)) -> -0.05796305521 | X37: =IF($L37<X$1,0,IF($L37-X$1>計算!$B$26,X$2,($L37-X$1)/計算!$B$26*X$2)) -> -0.05545849425 | Y37: =IF($L37<Y$1,0,IF($L37-Y$1>計算!$B$26,Y$2,($L37-Y$1)/計算!$B$26*Y$2)) -> 0.1033839999 | Z37: =IF($L37<Z$1,0,IF($L37-Z$1>計算!$B$26,Z$2,($L37-Z$1)/計算!$B$26*Z$2)) -> 0.05028929326 | AA37: =IF($L37<AA$1,0,IF($L37-AA$1>計算!$B$26,AA$2,($L37-AA$1)/計算!$B$26*AA$2)) -> -0.02902262998 | AB37: =IF($L37<AB$1,0,IF($L37-AB$1>計算!$B$26,AB$2,($L37-AB$1)/計算!$B$26*AB$2)) -> 0.002470576645 | AC37: =IF($L37<AC$1,0,IF($L37-AC$1>計算!$B$26,AC$2,($L37-AC$1)/計算!$B$26*AC$2)) -> 0.0002538178016 | AD37: =IF($L37<AD$1,0,IF($L37-AD$1>計算!$B$26,AD$2,($L37-AD$1)/計算!$B$26*AD$2)) -> 0 | AE37: =IF($L37<AE$1,0,IF($L37-AE$1>計算!$B$26,AE$2,($L37-AE$1)/計算!$B$26*AE$2)) -> 0 | AF37: =IF($L37<AF$1,0,IF($L37-AF$1>計算!$B$26,AF$2,($L37-AF$1)/計算!$B$26*AF$2)) -> 0 | AG37: =IF($L37<AG$1,0,IF($L37-AG$1>計算!$B$26,AG$2,($L37-AG$1)/計算!$B$26*AG$2)) -> 0 | AH37: =IF($L37<AH$1,0,IF($L37-AH$1>計算!$B$26,AH$2,($L37-AH$1)/計算!$B$26*AH$2)) -> 0 | AI37: =IF($L37<AI$1,0,IF($L37-AI$1>計算!$B$26,AI$2,($L37-AI$1)/計算!$B$26*AI$2)) -> 0 | AJ37: =IF($L37<AJ$1,0,IF($L37-AJ$1>計算!$B$26,AJ$2,($L37-AJ$1)/計算!$B$26*AJ$2)) -> 0 | AK37: =IF($L37<AK$1,0,IF($L37-AK$1>計算!$B$26,AK$2,($L37-AK$1)/計算!$B$26*AK$2)) -> 0 | AL37: =IF($L37<AL$1,0,IF($L37-AL$1>計算!$B$26,AL$2,($L37-AL$1)/計算!$B$26*AL$2)) -> 0 | AM37: =IF($L37<AM$1,0,IF($L37-AM$1>計算!$B$26,AM$2,($L37-AM$1)/計算!$B$26*AM$2)) -> 0 | AN37: =IF($L37<AN$1,0,IF($L37-AN$1>計算!$B$26,AN$2,($L37-AN$1)/計算!$B$26*AN$2)) -> 0 | AO37: =IF($L37<AO$1,0,IF($L37-AO$1>計算!$B$26,AO$2,($L37-AO$1)/計算!$B$26*AO$2)) -> 0 | AP37: =IF($L37<AP$1,0,IF($L37-AP$1>計算!$B$26,AP$2,($L37-AP$1)/計算!$B$26*AP$2)) -> 0 | AQ37: =IF($L37<AQ$1,0,IF($L37-AQ$1>計算!$B$26,AQ$2,($L37-AQ$1)/計算!$B$26*AQ$2)) -> 0 | AR37: =IF($L37<AR$1,0,IF($L37-AR$1>計算!$B$26,AR$2,($L37-AR$1)/計算!$B$26*AR$2)) -> 0 | AS37: =IF($L37<AS$1,0,IF($L37-AS$1>計算!$B$26,AS$2,($L37-AS$1)/計算!$B$26*AS$2)) -> 0 | AT37: =IF($L37<AT$1,0,IF($L37-AT$1>計算!$B$26,AT$2,($L37-AT$1)/計算!$B$26*AT$2)) -> 0 | AU37: =IF($L37<AU$1,0,IF($L37-AU$1>計算!$B$26,AU$2,($L37-AU$1)/計算!$B$26*AU$2)) -> 0 | AV37: =IF($L37<AV$1,0,IF($L37-AV$1>計算!$B$26,AV$2,($L37-AV$1)/計算!$B$26*AV$2)) -> 0 | AW37: 3.302050192 | AZ37: 5e-08 | BA37: 11 | BB37: =IF(BB7+計算!$B$26>=準備!$T$33,準備!$T$33,BB7+計算!$B$26)+AZ37 -> 3.439729961 | BF37: 33 | BG37: 7.224872387 | BH37: =IF($BG37<BH$1,0,IF($BG37-BH$1>計算!$B$26,BH$2,($BG37-BH$1)/計算!$B$26*BH$2)) -> 1.843424849 | BI37: =IF($BG37<BI$1,0,IF($BG37-BI$1>計算!$B$26,BI$2,($BG37-BI$1)/計算!$B$26*BI$2)) -> 2.08043597 | BJ37: =IF($BG37<BJ$1,0,IF($BG37-BJ$1>計算!$B$26,BJ$2,($BG37-BJ$1)/計算!$B$26*BJ$2)) -> 0.4383357379 | BK37: =IF($BG37<BK$1,0,IF($BG37-BK$1>計算!$B$26,BK$2,($BG37-BK$1)/計算!$B$26*BK$2)) -> -0.5512010619 | BL37: =IF($BG37<BL$1,0,IF($BG37-BL$1>計算!$B$26,BL$2,($BG37-BL$1)/計算!$B$26*BL$2)) -> -0.8036518745 | BM37: =IF($BG37<BM$1,0,IF($BG37-BM$1>計算!$B$26,BM$2,($BG37-BM$1)/計算!$B$26*BM$2)) -> 0.1958427948 | BN37: =IF($BG37<BN$1,0,IF($BG37-BN$1>計算!$B$26,BN$2,($BG37-BN$1)/計算!$B$26*BN$2)) -> 0.1042289406 | BO37: =IF($BG37<BO$1,0,IF($BG37-BO$1>計算!$B$26,BO$2,($BG37-BO$1)/計算!$B$26*BO$2)) -> -0.4423266907 | BP37: =IF($BG37<BP$1,0,IF($BG37-BP$1>計算!$B$26,BP$2,($BG37-BP$1)/計算!$B$26*BP$2)) -> 0.1637739194 | BQ37: =IF($BG37<BQ$1,0,IF($BG37-BQ$1>計算!$B$26,BQ$2,($BG37-BQ$1)/計算!$B$26*BQ$2)) -> 0.4775480553 | BR37: =IF($BG37<BR$1,0,IF($BG37-BR$1>計算!$B$26,BR$2,($BG37-BR$1)/計算!$B$26*BR$2)) -> -0.2147192343 | BS37: =IF($BG37<BS$1,0,IF($BG37-BS$1>計算!$B$26,BS$2,($BG37-BS$1)/計算!$B$26*BS$2)) -> 0.01843575137 | BT37: =IF($BG37<BT$1,0,IF($BG37-BT$1>計算!$B$26,BT$2,($BG37-BT$1)/計算!$B$26*BT$2)) -> 0.02478390678 | BU37: =IF($BG37<BU$1,0,IF($BG37-BU$1>計算!$B$26,BU$2,($BG37-BU$1)/計算!$B$26*BU$2)) -> -0.1688616167 | BV37: =IF($BG37<BV$1,0,IF($BG37-BV$1>計算!$B$26,BV$2,($BG37-BV$1)/計算!$B$26*BV$2)) -> 0.3046514392 | BW37: =IF($BG37<BW$1,0,IF($BG37-BW$1>計算!$B$26,BW$2,($BG37-BW$1)/計算!$B$26*BW$2)) -> -0.01746620036 | BX37: =IF($BG37<BX$1,0,IF($BG37-BX$1>計算!$B$26,BX$2,($BG37-BX$1)/計算!$B$26*BX$2)) -> -0.2622438434 | BY37: =IF($BG37<BY$1,0,IF($BG37-BY$1>計算!$B$26,BY$2,($BG37-BY$1)/計算!$B$26*BY$2)) -> 0.1377627813 | BZ37: =IF($BG37<BZ$1,0,IF($BG37-BZ$1>計算!$B$26,BZ$2,($BG37-BZ$1)/計算!$B$26*BZ$2)) -> -0.02178568779 | CA37: =IF($BG37<CA$1,0,IF($BG37-CA$1>計算!$B$26,CA$2,($BG37-CA$1)/計算!$B$26*CA$2)) -> 0.001035213926 | CB37: =IF($BG37<CB$1,0,IF($BG37-CB$1>計算!$B$26,CB$2,($BG37-CB$1)/計算!$B$26*CB$2)) -> 0 | CC37: =IF($BG37<CC$1,0,IF($BG37-CC$1>計算!$B$26,CC$2,($BG37-CC$1)/計算!$B$26*CC$2)) -> 0 | CD37: =IF($BG37<CD$1,0,IF($BG37-CD$1>計算!$B$26,CD$2,($BG37-CD$1)/計算!$B$26*CD$2)) -> 0 | CE37: =IF($BG37<CE$1,0,IF($BG37-CE$1>計算!$B$26,CE$2,($BG37-CE$1)/計算!$B$26*CE$2)) -> 0 | CF37: =IF($BG37<CF$1,0,IF($BG37-CF$1>計算!$B$26,CF$2,($BG37-CF$1)/計算!$B$26*CF$2)) -> 0 | CG37: =IF($BG37<CG$1,0,IF($BG37-CG$1>計算!$B$26,CG$2,($BG37-CG$1)/計算!$B$26*CG$2)) -> 0 | CH37: =IF($BG37<CH$1,0,IF($BG37-CH$1>計算!$B$26,CH$2,($BG37-CH$1)/計算!$B$26*CH$2)) -> 0 | CI37: =IF($BG37<CI$1,0,IF($BG37-CI$1>計算!$B$26,CI$2,($BG37-CI$1)/計算!$B$26*CI$2)) -> 0 | CJ37: =IF($BG37<CJ$1,0,IF($BG37-CJ$1>計算!$B$26,CJ$2,($BG37-CJ$1)/計算!$B$26*CJ$2)) -> 0 | CK37: =IF($BG37<CK$1,0,IF($BG37-CK$1>計算!$B$26,CK$2,($BG37-CK$1)/計算!$B$26*CK$2)) -> 0 | CL37: 3.30800315 | CO37: 7.714389195 | CP37: -0.01348797832 | CQ37: 0.01348797832
A38: L(nH/m) | B38: =(B12*B23+B13*B24)/2 -> 329.483799 | F38: 72 | G38: =準備!J37 -> 9.895169373 | H38: =準備!O37-準備!O36 -> 2.189297697e-05 | I38: =準備!P37-準備!P36 -> 5.012379591e-05 | K38: 35 | L38: 7.743210095 | M38: =IF($L38<M$1,0,IF($L38-M$1>計算!$B$26,M$2,($L38-M$1)/計算!$B$26*M$2)) -> 1.989000528 | N38: =IF($L38<N$1,0,IF($L38-N$1>計算!$B$26,N$2,($L38-N$1)/計算!$B$26*N$2)) -> 0.3275217949 | O38: =IF($L38<O$1,0,IF($L38-O$1>計算!$B$26,O$2,($L38-O$1)/計算!$B$26*O$2)) -> 0.9310129985 | P38: =IF($L38<P$1,0,IF($L38-P$1>計算!$B$26,P$2,($L38-P$1)/計算!$B$26*P$2)) -> 0.2787994054 | Q38: =IF($L38<Q$1,0,IF($L38-Q$1>計算!$B$26,Q$2,($L38-Q$1)/計算!$B$26*Q$2)) -> 0.07787922992 | R38: =IF($L38<R$1,0,IF($L38-R$1>計算!$B$26,R$2,($L38-R$1)/計算!$B$26*R$2)) -> -0.01119237707 | S38: =IF($L38<S$1,0,IF($L38-S$1>計算!$B$26,S$2,($L38-S$1)/計算!$B$26*S$2)) -> -0.2393553108 | T38: =IF($L38<T$1,0,IF($L38-T$1>計算!$B$26,T$2,($L38-T$1)/計算!$B$26*T$2)) -> -0.1103328801 | U38: =IF($L38<U$1,0,IF($L38-U$1>計算!$B$26,U$2,($L38-U$1)/計算!$B$26*U$2)) -> 0.02624490998 | V38: =IF($L38<V$1,0,IF($L38-V$1>計算!$B$26,V$2,($L38-V$1)/計算!$B$26*V$2)) -> 0.01851838427 | W38: =IF($L38<W$1,0,IF($L38-W$1>計算!$B$26,W$2,($L38-W$1)/計算!$B$26*W$2)) -> -0.05796305521 | X38: =IF($L38<X$1,0,IF($L38-X$1>計算!$B$26,X$2,($L38-X$1)/計算!$B$26*X$2)) -> -0.05545849425 | Y38: =IF($L38<Y$1,0,IF($L38-Y$1>計算!$B$26,Y$2,($L38-Y$1)/計算!$B$26*Y$2)) -> 0.1033839999 | Z38: =IF($L38<Z$1,0,IF($L38-Z$1>計算!$B$26,Z$2,($L38-Z$1)/計算!$B$26*Z$2)) -> 0.05028929326 | AA38: =IF($L38<AA$1,0,IF($L38-AA$1>計算!$B$26,AA$2,($L38-AA$1)/計算!$B$26*AA$2)) -> -0.02902262998 | AB38: =IF($L38<AB$1,0,IF($L38-AB$1>計算!$B$26,AB$2,($L38-AB$1)/計算!$B$26*AB$2)) -> 0.002470576645 | AC38: =IF($L38<AC$1,0,IF($L38-AC$1>計算!$B$26,AC$2,($L38-AC$1)/計算!$B$26*AC$2)) -> 0.0005076356032 | AD38: =IF($L38<AD$1,0,IF($L38-AD$1>計算!$B$26,AD$2,($L38-AD$1)/計算!$B$26*AD$2)) -> -0.001552436179 | AE38: =IF($L38<AE$1,0,IF($L38-AE$1>計算!$B$26,AE$2,($L38-AE$1)/計算!$B$26*AE$2)) -> 0 | AF38: =IF($L38<AF$1,0,IF($L38-AF$1>計算!$B$26,AF$2,($L38-AF$1)/計算!$B$26*AF$2)) -> 0 | AG38: =IF($L38<AG$1,0,IF($L38-AG$1>計算!$B$26,AG$2,($L38-AG$1)/計算!$B$26*AG$2)) -> 0 | AH38: =IF($L38<AH$1,0,IF($L38-AH$1>計算!$B$26,AH$2,($L38-AH$1)/計算!$B$26*AH$2)) -> 0 | AI38: =IF($L38<AI$1,0,IF($L38-AI$1>計算!$B$26,AI$2,($L38-AI$1)/計算!$B$26*AI$2)) -> 0 | AJ38: =IF($L38<AJ$1,0,IF($L38-AJ$1>計算!$B$26,AJ$2,($L38-AJ$1)/計算!$B$26*AJ$2)) -> 0 | AK38: =IF($L38<AK$1,0,IF($L38-AK$1>計算!$B$26,AK$2,($L38-AK$1)/計算!$B$26*AK$2)) -> 0 | AL38: =IF($L38<AL$1,0,IF($L38-AL$1>計算!$B$26,AL$2,($L38-AL$1)/計算!$B$26*AL$2)) -> 0 | AM38: =IF($L38<AM$1,0,IF($L38-AM$1>計算!$B$26,AM$2,($L38-AM$1)/計算!$B$26*AM$2)) -> 0 | AN38: =IF($L38<AN$1,0,IF($L38-AN$1>計算!$B$26,AN$2,($L38-AN$1)/計算!$B$26*AN$2)) -> 0 | AO38: =IF($L38<AO$1,0,IF($L38-AO$1>計算!$B$26,AO$2,($L38-AO$1)/計算!$B$26*AO$2)) -> 0 | AP38: =IF($L38<AP$1,0,IF($L38-AP$1>計算!$B$26,AP$2,($L38-AP$1)/計算!$B$26*AP$2)) -> 0 | AQ38: =IF($L38<AQ$1,0,IF($L38-AQ$1>計算!$B$26,AQ$2,($L38-AQ$1)/計算!$B$26*AQ$2)) -> 0 | AR38: =IF($L38<AR$1,0,IF($L38-AR$1>計算!$B$26,AR$2,($L38-AR$1)/計算!$B$26*AR$2)) -> 0 | AS38: =IF($L38<AS$1,0,IF($L38-AS$1>計算!$B$26,AS$2,($L38-AS$1)/計算!$B$26*AS$2)) -> 0 | AT38: =IF($L38<AT$1,0,IF($L38-AT$1>計算!$B$26,AT$2,($L38-AT$1)/計算!$B$26*AT$2)) -> 0 | AU38: =IF($L38<AU$1,0,IF($L38-AU$1>計算!$B$26,AU$2,($L38-AU$1)/計算!$B$26*AU$2)) -> 0 | AV38: =IF($L38<AV$1,0,IF($L38-AV$1>計算!$B$26,AV$2,($L38-AV$1)/計算!$B$26*AV$2)) -> 0 | AW38: 3.300751573 | AZ38: 6e-08 | BA38: 12 | BB38: =IF(BB8+計算!$B$26>=準備!$T$33,準備!$T$33,BB8+計算!$B$26)+AZ38 -> 3.468550872 | BF38: 34 | BG38: 7.253693298 | BH38: =IF($BG38<BH$1,0,IF($BG38-BH$1>計算!$B$26,BH$2,($BG38-BH$1)/計算!$B$26*BH$2)) -> 1.843424849 | BI38: =IF($BG38<BI$1,0,IF($BG38-BI$1>計算!$B$26,BI$2,($BG38-BI$1)/計算!$B$26*BI$2)) -> 2.08043597 | BJ38: =IF($BG38<BJ$1,0,IF($BG38-BJ$1>計算!$B$26,BJ$2,($BG38-BJ$1)/計算!$B$26*BJ$2)) -> 0.4383357379 | BK38: =IF($BG38<BK$1,0,IF($BG38-BK$1>計算!$B$26,BK$2,($BG38-BK$1)/計算!$B$26*BK$2)) -> -0.5512010619 | BL38: =IF($BG38<BL$1,0,IF($BG38-BL$1>計算!$B$26,BL$2,($BG38-BL$1)/計算!$B$26*BL$2)) -> -0.8036518745 | BM38: =IF($BG38<BM$1,0,IF($BG38-BM$1>計算!$B$26,BM$2,($BG38-BM$1)/計算!$B$26*BM$2)) -> 0.1958427948 | BN38: =IF($BG38<BN$1,0,IF($BG38-BN$1>計算!$B$26,BN$2,($BG38-BN$1)/計算!$B$26*BN$2)) -> 0.1042289406 | BO38: =IF($BG38<BO$1,0,IF($BG38-BO$1>計算!$B$26,BO$2,($BG38-BO$1)/計算!$B$26*BO$2)) -> -0.4423266907 | BP38: =IF($BG38<BP$1,0,IF($BG38-BP$1>計算!$B$26,BP$2,($BG38-BP$1)/計算!$B$26*BP$2)) -> 0.1637739194 | BQ38: =IF($BG38<BQ$1,0,IF($BG38-BQ$1>計算!$B$26,BQ$2,($BG38-BQ$1)/計算!$B$26*BQ$2)) -> 0.4775480553 | BR38: =IF($BG38<BR$1,0,IF($BG38-BR$1>計算!$B$26,BR$2,($BG38-BR$1)/計算!$B$26*BR$2)) -> -0.2147192343 | BS38: =IF($BG38<BS$1,0,IF($BG38-BS$1>計算!$B$26,BS$2,($BG38-BS$1)/計算!$B$26*BS$2)) -> 0.01843575137 | BT38: =IF($BG38<BT$1,0,IF($BG38-BT$1>計算!$B$26,BT$2,($BG38-BT$1)/計算!$B$26*BT$2)) -> 0.02478390678 | BU38: =IF($BG38<BU$1,0,IF($BG38-BU$1>計算!$B$26,BU$2,($BG38-BU$1)/計算!$B$26*BU$2)) -> -0.1791904293 | BV38: =IF($BG38<BV$1,0,IF($BG38-BV$1>計算!$B$26,BV$2,($BG38-BV$1)/計算!$B$26*BV$2)) -> 0.324500352 | BW38: =IF($BG38<BW$1,0,IF($BG38-BW$1>計算!$B$26,BW$2,($BG38-BW$1)/計算!$B$26*BW$2)) -> -0.01868348267 | BX38: =IF($BG38<BX$1,0,IF($BG38-BX$1>計算!$B$26,BX$2,($BG38-BX$1)/計算!$B$26*BX$2)) -> -0.2818897537 | BY38: =IF($BG38<BY$1,0,IF($BG38-BY$1>計算!$B$26,BY$2,($BG38-BY$1)/計算!$B$26*BY$2)) -> 0.1489189982 | BZ38: =IF($BG38<BZ$1,0,IF($BG38-BZ$1>計算!$B$26,BZ$2,($BG38-BZ$1)/計算!$B$26*BZ$2)) -> -0.0237053817 | CA38: =IF($BG38<CA$1,0,IF($BG38-CA$1>計算!$B$26,CA$2,($BG38-CA$1)/計算!$B$26*CA$2)) -> 0.001135248881 | CB38: =IF($BG38<CB$1,0,IF($BG38-CB$1>計算!$B$26,CB$2,($BG38-CB$1)/計算!$B$26*CB$2)) -> 0 | CC38: =IF($BG38<CC$1,0,IF($BG38-CC$1>計算!$B$26,CC$2,($BG38-CC$1)/計算!$B$26*CC$2)) -> 0 | CD38: =IF($BG38<CD$1,0,IF($BG38-CD$1>計算!$B$26,CD$2,($BG38-CD$1)/計算!$B$26*CD$2)) -> 0 | CE38: =IF($BG38<CE$1,0,IF($BG38-CE$1>計算!$B$26,CE$2,($BG38-CE$1)/計算!$B$26*CE$2)) -> 0 | CF38: =IF($BG38<CF$1,0,IF($BG38-CF$1>計算!$B$26,CF$2,($BG38-CF$1)/計算!$B$26*CF$2)) -> 0 | CG38: =IF($BG38<CG$1,0,IF($BG38-CG$1>計算!$B$26,CG$2,($BG38-CG$1)/計算!$B$26*CG$2)) -> 0 | CH38: =IF($BG38<CH$1,0,IF($BG38-CH$1>計算!$B$26,CH$2,($BG38-CH$1)/計算!$B$26*CH$2)) -> 0 | CI38: =IF($BG38<CI$1,0,IF($BG38-CI$1>計算!$B$26,CI$2,($BG38-CI$1)/計算!$B$26*CI$2)) -> 0 | CJ38: =IF($BG38<CJ$1,0,IF($BG38-CJ$1>計算!$B$26,CJ$2,($BG38-CJ$1)/計算!$B$26*CJ$2)) -> 0 | CK38: =IF($BG38<CK$1,0,IF($BG38-CK$1>計算!$B$26,CK$2,($BG38-CK$1)/計算!$B$26*CK$2)) -> 0 | CL38: 3.305996616 | CO38: 7.743210095 | CP38: -0.008107768831 | CQ38: 0.008107768831
A39: Lm(nH/m) | B39: =(B12*B23-B13*B24)/2 -> 54.17170666 | E39: 1e-10 | F39: 2 | G39: =IF(G3+計算!$B$26>=準備!$T$33,準備!$T$33,G3+計算!$B$26)+E39 -> 0.5000000001 | K39: 36 | L39: 7.772030996 | M39: =IF($L39<M$1,0,IF($L39-M$1>計算!$B$26,M$2,($L39-M$1)/計算!$B$26*M$2)) -> 1.989000528 | N39: =IF($L39<N$1,0,IF($L39-N$1>計算!$B$26,N$2,($L39-N$1)/計算!$B$26*N$2)) -> 0.3275217949 | O39: =IF($L39<O$1,0,IF($L39-O$1>計算!$B$26,O$2,($L39-O$1)/計算!$B$26*O$2)) -> 0.9310129985 | P39: =IF($L39<P$1,0,IF($L39-P$1>計算!$B$26,P$2,($L39-P$1)/計算!$B$26*P$2)) -> 0.2787994054 | Q39: =IF($L39<Q$1,0,IF($L39-Q$1>計算!$B$26,Q$2,($L39-Q$1)/計算!$B$26*Q$2)) -> 0.07787922992 | R39: =IF($L39<R$1,0,IF($L39-R$1>計算!$B$26,R$2,($L39-R$1)/計算!$B$26*R$2)) -> -0.01119237707 | S39: =IF($L39<S$1,0,IF($L39-S$1>計算!$B$26,S$2,($L39-S$1)/計算!$B$26*S$2)) -> -0.2393553108 | T39: =IF($L39<T$1,0,IF($L39-T$1>計算!$B$26,T$2,($L39-T$1)/計算!$B$26*T$2)) -> -0.1103328801 | U39: =IF($L39<U$1,0,IF($L39-U$1>計算!$B$26,U$2,($L39-U$1)/計算!$B$26*U$2)) -> 0.02624490998 | V39: =IF($L39<V$1,0,IF($L39-V$1>計算!$B$26,V$2,($L39-V$1)/計算!$B$26*V$2)) -> 0.01851838427 | W39: =IF($L39<W$1,0,IF($L39-W$1>計算!$B$26,W$2,($L39-W$1)/計算!$B$26*W$2)) -> -0.05796305521 | X39: =IF($L39<X$1,0,IF($L39-X$1>計算!$B$26,X$2,($L39-X$1)/計算!$B$26*X$2)) -> -0.05545849425 | Y39: =IF($L39<Y$1,0,IF($L39-Y$1>計算!$B$26,Y$2,($L39-Y$1)/計算!$B$26*Y$2)) -> 0.1033839999 | Z39: =IF($L39<Z$1,0,IF($L39-Z$1>計算!$B$26,Z$2,($L39-Z$1)/計算!$B$26*Z$2)) -> 0.05028929326 | AA39: =IF($L39<AA$1,0,IF($L39-AA$1>計算!$B$26,AA$2,($L39-AA$1)/計算!$B$26*AA$2)) -> -0.02902262998 | AB39: =IF($L39<AB$1,0,IF($L39-AB$1>計算!$B$26,AB$2,($L39-AB$1)/計算!$B$26*AB$2)) -> 0.002470576645 | AC39: =IF($L39<AC$1,0,IF($L39-AC$1>計算!$B$26,AC$2,($L39-AC$1)/計算!$B$26*AC$2)) -> 0.0007614534048 | AD39: =IF($L39<AD$1,0,IF($L39-AD$1>計算!$B$26,AD$2,($L39-AD$1)/計算!$B$26*AD$2)) -> -0.003104872358 | AE39: =IF($L39<AE$1,0,IF($L39-AE$1>計算!$B$26,AE$2,($L39-AE$1)/計算!$B$26*AE$2)) -> 0.001523394617 | AF39: =IF($L39<AF$1,0,IF($L39-AF$1>計算!$B$26,AF$2,($L39-AF$1)/計算!$B$26*AF$2)) -> 0 | AG39: =IF($L39<AG$1,0,IF($L39-AG$1>計算!$B$26,AG$2,($L39-AG$1)/計算!$B$26*AG$2)) -> 0 | AH39: =IF($L39<AH$1,0,IF($L39-AH$1>計算!$B$26,AH$2,($L39-AH$1)/計算!$B$26*AH$2)) -> 0 | AI39: =IF($L39<AI$1,0,IF($L39-AI$1>計算!$B$26,AI$2,($L39-AI$1)/計算!$B$26*AI$2)) -> 0 | AJ39: =IF($L39<AJ$1,0,IF($L39-AJ$1>計算!$B$26,AJ$2,($L39-AJ$1)/計算!$B$26*AJ$2)) -> 0 | AK39: =IF($L39<AK$1,0,IF($L39-AK$1>計算!$B$26,AK$2,($L39-AK$1)/計算!$B$26*AK$2)) -> 0 | AL39: =IF($L39<AL$1,0,IF($L39-AL$1>計算!$B$26,AL$2,($L39-AL$1)/計算!$B$26*AL$2)) -> 0 | AM39: =IF($L39<AM$1,0,IF($L39-AM$1>計算!$B$26,AM$2,($L39-AM$1)/計算!$B$26*AM$2)) -> 0 | AN39: =IF($L39<AN$1,0,IF($L39-AN$1>計算!$B$26,AN$2,($L39-AN$1)/計算!$B$26*AN$2)) -> 0 | AO39: =IF($L39<AO$1,0,IF($L39-AO$1>計算!$B$26,AO$2,($L39-AO$1)/計算!$B$26*AO$2)) -> 0 | AP39: =IF($L39<AP$1,0,IF($L39-AP$1>計算!$B$26,AP$2,($L39-AP$1)/計算!$B$26*AP$2)) -> 0 | AQ39: =IF($L39<AQ$1,0,IF($L39-AQ$1>計算!$B$26,AQ$2,($L39-AQ$1)/計算!$B$26*AQ$2)) -> 0 | AR39: =IF($L39<AR$1,0,IF($L39-AR$1>計算!$B$26,AR$2,($L39-AR$1)/計算!$B$26*AR$2)) -> 0 | AS39: =IF($L39<AS$1,0,IF($L39-AS$1>計算!$B$26,AS$2,($L39-AS$1)/計算!$B$26*AS$2)) -> 0 | AT39: =IF($L39<AT$1,0,IF($L39-AT$1>計算!$B$26,AT$2,($L39-AT$1)/計算!$B$26*AT$2)) -> 0 | AU39: =IF($L39<AU$1,0,IF($L39-AU$1>計算!$B$26,AU$2,($L39-AU$1)/計算!$B$26*AU$2)) -> 0 | AV39: =IF($L39<AV$1,0,IF($L39-AV$1>計算!$B$26,AV$2,($L39-AV$1)/計算!$B$26*AV$2)) -> 0 | AW39: 3.300976349 | AZ39: 7e-08 | BA39: 19 | BB39: =IF(BB9+計算!$B$26>=準備!$T$33,準備!$T$33,BB9+計算!$B$26)+AZ39 -> 5.303480254 | BF39: 35 | BG39: 7.282514208 | BH39: =IF($BG39<BH$1,0,IF($BG39-BH$1>計算!$B$26,BH$2,($BG39-BH$1)/計算!$B$26*BH$2)) -> 1.843424849 | BI39: =IF($BG39<BI$1,0,IF($BG39-BI$1>計算!$B$26,BI$2,($BG39-BI$1)/計算!$B$26*BI$2)) -> 2.08043597 | BJ39: =IF($BG39<BJ$1,0,IF($BG39-BJ$1>計算!$B$26,BJ$2,($BG39-BJ$1)/計算!$B$26*BJ$2)) -> 0.4383357379 | BK39: =IF($BG39<BK$1,0,IF($BG39-BK$1>計算!$B$26,BK$2,($BG39-BK$1)/計算!$B$26*BK$2)) -> -0.5512010619 | BL39: =IF($BG39<BL$1,0,IF($BG39-BL$1>計算!$B$26,BL$2,($BG39-BL$1)/計算!$B$26*BL$2)) -> -0.8036518745 | BM39: =IF($BG39<BM$1,0,IF($BG39-BM$1>計算!$B$26,BM$2,($BG39-BM$1)/計算!$B$26*BM$2)) -> 0.1958427948 | BN39: =IF($BG39<BN$1,0,IF($BG39-BN$1>計算!$B$26,BN$2,($BG39-BN$1)/計算!$B$26*BN$2)) -> 0.1042289406 | BO39: =IF($BG39<BO$1,0,IF($BG39-BO$1>計算!$B$26,BO$2,($BG39-BO$1)/計算!$B$26*BO$2)) -> -0.4423266907 | BP39: =IF($BG39<BP$1,0,IF($BG39-BP$1>計算!$B$26,BP$2,($BG39-BP$1)/計算!$B$26*BP$2)) -> 0.1637739194 | BQ39: =IF($BG39<BQ$1,0,IF($BG39-BQ$1>計算!$B$26,BQ$2,($BG39-BQ$1)/計算!$B$26*BQ$2)) -> 0.4775480553 | BR39: =IF($BG39<BR$1,0,IF($BG39-BR$1>計算!$B$26,BR$2,($BG39-BR$1)/計算!$B$26*BR$2)) -> -0.2147192343 | BS39: =IF($BG39<BS$1,0,IF($BG39-BS$1>計算!$B$26,BS$2,($BG39-BS$1)/計算!$B$26*BS$2)) -> 0.01843575137 | BT39: =IF($BG39<BT$1,0,IF($BG39-BT$1>計算!$B$26,BT$2,($BG39-BT$1)/計算!$B$26*BT$2)) -> 0.02478390678 | BU39: =IF($BG39<BU$1,0,IF($BG39-BU$1>計算!$B$26,BU$2,($BG39-BU$1)/計算!$B$26*BU$2)) -> -0.1791904293 | BV39: =IF($BG39<BV$1,0,IF($BG39-BV$1>計算!$B$26,BV$2,($BG39-BV$1)/計算!$B$26*BV$2)) -> 0.3443491614 | BW39: =IF($BG39<BW$1,0,IF($BG39-BW$1>計算!$B$26,BW$2,($BG39-BW$1)/計算!$B$26*BW$2)) -> -0.01990076499 | BX39: =IF($BG39<BX$1,0,IF($BG39-BX$1>計算!$B$26,BX$2,($BG39-BX$1)/計算!$B$26*BX$2)) -> -0.3015356639 | BY39: =IF($BG39<BY$1,0,IF($BG39-BY$1>計算!$B$26,BY$2,($BG39-BY$1)/計算!$B$26*BY$2)) -> 0.1600752151 | BZ39: =IF($BG39<BZ$1,0,IF($BG39-BZ$1>計算!$B$26,BZ$2,($BG39-BZ$1)/計算!$B$26*BZ$2)) -> -0.02562507561 | CA39: =IF($BG39<CA$1,0,IF($BG39-CA$1>計算!$B$26,CA$2,($BG39-CA$1)/計算!$B$26*CA$2)) -> 0.001235283836 | CB39: =IF($BG39<CB$1,0,IF($BG39-CB$1>計算!$B$26,CB$2,($BG39-CB$1)/計算!$B$26*CB$2)) -> 0 | CC39: =IF($BG39<CC$1,0,IF($BG39-CC$1>計算!$B$26,CC$2,($BG39-CC$1)/計算!$B$26*CC$2)) -> 0 | CD39: =IF($BG39<CD$1,0,IF($BG39-CD$1>計算!$B$26,CD$2,($BG39-CD$1)/計算!$B$26*CD$2)) -> 0 | CE39: =IF($BG39<CE$1,0,IF($BG39-CE$1>計算!$B$26,CE$2,($BG39-CE$1)/計算!$B$26*CE$2)) -> 0 | CF39: =IF($BG39<CF$1,0,IF($BG39-CF$1>計算!$B$26,CF$2,($BG39-CF$1)/計算!$B$26*CF$2)) -> 0 | CG39: =IF($BG39<CG$1,0,IF($BG39-CG$1>計算!$B$26,CG$2,($BG39-CG$1)/計算!$B$26*CG$2)) -> 0 | CH39: =IF($BG39<CH$1,0,IF($BG39-CH$1>計算!$B$26,CH$2,($BG39-CH$1)/計算!$B$26*CH$2)) -> 0 | CI39: =IF($BG39<CI$1,0,IF($BG39-CI$1>計算!$B$26,CI$2,($BG39-CI$1)/計算!$B$26*CI$2)) -> 0 | CJ39: =IF($BG39<CJ$1,0,IF($BG39-CJ$1>計算!$B$26,CJ$2,($BG39-CJ$1)/計算!$B$26*CJ$2)) -> 0 | CK39: =IF($BG39<CK$1,0,IF($BG39-CK$1>計算!$B$26,CK$2,($BG39-CK$1)/計算!$B$26*CK$2)) -> 0 | CL39: 3.31431879 | CO39: 7.772030996 | CP39: -0.01902835373 | CQ39: 0.01902835373
A40: C(pF/m) | B40: =(B23/B12+B24/B13)/2*1000 -> 131.2105054 | E40: 2e-10 | F40: 6 | G40: =IF(G4+計算!$B$26>=準備!$T$33,準備!$T$33,G4+計算!$B$26)+E40 -> 2.421392074 | K40: 37 | L40: 7.800851896 | M40: =IF($L40<M$1,0,IF($L40-M$1>計算!$B$26,M$2,($L40-M$1)/計算!$B$26*M$2)) -> 1.989000528 | N40: =IF($L40<N$1,0,IF($L40-N$1>計算!$B$26,N$2,($L40-N$1)/計算!$B$26*N$2)) -> 0.3275217949 | O40: =IF($L40<O$1,0,IF($L40-O$1>計算!$B$26,O$2,($L40-O$1)/計算!$B$26*O$2)) -> 0.9310129985 | P40: =IF($L40<P$1,0,IF($L40-P$1>計算!$B$26,P$2,($L40-P$1)/計算!$B$26*P$2)) -> 0.2787994054 | Q40: =IF($L40<Q$1,0,IF($L40-Q$1>計算!$B$26,Q$2,($L40-Q$1)/計算!$B$26*Q$2)) -> 0.07787922992 | R40: =IF($L40<R$1,0,IF($L40-R$1>計算!$B$26,R$2,($L40-R$1)/計算!$B$26*R$2)) -> -0.01119237707 | S40: =IF($L40<S$1,0,IF($L40-S$1>計算!$B$26,S$2,($L40-S$1)/計算!$B$26*S$2)) -> -0.2393553108 | T40: =IF($L40<T$1,0,IF($L40-T$1>計算!$B$26,T$2,($L40-T$1)/計算!$B$26*T$2)) -> -0.1103328801 | U40: =IF($L40<U$1,0,IF($L40-U$1>計算!$B$26,U$2,($L40-U$1)/計算!$B$26*U$2)) -> 0.02624490998 | V40: =IF($L40<V$1,0,IF($L40-V$1>計算!$B$26,V$2,($L40-V$1)/計算!$B$26*V$2)) -> 0.01851838427 | W40: =IF($L40<W$1,0,IF($L40-W$1>計算!$B$26,W$2,($L40-W$1)/計算!$B$26*W$2)) -> -0.05796305521 | X40: =IF($L40<X$1,0,IF($L40-X$1>計算!$B$26,X$2,($L40-X$1)/計算!$B$26*X$2)) -> -0.05545849425 | Y40: =IF($L40<Y$1,0,IF($L40-Y$1>計算!$B$26,Y$2,($L40-Y$1)/計算!$B$26*Y$2)) -> 0.1033839999 | Z40: =IF($L40<Z$1,0,IF($L40-Z$1>計算!$B$26,Z$2,($L40-Z$1)/計算!$B$26*Z$2)) -> 0.05028929326 | AA40: =IF($L40<AA$1,0,IF($L40-AA$1>計算!$B$26,AA$2,($L40-AA$1)/計算!$B$26*AA$2)) -> -0.02902262998 | AB40: =IF($L40<AB$1,0,IF($L40-AB$1>計算!$B$26,AB$2,($L40-AB$1)/計算!$B$26*AB$2)) -> 0.002470576645 | AC40: =IF($L40<AC$1,0,IF($L40-AC$1>計算!$B$26,AC$2,($L40-AC$1)/計算!$B$26*AC$2)) -> 0.001015271206 | AD40: =IF($L40<AD$1,0,IF($L40-AD$1>計算!$B$26,AD$2,($L40-AD$1)/計算!$B$26*AD$2)) -> -0.004657308537 | AE40: =IF($L40<AE$1,0,IF($L40-AE$1>計算!$B$26,AE$2,($L40-AE$1)/計算!$B$26*AE$2)) -> 0.003046789235 | AF40: =IF($L40<AF$1,0,IF($L40-AF$1>計算!$B$26,AF$2,($L40-AF$1)/計算!$B$26*AF$2)) -> 0.00339970219 | AG40: =IF($L40<AG$1,0,IF($L40-AG$1>計算!$B$26,AG$2,($L40-AG$1)/計算!$B$26*AG$2)) -> 0 | AH40: =IF($L40<AH$1,0,IF($L40-AH$1>計算!$B$26,AH$2,($L40-AH$1)/計算!$B$26*AH$2)) -> 0 | AI40: =IF($L40<AI$1,0,IF($L40-AI$1>計算!$B$26,AI$2,($L40-AI$1)/計算!$B$26*AI$2)) -> 0 | AJ40: =IF($L40<AJ$1,0,IF($L40-AJ$1>計算!$B$26,AJ$2,($L40-AJ$1)/計算!$B$26*AJ$2)) -> 0 | AK40: =IF($L40<AK$1,0,IF($L40-AK$1>計算!$B$26,AK$2,($L40-AK$1)/計算!$B$26*AK$2)) -> 0 | AL40: =IF($L40<AL$1,0,IF($L40-AL$1>計算!$B$26,AL$2,($L40-AL$1)/計算!$B$26*AL$2)) -> 0 | AM40: =IF($L40<AM$1,0,IF($L40-AM$1>計算!$B$26,AM$2,($L40-AM$1)/計算!$B$26*AM$2)) -> 0 | AN40: =IF($L40<AN$1,0,IF($L40-AN$1>計算!$B$26,AN$2,($L40-AN$1)/計算!$B$26*AN$2)) -> 0 | AO40: =IF($L40<AO$1,0,IF($L40-AO$1>計算!$B$26,AO$2,($L40-AO$1)/計算!$B$26*AO$2)) -> 0 | AP40: =IF($L40<AP$1,0,IF($L40-AP$1>計算!$B$26,AP$2,($L40-AP$1)/計算!$B$26*AP$2)) -> 0 | AQ40: =IF($L40<AQ$1,0,IF($L40-AQ$1>計算!$B$26,AQ$2,($L40-AQ$1)/計算!$B$26*AQ$2)) -> 0 | AR40: =IF($L40<AR$1,0,IF($L40-AR$1>計算!$B$26,AR$2,($L40-AR$1)/計算!$B$26*AR$2)) -> 0 | AS40: =IF($L40<AS$1,0,IF($L40-AS$1>計算!$B$26,AS$2,($L40-AS$1)/計算!$B$26*AS$2)) -> 0 | AT40: =IF($L40<AT$1,0,IF($L40-AT$1>計算!$B$26,AT$2,($L40-AT$1)/計算!$B$26*AT$2)) -> 0 | AU40: =IF($L40<AU$1,0,IF($L40-AU$1>計算!$B$26,AU$2,($L40-AU$1)/計算!$B$26*AU$2)) -> 0 | AV40: =IF($L40<AV$1,0,IF($L40-AV$1>計算!$B$26,AV$2,($L40-AV$1)/計算!$B$26*AV$2)) -> 0 | AW40: 3.304600828 | AZ40: 8e-08 | BA40: 20 | BB40: =IF(BB10+計算!$B$26>=準備!$T$33,準備!$T$33,BB10+計算!$B$26)+AZ40 -> 5.332301164 | BF40: 36 | BG40: 7.311335119 | BH40: =IF($BG40<BH$1,0,IF($BG40-BH$1>計算!$B$26,BH$2,($BG40-BH$1)/計算!$B$26*BH$2)) -> 1.843424849 | BI40: =IF($BG40<BI$1,0,IF($BG40-BI$1>計算!$B$26,BI$2,($BG40-BI$1)/計算!$B$26*BI$2)) -> 2.08043597 | BJ40: =IF($BG40<BJ$1,0,IF($BG40-BJ$1>計算!$B$26,BJ$2,($BG40-BJ$1)/計算!$B$26*BJ$2)) -> 0.4383357379 | BK40: =IF($BG40<BK$1,0,IF($BG40-BK$1>計算!$B$26,BK$2,($BG40-BK$1)/計算!$B$26*BK$2)) -> -0.5512010619 | BL40: =IF($BG40<BL$1,0,IF($BG40-BL$1>計算!$B$26,BL$2,($BG40-BL$1)/計算!$B$26*BL$2)) -> -0.8036518745 | BM40: =IF($BG40<BM$1,0,IF($BG40-BM$1>計算!$B$26,BM$2,($BG40-BM$1)/計算!$B$26*BM$2)) -> 0.1958427948 | BN40: =IF($BG40<BN$1,0,IF($BG40-BN$1>計算!$B$26,BN$2,($BG40-BN$1)/計算!$B$26*BN$2)) -> 0.1042289406 | BO40: =IF($BG40<BO$1,0,IF($BG40-BO$1>計算!$B$26,BO$2,($BG40-BO$1)/計算!$B$26*BO$2)) -> -0.4423266907 | BP40: =IF($BG40<BP$1,0,IF($BG40-BP$1>計算!$B$26,BP$2,($BG40-BP$1)/計算!$B$26*BP$2)) -> 0.1637739194 | BQ40: =IF($BG40<BQ$1,0,IF($BG40-BQ$1>計算!$B$26,BQ$2,($BG40-BQ$1)/計算!$B$26*BQ$2)) -> 0.4775480553 | BR40: =IF($BG40<BR$1,0,IF($BG40-BR$1>計算!$B$26,BR$2,($BG40-BR$1)/計算!$B$26*BR$2)) -> -0.2147192343 | BS40: =IF($BG40<BS$1,0,IF($BG40-BS$1>計算!$B$26,BS$2,($BG40-BS$1)/計算!$B$26*BS$2)) -> 0.01843575137 | BT40: =IF($BG40<BT$1,0,IF($BG40-BT$1>計算!$B$26,BT$2,($BG40-BT$1)/計算!$B$26*BT$2)) -> 0.02478390678 | BU40: =IF($BG40<BU$1,0,IF($BG40-BU$1>計算!$B$26,BU$2,($BG40-BU$1)/計算!$B$26*BU$2)) -> -0.1791904293 | BV40: =IF($BG40<BV$1,0,IF($BG40-BV$1>計算!$B$26,BV$2,($BG40-BV$1)/計算!$B$26*BV$2)) -> 0.3443491614 | BW40: =IF($BG40<BW$1,0,IF($BG40-BW$1>計算!$B$26,BW$2,($BG40-BW$1)/計算!$B$26*BW$2)) -> -0.02111804055 | BX40: =IF($BG40<BX$1,0,IF($BG40-BX$1>計算!$B$26,BX$2,($BG40-BX$1)/計算!$B$26*BX$2)) -> -0.3211815742 | BY40: =IF($BG40<BY$1,0,IF($BG40-BY$1>計算!$B$26,BY$2,($BG40-BY$1)/計算!$B$26*BY$2)) -> 0.171231432 | BZ40: =IF($BG40<BZ$1,0,IF($BG40-BZ$1>計算!$B$26,BZ$2,($BG40-BZ$1)/計算!$B$26*BZ$2)) -> -0.02754476952 | CA40: =IF($BG40<CA$1,0,IF($BG40-CA$1>計算!$B$26,CA$2,($BG40-CA$1)/計算!$B$26*CA$2)) -> 0.001335318791 | CB40: =IF($BG40<CB$1,0,IF($BG40-CB$1>計算!$B$26,CB$2,($BG40-CB$1)/計算!$B$26*CB$2)) -> 0 | CC40: =IF($BG40<CC$1,0,IF($BG40-CC$1>計算!$B$26,CC$2,($BG40-CC$1)/計算!$B$26*CC$2)) -> 0 | CD40: =IF($BG40<CD$1,0,IF($BG40-CD$1>計算!$B$26,CD$2,($BG40-CD$1)/計算!$B$26*CD$2)) -> 0 | CE40: =IF($BG40<CE$1,0,IF($BG40-CE$1>計算!$B$26,CE$2,($BG40-CE$1)/計算!$B$26*CE$2)) -> 0 | CF40: =IF($BG40<CF$1,0,IF($BG40-CF$1>計算!$B$26,CF$2,($BG40-CF$1)/計算!$B$26*CF$2)) -> 0 | CG40: =IF($BG40<CG$1,0,IF($BG40-CG$1>計算!$B$26,CG$2,($BG40-CG$1)/計算!$B$26*CG$2)) -> 0 | CH40: =IF($BG40<CH$1,0,IF($BG40-CH$1>計算!$B$26,CH$2,($BG40-CH$1)/計算!$B$26*CH$2)) -> 0 | CI40: =IF($BG40<CI$1,0,IF($BG40-CI$1>計算!$B$26,CI$2,($BG40-CI$1)/計算!$B$26*CI$2)) -> 0 | CJ40: =IF($BG40<CJ$1,0,IF($BG40-CJ$1>計算!$B$26,CJ$2,($BG40-CJ$1)/計算!$B$26*CJ$2)) -> 0 | CK40: =IF($BG40<CK$1,0,IF($BG40-CK$1>計算!$B$26,CK$2,($BG40-CK$1)/計算!$B$26*CK$2)) -> 0 | CL40: 3.302792163 | CO40: 7.800851896 | CP40: -0.01928238415 | CQ40: 0.01928238415
A41: Cm(pF/m) | B41: =(B23/B12-B24/B13)/2*1000 -> -17.78192108 | E41: 3e-10 | F41: 7 | G41: =IF(G5+計算!$B$26>=準備!$T$33,準備!$T$33,G5+計算!$B$26)+E41 -> 2.450212974 | K41: 38 | L41: 7.829672797 | M41: =IF($L41<M$1,0,IF($L41-M$1>計算!$B$26,M$2,($L41-M$1)/計算!$B$26*M$2)) -> 1.989000528 | N41: =IF($L41<N$1,0,IF($L41-N$1>計算!$B$26,N$2,($L41-N$1)/計算!$B$26*N$2)) -> 0.3275217949 | O41: =IF($L41<O$1,0,IF($L41-O$1>計算!$B$26,O$2,($L41-O$1)/計算!$B$26*O$2)) -> 0.9310129985 | P41: =IF($L41<P$1,0,IF($L41-P$1>計算!$B$26,P$2,($L41-P$1)/計算!$B$26*P$2)) -> 0.2787994054 | Q41: =IF($L41<Q$1,0,IF($L41-Q$1>計算!$B$26,Q$2,($L41-Q$1)/計算!$B$26*Q$2)) -> 0.07787922992 | R41: =IF($L41<R$1,0,IF($L41-R$1>計算!$B$26,R$2,($L41-R$1)/計算!$B$26*R$2)) -> -0.01119237707 | S41: =IF($L41<S$1,0,IF($L41-S$1>計算!$B$26,S$2,($L41-S$1)/計算!$B$26*S$2)) -> -0.2393553108 | T41: =IF($L41<T$1,0,IF($L41-T$1>計算!$B$26,T$2,($L41-T$1)/計算!$B$26*T$2)) -> -0.1103328801 | U41: =IF($L41<U$1,0,IF($L41-U$1>計算!$B$26,U$2,($L41-U$1)/計算!$B$26*U$2)) -> 0.02624490998 | V41: =IF($L41<V$1,0,IF($L41-V$1>計算!$B$26,V$2,($L41-V$1)/計算!$B$26*V$2)) -> 0.01851838427 | W41: =IF($L41<W$1,0,IF($L41-W$1>計算!$B$26,W$2,($L41-W$1)/計算!$B$26*W$2)) -> -0.05796305521 | X41: =IF($L41<X$1,0,IF($L41-X$1>計算!$B$26,X$2,($L41-X$1)/計算!$B$26*X$2)) -> -0.05545849425 | Y41: =IF($L41<Y$1,0,IF($L41-Y$1>計算!$B$26,Y$2,($L41-Y$1)/計算!$B$26*Y$2)) -> 0.1033839999 | Z41: =IF($L41<Z$1,0,IF($L41-Z$1>計算!$B$26,Z$2,($L41-Z$1)/計算!$B$26*Z$2)) -> 0.05028929326 | AA41: =IF($L41<AA$1,0,IF($L41-AA$1>計算!$B$26,AA$2,($L41-AA$1)/計算!$B$26*AA$2)) -> -0.02902262998 | AB41: =IF($L41<AB$1,0,IF($L41-AB$1>計算!$B$26,AB$2,($L41-AB$1)/計算!$B$26*AB$2)) -> 0.002470576645 | AC41: =IF($L41<AC$1,0,IF($L41-AC$1>計算!$B$26,AC$2,($L41-AC$1)/計算!$B$26*AC$2)) -> 0.001269089008 | AD41: =IF($L41<AD$1,0,IF($L41-AD$1>計算!$B$26,AD$2,($L41-AD$1)/計算!$B$26*AD$2)) -> -0.006209744716 | AE41: =IF($L41<AE$1,0,IF($L41-AE$1>計算!$B$26,AE$2,($L41-AE$1)/計算!$B$26*AE$2)) -> 0.004570183852 | AF41: =IF($L41<AF$1,0,IF($L41-AF$1>計算!$B$26,AF$2,($L41-AF$1)/計算!$B$26*AF$2)) -> 0.00679940438 | AG41: =IF($L41<AG$1,0,IF($L41-AG$1>計算!$B$26,AG$2,($L41-AG$1)/計算!$B$26*AG$2)) -> -0.003260997618 | AH41: =IF($L41<AH$1,0,IF($L41-AH$1>計算!$B$26,AH$2,($L41-AH$1)/計算!$B$26*AH$2)) -> 0 | AI41: =IF($L41<AI$1,0,IF($L41-AI$1>計算!$B$26,AI$2,($L41-AI$1)/計算!$B$26*AI$2)) -> 0 | AJ41: =IF($L41<AJ$1,0,IF($L41-AJ$1>計算!$B$26,AJ$2,($L41-AJ$1)/計算!$B$26*AJ$2)) -> 0 | AK41: =IF($L41<AK$1,0,IF($L41-AK$1>計算!$B$26,AK$2,($L41-AK$1)/計算!$B$26*AK$2)) -> 0 | AL41: =IF($L41<AL$1,0,IF($L41-AL$1>計算!$B$26,AL$2,($L41-AL$1)/計算!$B$26*AL$2)) -> 0 | AM41: =IF($L41<AM$1,0,IF($L41-AM$1>計算!$B$26,AM$2,($L41-AM$1)/計算!$B$26*AM$2)) -> 0 | AN41: =IF($L41<AN$1,0,IF($L41-AN$1>計算!$B$26,AN$2,($L41-AN$1)/計算!$B$26*AN$2)) -> 0 | AO41: =IF($L41<AO$1,0,IF($L41-AO$1>計算!$B$26,AO$2,($L41-AO$1)/計算!$B$26*AO$2)) -> 0 | AP41: =IF($L41<AP$1,0,IF($L41-AP$1>計算!$B$26,AP$2,($L41-AP$1)/計算!$B$26*AP$2)) -> 0 | AQ41: =IF($L41<AQ$1,0,IF($L41-AQ$1>計算!$B$26,AQ$2,($L41-AQ$1)/計算!$B$26*AQ$2)) -> 0 | AR41: =IF($L41<AR$1,0,IF($L41-AR$1>計算!$B$26,AR$2,($L41-AR$1)/計算!$B$26*AR$2)) -> 0 | AS41: =IF($L41<AS$1,0,IF($L41-AS$1>計算!$B$26,AS$2,($L41-AS$1)/計算!$B$26*AS$2)) -> 0 | AT41: =IF($L41<AT$1,0,IF($L41-AT$1>計算!$B$26,AT$2,($L41-AT$1)/計算!$B$26*AT$2)) -> 0 | AU41: =IF($L41<AU$1,0,IF($L41-AU$1>計算!$B$26,AU$2,($L41-AU$1)/計算!$B$26*AU$2)) -> 0 | AV41: =IF($L41<AV$1,0,IF($L41-AV$1>計算!$B$26,AV$2,($L41-AV$1)/計算!$B$26*AV$2)) -> 0 | AW41: 3.304964309 | AZ41: 9e-08 | BA41: 21 | BB41: =IF(BB11+計算!$B$26>=準備!$T$33,準備!$T$33,BB11+計算!$B$26)+AZ41 -> 5.361122075 | BF41: 37 | BG41: 7.34015603 | BH41: =IF($BG41<BH$1,0,IF($BG41-BH$1>計算!$B$26,BH$2,($BG41-BH$1)/計算!$B$26*BH$2)) -> 1.843424849 | BI41: =IF($BG41<BI$1,0,IF($BG41-BI$1>計算!$B$26,BI$2,($BG41-BI$1)/計算!$B$26*BI$2)) -> 2.08043597 | BJ41: =IF($BG41<BJ$1,0,IF($BG41-BJ$1>計算!$B$26,BJ$2,($BG41-BJ$1)/計算!$B$26*BJ$2)) -> 0.4383357379 | BK41: =IF($BG41<BK$1,0,IF($BG41-BK$1>計算!$B$26,BK$2,($BG41-BK$1)/計算!$B$26*BK$2)) -> -0.5512010619 | BL41: =IF($BG41<BL$1,0,IF($BG41-BL$1>計算!$B$26,BL$2,($BG41-BL$1)/計算!$B$26*BL$2)) -> -0.8036518745 | BM41: =IF($BG41<BM$1,0,IF($BG41-BM$1>計算!$B$26,BM$2,($BG41-BM$1)/計算!$B$26*BM$2)) -> 0.1958427948 | BN41: =IF($BG41<BN$1,0,IF($BG41-BN$1>計算!$B$26,BN$2,($BG41-BN$1)/計算!$B$26*BN$2)) -> 0.1042289406 | BO41: =IF($BG41<BO$1,0,IF($BG41-BO$1>計算!$B$26,BO$2,($BG41-BO$1)/計算!$B$26*BO$2)) -> -0.4423266907 | BP41: =IF($BG41<BP$1,0,IF($BG41-BP$1>計算!$B$26,BP$2,($BG41-BP$1)/計算!$B$26*BP$2)) -> 0.1637739194 | BQ41: =IF($BG41<BQ$1,0,IF($BG41-BQ$1>計算!$B$26,BQ$2,($BG41-BQ$1)/計算!$B$26*BQ$2)) -> 0.4775480553 | BR41: =IF($BG41<BR$1,0,IF($BG41-BR$1>計算!$B$26,BR$2,($BG41-BR$1)/計算!$B$26*BR$2)) -> -0.2147192343 | BS41: =IF($BG41<BS$1,0,IF($BG41-BS$1>計算!$B$26,BS$2,($BG41-BS$1)/計算!$B$26*BS$2)) -> 0.01843575137 | BT41: =IF($BG41<BT$1,0,IF($BG41-BT$1>計算!$B$26,BT$2,($BG41-BT$1)/計算!$B$26*BT$2)) -> 0.02478390678 | BU41: =IF($BG41<BU$1,0,IF($BG41-BU$1>計算!$B$26,BU$2,($BG41-BU$1)/計算!$B$26*BU$2)) -> -0.1791904293 | BV41: =IF($BG41<BV$1,0,IF($BG41-BV$1>計算!$B$26,BV$2,($BG41-BV$1)/計算!$B$26*BV$2)) -> 0.3443491614 | BW41: =IF($BG41<BW$1,0,IF($BG41-BW$1>計算!$B$26,BW$2,($BG41-BW$1)/計算!$B$26*BW$2)) -> -0.02111804055 | BX41: =IF($BG41<BX$1,0,IF($BG41-BX$1>計算!$B$26,BX$2,($BG41-BX$1)/計算!$B$26*BX$2)) -> -0.3408273685 | BY41: =IF($BG41<BY$1,0,IF($BG41-BY$1>計算!$B$26,BY$2,($BG41-BY$1)/計算!$B$26*BY$2)) -> 0.1823876489 | BZ41: =IF($BG41<BZ$1,0,IF($BG41-BZ$1>計算!$B$26,BZ$2,($BG41-BZ$1)/計算!$B$26*BZ$2)) -> -0.02946446343 | CA41: =IF($BG41<CA$1,0,IF($BG41-CA$1>計算!$B$26,CA$2,($BG41-CA$1)/計算!$B$26*CA$2)) -> 0.001435353745 | CB41: =IF($BG41<CB$1,0,IF($BG41-CB$1>計算!$B$26,CB$2,($BG41-CB$1)/計算!$B$26*CB$2)) -> 0 | CC41: =IF($BG41<CC$1,0,IF($BG41-CC$1>計算!$B$26,CC$2,($BG41-CC$1)/計算!$B$26*CC$2)) -> 0 | CD41: =IF($BG41<CD$1,0,IF($BG41-CD$1>計算!$B$26,CD$2,($BG41-CD$1)/計算!$B$26*CD$2)) -> 0 | CE41: =IF($BG41<CE$1,0,IF($BG41-CE$1>計算!$B$26,CE$2,($BG41-CE$1)/計算!$B$26*CE$2)) -> 0 | CF41: =IF($BG41<CF$1,0,IF($BG41-CF$1>計算!$B$26,CF$2,($BG41-CF$1)/計算!$B$26*CF$2)) -> 0 | CG41: =IF($BG41<CG$1,0,IF($BG41-CG$1>計算!$B$26,CG$2,($BG41-CG$1)/計算!$B$26*CG$2)) -> 0 | CH41: =IF($BG41<CH$1,0,IF($BG41-CH$1>計算!$B$26,CH$2,($BG41-CH$1)/計算!$B$26*CH$2)) -> 0 | CI41: =IF($BG41<CI$1,0,IF($BG41-CI$1>計算!$B$26,CI$2,($BG41-CI$1)/計算!$B$26*CI$2)) -> 0 | CJ41: =IF($BG41<CJ$1,0,IF($BG41-CJ$1>計算!$B$26,CJ$2,($BG41-CJ$1)/計算!$B$26*CJ$2)) -> 0 | CK41: =IF($BG41<CK$1,0,IF($BG41-CK$1>計算!$B$26,CK$2,($BG41-CK$1)/計算!$B$26*CK$2)) -> 0 | CL41: 3.292482926 | CO41: 7.829672797 | CP41: -0.007519645775 | CQ41: 0.007519645775
E42: 4e-10 | F42: 8 | G42: =IF(G6+計算!$B$26>=準備!$T$33,準備!$T$33,G6+計算!$B$26)+E42 -> 2.479033875 | K42: 39 | L42: 7.858493698 | M42: =IF($L42<M$1,0,IF($L42-M$1>計算!$B$26,M$2,($L42-M$1)/計算!$B$26*M$2)) -> 1.989000528 | N42: =IF($L42<N$1,0,IF($L42-N$1>計算!$B$26,N$2,($L42-N$1)/計算!$B$26*N$2)) -> 0.3275217949 | O42: =IF($L42<O$1,0,IF($L42-O$1>計算!$B$26,O$2,($L42-O$1)/計算!$B$26*O$2)) -> 0.9310129985 | P42: =IF($L42<P$1,0,IF($L42-P$1>計算!$B$26,P$2,($L42-P$1)/計算!$B$26*P$2)) -> 0.2787994054 | Q42: =IF($L42<Q$1,0,IF($L42-Q$1>計算!$B$26,Q$2,($L42-Q$1)/計算!$B$26*Q$2)) -> 0.07787922992 | R42: =IF($L42<R$1,0,IF($L42-R$1>計算!$B$26,R$2,($L42-R$1)/計算!$B$26*R$2)) -> -0.01119237707 | S42: =IF($L42<S$1,0,IF($L42-S$1>計算!$B$26,S$2,($L42-S$1)/計算!$B$26*S$2)) -> -0.2393553108 | T42: =IF($L42<T$1,0,IF($L42-T$1>計算!$B$26,T$2,($L42-T$1)/計算!$B$26*T$2)) -> -0.1103328801 | U42: =IF($L42<U$1,0,IF($L42-U$1>計算!$B$26,U$2,($L42-U$1)/計算!$B$26*U$2)) -> 0.02624490998 | V42: =IF($L42<V$1,0,IF($L42-V$1>計算!$B$26,V$2,($L42-V$1)/計算!$B$26*V$2)) -> 0.01851838427 | W42: =IF($L42<W$1,0,IF($L42-W$1>計算!$B$26,W$2,($L42-W$1)/計算!$B$26*W$2)) -> -0.05796305521 | X42: =IF($L42<X$1,0,IF($L42-X$1>計算!$B$26,X$2,($L42-X$1)/計算!$B$26*X$2)) -> -0.05545849425 | Y42: =IF($L42<Y$1,0,IF($L42-Y$1>計算!$B$26,Y$2,($L42-Y$1)/計算!$B$26*Y$2)) -> 0.1033839999 | Z42: =IF($L42<Z$1,0,IF($L42-Z$1>計算!$B$26,Z$2,($L42-Z$1)/計算!$B$26*Z$2)) -> 0.05028929326 | AA42: =IF($L42<AA$1,0,IF($L42-AA$1>計算!$B$26,AA$2,($L42-AA$1)/計算!$B$26*AA$2)) -> -0.02902262998 | AB42: =IF($L42<AB$1,0,IF($L42-AB$1>計算!$B$26,AB$2,($L42-AB$1)/計算!$B$26*AB$2)) -> 0.002470576645 | AC42: =IF($L42<AC$1,0,IF($L42-AC$1>計算!$B$26,AC$2,($L42-AC$1)/計算!$B$26*AC$2)) -> 0.00152290681 | AD42: =IF($L42<AD$1,0,IF($L42-AD$1>計算!$B$26,AD$2,($L42-AD$1)/計算!$B$26*AD$2)) -> -0.007762180895 | AE42: =IF($L42<AE$1,0,IF($L42-AE$1>計算!$B$26,AE$2,($L42-AE$1)/計算!$B$26*AE$2)) -> 0.006093578469 | AF42: =IF($L42<AF$1,0,IF($L42-AF$1>計算!$B$26,AF$2,($L42-AF$1)/計算!$B$26*AF$2)) -> 0.01019910657 | AG42: =IF($L42<AG$1,0,IF($L42-AG$1>計算!$B$26,AG$2,($L42-AG$1)/計算!$B$26*AG$2)) -> -0.006521995235 | AH42: =IF($L42<AH$1,0,IF($L42-AH$1>計算!$B$26,AH$2,($L42-AH$1)/計算!$B$26*AH$2)) -> -0.001626809701 | AI42: =IF($L42<AI$1,0,IF($L42-AI$1>計算!$B$26,AI$2,($L42-AI$1)/計算!$B$26*AI$2)) -> 0 | AJ42: =IF($L42<AJ$1,0,IF($L42-AJ$1>計算!$B$26,AJ$2,($L42-AJ$1)/計算!$B$26*AJ$2)) -> 0 | AK42: =IF($L42<AK$1,0,IF($L42-AK$1>計算!$B$26,AK$2,($L42-AK$1)/計算!$B$26*AK$2)) -> 0 | AL42: =IF($L42<AL$1,0,IF($L42-AL$1>計算!$B$26,AL$2,($L42-AL$1)/計算!$B$26*AL$2)) -> 0 | AM42: =IF($L42<AM$1,0,IF($L42-AM$1>計算!$B$26,AM$2,($L42-AM$1)/計算!$B$26*AM$2)) -> 0 | AN42: =IF($L42<AN$1,0,IF($L42-AN$1>計算!$B$26,AN$2,($L42-AN$1)/計算!$B$26*AN$2)) -> 0 | AO42: =IF($L42<AO$1,0,IF($L42-AO$1>計算!$B$26,AO$2,($L42-AO$1)/計算!$B$26*AO$2)) -> 0 | AP42: =IF($L42<AP$1,0,IF($L42-AP$1>計算!$B$26,AP$2,($L42-AP$1)/計算!$B$26*AP$2)) -> 0 | AQ42: =IF($L42<AQ$1,0,IF($L42-AQ$1>計算!$B$26,AQ$2,($L42-AQ$1)/計算!$B$26*AQ$2)) -> 0 | AR42: =IF($L42<AR$1,0,IF($L42-AR$1>計算!$B$26,AR$2,($L42-AR$1)/計算!$B$26*AR$2)) -> 0 | AS42: =IF($L42<AS$1,0,IF($L42-AS$1>計算!$B$26,AS$2,($L42-AS$1)/計算!$B$26*AS$2)) -> 0 | AT42: =IF($L42<AT$1,0,IF($L42-AT$1>計算!$B$26,AT$2,($L42-AT$1)/計算!$B$26*AT$2)) -> 0 | AU42: =IF($L42<AU$1,0,IF($L42-AU$1>計算!$B$26,AU$2,($L42-AU$1)/計算!$B$26*AU$2)) -> 0 | AV42: =IF($L42<AV$1,0,IF($L42-AV$1>計算!$B$26,AV$2,($L42-AV$1)/計算!$B$26*AV$2)) -> 0 | AW42: 3.30370098 | AZ42: 1e-07 | BA42: 22 | BB42: =IF(BB12+計算!$B$26>=準備!$T$33,準備!$T$33,BB12+計算!$B$26)+AZ42 -> 5.389942986 | BF42: 38 | BG42: 7.36897694 | BH42: =IF($BG42<BH$1,0,IF($BG42-BH$1>計算!$B$26,BH$2,($BG42-BH$1)/計算!$B$26*BH$2)) -> 1.843424849 | BI42: =IF($BG42<BI$1,0,IF($BG42-BI$1>計算!$B$26,BI$2,($BG42-BI$1)/計算!$B$26*BI$2)) -> 2.08043597 | BJ42: =IF($BG42<BJ$1,0,IF($BG42-BJ$1>計算!$B$26,BJ$2,($BG42-BJ$1)/計算!$B$26*BJ$2)) -> 0.4383357379 | BK42: =IF($BG42<BK$1,0,IF($BG42-BK$1>計算!$B$26,BK$2,($BG42-BK$1)/計算!$B$26*BK$2)) -> -0.5512010619 | BL42: =IF($BG42<BL$1,0,IF($BG42-BL$1>計算!$B$26,BL$2,($BG42-BL$1)/計算!$B$26*BL$2)) -> -0.8036518745 | BM42: =IF($BG42<BM$1,0,IF($BG42-BM$1>計算!$B$26,BM$2,($BG42-BM$1)/計算!$B$26*BM$2)) -> 0.1958427948 | BN42: =IF($BG42<BN$1,0,IF($BG42-BN$1>計算!$B$26,BN$2,($BG42-BN$1)/計算!$B$26*BN$2)) -> 0.1042289406 | BO42: =IF($BG42<BO$1,0,IF($BG42-BO$1>計算!$B$26,BO$2,($BG42-BO$1)/計算!$B$26*BO$2)) -> -0.4423266907 | BP42: =IF($BG42<BP$1,0,IF($BG42-BP$1>計算!$B$26,BP$2,($BG42-BP$1)/計算!$B$26*BP$2)) -> 0.1637739194 | BQ42: =IF($BG42<BQ$1,0,IF($BG42-BQ$1>計算!$B$26,BQ$2,($BG42-BQ$1)/計算!$B$26*BQ$2)) -> 0.4775480553 | BR42: =IF($BG42<BR$1,0,IF($BG42-BR$1>計算!$B$26,BR$2,($BG42-BR$1)/計算!$B$26*BR$2)) -> -0.2147192343 | BS42: =IF($BG42<BS$1,0,IF($BG42-BS$1>計算!$B$26,BS$2,($BG42-BS$1)/計算!$B$26*BS$2)) -> 0.01843575137 | BT42: =IF($BG42<BT$1,0,IF($BG42-BT$1>計算!$B$26,BT$2,($BG42-BT$1)/計算!$B$26*BT$2)) -> 0.02478390678 | BU42: =IF($BG42<BU$1,0,IF($BG42-BU$1>計算!$B$26,BU$2,($BG42-BU$1)/計算!$B$26*BU$2)) -> -0.1791904293 | BV42: =IF($BG42<BV$1,0,IF($BG42-BV$1>計算!$B$26,BV$2,($BG42-BV$1)/計算!$B$26*BV$2)) -> 0.3443491614 | BW42: =IF($BG42<BW$1,0,IF($BG42-BW$1>計算!$B$26,BW$2,($BG42-BW$1)/計算!$B$26*BW$2)) -> -0.02111804055 | BX42: =IF($BG42<BX$1,0,IF($BG42-BX$1>計算!$B$26,BX$2,($BG42-BX$1)/計算!$B$26*BX$2)) -> -0.3408273685 | BY42: =IF($BG42<BY$1,0,IF($BG42-BY$1>計算!$B$26,BY$2,($BG42-BY$1)/計算!$B$26*BY$2)) -> 0.1935437961 | BZ42: =IF($BG42<BZ$1,0,IF($BG42-BZ$1>計算!$B$26,BZ$2,($BG42-BZ$1)/計算!$B$26*BZ$2)) -> -0.03138415734 | CA42: =IF($BG42<CA$1,0,IF($BG42-CA$1>計算!$B$26,CA$2,($BG42-CA$1)/計算!$B$26*CA$2)) -> 0.0015353887 | CB42: =IF($BG42<CB$1,0,IF($BG42-CB$1>計算!$B$26,CB$2,($BG42-CB$1)/計算!$B$26*CB$2)) -> 0 | CC42: =IF($BG42<CC$1,0,IF($BG42-CC$1>計算!$B$26,CC$2,($BG42-CC$1)/計算!$B$26*CC$2)) -> 0 | CD42: =IF($BG42<CD$1,0,IF($BG42-CD$1>計算!$B$26,CD$2,($BG42-CD$1)/計算!$B$26*CD$2)) -> 0 | CE42: =IF($BG42<CE$1,0,IF($BG42-CE$1>計算!$B$26,CE$2,($BG42-CE$1)/計算!$B$26*CE$2)) -> 0 | CF42: =IF($BG42<CF$1,0,IF($BG42-CF$1>計算!$B$26,CF$2,($BG42-CF$1)/計算!$B$26*CF$2)) -> 0 | CG42: =IF($BG42<CG$1,0,IF($BG42-CG$1>計算!$B$26,CG$2,($BG42-CG$1)/計算!$B$26*CG$2)) -> 0 | CH42: =IF($BG42<CH$1,0,IF($BG42-CH$1>計算!$B$26,CH$2,($BG42-CH$1)/計算!$B$26*CH$2)) -> 0 | CI42: =IF($BG42<CI$1,0,IF($BG42-CI$1>計算!$B$26,CI$2,($BG42-CI$1)/計算!$B$26*CI$2)) -> 0 | CJ42: =IF($BG42<CJ$1,0,IF($BG42-CJ$1>計算!$B$26,CJ$2,($BG42-CJ$1)/計算!$B$26*CJ$2)) -> 0 | CK42: =IF($BG42<CK$1,0,IF($BG42-CK$1>計算!$B$26,CK$2,($BG42-CK$1)/計算!$B$26*CK$2)) -> 0 | CL42: 3.301819414 | CO42: 7.858493698 | CP42: -0.01135072755 | CQ42: 0.01135072755
B43: =VLOOKUP(波形!N7,Data!R2:S8,2,0) -> 15 | E43: 5e-10 | F43: 14 | G43: =IF(G7+計算!$B$26>=準備!$T$33,準備!$T$33,G7+計算!$B$26)+E43 -> 4.342784147 | K43: 40 | L43: 7.887314598 | M43: =IF($L43<M$1,0,IF($L43-M$1>計算!$B$26,M$2,($L43-M$1)/計算!$B$26*M$2)) -> 1.989000528 | N43: =IF($L43<N$1,0,IF($L43-N$1>計算!$B$26,N$2,($L43-N$1)/計算!$B$26*N$2)) -> 0.3275217949 | O43: =IF($L43<O$1,0,IF($L43-O$1>計算!$B$26,O$2,($L43-O$1)/計算!$B$26*O$2)) -> 0.9310129985 | P43: =IF($L43<P$1,0,IF($L43-P$1>計算!$B$26,P$2,($L43-P$1)/計算!$B$26*P$2)) -> 0.2787994054 | Q43: =IF($L43<Q$1,0,IF($L43-Q$1>計算!$B$26,Q$2,($L43-Q$1)/計算!$B$26*Q$2)) -> 0.07787922992 | R43: =IF($L43<R$1,0,IF($L43-R$1>計算!$B$26,R$2,($L43-R$1)/計算!$B$26*R$2)) -> -0.01119237707 | S43: =IF($L43<S$1,0,IF($L43-S$1>計算!$B$26,S$2,($L43-S$1)/計算!$B$26*S$2)) -> -0.2393553108 | T43: =IF($L43<T$1,0,IF($L43-T$1>計算!$B$26,T$2,($L43-T$1)/計算!$B$26*T$2)) -> -0.1103328801 | U43: =IF($L43<U$1,0,IF($L43-U$1>計算!$B$26,U$2,($L43-U$1)/計算!$B$26*U$2)) -> 0.02624490998 | V43: =IF($L43<V$1,0,IF($L43-V$1>計算!$B$26,V$2,($L43-V$1)/計算!$B$26*V$2)) -> 0.01851838427 | W43: =IF($L43<W$1,0,IF($L43-W$1>計算!$B$26,W$2,($L43-W$1)/計算!$B$26*W$2)) -> -0.05796305521 | X43: =IF($L43<X$1,0,IF($L43-X$1>計算!$B$26,X$2,($L43-X$1)/計算!$B$26*X$2)) -> -0.05545849425 | Y43: =IF($L43<Y$1,0,IF($L43-Y$1>計算!$B$26,Y$2,($L43-Y$1)/計算!$B$26*Y$2)) -> 0.1033839999 | Z43: =IF($L43<Z$1,0,IF($L43-Z$1>計算!$B$26,Z$2,($L43-Z$1)/計算!$B$26*Z$2)) -> 0.05028929326 | AA43: =IF($L43<AA$1,0,IF($L43-AA$1>計算!$B$26,AA$2,($L43-AA$1)/計算!$B$26*AA$2)) -> -0.02902262998 | AB43: =IF($L43<AB$1,0,IF($L43-AB$1>計算!$B$26,AB$2,($L43-AB$1)/計算!$B$26*AB$2)) -> 0.002470576645 | AC43: =IF($L43<AC$1,0,IF($L43-AC$1>計算!$B$26,AC$2,($L43-AC$1)/計算!$B$26*AC$2)) -> 0.001776724611 | AD43: =IF($L43<AD$1,0,IF($L43-AD$1>計算!$B$26,AD$2,($L43-AD$1)/計算!$B$26*AD$2)) -> -0.009314617074 | AE43: =IF($L43<AE$1,0,IF($L43-AE$1>計算!$B$26,AE$2,($L43-AE$1)/計算!$B$26*AE$2)) -> 0.007616973087 | AF43: =IF($L43<AF$1,0,IF($L43-AF$1>計算!$B$26,AF$2,($L43-AF$1)/計算!$B$26*AF$2)) -> 0.01359880876 | AG43: =IF($L43<AG$1,0,IF($L43-AG$1>計算!$B$26,AG$2,($L43-AG$1)/計算!$B$26*AG$2)) -> -0.009782992853 | AH43: =IF($L43<AH$1,0,IF($L43-AH$1>計算!$B$26,AH$2,($L43-AH$1)/計算!$B$26*AH$2)) -> -0.003253619402 | AI43: =IF($L43<AI$1,0,IF($L43-AI$1>計算!$B$26,AI$2,($L43-AI$1)/計算!$B$26*AI$2)) -> 0.001430823695 | AJ43: =IF($L43<AJ$1,0,IF($L43-AJ$1>計算!$B$26,AJ$2,($L43-AJ$1)/計算!$B$26*AJ$2)) -> 0 | AK43: =IF($L43<AK$1,0,IF($L43-AK$1>計算!$B$26,AK$2,($L43-AK$1)/計算!$B$26*AK$2)) -> 0 | AL43: =IF($L43<AL$1,0,IF($L43-AL$1>計算!$B$26,AL$2,($L43-AL$1)/計算!$B$26*AL$2)) -> 0 | AM43: =IF($L43<AM$1,0,IF($L43-AM$1>計算!$B$26,AM$2,($L43-AM$1)/計算!$B$26*AM$2)) -> 0 | AN43: =IF($L43<AN$1,0,IF($L43-AN$1>計算!$B$26,AN$2,($L43-AN$1)/計算!$B$26*AN$2)) -> 0 | AO43: =IF($L43<AO$1,0,IF($L43-AO$1>計算!$B$26,AO$2,($L43-AO$1)/計算!$B$26*AO$2)) -> 0 | AP43: =IF($L43<AP$1,0,IF($L43-AP$1>計算!$B$26,AP$2,($L43-AP$1)/計算!$B$26*AP$2)) -> 0 | AQ43: =IF($L43<AQ$1,0,IF($L43-AQ$1>計算!$B$26,AQ$2,($L43-AQ$1)/計算!$B$26*AQ$2)) -> 0 | AR43: =IF($L43<AR$1,0,IF($L43-AR$1>計算!$B$26,AR$2,($L43-AR$1)/計算!$B$26*AR$2)) -> 0 | AS43: =IF($L43<AS$1,0,IF($L43-AS$1>計算!$B$26,AS$2,($L43-AS$1)/計算!$B$26*AS$2)) -> 0 | AT43: =IF($L43<AT$1,0,IF($L43-AT$1>計算!$B$26,AT$2,($L43-AT$1)/計算!$B$26*AT$2)) -> 0 | AU43: =IF($L43<AU$1,0,IF($L43-AU$1>計算!$B$26,AU$2,($L43-AU$1)/計算!$B$26*AU$2)) -> 0 | AV43: =IF($L43<AV$1,0,IF($L43-AV$1>計算!$B$26,AV$2,($L43-AV$1)/計算!$B$26*AV$2)) -> 0 | AW43: 3.303868475 | AZ43: 1.1e-07 | BA43: 23 | BB43: =IF(BB13+計算!$B$26>=準備!$T$33,準備!$T$33,BB13+計算!$B$26)+AZ43 -> 5.418763896 | BF43: 39 | BG43: 7.397797851 | BH43: =IF($BG43<BH$1,0,IF($BG43-BH$1>計算!$B$26,BH$2,($BG43-BH$1)/計算!$B$26*BH$2)) -> 1.843424849 | BI43: =IF($BG43<BI$1,0,IF($BG43-BI$1>計算!$B$26,BI$2,($BG43-BI$1)/計算!$B$26*BI$2)) -> 2.08043597 | BJ43: =IF($BG43<BJ$1,0,IF($BG43-BJ$1>計算!$B$26,BJ$2,($BG43-BJ$1)/計算!$B$26*BJ$2)) -> 0.4383357379 | BK43: =IF($BG43<BK$1,0,IF($BG43-BK$1>計算!$B$26,BK$2,($BG43-BK$1)/計算!$B$26*BK$2)) -> -0.5512010619 | BL43: =IF($BG43<BL$1,0,IF($BG43-BL$1>計算!$B$26,BL$2,($BG43-BL$1)/計算!$B$26*BL$2)) -> -0.8036518745 | BM43: =IF($BG43<BM$1,0,IF($BG43-BM$1>計算!$B$26,BM$2,($BG43-BM$1)/計算!$B$26*BM$2)) -> 0.1958427948 | BN43: =IF($BG43<BN$1,0,IF($BG43-BN$1>計算!$B$26,BN$2,($BG43-BN$1)/計算!$B$26*BN$2)) -> 0.1042289406 | BO43: =IF($BG43<BO$1,0,IF($BG43-BO$1>計算!$B$26,BO$2,($BG43-BO$1)/計算!$B$26*BO$2)) -> -0.4423266907 | BP43: =IF($BG43<BP$1,0,IF($BG43-BP$1>計算!$B$26,BP$2,($BG43-BP$1)/計算!$B$26*BP$2)) -> 0.1637739194 | BQ43: =IF($BG43<BQ$1,0,IF($BG43-BQ$1>計算!$B$26,BQ$2,($BG43-BQ$1)/計算!$B$26*BQ$2)) -> 0.4775480553 | BR43: =IF($BG43<BR$1,0,IF($BG43-BR$1>計算!$B$26,BR$2,($BG43-BR$1)/計算!$B$26*BR$2)) -> -0.2147192343 | BS43: =IF($BG43<BS$1,0,IF($BG43-BS$1>計算!$B$26,BS$2,($BG43-BS$1)/計算!$B$26*BS$2)) -> 0.01843575137 | BT43: =IF($BG43<BT$1,0,IF($BG43-BT$1>計算!$B$26,BT$2,($BG43-BT$1)/計算!$B$26*BT$2)) -> 0.02478390678 | BU43: =IF($BG43<BU$1,0,IF($BG43-BU$1>計算!$B$26,BU$2,($BG43-BU$1)/計算!$B$26*BU$2)) -> -0.1791904293 | BV43: =IF($BG43<BV$1,0,IF($BG43-BV$1>計算!$B$26,BV$2,($BG43-BV$1)/計算!$B$26*BV$2)) -> 0.3443491614 | BW43: =IF($BG43<BW$1,0,IF($BG43-BW$1>計算!$B$26,BW$2,($BG43-BW$1)/計算!$B$26*BW$2)) -> -0.02111804055 | BX43: =IF($BG43<BX$1,0,IF($BG43-BX$1>計算!$B$26,BX$2,($BG43-BX$1)/計算!$B$26*BX$2)) -> -0.3408273685 | BY43: =IF($BG43<BY$1,0,IF($BG43-BY$1>計算!$B$26,BY$2,($BG43-BY$1)/計算!$B$26*BY$2)) -> 0.1935437961 | BZ43: =IF($BG43<BZ$1,0,IF($BG43-BZ$1>計算!$B$26,BZ$2,($BG43-BZ$1)/計算!$B$26*BZ$2)) -> -0.0333038386 | CA43: =IF($BG43<CA$1,0,IF($BG43-CA$1>計算!$B$26,CA$2,($BG43-CA$1)/計算!$B$26*CA$2)) -> 0.001635423655 | CB43: =IF($BG43<CB$1,0,IF($BG43-CB$1>計算!$B$26,CB$2,($BG43-CB$1)/計算!$B$26*CB$2)) -> 0 | CC43: =IF($BG43<CC$1,0,IF($BG43-CC$1>計算!$B$26,CC$2,($BG43-CC$1)/計算!$B$26*CC$2)) -> 0 | CD43: =IF($BG43<CD$1,0,IF($BG43-CD$1>計算!$B$26,CD$2,($BG43-CD$1)/計算!$B$26*CD$2)) -> 0 | CE43: =IF($BG43<CE$1,0,IF($BG43-CE$1>計算!$B$26,CE$2,($BG43-CE$1)/計算!$B$26*CE$2)) -> 0 | CF43: =IF($BG43<CF$1,0,IF($BG43-CF$1>計算!$B$26,CF$2,($BG43-CF$1)/計算!$B$26*CF$2)) -> 0 | CG43: =IF($BG43<CG$1,0,IF($BG43-CG$1>計算!$B$26,CG$2,($BG43-CG$1)/計算!$B$26*CG$2)) -> 0 | CH43: =IF($BG43<CH$1,0,IF($BG43-CH$1>計算!$B$26,CH$2,($BG43-CH$1)/計算!$B$26*CH$2)) -> 0 | CI43: =IF($BG43<CI$1,0,IF($BG43-CI$1>計算!$B$26,CI$2,($BG43-CI$1)/計算!$B$26*CI$2)) -> 0 | CJ43: =IF($BG43<CJ$1,0,IF($BG43-CJ$1>計算!$B$26,CJ$2,($BG43-CJ$1)/計算!$B$26*CJ$2)) -> 0 | CK43: =IF($BG43<CK$1,0,IF($BG43-CK$1>計算!$B$26,CK$2,($BG43-CK$1)/計算!$B$26*CK$2)) -> 0 | CL43: 3.299999768 | CO43: 7.887314598 | CP43: -0.009790067055 | CQ43: 0.009790067055
E44: 6e-10 | F44: 15 | G44: =IF(G8+計算!$B$26>=準備!$T$33,準備!$T$33,G8+計算!$B$26)+E44 -> 4.371605048 | K44: 41 | L44: 7.916135499 | M44: =IF($L44<M$1,0,IF($L44-M$1>計算!$B$26,M$2,($L44-M$1)/計算!$B$26*M$2)) -> 1.989000528 | N44: =IF($L44<N$1,0,IF($L44-N$1>計算!$B$26,N$2,($L44-N$1)/計算!$B$26*N$2)) -> 0.3275217949 | O44: =IF($L44<O$1,0,IF($L44-O$1>計算!$B$26,O$2,($L44-O$1)/計算!$B$26*O$2)) -> 0.9310129985 | P44: =IF($L44<P$1,0,IF($L44-P$1>計算!$B$26,P$2,($L44-P$1)/計算!$B$26*P$2)) -> 0.2787994054 | Q44: =IF($L44<Q$1,0,IF($L44-Q$1>計算!$B$26,Q$2,($L44-Q$1)/計算!$B$26*Q$2)) -> 0.07787922992 | R44: =IF($L44<R$1,0,IF($L44-R$1>計算!$B$26,R$2,($L44-R$1)/計算!$B$26*R$2)) -> -0.01119237707 | S44: =IF($L44<S$1,0,IF($L44-S$1>計算!$B$26,S$2,($L44-S$1)/計算!$B$26*S$2)) -> -0.2393553108 | T44: =IF($L44<T$1,0,IF($L44-T$1>計算!$B$26,T$2,($L44-T$1)/計算!$B$26*T$2)) -> -0.1103328801 | U44: =IF($L44<U$1,0,IF($L44-U$1>計算!$B$26,U$2,($L44-U$1)/計算!$B$26*U$2)) -> 0.02624490998 | V44: =IF($L44<V$1,0,IF($L44-V$1>計算!$B$26,V$2,($L44-V$1)/計算!$B$26*V$2)) -> 0.01851838427 | W44: =IF($L44<W$1,0,IF($L44-W$1>計算!$B$26,W$2,($L44-W$1)/計算!$B$26*W$2)) -> -0.05796305521 | X44: =IF($L44<X$1,0,IF($L44-X$1>計算!$B$26,X$2,($L44-X$1)/計算!$B$26*X$2)) -> -0.05545849425 | Y44: =IF($L44<Y$1,0,IF($L44-Y$1>計算!$B$26,Y$2,($L44-Y$1)/計算!$B$26*Y$2)) -> 0.1033839999 | Z44: =IF($L44<Z$1,0,IF($L44-Z$1>計算!$B$26,Z$2,($L44-Z$1)/計算!$B$26*Z$2)) -> 0.05028929326 | AA44: =IF($L44<AA$1,0,IF($L44-AA$1>計算!$B$26,AA$2,($L44-AA$1)/計算!$B$26*AA$2)) -> -0.02902262998 | AB44: =IF($L44<AB$1,0,IF($L44-AB$1>計算!$B$26,AB$2,($L44-AB$1)/計算!$B$26*AB$2)) -> 0.002470576645 | AC44: =IF($L44<AC$1,0,IF($L44-AC$1>計算!$B$26,AC$2,($L44-AC$1)/計算!$B$26*AC$2)) -> 0.002030542413 | AD44: =IF($L44<AD$1,0,IF($L44-AD$1>計算!$B$26,AD$2,($L44-AD$1)/計算!$B$26*AD$2)) -> -0.01086705325 | AE44: =IF($L44<AE$1,0,IF($L44-AE$1>計算!$B$26,AE$2,($L44-AE$1)/計算!$B$26*AE$2)) -> 0.009140367704 | AF44: =IF($L44<AF$1,0,IF($L44-AF$1>計算!$B$26,AF$2,($L44-AF$1)/計算!$B$26*AF$2)) -> 0.01699851095 | AG44: =IF($L44<AG$1,0,IF($L44-AG$1>計算!$B$26,AG$2,($L44-AG$1)/計算!$B$26*AG$2)) -> -0.01304399047 | AH44: =IF($L44<AH$1,0,IF($L44-AH$1>計算!$B$26,AH$2,($L44-AH$1)/計算!$B$26*AH$2)) -> -0.004880429103 | AI44: =IF($L44<AI$1,0,IF($L44-AI$1>計算!$B$26,AI$2,($L44-AI$1)/計算!$B$26*AI$2)) -> 0.002861647389 | AJ44: =IF($L44<AJ$1,0,IF($L44-AJ$1>計算!$B$26,AJ$2,($L44-AJ$1)/計算!$B$26*AJ$2)) -> -0.0002586044112 | AK44: =IF($L44<AK$1,0,IF($L44-AK$1>計算!$B$26,AK$2,($L44-AK$1)/計算!$B$26*AK$2)) -> 0 | AL44: =IF($L44<AL$1,0,IF($L44-AL$1>計算!$B$26,AL$2,($L44-AL$1)/計算!$B$26*AL$2)) -> 0 | AM44: =IF($L44<AM$1,0,IF($L44-AM$1>計算!$B$26,AM$2,($L44-AM$1)/計算!$B$26*AM$2)) -> 0 | AN44: =IF($L44<AN$1,0,IF($L44-AN$1>計算!$B$26,AN$2,($L44-AN$1)/計算!$B$26*AN$2)) -> 0 | AO44: =IF($L44<AO$1,0,IF($L44-AO$1>計算!$B$26,AO$2,($L44-AO$1)/計算!$B$26*AO$2)) -> 0 | AP44: =IF($L44<AP$1,0,IF($L44-AP$1>計算!$B$26,AP$2,($L44-AP$1)/計算!$B$26*AP$2)) -> 0 | AQ44: =IF($L44<AQ$1,0,IF($L44-AQ$1>計算!$B$26,AQ$2,($L44-AQ$1)/計算!$B$26*AQ$2)) -> 0 | AR44: =IF($L44<AR$1,0,IF($L44-AR$1>計算!$B$26,AR$2,($L44-AR$1)/計算!$B$26*AR$2)) -> 0 | AS44: =IF($L44<AS$1,0,IF($L44-AS$1>計算!$B$26,AS$2,($L44-AS$1)/計算!$B$26*AS$2)) -> 0 | AT44: =IF($L44<AT$1,0,IF($L44-AT$1>計算!$B$26,AT$2,($L44-AT$1)/計算!$B$26*AT$2)) -> 0 | AU44: =IF($L44<AU$1,0,IF($L44-AU$1>計算!$B$26,AU$2,($L44-AU$1)/計算!$B$26*AU$2)) -> 0 | AV44: =IF($L44<AV$1,0,IF($L44-AV$1>計算!$B$26,AV$2,($L44-AV$1)/計算!$B$26*AV$2)) -> 0 | AW44: 3.303777365 | AZ44: 1.2e-07 | BA44: 24 | BB44: =IF(BB14+計算!$B$26>=準備!$T$33,準備!$T$33,BB14+計算!$B$26)+AZ44 -> 5.447584807 | BF44: 40 | BG44: 7.426618761 | BH44: =IF($BG44<BH$1,0,IF($BG44-BH$1>計算!$B$26,BH$2,($BG44-BH$1)/計算!$B$26*BH$2)) -> 1.843424849 | BI44: =IF($BG44<BI$1,0,IF($BG44-BI$1>計算!$B$26,BI$2,($BG44-BI$1)/計算!$B$26*BI$2)) -> 2.08043597 | BJ44: =IF($BG44<BJ$1,0,IF($BG44-BJ$1>計算!$B$26,BJ$2,($BG44-BJ$1)/計算!$B$26*BJ$2)) -> 0.4383357379 | BK44: =IF($BG44<BK$1,0,IF($BG44-BK$1>計算!$B$26,BK$2,($BG44-BK$1)/計算!$B$26*BK$2)) -> -0.5512010619 | BL44: =IF($BG44<BL$1,0,IF($BG44-BL$1>計算!$B$26,BL$2,($BG44-BL$1)/計算!$B$26*BL$2)) -> -0.8036518745 | BM44: =IF($BG44<BM$1,0,IF($BG44-BM$1>計算!$B$26,BM$2,($BG44-BM$1)/計算!$B$26*BM$2)) -> 0.1958427948 | BN44: =IF($BG44<BN$1,0,IF($BG44-BN$1>計算!$B$26,BN$2,($BG44-BN$1)/計算!$B$26*BN$2)) -> 0.1042289406 | BO44: =IF($BG44<BO$1,0,IF($BG44-BO$1>計算!$B$26,BO$2,($BG44-BO$1)/計算!$B$26*BO$2)) -> -0.4423266907 | BP44: =IF($BG44<BP$1,0,IF($BG44-BP$1>計算!$B$26,BP$2,($BG44-BP$1)/計算!$B$26*BP$2)) -> 0.1637739194 | BQ44: =IF($BG44<BQ$1,0,IF($BG44-BQ$1>計算!$B$26,BQ$2,($BG44-BQ$1)/計算!$B$26*BQ$2)) -> 0.4775480553 | BR44: =IF($BG44<BR$1,0,IF($BG44-BR$1>計算!$B$26,BR$2,($BG44-BR$1)/計算!$B$26*BR$2)) -> -0.2147192343 | BS44: =IF($BG44<BS$1,0,IF($BG44-BS$1>計算!$B$26,BS$2,($BG44-BS$1)/計算!$B$26*BS$2)) -> 0.01843575137 | BT44: =IF($BG44<BT$1,0,IF($BG44-BT$1>計算!$B$26,BT$2,($BG44-BT$1)/計算!$B$26*BT$2)) -> 0.02478390678 | BU44: =IF($BG44<BU$1,0,IF($BG44-BU$1>計算!$B$26,BU$2,($BG44-BU$1)/計算!$B$26*BU$2)) -> -0.1791904293 | BV44: =IF($BG44<BV$1,0,IF($BG44-BV$1>計算!$B$26,BV$2,($BG44-BV$1)/計算!$B$26*BV$2)) -> 0.3443491614 | BW44: =IF($BG44<BW$1,0,IF($BG44-BW$1>計算!$B$26,BW$2,($BG44-BW$1)/計算!$B$26*BW$2)) -> -0.02111804055 | BX44: =IF($BG44<BX$1,0,IF($BG44-BX$1>計算!$B$26,BX$2,($BG44-BX$1)/計算!$B$26*BX$2)) -> -0.3408273685 | BY44: =IF($BG44<BY$1,0,IF($BG44-BY$1>計算!$B$26,BY$2,($BG44-BY$1)/計算!$B$26*BY$2)) -> 0.1935437961 | BZ44: =IF($BG44<BZ$1,0,IF($BG44-BZ$1>計算!$B$26,BZ$2,($BG44-BZ$1)/計算!$B$26*BZ$2)) -> -0.0333038386 | CA44: =IF($BG44<CA$1,0,IF($BG44-CA$1>計算!$B$26,CA$2,($BG44-CA$1)/計算!$B$26*CA$2)) -> 0.001735457916 | CB44: =IF($BG44<CB$1,0,IF($BG44-CB$1>計算!$B$26,CB$2,($BG44-CB$1)/計算!$B$26*CB$2)) -> 0 | CC44: =IF($BG44<CC$1,0,IF($BG44-CC$1>計算!$B$26,CC$2,($BG44-CC$1)/計算!$B$26*CC$2)) -> 0 | CD44: =IF($BG44<CD$1,0,IF($BG44-CD$1>計算!$B$26,CD$2,($BG44-CD$1)/計算!$B$26*CD$2)) -> 0 | CE44: =IF($BG44<CE$1,0,IF($BG44-CE$1>計算!$B$26,CE$2,($BG44-CE$1)/計算!$B$26*CE$2)) -> 0 | CF44: =IF($BG44<CF$1,0,IF($BG44-CF$1>計算!$B$26,CF$2,($BG44-CF$1)/計算!$B$26*CF$2)) -> 0 | CG44: =IF($BG44<CG$1,0,IF($BG44-CG$1>計算!$B$26,CG$2,($BG44-CG$1)/計算!$B$26*CG$2)) -> 0 | CH44: =IF($BG44<CH$1,0,IF($BG44-CH$1>計算!$B$26,CH$2,($BG44-CH$1)/計算!$B$26*CH$2)) -> 0 | CI44: =IF($BG44<CI$1,0,IF($BG44-CI$1>計算!$B$26,CI$2,($BG44-CI$1)/計算!$B$26*CI$2)) -> 0 | CJ44: =IF($BG44<CJ$1,0,IF($BG44-CJ$1>計算!$B$26,CJ$2,($BG44-CJ$1)/計算!$B$26*CJ$2)) -> 0 | CK44: =IF($BG44<CK$1,0,IF($BG44-CK$1>計算!$B$26,CK$2,($BG44-CK$1)/計算!$B$26*CK$2)) -> 0 | CL44: 3.300099802 | CO44: 7.916135499 | CP44: -0.00893415816 | CQ44: 0.00893415816
E45: 7e-10 | F45: 16 | G45: =IF(G9+計算!$B$26>=準備!$T$33,準備!$T$33,G9+計算!$B$26)+E45 -> 4.400425949 | K45: 42 | L45: 8.185568296 | M45: =IF($L45<M$1,0,IF($L45-M$1>計算!$B$26,M$2,($L45-M$1)/計算!$B$26*M$2)) -> 1.989000528 | N45: =IF($L45<N$1,0,IF($L45-N$1>計算!$B$26,N$2,($L45-N$1)/計算!$B$26*N$2)) -> 0.3275217949 | O45: =IF($L45<O$1,0,IF($L45-O$1>計算!$B$26,O$2,($L45-O$1)/計算!$B$26*O$2)) -> 0.9310129985 | P45: =IF($L45<P$1,0,IF($L45-P$1>計算!$B$26,P$2,($L45-P$1)/計算!$B$26*P$2)) -> 0.2787994054 | Q45: =IF($L45<Q$1,0,IF($L45-Q$1>計算!$B$26,Q$2,($L45-Q$1)/計算!$B$26*Q$2)) -> 0.07787922992 | R45: =IF($L45<R$1,0,IF($L45-R$1>計算!$B$26,R$2,($L45-R$1)/計算!$B$26*R$2)) -> -0.01119237707 | S45: =IF($L45<S$1,0,IF($L45-S$1>計算!$B$26,S$2,($L45-S$1)/計算!$B$26*S$2)) -> -0.2393553108 | T45: =IF($L45<T$1,0,IF($L45-T$1>計算!$B$26,T$2,($L45-T$1)/計算!$B$26*T$2)) -> -0.1103328801 | U45: =IF($L45<U$1,0,IF($L45-U$1>計算!$B$26,U$2,($L45-U$1)/計算!$B$26*U$2)) -> 0.02624490998 | V45: =IF($L45<V$1,0,IF($L45-V$1>計算!$B$26,V$2,($L45-V$1)/計算!$B$26*V$2)) -> 0.01851838427 | W45: =IF($L45<W$1,0,IF($L45-W$1>計算!$B$26,W$2,($L45-W$1)/計算!$B$26*W$2)) -> -0.05796305521 | X45: =IF($L45<X$1,0,IF($L45-X$1>計算!$B$26,X$2,($L45-X$1)/計算!$B$26*X$2)) -> -0.05545849425 | Y45: =IF($L45<Y$1,0,IF($L45-Y$1>計算!$B$26,Y$2,($L45-Y$1)/計算!$B$26*Y$2)) -> 0.1033839999 | Z45: =IF($L45<Z$1,0,IF($L45-Z$1>計算!$B$26,Z$2,($L45-Z$1)/計算!$B$26*Z$2)) -> 0.05028929326 | AA45: =IF($L45<AA$1,0,IF($L45-AA$1>計算!$B$26,AA$2,($L45-AA$1)/計算!$B$26*AA$2)) -> -0.02902262998 | AB45: =IF($L45<AB$1,0,IF($L45-AB$1>計算!$B$26,AB$2,($L45-AB$1)/計算!$B$26*AB$2)) -> 0.002470576645 | AC45: =IF($L45<AC$1,0,IF($L45-AC$1>計算!$B$26,AC$2,($L45-AC$1)/計算!$B$26*AC$2)) -> 0.004403363467 | AD45: =IF($L45<AD$1,0,IF($L45-AD$1>計算!$B$26,AD$2,($L45-AD$1)/計算!$B$26*AD$2)) -> -0.0253800356 | AE45: =IF($L45<AE$1,0,IF($L45-AE$1>計算!$B$26,AE$2,($L45-AE$1)/計算!$B$26*AE$2)) -> 0.0233818544 | AF45: =IF($L45<AF$1,0,IF($L45-AF$1>計算!$B$26,AF$2,($L45-AF$1)/計算!$B$26*AF$2)) -> 0.04878069855 | AG45: =IF($L45<AG$1,0,IF($L45-AG$1>計算!$B$26,AG$2,($L45-AG$1)/計算!$B$26*AG$2)) -> -0.04352949545 | AH45: =IF($L45<AH$1,0,IF($L45-AH$1>計算!$B$26,AH$2,($L45-AH$1)/計算!$B$26*AH$2)) -> -0.02008869389 | AI45: =IF($L45<AI$1,0,IF($L45-AI$1>計算!$B$26,AI$2,($L45-AI$1)/計算!$B$26*AI$2)) -> 0.01623773286 | AJ45: =IF($L45<AJ$1,0,IF($L45-AJ$1>計算!$B$26,AJ$2,($L45-AJ$1)/計算!$B$26*AJ$2)) -> -0.002676173201 | AK45: =IF($L45<AK$1,0,IF($L45-AK$1>計算!$B$26,AK$2,($L45-AK$1)/計算!$B$26*AK$2)) -> 0.0001253233602 | AL45: =IF($L45<AL$1,0,IF($L45-AL$1>計算!$B$26,AL$2,($L45-AL$1)/計算!$B$26*AL$2)) -> 0 | AM45: =IF($L45<AM$1,0,IF($L45-AM$1>計算!$B$26,AM$2,($L45-AM$1)/計算!$B$26*AM$2)) -> 0 | AN45: =IF($L45<AN$1,0,IF($L45-AN$1>計算!$B$26,AN$2,($L45-AN$1)/計算!$B$26*AN$2)) -> 0 | AO45: =IF($L45<AO$1,0,IF($L45-AO$1>計算!$B$26,AO$2,($L45-AO$1)/計算!$B$26*AO$2)) -> 0 | AP45: =IF($L45<AP$1,0,IF($L45-AP$1>計算!$B$26,AP$2,($L45-AP$1)/計算!$B$26*AP$2)) -> 0 | AQ45: =IF($L45<AQ$1,0,IF($L45-AQ$1>計算!$B$26,AQ$2,($L45-AQ$1)/計算!$B$26*AQ$2)) -> 0 | AR45: =IF($L45<AR$1,0,IF($L45-AR$1>計算!$B$26,AR$2,($L45-AR$1)/計算!$B$26*AR$2)) -> 0 | AS45: =IF($L45<AS$1,0,IF($L45-AS$1>計算!$B$26,AS$2,($L45-AS$1)/計算!$B$26*AS$2)) -> 0 | AT45: =IF($L45<AT$1,0,IF($L45-AT$1>計算!$B$26,AT$2,($L45-AT$1)/計算!$B$26*AT$2)) -> 0 | AU45: =IF($L45<AU$1,0,IF($L45-AU$1>計算!$B$26,AU$2,($L45-AU$1)/計算!$B$26*AU$2)) -> 0 | AV45: =IF($L45<AV$1,0,IF($L45-AV$1>計算!$B$26,AV$2,($L45-AV$1)/計算!$B$26*AV$2)) -> 0 | AW45: 3.303050948 | AZ45: 1.3e-07 | BA45: 33 | BB45: =IF(BB15+計算!$B$26>=準備!$T$33,準備!$T$33,BB15+計算!$B$26)+AZ45 -> 7.224872387 | BF45: 41 | BG45: 8.646264431 | BH45: =IF($BG45<BH$1,0,IF($BG45-BH$1>計算!$B$26,BH$2,($BG45-BH$1)/計算!$B$26*BH$2)) -> 1.843424849 | BI45: =IF($BG45<BI$1,0,IF($BG45-BI$1>計算!$B$26,BI$2,($BG45-BI$1)/計算!$B$26*BI$2)) -> 2.08043597 | BJ45: =IF($BG45<BJ$1,0,IF($BG45-BJ$1>計算!$B$26,BJ$2,($BG45-BJ$1)/計算!$B$26*BJ$2)) -> 0.4383357379 | BK45: =IF($BG45<BK$1,0,IF($BG45-BK$1>計算!$B$26,BK$2,($BG45-BK$1)/計算!$B$26*BK$2)) -> -0.5512010619 | BL45: =IF($BG45<BL$1,0,IF($BG45-BL$1>計算!$B$26,BL$2,($BG45-BL$1)/計算!$B$26*BL$2)) -> -0.8036518745 | BM45: =IF($BG45<BM$1,0,IF($BG45-BM$1>計算!$B$26,BM$2,($BG45-BM$1)/計算!$B$26*BM$2)) -> 0.1958427948 | BN45: =IF($BG45<BN$1,0,IF($BG45-BN$1>計算!$B$26,BN$2,($BG45-BN$1)/計算!$B$26*BN$2)) -> 0.1042289406 | BO45: =IF($BG45<BO$1,0,IF($BG45-BO$1>計算!$B$26,BO$2,($BG45-BO$1)/計算!$B$26*BO$2)) -> -0.4423266907 | BP45: =IF($BG45<BP$1,0,IF($BG45-BP$1>計算!$B$26,BP$2,($BG45-BP$1)/計算!$B$26*BP$2)) -> 0.1637739194 | BQ45: =IF($BG45<BQ$1,0,IF($BG45-BQ$1>計算!$B$26,BQ$2,($BG45-BQ$1)/計算!$B$26*BQ$2)) -> 0.4775480553 | BR45: =IF($BG45<BR$1,0,IF($BG45-BR$1>計算!$B$26,BR$2,($BG45-BR$1)/計算!$B$26*BR$2)) -> -0.2147192343 | BS45: =IF($BG45<BS$1,0,IF($BG45-BS$1>計算!$B$26,BS$2,($BG45-BS$1)/計算!$B$26*BS$2)) -> 0.01843575137 | BT45: =IF($BG45<BT$1,0,IF($BG45-BT$1>計算!$B$26,BT$2,($BG45-BT$1)/計算!$B$26*BT$2)) -> 0.02478390678 | BU45: =IF($BG45<BU$1,0,IF($BG45-BU$1>計算!$B$26,BU$2,($BG45-BU$1)/計算!$B$26*BU$2)) -> -0.1791904293 | BV45: =IF($BG45<BV$1,0,IF($BG45-BV$1>計算!$B$26,BV$2,($BG45-BV$1)/計算!$B$26*BV$2)) -> 0.3443491614 | BW45: =IF($BG45<BW$1,0,IF($BG45-BW$1>計算!$B$26,BW$2,($BG45-BW$1)/計算!$B$26*BW$2)) -> -0.02111804055 | BX45: =IF($BG45<BX$1,0,IF($BG45-BX$1>計算!$B$26,BX$2,($BG45-BX$1)/計算!$B$26*BX$2)) -> -0.3408273685 | BY45: =IF($BG45<BY$1,0,IF($BG45-BY$1>計算!$B$26,BY$2,($BG45-BY$1)/計算!$B$26*BY$2)) -> 0.1935437961 | BZ45: =IF($BG45<BZ$1,0,IF($BG45-BZ$1>計算!$B$26,BZ$2,($BG45-BZ$1)/計算!$B$26*BZ$2)) -> -0.0333038386 | CA45: =IF($BG45<CA$1,0,IF($BG45-CA$1>計算!$B$26,CA$2,($BG45-CA$1)/計算!$B$26*CA$2)) -> 0.001735457916 | CB45: =IF($BG45<CB$1,0,IF($BG45-CB$1>計算!$B$26,CB$2,($BG45-CB$1)/計算!$B$26*CB$2)) -> 0 | CC45: =IF($BG45<CC$1,0,IF($BG45-CC$1>計算!$B$26,CC$2,($BG45-CC$1)/計算!$B$26*CC$2)) -> 0 | CD45: =IF($BG45<CD$1,0,IF($BG45-CD$1>計算!$B$26,CD$2,($BG45-CD$1)/計算!$B$26*CD$2)) -> 0 | CE45: =IF($BG45<CE$1,0,IF($BG45-CE$1>計算!$B$26,CE$2,($BG45-CE$1)/計算!$B$26*CE$2)) -> 0 | CF45: =IF($BG45<CF$1,0,IF($BG45-CF$1>計算!$B$26,CF$2,($BG45-CF$1)/計算!$B$26*CF$2)) -> 0 | CG45: =IF($BG45<CG$1,0,IF($BG45-CG$1>計算!$B$26,CG$2,($BG45-CG$1)/計算!$B$26*CG$2)) -> 0 | CH45: =IF($BG45<CH$1,0,IF($BG45-CH$1>計算!$B$26,CH$2,($BG45-CH$1)/計算!$B$26*CH$2)) -> 0 | CI45: =IF($BG45<CI$1,0,IF($BG45-CI$1>計算!$B$26,CI$2,($BG45-CI$1)/計算!$B$26*CI$2)) -> 0 | CJ45: =IF($BG45<CJ$1,0,IF($BG45-CJ$1>計算!$B$26,CJ$2,($BG45-CJ$1)/計算!$B$26*CJ$2)) -> 0 | CK45: =IF($BG45<CK$1,0,IF($BG45-CK$1>計算!$B$26,CK$2,($BG45-CK$1)/計算!$B$26*CK$2)) -> 0 | CL45: 3.300099802 | CO45: 8.185568296 | CP45: -0.0006457489411 | CQ45: 0.0006457489411
E46: 8e-10 | F46: 17 | G46: =IF(G10+計算!$B$26>=準備!$T$33,準備!$T$33,G10+計算!$B$26)+E46 -> 4.42924685 | K46: 43 | L46: 8.214389196 | M46: =IF($L46<M$1,0,IF($L46-M$1>計算!$B$26,M$2,($L46-M$1)/計算!$B$26*M$2)) -> 1.989000528 | N46: =IF($L46<N$1,0,IF($L46-N$1>計算!$B$26,N$2,($L46-N$1)/計算!$B$26*N$2)) -> 0.3275217949 | O46: =IF($L46<O$1,0,IF($L46-O$1>計算!$B$26,O$2,($L46-O$1)/計算!$B$26*O$2)) -> 0.9310129985 | P46: =IF($L46<P$1,0,IF($L46-P$1>計算!$B$26,P$2,($L46-P$1)/計算!$B$26*P$2)) -> 0.2787994054 | Q46: =IF($L46<Q$1,0,IF($L46-Q$1>計算!$B$26,Q$2,($L46-Q$1)/計算!$B$26*Q$2)) -> 0.07787922992 | R46: =IF($L46<R$1,0,IF($L46-R$1>計算!$B$26,R$2,($L46-R$1)/計算!$B$26*R$2)) -> -0.01119237707 | S46: =IF($L46<S$1,0,IF($L46-S$1>計算!$B$26,S$2,($L46-S$1)/計算!$B$26*S$2)) -> -0.2393553108 | T46: =IF($L46<T$1,0,IF($L46-T$1>計算!$B$26,T$2,($L46-T$1)/計算!$B$26*T$2)) -> -0.1103328801 | U46: =IF($L46<U$1,0,IF($L46-U$1>計算!$B$26,U$2,($L46-U$1)/計算!$B$26*U$2)) -> 0.02624490998 | V46: =IF($L46<V$1,0,IF($L46-V$1>計算!$B$26,V$2,($L46-V$1)/計算!$B$26*V$2)) -> 0.01851838427 | W46: =IF($L46<W$1,0,IF($L46-W$1>計算!$B$26,W$2,($L46-W$1)/計算!$B$26*W$2)) -> -0.05796305521 | X46: =IF($L46<X$1,0,IF($L46-X$1>計算!$B$26,X$2,($L46-X$1)/計算!$B$26*X$2)) -> -0.05545849425 | Y46: =IF($L46<Y$1,0,IF($L46-Y$1>計算!$B$26,Y$2,($L46-Y$1)/計算!$B$26*Y$2)) -> 0.1033839999 | Z46: =IF($L46<Z$1,0,IF($L46-Z$1>計算!$B$26,Z$2,($L46-Z$1)/計算!$B$26*Z$2)) -> 0.05028929326 | AA46: =IF($L46<AA$1,0,IF($L46-AA$1>計算!$B$26,AA$2,($L46-AA$1)/計算!$B$26*AA$2)) -> -0.02902262998 | AB46: =IF($L46<AB$1,0,IF($L46-AB$1>計算!$B$26,AB$2,($L46-AB$1)/計算!$B$26*AB$2)) -> 0.002470576645 | AC46: =IF($L46<AC$1,0,IF($L46-AC$1>計算!$B$26,AC$2,($L46-AC$1)/計算!$B$26*AC$2)) -> 0.004403363467 | AD46: =IF($L46<AD$1,0,IF($L46-AD$1>計算!$B$26,AD$2,($L46-AD$1)/計算!$B$26*AD$2)) -> -0.02693247169 | AE46: =IF($L46<AE$1,0,IF($L46-AE$1>計算!$B$26,AE$2,($L46-AE$1)/計算!$B$26*AE$2)) -> 0.02490524902 | AF46: =IF($L46<AF$1,0,IF($L46-AF$1>計算!$B$26,AF$2,($L46-AF$1)/計算!$B$26*AF$2)) -> 0.05218040075 | AG46: =IF($L46<AG$1,0,IF($L46-AG$1>計算!$B$26,AG$2,($L46-AG$1)/計算!$B$26*AG$2)) -> -0.04679049308 | AH46: =IF($L46<AH$1,0,IF($L46-AH$1>計算!$B$26,AH$2,($L46-AH$1)/計算!$B$26*AH$2)) -> -0.0217155036 | AI46: =IF($L46<AI$1,0,IF($L46-AI$1>計算!$B$26,AI$2,($L46-AI$1)/計算!$B$26*AI$2)) -> 0.01766855656 | AJ46: =IF($L46<AJ$1,0,IF($L46-AJ$1>計算!$B$26,AJ$2,($L46-AJ$1)/計算!$B$26*AJ$2)) -> -0.002934777613 | AK46: =IF($L46<AK$1,0,IF($L46-AK$1>計算!$B$26,AK$2,($L46-AK$1)/計算!$B$26*AK$2)) -> 0.0001387290487 | AL46: =IF($L46<AL$1,0,IF($L46-AL$1>計算!$B$26,AL$2,($L46-AL$1)/計算!$B$26*AL$2)) -> 0 | AM46: =IF($L46<AM$1,0,IF($L46-AM$1>計算!$B$26,AM$2,($L46-AM$1)/計算!$B$26*AM$2)) -> 0 | AN46: =IF($L46<AN$1,0,IF($L46-AN$1>計算!$B$26,AN$2,($L46-AN$1)/計算!$B$26*AN$2)) -> 0 | AO46: =IF($L46<AO$1,0,IF($L46-AO$1>計算!$B$26,AO$2,($L46-AO$1)/計算!$B$26*AO$2)) -> 0 | AP46: =IF($L46<AP$1,0,IF($L46-AP$1>計算!$B$26,AP$2,($L46-AP$1)/計算!$B$26*AP$2)) -> 0 | AQ46: =IF($L46<AQ$1,0,IF($L46-AQ$1>計算!$B$26,AQ$2,($L46-AQ$1)/計算!$B$26*AQ$2)) -> 0 | AR46: =IF($L46<AR$1,0,IF($L46-AR$1>計算!$B$26,AR$2,($L46-AR$1)/計算!$B$26*AR$2)) -> 0 | AS46: =IF($L46<AS$1,0,IF($L46-AS$1>計算!$B$26,AS$2,($L46-AS$1)/計算!$B$26*AS$2)) -> 0 | AT46: =IF($L46<AT$1,0,IF($L46-AT$1>計算!$B$26,AT$2,($L46-AT$1)/計算!$B$26*AT$2)) -> 0 | AU46: =IF($L46<AU$1,0,IF($L46-AU$1>計算!$B$26,AU$2,($L46-AU$1)/計算!$B$26*AU$2)) -> 0 | AV46: =IF($L46<AV$1,0,IF($L46-AV$1>計算!$B$26,AV$2,($L46-AV$1)/計算!$B$26*AV$2)) -> 0 | AW46: 3.302719427 | AZ46: 1.4e-07 | BA46: 34 | BB46: =IF(BB16+計算!$B$26>=準備!$T$33,準備!$T$33,BB16+計算!$B$26)+AZ46 -> 7.253693298 | BF46: 42 | BG46: 8.675085341 | BH46: =IF($BG46<BH$1,0,IF($BG46-BH$1>計算!$B$26,BH$2,($BG46-BH$1)/計算!$B$26*BH$2)) -> 1.843424849 | BI46: =IF($BG46<BI$1,0,IF($BG46-BI$1>計算!$B$26,BI$2,($BG46-BI$1)/計算!$B$26*BI$2)) -> 2.08043597 | BJ46: =IF($BG46<BJ$1,0,IF($BG46-BJ$1>計算!$B$26,BJ$2,($BG46-BJ$1)/計算!$B$26*BJ$2)) -> 0.4383357379 | BK46: =IF($BG46<BK$1,0,IF($BG46-BK$1>計算!$B$26,BK$2,($BG46-BK$1)/計算!$B$26*BK$2)) -> -0.5512010619 | BL46: =IF($BG46<BL$1,0,IF($BG46-BL$1>計算!$B$26,BL$2,($BG46-BL$1)/計算!$B$26*BL$2)) -> -0.8036518745 | BM46: =IF($BG46<BM$1,0,IF($BG46-BM$1>計算!$B$26,BM$2,($BG46-BM$1)/計算!$B$26*BM$2)) -> 0.1958427948 | BN46: =IF($BG46<BN$1,0,IF($BG46-BN$1>計算!$B$26,BN$2,($BG46-BN$1)/計算!$B$26*BN$2)) -> 0.1042289406 | BO46: =IF($BG46<BO$1,0,IF($BG46-BO$1>計算!$B$26,BO$2,($BG46-BO$1)/計算!$B$26*BO$2)) -> -0.4423266907 | BP46: =IF($BG46<BP$1,0,IF($BG46-BP$1>計算!$B$26,BP$2,($BG46-BP$1)/計算!$B$26*BP$2)) -> 0.1637739194 | BQ46: =IF($BG46<BQ$1,0,IF($BG46-BQ$1>計算!$B$26,BQ$2,($BG46-BQ$1)/計算!$B$26*BQ$2)) -> 0.4775480553 | BR46: =IF($BG46<BR$1,0,IF($BG46-BR$1>計算!$B$26,BR$2,($BG46-BR$1)/計算!$B$26*BR$2)) -> -0.2147192343 | BS46: =IF($BG46<BS$1,0,IF($BG46-BS$1>計算!$B$26,BS$2,($BG46-BS$1)/計算!$B$26*BS$2)) -> 0.01843575137 | BT46: =IF($BG46<BT$1,0,IF($BG46-BT$1>計算!$B$26,BT$2,($BG46-BT$1)/計算!$B$26*BT$2)) -> 0.02478390678 | BU46: =IF($BG46<BU$1,0,IF($BG46-BU$1>計算!$B$26,BU$2,($BG46-BU$1)/計算!$B$26*BU$2)) -> -0.1791904293 | BV46: =IF($BG46<BV$1,0,IF($BG46-BV$1>計算!$B$26,BV$2,($BG46-BV$1)/計算!$B$26*BV$2)) -> 0.3443491614 | BW46: =IF($BG46<BW$1,0,IF($BG46-BW$1>計算!$B$26,BW$2,($BG46-BW$1)/計算!$B$26*BW$2)) -> -0.02111804055 | BX46: =IF($BG46<BX$1,0,IF($BG46-BX$1>計算!$B$26,BX$2,($BG46-BX$1)/計算!$B$26*BX$2)) -> -0.3408273685 | BY46: =IF($BG46<BY$1,0,IF($BG46-BY$1>計算!$B$26,BY$2,($BG46-BY$1)/計算!$B$26*BY$2)) -> 0.1935437961 | BZ46: =IF($BG46<BZ$1,0,IF($BG46-BZ$1>計算!$B$26,BZ$2,($BG46-BZ$1)/計算!$B$26*BZ$2)) -> -0.0333038386 | CA46: =IF($BG46<CA$1,0,IF($BG46-CA$1>計算!$B$26,CA$2,($BG46-CA$1)/計算!$B$26*CA$2)) -> 0.001735457916 | CB46: =IF($BG46<CB$1,0,IF($BG46-CB$1>計算!$B$26,CB$2,($BG46-CB$1)/計算!$B$26*CB$2)) -> 0.0003396948041 | CC46: =IF($BG46<CC$1,0,IF($BG46-CC$1>計算!$B$26,CC$2,($BG46-CC$1)/計算!$B$26*CC$2)) -> 0 | CD46: =IF($BG46<CD$1,0,IF($BG46-CD$1>計算!$B$26,CD$2,($BG46-CD$1)/計算!$B$26*CD$2)) -> 0 | CE46: =IF($BG46<CE$1,0,IF($BG46-CE$1>計算!$B$26,CE$2,($BG46-CE$1)/計算!$B$26*CE$2)) -> 0 | CF46: =IF($BG46<CF$1,0,IF($BG46-CF$1>計算!$B$26,CF$2,($BG46-CF$1)/計算!$B$26*CF$2)) -> 0 | CG46: =IF($BG46<CG$1,0,IF($BG46-CG$1>計算!$B$26,CG$2,($BG46-CG$1)/計算!$B$26*CG$2)) -> 0 | CH46: =IF($BG46<CH$1,0,IF($BG46-CH$1>計算!$B$26,CH$2,($BG46-CH$1)/計算!$B$26*CH$2)) -> 0 | CI46: =IF($BG46<CI$1,0,IF($BG46-CI$1>計算!$B$26,CI$2,($BG46-CI$1)/計算!$B$26*CI$2)) -> 0 | CJ46: =IF($BG46<CJ$1,0,IF($BG46-CJ$1>計算!$B$26,CJ$2,($BG46-CJ$1)/計算!$B$26*CJ$2)) -> 0 | CK46: =IF($BG46<CK$1,0,IF($BG46-CK$1>計算!$B$26,CK$2,($BG46-CK$1)/計算!$B$26*CK$2)) -> 0 | CL46: 3.300439497 | CO46: 8.214389196 | CP46: 0.0009374751529 | CQ46: -0.0009374751529
E47: 9e-10 | F47: 18 | G47: =IF(G11+計算!$B$26>=準備!$T$33,準備!$T$33,G11+計算!$B$26)+E47 -> 4.45806775 | K47: 44 | L47: 8.243210097 | M47: =IF($L47<M$1,0,IF($L47-M$1>計算!$B$26,M$2,($L47-M$1)/計算!$B$26*M$2)) -> 1.989000528 | N47: =IF($L47<N$1,0,IF($L47-N$1>計算!$B$26,N$2,($L47-N$1)/計算!$B$26*N$2)) -> 0.3275217949 | O47: =IF($L47<O$1,0,IF($L47-O$1>計算!$B$26,O$2,($L47-O$1)/計算!$B$26*O$2)) -> 0.9310129985 | P47: =IF($L47<P$1,0,IF($L47-P$1>計算!$B$26,P$2,($L47-P$1)/計算!$B$26*P$2)) -> 0.2787994054 | Q47: =IF($L47<Q$1,0,IF($L47-Q$1>計算!$B$26,Q$2,($L47-Q$1)/計算!$B$26*Q$2)) -> 0.07787922992 | R47: =IF($L47<R$1,0,IF($L47-R$1>計算!$B$26,R$2,($L47-R$1)/計算!$B$26*R$2)) -> -0.01119237707 | S47: =IF($L47<S$1,0,IF($L47-S$1>計算!$B$26,S$2,($L47-S$1)/計算!$B$26*S$2)) -> -0.2393553108 | T47: =IF($L47<T$1,0,IF($L47-T$1>計算!$B$26,T$2,($L47-T$1)/計算!$B$26*T$2)) -> -0.1103328801 | U47: =IF($L47<U$1,0,IF($L47-U$1>計算!$B$26,U$2,($L47-U$1)/計算!$B$26*U$2)) -> 0.02624490998 | V47: =IF($L47<V$1,0,IF($L47-V$1>計算!$B$26,V$2,($L47-V$1)/計算!$B$26*V$2)) -> 0.01851838427 | W47: =IF($L47<W$1,0,IF($L47-W$1>計算!$B$26,W$2,($L47-W$1)/計算!$B$26*W$2)) -> -0.05796305521 | X47: =IF($L47<X$1,0,IF($L47-X$1>計算!$B$26,X$2,($L47-X$1)/計算!$B$26*X$2)) -> -0.05545849425 | Y47: =IF($L47<Y$1,0,IF($L47-Y$1>計算!$B$26,Y$2,($L47-Y$1)/計算!$B$26*Y$2)) -> 0.1033839999 | Z47: =IF($L47<Z$1,0,IF($L47-Z$1>計算!$B$26,Z$2,($L47-Z$1)/計算!$B$26*Z$2)) -> 0.05028929326 | AA47: =IF($L47<AA$1,0,IF($L47-AA$1>計算!$B$26,AA$2,($L47-AA$1)/計算!$B$26*AA$2)) -> -0.02902262998 | AB47: =IF($L47<AB$1,0,IF($L47-AB$1>計算!$B$26,AB$2,($L47-AB$1)/計算!$B$26*AB$2)) -> 0.002470576645 | AC47: =IF($L47<AC$1,0,IF($L47-AC$1>計算!$B$26,AC$2,($L47-AC$1)/計算!$B$26*AC$2)) -> 0.004403363467 | AD47: =IF($L47<AD$1,0,IF($L47-AD$1>計算!$B$26,AD$2,($L47-AD$1)/計算!$B$26*AD$2)) -> -0.02693247169 | AE47: =IF($L47<AE$1,0,IF($L47-AE$1>計算!$B$26,AE$2,($L47-AE$1)/計算!$B$26*AE$2)) -> 0.02642864354 | AF47: =IF($L47<AF$1,0,IF($L47-AF$1>計算!$B$26,AF$2,($L47-AF$1)/計算!$B$26*AF$2)) -> 0.05558010295 | AG47: =IF($L47<AG$1,0,IF($L47-AG$1>計算!$B$26,AG$2,($L47-AG$1)/計算!$B$26*AG$2)) -> -0.05005149071 | AH47: =IF($L47<AH$1,0,IF($L47-AH$1>計算!$B$26,AH$2,($L47-AH$1)/計算!$B$26*AH$2)) -> -0.0233423133 | AI47: =IF($L47<AI$1,0,IF($L47-AI$1>計算!$B$26,AI$2,($L47-AI$1)/計算!$B$26*AI$2)) -> 0.01909938026 | AJ47: =IF($L47<AJ$1,0,IF($L47-AJ$1>計算!$B$26,AJ$2,($L47-AJ$1)/計算!$B$26*AJ$2)) -> -0.003193382025 | AK47: =IF($L47<AK$1,0,IF($L47-AK$1>計算!$B$26,AK$2,($L47-AK$1)/計算!$B$26*AK$2)) -> 0.0001521347371 | AL47: =IF($L47<AL$1,0,IF($L47-AL$1>計算!$B$26,AL$2,($L47-AL$1)/計算!$B$26*AL$2)) -> 0 | AM47: =IF($L47<AM$1,0,IF($L47-AM$1>計算!$B$26,AM$2,($L47-AM$1)/計算!$B$26*AM$2)) -> 0 | AN47: =IF($L47<AN$1,0,IF($L47-AN$1>計算!$B$26,AN$2,($L47-AN$1)/計算!$B$26*AN$2)) -> 0 | AO47: =IF($L47<AO$1,0,IF($L47-AO$1>計算!$B$26,AO$2,($L47-AO$1)/計算!$B$26*AO$2)) -> 0 | AP47: =IF($L47<AP$1,0,IF($L47-AP$1>計算!$B$26,AP$2,($L47-AP$1)/計算!$B$26*AP$2)) -> 0 | AQ47: =IF($L47<AQ$1,0,IF($L47-AQ$1>計算!$B$26,AQ$2,($L47-AQ$1)/計算!$B$26*AQ$2)) -> 0 | AR47: =IF($L47<AR$1,0,IF($L47-AR$1>計算!$B$26,AR$2,($L47-AR$1)/計算!$B$26*AR$2)) -> 0 | AS47: =IF($L47<AS$1,0,IF($L47-AS$1>計算!$B$26,AS$2,($L47-AS$1)/計算!$B$26*AS$2)) -> 0 | AT47: =IF($L47<AT$1,0,IF($L47-AT$1>計算!$B$26,AT$2,($L47-AT$1)/計算!$B$26*AT$2)) -> 0 | AU47: =IF($L47<AU$1,0,IF($L47-AU$1>計算!$B$26,AU$2,($L47-AU$1)/計算!$B$26*AU$2)) -> 0 | AV47: =IF($L47<AV$1,0,IF($L47-AV$1>計算!$B$26,AV$2,($L47-AV$1)/計算!$B$26*AV$2)) -> 0 | AW47: 3.303940341 | AZ47: 1.5e-07 | BA47: 35 | BB47: =IF(BB17+計算!$B$26>=準備!$T$33,準備!$T$33,BB17+計算!$B$26)+AZ47 -> 7.282514208 | BF47: 43 | BG47: 8.703906252 | BH47: =IF($BG47<BH$1,0,IF($BG47-BH$1>計算!$B$26,BH$2,($BG47-BH$1)/計算!$B$26*BH$2)) -> 1.843424849 | BI47: =IF($BG47<BI$1,0,IF($BG47-BI$1>計算!$B$26,BI$2,($BG47-BI$1)/計算!$B$26*BI$2)) -> 2.08043597 | BJ47: =IF($BG47<BJ$1,0,IF($BG47-BJ$1>計算!$B$26,BJ$2,($BG47-BJ$1)/計算!$B$26*BJ$2)) -> 0.4383357379 | BK47: =IF($BG47<BK$1,0,IF($BG47-BK$1>計算!$B$26,BK$2,($BG47-BK$1)/計算!$B$26*BK$2)) -> -0.5512010619 | BL47: =IF($BG47<BL$1,0,IF($BG47-BL$1>計算!$B$26,BL$2,($BG47-BL$1)/計算!$B$26*BL$2)) -> -0.8036518745 | BM47: =IF($BG47<BM$1,0,IF($BG47-BM$1>計算!$B$26,BM$2,($BG47-BM$1)/計算!$B$26*BM$2)) -> 0.1958427948 | BN47: =IF($BG47<BN$1,0,IF($BG47-BN$1>計算!$B$26,BN$2,($BG47-BN$1)/計算!$B$26*BN$2)) -> 0.1042289406 | BO47: =IF($BG47<BO$1,0,IF($BG47-BO$1>計算!$B$26,BO$2,($BG47-BO$1)/計算!$B$26*BO$2)) -> -0.4423266907 | BP47: =IF($BG47<BP$1,0,IF($BG47-BP$1>計算!$B$26,BP$2,($BG47-BP$1)/計算!$B$26*BP$2)) -> 0.1637739194 | BQ47: =IF($BG47<BQ$1,0,IF($BG47-BQ$1>計算!$B$26,BQ$2,($BG47-BQ$1)/計算!$B$26*BQ$2)) -> 0.4775480553 | BR47: =IF($BG47<BR$1,0,IF($BG47-BR$1>計算!$B$26,BR$2,($BG47-BR$1)/計算!$B$26*BR$2)) -> -0.2147192343 | BS47: =IF($BG47<BS$1,0,IF($BG47-BS$1>計算!$B$26,BS$2,($BG47-BS$1)/計算!$B$26*BS$2)) -> 0.01843575137 | BT47: =IF($BG47<BT$1,0,IF($BG47-BT$1>計算!$B$26,BT$2,($BG47-BT$1)/計算!$B$26*BT$2)) -> 0.02478390678 | BU47: =IF($BG47<BU$1,0,IF($BG47-BU$1>計算!$B$26,BU$2,($BG47-BU$1)/計算!$B$26*BU$2)) -> -0.1791904293 | BV47: =IF($BG47<BV$1,0,IF($BG47-BV$1>計算!$B$26,BV$2,($BG47-BV$1)/計算!$B$26*BV$2)) -> 0.3443491614 | BW47: =IF($BG47<BW$1,0,IF($BG47-BW$1>計算!$B$26,BW$2,($BG47-BW$1)/計算!$B$26*BW$2)) -> -0.02111804055 | BX47: =IF($BG47<BX$1,0,IF($BG47-BX$1>計算!$B$26,BX$2,($BG47-BX$1)/計算!$B$26*BX$2)) -> -0.3408273685 | BY47: =IF($BG47<BY$1,0,IF($BG47-BY$1>計算!$B$26,BY$2,($BG47-BY$1)/計算!$B$26*BY$2)) -> 0.1935437961 | BZ47: =IF($BG47<BZ$1,0,IF($BG47-BZ$1>計算!$B$26,BZ$2,($BG47-BZ$1)/計算!$B$26*BZ$2)) -> -0.0333038386 | CA47: =IF($BG47<CA$1,0,IF($BG47-CA$1>計算!$B$26,CA$2,($BG47-CA$1)/計算!$B$26*CA$2)) -> 0.001735457916 | CB47: =IF($BG47<CB$1,0,IF($BG47-CB$1>計算!$B$26,CB$2,($BG47-CB$1)/計算!$B$26*CB$2)) -> 0.0006793896083 | CC47: =IF($BG47<CC$1,0,IF($BG47-CC$1>計算!$B$26,CC$2,($BG47-CC$1)/計算!$B$26*CC$2)) -> -0.003470466639 | CD47: =IF($BG47<CD$1,0,IF($BG47-CD$1>計算!$B$26,CD$2,($BG47-CD$1)/計算!$B$26*CD$2)) -> 0 | CE47: =IF($BG47<CE$1,0,IF($BG47-CE$1>計算!$B$26,CE$2,($BG47-CE$1)/計算!$B$26*CE$2)) -> 0 | CF47: =IF($BG47<CF$1,0,IF($BG47-CF$1>計算!$B$26,CF$2,($BG47-CF$1)/計算!$B$26*CF$2)) -> 0 | CG47: =IF($BG47<CG$1,0,IF($BG47-CG$1>計算!$B$26,CG$2,($BG47-CG$1)/計算!$B$26*CG$2)) -> 0 | CH47: =IF($BG47<CH$1,0,IF($BG47-CH$1>計算!$B$26,CH$2,($BG47-CH$1)/計算!$B$26*CH$2)) -> 0 | CI47: =IF($BG47<CI$1,0,IF($BG47-CI$1>計算!$B$26,CI$2,($BG47-CI$1)/計算!$B$26*CI$2)) -> 0 | CJ47: =IF($BG47<CJ$1,0,IF($BG47-CJ$1>計算!$B$26,CJ$2,($BG47-CJ$1)/計算!$B$26*CJ$2)) -> 0 | CK47: =IF($BG47<CK$1,0,IF($BG47-CK$1>計算!$B$26,CK$2,($BG47-CK$1)/計算!$B$26*CK$2)) -> 0 | CL47: 3.297308725 | CO47: 8.243210097 | CP47: -0.003556132165 | CQ47: 0.003556132165
E48: 1e-09 | F48: 26 | G48: =IF(G12+計算!$B$26>=準備!$T$33,準備!$T$33,G12+計算!$B$26)+E48 -> 6.264176221 | K48: 45 | L48: 8.272030998 | M48: =IF($L48<M$1,0,IF($L48-M$1>計算!$B$26,M$2,($L48-M$1)/計算!$B$26*M$2)) -> 1.989000528 | N48: =IF($L48<N$1,0,IF($L48-N$1>計算!$B$26,N$2,($L48-N$1)/計算!$B$26*N$2)) -> 0.3275217949 | O48: =IF($L48<O$1,0,IF($L48-O$1>計算!$B$26,O$2,($L48-O$1)/計算!$B$26*O$2)) -> 0.9310129985 | P48: =IF($L48<P$1,0,IF($L48-P$1>計算!$B$26,P$2,($L48-P$1)/計算!$B$26*P$2)) -> 0.2787994054 | Q48: =IF($L48<Q$1,0,IF($L48-Q$1>計算!$B$26,Q$2,($L48-Q$1)/計算!$B$26*Q$2)) -> 0.07787922992 | R48: =IF($L48<R$1,0,IF($L48-R$1>計算!$B$26,R$2,($L48-R$1)/計算!$B$26*R$2)) -> -0.01119237707 | S48: =IF($L48<S$1,0,IF($L48-S$1>計算!$B$26,S$2,($L48-S$1)/計算!$B$26*S$2)) -> -0.2393553108 | T48: =IF($L48<T$1,0,IF($L48-T$1>計算!$B$26,T$2,($L48-T$1)/計算!$B$26*T$2)) -> -0.1103328801 | U48: =IF($L48<U$1,0,IF($L48-U$1>計算!$B$26,U$2,($L48-U$1)/計算!$B$26*U$2)) -> 0.02624490998 | V48: =IF($L48<V$1,0,IF($L48-V$1>計算!$B$26,V$2,($L48-V$1)/計算!$B$26*V$2)) -> 0.01851838427 | W48: =IF($L48<W$1,0,IF($L48-W$1>計算!$B$26,W$2,($L48-W$1)/計算!$B$26*W$2)) -> -0.05796305521 | X48: =IF($L48<X$1,0,IF($L48-X$1>計算!$B$26,X$2,($L48-X$1)/計算!$B$26*X$2)) -> -0.05545849425 | Y48: =IF($L48<Y$1,0,IF($L48-Y$1>計算!$B$26,Y$2,($L48-Y$1)/計算!$B$26*Y$2)) -> 0.1033839999 | Z48: =IF($L48<Z$1,0,IF($L48-Z$1>計算!$B$26,Z$2,($L48-Z$1)/計算!$B$26*Z$2)) -> 0.05028929326 | AA48: =IF($L48<AA$1,0,IF($L48-AA$1>計算!$B$26,AA$2,($L48-AA$1)/計算!$B$26*AA$2)) -> -0.02902262998 | AB48: =IF($L48<AB$1,0,IF($L48-AB$1>計算!$B$26,AB$2,($L48-AB$1)/計算!$B$26*AB$2)) -> 0.002470576645 | AC48: =IF($L48<AC$1,0,IF($L48-AC$1>計算!$B$26,AC$2,($L48-AC$1)/計算!$B$26*AC$2)) -> 0.004403363467 | AD48: =IF($L48<AD$1,0,IF($L48-AD$1>計算!$B$26,AD$2,($L48-AD$1)/計算!$B$26*AD$2)) -> -0.02693247169 | AE48: =IF($L48<AE$1,0,IF($L48-AE$1>計算!$B$26,AE$2,($L48-AE$1)/計算!$B$26*AE$2)) -> 0.02642864354 | AF48: =IF($L48<AF$1,0,IF($L48-AF$1>計算!$B$26,AF$2,($L48-AF$1)/計算!$B$26*AF$2)) -> 0.05897980492 | AG48: =IF($L48<AG$1,0,IF($L48-AG$1>計算!$B$26,AG$2,($L48-AG$1)/計算!$B$26*AG$2)) -> -0.05331248834 | AH48: =IF($L48<AH$1,0,IF($L48-AH$1>計算!$B$26,AH$2,($L48-AH$1)/計算!$B$26*AH$2)) -> -0.02496912301 | AI48: =IF($L48<AI$1,0,IF($L48-AI$1>計算!$B$26,AI$2,($L48-AI$1)/計算!$B$26*AI$2)) -> 0.02053020396 | AJ48: =IF($L48<AJ$1,0,IF($L48-AJ$1>計算!$B$26,AJ$2,($L48-AJ$1)/計算!$B$26*AJ$2)) -> -0.003451986437 | AK48: =IF($L48<AK$1,0,IF($L48-AK$1>計算!$B$26,AK$2,($L48-AK$1)/計算!$B$26*AK$2)) -> 0.0001655404255 | AL48: =IF($L48<AL$1,0,IF($L48-AL$1>計算!$B$26,AL$2,($L48-AL$1)/計算!$B$26*AL$2)) -> 0 | AM48: =IF($L48<AM$1,0,IF($L48-AM$1>計算!$B$26,AM$2,($L48-AM$1)/計算!$B$26*AM$2)) -> 0 | AN48: =IF($L48<AN$1,0,IF($L48-AN$1>計算!$B$26,AN$2,($L48-AN$1)/計算!$B$26*AN$2)) -> 0 | AO48: =IF($L48<AO$1,0,IF($L48-AO$1>計算!$B$26,AO$2,($L48-AO$1)/計算!$B$26*AO$2)) -> 0 | AP48: =IF($L48<AP$1,0,IF($L48-AP$1>計算!$B$26,AP$2,($L48-AP$1)/計算!$B$26*AP$2)) -> 0 | AQ48: =IF($L48<AQ$1,0,IF($L48-AQ$1>計算!$B$26,AQ$2,($L48-AQ$1)/計算!$B$26*AQ$2)) -> 0 | AR48: =IF($L48<AR$1,0,IF($L48-AR$1>計算!$B$26,AR$2,($L48-AR$1)/計算!$B$26*AR$2)) -> 0 | AS48: =IF($L48<AS$1,0,IF($L48-AS$1>計算!$B$26,AS$2,($L48-AS$1)/計算!$B$26*AS$2)) -> 0 | AT48: =IF($L48<AT$1,0,IF($L48-AT$1>計算!$B$26,AT$2,($L48-AT$1)/計算!$B$26*AT$2)) -> 0 | AU48: =IF($L48<AU$1,0,IF($L48-AU$1>計算!$B$26,AU$2,($L48-AU$1)/計算!$B$26*AU$2)) -> 0 | AV48: =IF($L48<AV$1,0,IF($L48-AV$1>計算!$B$26,AV$2,($L48-AV$1)/計算!$B$26*AV$2)) -> 0 | AW48: 3.303637861 | AZ48: 1.6e-07 | BA48: 36 | BB48: =IF(BB18+計算!$B$26>=準備!$T$33,準備!$T$33,BB18+計算!$B$26)+AZ48 -> 7.311335119 | BF48: 44 | BG48: 8.732727163 | BH48: =IF($BG48<BH$1,0,IF($BG48-BH$1>計算!$B$26,BH$2,($BG48-BH$1)/計算!$B$26*BH$2)) -> 1.843424849 | BI48: =IF($BG48<BI$1,0,IF($BG48-BI$1>計算!$B$26,BI$2,($BG48-BI$1)/計算!$B$26*BI$2)) -> 2.08043597 | BJ48: =IF($BG48<BJ$1,0,IF($BG48-BJ$1>計算!$B$26,BJ$2,($BG48-BJ$1)/計算!$B$26*BJ$2)) -> 0.4383357379 | BK48: =IF($BG48<BK$1,0,IF($BG48-BK$1>計算!$B$26,BK$2,($BG48-BK$1)/計算!$B$26*BK$2)) -> -0.5512010619 | BL48: =IF($BG48<BL$1,0,IF($BG48-BL$1>計算!$B$26,BL$2,($BG48-BL$1)/計算!$B$26*BL$2)) -> -0.8036518745 | BM48: =IF($BG48<BM$1,0,IF($BG48-BM$1>計算!$B$26,BM$2,($BG48-BM$1)/計算!$B$26*BM$2)) -> 0.1958427948 | BN48: =IF($BG48<BN$1,0,IF($BG48-BN$1>計算!$B$26,BN$2,($BG48-BN$1)/計算!$B$26*BN$2)) -> 0.1042289406 | BO48: =IF($BG48<BO$1,0,IF($BG48-BO$1>計算!$B$26,BO$2,($BG48-BO$1)/計算!$B$26*BO$2)) -> -0.4423266907 | BP48: =IF($BG48<BP$1,0,IF($BG48-BP$1>計算!$B$26,BP$2,($BG48-BP$1)/計算!$B$26*BP$2)) -> 0.1637739194 | BQ48: =IF($BG48<BQ$1,0,IF($BG48-BQ$1>計算!$B$26,BQ$2,($BG48-BQ$1)/計算!$B$26*BQ$2)) -> 0.4775480553 | BR48: =IF($BG48<BR$1,0,IF($BG48-BR$1>計算!$B$26,BR$2,($BG48-BR$1)/計算!$B$26*BR$2)) -> -0.2147192343 | BS48: =IF($BG48<BS$1,0,IF($BG48-BS$1>計算!$B$26,BS$2,($BG48-BS$1)/計算!$B$26*BS$2)) -> 0.01843575137 | BT48: =IF($BG48<BT$1,0,IF($BG48-BT$1>計算!$B$26,BT$2,($BG48-BT$1)/計算!$B$26*BT$2)) -> 0.02478390678 | BU48: =IF($BG48<BU$1,0,IF($BG48-BU$1>計算!$B$26,BU$2,($BG48-BU$1)/計算!$B$26*BU$2)) -> -0.1791904293 | BV48: =IF($BG48<BV$1,0,IF($BG48-BV$1>計算!$B$26,BV$2,($BG48-BV$1)/計算!$B$26*BV$2)) -> 0.3443491614 | BW48: =IF($BG48<BW$1,0,IF($BG48-BW$1>計算!$B$26,BW$2,($BG48-BW$1)/計算!$B$26*BW$2)) -> -0.02111804055 | BX48: =IF($BG48<BX$1,0,IF($BG48-BX$1>計算!$B$26,BX$2,($BG48-BX$1)/計算!$B$26*BX$2)) -> -0.3408273685 | BY48: =IF($BG48<BY$1,0,IF($BG48-BY$1>計算!$B$26,BY$2,($BG48-BY$1)/計算!$B$26*BY$2)) -> 0.1935437961 | BZ48: =IF($BG48<BZ$1,0,IF($BG48-BZ$1>計算!$B$26,BZ$2,($BG48-BZ$1)/計算!$B$26*BZ$2)) -> -0.0333038386 | CA48: =IF($BG48<CA$1,0,IF($BG48-CA$1>計算!$B$26,CA$2,($BG48-CA$1)/計算!$B$26*CA$2)) -> 0.001735457916 | CB48: =IF($BG48<CB$1,0,IF($BG48-CB$1>計算!$B$26,CB$2,($BG48-CB$1)/計算!$B$26*CB$2)) -> 0.001019084412 | CC48: =IF($BG48<CC$1,0,IF($BG48-CC$1>計算!$B$26,CC$2,($BG48-CC$1)/計算!$B$26*CC$2)) -> -0.006940933278 | CD48: =IF($BG48<CD$1,0,IF($BG48-CD$1>計算!$B$26,CD$2,($BG48-CD$1)/計算!$B$26*CD$2)) -> 0.0119351436 | CE48: =IF($BG48<CE$1,0,IF($BG48-CE$1>計算!$B$26,CE$2,($BG48-CE$1)/計算!$B$26*CE$2)) -> 0 | CF48: =IF($BG48<CF$1,0,IF($BG48-CF$1>計算!$B$26,CF$2,($BG48-CF$1)/計算!$B$26*CF$2)) -> 0 | CG48: =IF($BG48<CG$1,0,IF($BG48-CG$1>計算!$B$26,CG$2,($BG48-CG$1)/計算!$B$26*CG$2)) -> 0 | CH48: =IF($BG48<CH$1,0,IF($BG48-CH$1>計算!$B$26,CH$2,($BG48-CH$1)/計算!$B$26*CH$2)) -> 0 | CI48: =IF($BG48<CI$1,0,IF($BG48-CI$1>計算!$B$26,CI$2,($BG48-CI$1)/計算!$B$26*CI$2)) -> 0 | CJ48: =IF($BG48<CJ$1,0,IF($BG48-CJ$1>計算!$B$26,CJ$2,($BG48-CJ$1)/計算!$B$26*CJ$2)) -> 0 | CK48: =IF($BG48<CK$1,0,IF($BG48-CK$1>計算!$B$26,CK$2,($BG48-CK$1)/計算!$B$26*CK$2)) -> 0 | CL48: 3.306113097 | CO48: 8.272030998 | CP48: 0.008251053143 | CQ48: -0.008251053143
E49: 1.1e-09 | F49: 27 | G49: =IF(G13+計算!$B$26>=準備!$T$33,準備!$T$33,G13+計算!$B$26)+E49 -> 6.292997122 | K49: 46 | L49: 8.300851898 | M49: =IF($L49<M$1,0,IF($L49-M$1>計算!$B$26,M$2,($L49-M$1)/計算!$B$26*M$2)) -> 1.989000528 | N49: =IF($L49<N$1,0,IF($L49-N$1>計算!$B$26,N$2,($L49-N$1)/計算!$B$26*N$2)) -> 0.3275217949 | O49: =IF($L49<O$1,0,IF($L49-O$1>計算!$B$26,O$2,($L49-O$1)/計算!$B$26*O$2)) -> 0.9310129985 | P49: =IF($L49<P$1,0,IF($L49-P$1>計算!$B$26,P$2,($L49-P$1)/計算!$B$26*P$2)) -> 0.2787994054 | Q49: =IF($L49<Q$1,0,IF($L49-Q$1>計算!$B$26,Q$2,($L49-Q$1)/計算!$B$26*Q$2)) -> 0.07787922992 | R49: =IF($L49<R$1,0,IF($L49-R$1>計算!$B$26,R$2,($L49-R$1)/計算!$B$26*R$2)) -> -0.01119237707 | S49: =IF($L49<S$1,0,IF($L49-S$1>計算!$B$26,S$2,($L49-S$1)/計算!$B$26*S$2)) -> -0.2393553108 | T49: =IF($L49<T$1,0,IF($L49-T$1>計算!$B$26,T$2,($L49-T$1)/計算!$B$26*T$2)) -> -0.1103328801 | U49: =IF($L49<U$1,0,IF($L49-U$1>計算!$B$26,U$2,($L49-U$1)/計算!$B$26*U$2)) -> 0.02624490998 | V49: =IF($L49<V$1,0,IF($L49-V$1>計算!$B$26,V$2,($L49-V$1)/計算!$B$26*V$2)) -> 0.01851838427 | W49: =IF($L49<W$1,0,IF($L49-W$1>計算!$B$26,W$2,($L49-W$1)/計算!$B$26*W$2)) -> -0.05796305521 | X49: =IF($L49<X$1,0,IF($L49-X$1>計算!$B$26,X$2,($L49-X$1)/計算!$B$26*X$2)) -> -0.05545849425 | Y49: =IF($L49<Y$1,0,IF($L49-Y$1>計算!$B$26,Y$2,($L49-Y$1)/計算!$B$26*Y$2)) -> 0.1033839999 | Z49: =IF($L49<Z$1,0,IF($L49-Z$1>計算!$B$26,Z$2,($L49-Z$1)/計算!$B$26*Z$2)) -> 0.05028929326 | AA49: =IF($L49<AA$1,0,IF($L49-AA$1>計算!$B$26,AA$2,($L49-AA$1)/計算!$B$26*AA$2)) -> -0.02902262998 | AB49: =IF($L49<AB$1,0,IF($L49-AB$1>計算!$B$26,AB$2,($L49-AB$1)/計算!$B$26*AB$2)) -> 0.002470576645 | AC49: =IF($L49<AC$1,0,IF($L49-AC$1>計算!$B$26,AC$2,($L49-AC$1)/計算!$B$26*AC$2)) -> 0.004403363467 | AD49: =IF($L49<AD$1,0,IF($L49-AD$1>計算!$B$26,AD$2,($L49-AD$1)/計算!$B$26*AD$2)) -> -0.02693247169 | AE49: =IF($L49<AE$1,0,IF($L49-AE$1>計算!$B$26,AE$2,($L49-AE$1)/計算!$B$26*AE$2)) -> 0.02642864354 | AF49: =IF($L49<AF$1,0,IF($L49-AF$1>計算!$B$26,AF$2,($L49-AF$1)/計算!$B$26*AF$2)) -> 0.05897980492 | AG49: =IF($L49<AG$1,0,IF($L49-AG$1>計算!$B$26,AG$2,($L49-AG$1)/計算!$B$26*AG$2)) -> -0.05657348573 | AH49: =IF($L49<AH$1,0,IF($L49-AH$1>計算!$B$26,AH$2,($L49-AH$1)/計算!$B$26*AH$2)) -> -0.02659593272 | AI49: =IF($L49<AI$1,0,IF($L49-AI$1>計算!$B$26,AI$2,($L49-AI$1)/計算!$B$26*AI$2)) -> 0.02196102766 | AJ49: =IF($L49<AJ$1,0,IF($L49-AJ$1>計算!$B$26,AJ$2,($L49-AJ$1)/計算!$B$26*AJ$2)) -> -0.003710590849 | AK49: =IF($L49<AK$1,0,IF($L49-AK$1>計算!$B$26,AK$2,($L49-AK$1)/計算!$B$26*AK$2)) -> 0.0001789461139 | AL49: =IF($L49<AL$1,0,IF($L49-AL$1>計算!$B$26,AL$2,($L49-AL$1)/計算!$B$26*AL$2)) -> 0 | AM49: =IF($L49<AM$1,0,IF($L49-AM$1>計算!$B$26,AM$2,($L49-AM$1)/計算!$B$26*AM$2)) -> 0 | AN49: =IF($L49<AN$1,0,IF($L49-AN$1>計算!$B$26,AN$2,($L49-AN$1)/計算!$B$26*AN$2)) -> 0 | AO49: =IF($L49<AO$1,0,IF($L49-AO$1>計算!$B$26,AO$2,($L49-AO$1)/計算!$B$26*AO$2)) -> 0 | AP49: =IF($L49<AP$1,0,IF($L49-AP$1>計算!$B$26,AP$2,($L49-AP$1)/計算!$B$26*AP$2)) -> 0 | AQ49: =IF($L49<AQ$1,0,IF($L49-AQ$1>計算!$B$26,AQ$2,($L49-AQ$1)/計算!$B$26*AQ$2)) -> 0 | AR49: =IF($L49<AR$1,0,IF($L49-AR$1>計算!$B$26,AR$2,($L49-AR$1)/計算!$B$26*AR$2)) -> 0 | AS49: =IF($L49<AS$1,0,IF($L49-AS$1>計算!$B$26,AS$2,($L49-AS$1)/計算!$B$26*AS$2)) -> 0 | AT49: =IF($L49<AT$1,0,IF($L49-AT$1>計算!$B$26,AT$2,($L49-AT$1)/計算!$B$26*AT$2)) -> 0 | AU49: =IF($L49<AU$1,0,IF($L49-AU$1>計算!$B$26,AU$2,($L49-AU$1)/計算!$B$26*AU$2)) -> 0 | AV49: =IF($L49<AV$1,0,IF($L49-AV$1>計算!$B$26,AV$2,($L49-AV$1)/計算!$B$26*AV$2)) -> 0 | AW49: 3.299935679 | AZ49: 1.7e-07 | BA49: 37 | BB49: =IF(BB19+計算!$B$26>=準備!$T$33,準備!$T$33,BB19+計算!$B$26)+AZ49 -> 7.34015603 | BF49: 45 | BG49: 8.761548073 | BH49: =IF($BG49<BH$1,0,IF($BG49-BH$1>計算!$B$26,BH$2,($BG49-BH$1)/計算!$B$26*BH$2)) -> 1.843424849 | BI49: =IF($BG49<BI$1,0,IF($BG49-BI$1>計算!$B$26,BI$2,($BG49-BI$1)/計算!$B$26*BI$2)) -> 2.08043597 | BJ49: =IF($BG49<BJ$1,0,IF($BG49-BJ$1>計算!$B$26,BJ$2,($BG49-BJ$1)/計算!$B$26*BJ$2)) -> 0.4383357379 | BK49: =IF($BG49<BK$1,0,IF($BG49-BK$1>計算!$B$26,BK$2,($BG49-BK$1)/計算!$B$26*BK$2)) -> -0.5512010619 | BL49: =IF($BG49<BL$1,0,IF($BG49-BL$1>計算!$B$26,BL$2,($BG49-BL$1)/計算!$B$26*BL$2)) -> -0.8036518745 | BM49: =IF($BG49<BM$1,0,IF($BG49-BM$1>計算!$B$26,BM$2,($BG49-BM$1)/計算!$B$26*BM$2)) -> 0.1958427948 | BN49: =IF($BG49<BN$1,0,IF($BG49-BN$1>計算!$B$26,BN$2,($BG49-BN$1)/計算!$B$26*BN$2)) -> 0.1042289406 | BO49: =IF($BG49<BO$1,0,IF($BG49-BO$1>計算!$B$26,BO$2,($BG49-BO$1)/計算!$B$26*BO$2)) -> -0.4423266907 | BP49: =IF($BG49<BP$1,0,IF($BG49-BP$1>計算!$B$26,BP$2,($BG49-BP$1)/計算!$B$26*BP$2)) -> 0.1637739194 | BQ49: =IF($BG49<BQ$1,0,IF($BG49-BQ$1>計算!$B$26,BQ$2,($BG49-BQ$1)/計算!$B$26*BQ$2)) -> 0.4775480553 | BR49: =IF($BG49<BR$1,0,IF($BG49-BR$1>計算!$B$26,BR$2,($BG49-BR$1)/計算!$B$26*BR$2)) -> -0.2147192343 | BS49: =IF($BG49<BS$1,0,IF($BG49-BS$1>計算!$B$26,BS$2,($BG49-BS$1)/計算!$B$26*BS$2)) -> 0.01843575137 | BT49: =IF($BG49<BT$1,0,IF($BG49-BT$1>計算!$B$26,BT$2,($BG49-BT$1)/計算!$B$26*BT$2)) -> 0.02478390678 | BU49: =IF($BG49<BU$1,0,IF($BG49-BU$1>計算!$B$26,BU$2,($BG49-BU$1)/計算!$B$26*BU$2)) -> -0.1791904293 | BV49: =IF($BG49<BV$1,0,IF($BG49-BV$1>計算!$B$26,BV$2,($BG49-BV$1)/計算!$B$26*BV$2)) -> 0.3443491614 | BW49: =IF($BG49<BW$1,0,IF($BG49-BW$1>計算!$B$26,BW$2,($BG49-BW$1)/計算!$B$26*BW$2)) -> -0.02111804055 | BX49: =IF($BG49<BX$1,0,IF($BG49-BX$1>計算!$B$26,BX$2,($BG49-BX$1)/計算!$B$26*BX$2)) -> -0.3408273685 | BY49: =IF($BG49<BY$1,0,IF($BG49-BY$1>計算!$B$26,BY$2,($BG49-BY$1)/計算!$B$26*BY$2)) -> 0.1935437961 | BZ49: =IF($BG49<BZ$1,0,IF($BG49-BZ$1>計算!$B$26,BZ$2,($BG49-BZ$1)/計算!$B$26*BZ$2)) -> -0.0333038386 | CA49: =IF($BG49<CA$1,0,IF($BG49-CA$1>計算!$B$26,CA$2,($BG49-CA$1)/計算!$B$26*CA$2)) -> 0.001735457916 | CB49: =IF($BG49<CB$1,0,IF($BG49-CB$1>計算!$B$26,CB$2,($BG49-CB$1)/計算!$B$26*CB$2)) -> 0.001358779217 | CC49: =IF($BG49<CC$1,0,IF($BG49-CC$1>計算!$B$26,CC$2,($BG49-CC$1)/計算!$B$26*CC$2)) -> -0.01041139992 | CD49: =IF($BG49<CD$1,0,IF($BG49-CD$1>計算!$B$26,CD$2,($BG49-CD$1)/計算!$B$26*CD$2)) -> 0.02387028721 | CE49: =IF($BG49<CE$1,0,IF($BG49-CE$1>計算!$B$26,CE$2,($BG49-CE$1)/計算!$B$26*CE$2)) -> -0.01428033826 | CF49: =IF($BG49<CF$1,0,IF($BG49-CF$1>計算!$B$26,CF$2,($BG49-CF$1)/計算!$B$26*CF$2)) -> 0 | CG49: =IF($BG49<CG$1,0,IF($BG49-CG$1>計算!$B$26,CG$2,($BG49-CG$1)/計算!$B$26*CG$2)) -> 0 | CH49: =IF($BG49<CH$1,0,IF($BG49-CH$1>計算!$B$26,CH$2,($BG49-CH$1)/計算!$B$26*CH$2)) -> 0 | CI49: =IF($BG49<CI$1,0,IF($BG49-CI$1>計算!$B$26,CI$2,($BG49-CI$1)/計算!$B$26*CI$2)) -> 0 | CJ49: =IF($BG49<CJ$1,0,IF($BG49-CJ$1>計算!$B$26,CJ$2,($BG49-CJ$1)/計算!$B$26*CJ$2)) -> 0 | CK49: =IF($BG49<CK$1,0,IF($BG49-CK$1>計算!$B$26,CK$2,($BG49-CK$1)/計算!$B$26*CK$2)) -> 0 | CL49: 3.300637131 | CO49: 8.300851898 | CP49: 0.009391683806 | CQ49: -0.009391683806
